Workbook

Sheet Sample Report (hidden)
A2: Date
A3: Hen
A4: Program
A5: Start at 999999
A6: Sequence component 1 | B6: Time 1 | C6: Seqeunce Component 2 | D6: Time 2 | E6: Seqeunce Component 3 | F6: Time 3 | G6: Correct 0 = No 1=Yes | J6: Seqeunce | K6: Time
A7: 12 | B7: 7 | C7: 12 | D7: 42 | E7: 13 | F7: 18 | G7: if 77 new line, if 31 or 41 = yes new line on 77, | J7: =string of Seqeunce compponent 1, 2 & 3 | K7: =time 3
A8: This continues until ther is a 1 on its own to indicate start of summary data
J9: 10-19 =1
A10: Summary Data | J10: 20-29 =2
A11: Correct | B11: Incorrect | C11: Rft | D11: total | E11: Av Correct | F11: Av Incorrect | G11: Percent correct | H11: Time | J11: in this example the seqeunce would be 111
A12: 40 | B12: 33 | C12: 40 | D12: 73 | E12: 23.95 | F12: 15 | G12: 54 | H12: 806

Sheet Summary
A2: Day | B2: Date | C2: Average Response Rate | D2: Target % | E2: RF for non correct sequence | F2: U Value | K2: Block 1 | L2: Block 2 | M2: Block 3 | N2: Block 4 | O2: Block 5 | P2: Block 6
A3: 1 | B3: ='!M219B2D.UST'!B2:C2 -> <date> | C3: =('!M219B2D.UST'!F186/60)/'!M219B2D.UST'!Q3 -> 2.207962963 | D3: ='!M219B2D.UST'!N20/'!M219B2D.UST'!Q3 -> 0.005555555556 | E3: =SUM('!M219B2D.UST'!L20:Q20)/'!M219B2D.UST'!Q3 -> 1.572222222 | F3: ='!M219B2D.UST'!Q16 -> 0.2999261245 | J3: Average Response Rate | K3: =AVERAGE(C3:C7) -> 2.230544374 | L3: =AVERAGE(C8:C12) -> 2.40043981 | M3: =AVERAGE(C13:C17) -> 2.583219722 | N3: =AVERAGE(C18:C22) -> 2.754200572 | O3: =AVERAGE(C23:C27) -> 2.86143624 | P3: =AVERAGE(C28:C32) -> 3.110220594
A4: 2 | B4: ='!M220B1D.UST'!B2:C2 -> <date> | C4: =('!M220B1D.UST'!F179/60)/'!M220B1D.UST'!Q3 -> 2.290077071 | D4: ='!M220B1D.UST'!N20/'!M220B1D.UST'!Q3 -> 0.01156069364 | E4: =SUM('!M220B1D.UST'!L20:Q20)/'!M220B1D.UST'!Q3 -> 0.9884393064 | F4: ='!M220B1D.UST'!Q16 -> 0.3275816424 | J4: Target % | K4: =AVERAGE(D3:D7) -> 0.01786299376 | L4: =AVERAGE(D8:D12) -> 0.07449954924 | M4: =AVERAGE(D13:D17) -> 0.2601100936 | N4: =AVERAGE(D18:D22) -> 0.3685773912 | O4: =AVERAGE(D23:D27) -> 0.5162911513 | P4: =AVERAGE(D28:D32) -> 0.4460311209
A5: 3 | B5: ='!M221A5D.UST'!B2:C2 -> <date> | C5: =('!M221A5D.UST'!F185/60)/'!M221A5D.UST'!Q3 -> 2.231284916 | D5: ='!M221A5D.UST'!N20/'!M221A5D.UST'!Q3 -> 0.01675977654 | E5: =SUM('!M221A5D.UST'!L20:Q20)/'!M221A5D.UST'!Q3 -> 1.530726257 | F5: ='!M221A5D.UST'!Q16 -> 0.3586940748 | J5: CCRF | K5: =AVERAGE(E3:E7) -> 1.454985793 | L5: =AVERAGE(E8:E12) -> 1.706528541 | M5: =AVERAGE(E13:E17) -> 1.945751397 | N5: =AVERAGE(E18:E22) -> 2.319122319 | O5: =AVERAGE(E23:E27) -> 2.753477026 | P5: =AVERAGE(E28:E32) -> 2.263966272
A6: 4 | B6: ='!M222A1D.UST'!B2:C2 -> <date> | C6: =('!M222A1D.UST'!F188/60)/'!M222A1D.UST'!Q3 -> 2.188003663 | D6: ='!M222A1D.UST'!N20/'!M222A1D.UST'!Q3 -> 0.03296703297 | E6: =SUM('!M222A1D.UST'!L20:Q20)/'!M222A1D.UST'!Q3 -> 1.582417582 | F6: ='!M222A1D.UST'!Q16 -> 0.3181486584 | J6: U Value | K6: =AVERAGE(F3:F7) -> 0.3330743433 | L6: =AVERAGE(F8:F12) -> 0.3702900712 | M6: =AVERAGE(F13:F17) -> 0.3866456996 | N6: =AVERAGE(F18:F22) -> 0.3884106351 | O6: =AVERAGE(F23:F27) -> 0.3525917925 | P6: =AVERAGE(F28:F32) -> 0.3723271423
A7: 5 | B7: ='!M223A3D.UST'!B2:C2 -> <date> | C7: =('!M223A3D.UST'!F183/60)/'!M223A3D.UST'!Q3 -> 2.235393258 | D7: ='!M223A3D.UST'!N20/'!M223A3D.UST'!Q3 -> 0.02247191011 | E7: =SUM('!M223A3D.UST'!L20:Q20)/'!M223A3D.UST'!Q3 -> 1.601123596 | F7: ='!M223A3D.UST'!Q16 -> 0.3610212164
A8: 6 | B8: ='!M224A2D.UST'!B2:C2 -> <date> | C8: =('!M224A2D.UST'!F182/60)/'!M224A2D.UST'!Q3 -> 2.256155303 | D8: ='!M224A2D.UST'!N20/'!M224A2D.UST'!Q3 -> 0.02272727273 | E8: =SUM('!M224A2D.UST'!L20:Q20)/'!M224A2D.UST'!Q3 -> 1.556818182 | F8: ='!M224A2D.UST'!Q16 -> 0.3503958886
A9: 7 | B9: ='!M225A2D.UST'!B2:C2 -> <date> | C9: =('!M225A2D.UST'!F177/60)/'!M225A2D.UST'!Q3 -> 2.326023392 | D9: ='!M225A2D.UST'!N20/'!M225A2D.UST'!Q3 -> 0.0701754386 | E9: =SUM('!M225A2D.UST'!L20:Q20)/'!M225A2D.UST'!Q3 -> 1.637426901 | F9: ='!M225A2D.UST'!Q16 -> 0.3464122112 | G9: =K3 -> 2.230544374 | H9: =L3 -> 2.40043981 | I9: 2.583219722 | J9: 2.754200572 | K9: 2.86143624 | L9: 3.110220594 | M9: =K4 -> 0.01786299376 | N9: =L4 -> 0.07449954924 | O9: 0.2601100936 | P9: 0.3685773912 | Q9: 0.5162911513 | R9: 0.4460311209 | S9: =K6 -> 0.3330743433 | T9: =L6 -> 0.3702900712 | U9: 0.3866456996 | V9: 0.3884106351 | W9: 0.3525917925 | X9: 0.3723271423
A10: 8 | B10: ='!M226A5D.UST'!B2:C2 -> <date> | C10: =('!M226A5D.UST'!F167/60)/'!M226A5D.UST'!Q3 -> 2.484575569 | D10: ='!M226A5D.UST'!N20/'!M226A5D.UST'!Q3 -> 0.08074534161 | E10: =SUM('!M226A5D.UST'!L20:Q20)/'!M226A5D.UST'!Q3 -> 1.795031056 | F10: ='!M226A5D.UST'!Q16 -> 0.3782242823
A11: 9 | B11: ='!M227A4D.UST'!B2:C2 -> <date> | C11: =('!M227A4D.UST'!F168/60)/'!M227A4D.UST'!Q3 -> 2.442944785 | D11: ='!M227A4D.UST'!N20/'!M227A4D.UST'!Q3 -> 0.06134969325 | E11: =SUM('!M227A4D.UST'!L20:Q20)/'!M227A4D.UST'!Q3 -> 1.687116564 | F11: ='!M227A4D.UST'!Q16 -> 0.3807683391
A12: 10 | B12: ='!M228A4D.UST'!B2:C2 -> <date> | C12: =('!M228A4D.UST'!F166/60)/'!M228A4D.UST'!Q3 -> 2.4925 | D12: ='!M228A4D.UST'!N20/'!M228A4D.UST'!Q3 -> 0.1375 | E12: =SUM('!M228A4D.UST'!L20:Q20)/'!M228A4D.UST'!Q3 -> 1.85625 | F12: ='!M228A4D.UST'!Q16 -> 0.395649635
A13: 11 | B13: ='!M229B0D.UST'!B2:C2 -> <date> | C13: =('!M229B0D.UST'!F178/60)/'!M229B0D.UST'!Q3 -> 2.315406977 | D13: ='!M229B0D.UST'!N20/'!M229B0D.UST'!Q3 -> 0.1220930233 | E13: =SUM('!M229B0D.UST'!L20:Q20)/'!M229B0D.UST'!Q3 -> 1.104651163 | F13: ='!M229B0D.UST'!Q16 -> 0.3838758265
A14: 12 | B14: ='!M301A4D.UST'!B2:C2 -> <date> | C14: =('!M301A4D.UST'!F136/60)/'!M301A4D.UST'!Q3 -> 2.540128205 | D14: ='!M301A4D.UST'!N20/'!M301A4D.UST'!Q3 -> 0.2692307692 | E14: =SUM('!M301A4D.UST'!L20:Q20)/'!M301A4D.UST'!Q3 -> 2.230769231 | F14: ='!M301A4D.UST'!Q16 -> 0.4034180195
A15: 13 | B15: ='!M302A5D.UST'!B2:C2 -> <date> | C15: =('!M302A5D.UST'!F130/60)/'!M302A5D.UST'!Q3 -> 2.587768817 | D15: ='!M302A5D.UST'!N20/'!M302A5D.UST'!Q3 -> 0.2661290323 | E15: =SUM('!M302A5D.UST'!L20:Q20)/'!M302A5D.UST'!Q3 -> 2.298387097 | F15: ='!M302A5D.UST'!Q16 -> 0.3931626091
A16: 14 | B16: ='!M303A3D.UST'!B2:C2 -> <date> | C16: =('!M303A3D.UST'!F141/60)/'!M303A3D.UST'!Q3 -> 2.526666667 | D16: ='!M303A3D.UST'!N20/'!M303A3D.UST'!Q3 -> 0.2592592593 | E16: =SUM('!M303A3D.UST'!L20:Q20)/'!M303A3D.UST'!Q3 -> 2.155555556 | F16: ='!M303A3D.UST'!Q16 -> 0.3847548895
A17: 15 | B17: ='!M304B0D.UST'!B2:C2 -> <date> | C17: =('!M304B0D.UST'!F105/60)/'!M304B0D.UST'!Q3 -> 2.946127946 | D17: ='!M304B0D.UST'!N20/'!M304B0D.UST'!Q3 -> 0.3838383838 | E17: =SUM('!M304B0D.UST'!L20:Q20)/'!M304B0D.UST'!Q3 -> 1.939393939 | F17: ='!M304B0D.UST'!Q16 -> 0.3680171533
A18: 16 | B18: ='!M305A3D.UST'!B2:C2 -> <date> | C18: =('!M305A3D.UST'!F104/60)/'!M305A3D.UST'!Q3 -> 2.921768707 | D18: ='!M305A3D.UST'!N20/'!M305A3D.UST'!Q3 -> 0.3775510204 | E18: =SUM('!M305A3D.UST'!L20:Q20)/'!M305A3D.UST'!Q3 -> 1.948979592 | F18: ='!M305A3D.UST'!Q16 -> 0.3747856211
A19: 17 | B19: ='!M306B2D.UST'!B2:C2 -> <date> | C19: =('!M306B2D.UST'!F99/60)/'!M306B2D.UST'!Q3 -> 2.762544803 | D19: ='!M306B2D.UST'!N20/'!M306B2D.UST'!Q3 -> 0.3978494624 | E19: =SUM('!M306B2D.UST'!L20:Q20)/'!M306B2D.UST'!Q3 -> 2.032258065 | F19: ='!M306B2D.UST'!Q16 -> 0.3954446401
A20: 18 | B20: ='!M307B0D.UST'!B2:C2 -> <date> | C20: =('!M307B0D.UST'!F101/60)/'!M307B0D.UST'!Q3 -> 2.773859649 | D20: ='!M307B0D.UST'!N20/'!M307B0D.UST'!Q3 -> 0.3684210526 | E20: =SUM('!M307B0D.UST'!L20:Q20)/'!M307B0D.UST'!Q3 -> 2.926315789 | F20: ='!M307B0D.UST'!Q16 -> 0.3850269917
A21: 19 | B21: ='!M308A2D.UST'!B2:C2 -> <date> | C21: =('!M308A2D.UST'!F113/60)/'!M308A2D.UST'!Q3 -> 2.505607477 | D21: ='!M308A2D.UST'!N20/'!M308A2D.UST'!Q3 -> 0.2990654206 | E21: =SUM('!M308A2D.UST'!L20:Q20)/'!M308A2D.UST'!Q3 -> 2.710280374 | F21: ='!M308A2D.UST'!Q16 -> 0.4003729539
A22: 20 | B22: ='!M309A3D.UST'!B2:C2 -> <date> | C22: =('!M309A3D.UST'!F96/60)/'!M309A3D.UST'!Q3 -> 2.807222222 | D22: ='!M309A3D.UST'!N20/'!M309A3D.UST'!Q3 -> 0.4 | E22: =SUM('!M309A3D.UST'!L20:Q20)/'!M309A3D.UST'!Q3 -> 1.977777778 | F22: ='!M309A3D.UST'!Q16 -> 0.3864229684
A23: 21 | B23: ='!M310A2D.UST'!B2:C2 -> <date> | C23: =('!M310A2D.UST'!F87/60)/'!M310A2D.UST'!Q3 -> 2.853497942 | D23: ='!M310A2D.UST'!N20/'!M310A2D.UST'!Q3 -> 0.4691358025 | E23: =SUM('!M310A2D.UST'!L20:Q20)/'!M310A2D.UST'!Q3 -> 2.296296296 | F23: ='!M310A2D.UST'!Q16 -> 0.3807145404
A24: 22 | B24: ='!M311B3D.UST'!B2:C2 -> <date> | C24: =('!M311B3D.UST'!F80/60)/'!M311B3D.UST'!Q3 -> 2.881756757 | D24: ='!M311B3D.UST'!N20/'!M311B3D.UST'!Q3 -> 0.527027027 | E24: =SUM('!M311B3D.UST'!L20:Q20)/'!M311B3D.UST'!Q3 -> 3.716216216 | F24: ='!M311B3D.UST'!Q16 -> 0.3442693055
A25: 23 | B25: ='!M312A3D.UST'!B2:C2 -> <date> | C25: =('!M312A3D.UST'!F60/60)/'!M312A3D.UST'!Q3 -> 3.010185185 | D25: ='!M312A3D.UST'!N20/'!M312A3D.UST'!Q3 -> 0.6851851852 | E25: =SUM('!M312A3D.UST'!L20:Q20)/'!M312A3D.UST'!Q3 -> 3.259259259 | F25: ='!M312A3D.UST'!Q16 -> 0.2860522986
A26: 24 | B26: ='!M313A5D.UST'!B2:C2 -> <date> | C26: =('!M313A5D.UST'!F79/60)/'!M313A5D.UST'!Q3 -> 2.739269406 | D26: ='!M313A5D.UST'!N20/'!M313A5D.UST'!Q3 -> 0.5068493151 | E26: =SUM('!M313A5D.UST'!L20:Q20)/'!M313A5D.UST'!Q3 -> 2.506849315 | F26: ='!M313A5D.UST'!Q16 -> 0.3597642871
A27: 25 | B27: ='!M314B4D.UST'!B2:C2 -> <date> | C27: =('!M314B4D.UST'!F95/60)/'!M314B4D.UST'!Q3 -> 2.82247191 | D27: ='!M314B4D.UST'!N20/'!M314B4D.UST'!Q3 -> 0.393258427 | E27: =SUM('!M314B4D.UST'!L20:Q20)/'!M314B4D.UST'!Q3 -> 1.988764045 | F27: ='!M314B4D.UST'!Q16 -> 0.3921585309
A28: 26 | B28: ='!M315A4D.UST'!B2:C2 -> <date> | C28: =('!M315A4D.UST'!F97/60)/'!M315A4D.UST'!Q3 -> 2.611904762 | D28: ='!M315A4D.UST'!N20/'!M315A4D.UST'!Q3 -> 0.3956043956 | E28: =SUM('!M315A4D.UST'!L20:Q20)/'!M315A4D.UST'!Q3 -> 2.054945055 | F28: ='!M315A4D.UST'!Q16 -> 0.3918866252
A29: 27 | B29: ='!M316A5D.UST'!B2:C2 -> <date> | C29: =('!M316A5D.UST'!F87/60)/'!M316A5D.UST'!Q3 -> 2.64218107 | D29: ='!M316A5D.UST'!N20/'!M316A5D.UST'!Q3 -> 0.4691358025 | E29: =SUM('!M316A5D.UST'!L20:Q20)/'!M316A5D.UST'!Q3 -> 2.185185185 | F29: ='!M316A5D.UST'!Q16 -> 0.3611458987
A30: 28 | B30: ='!M317B2D.UST'!B2:C2 -> <date> | C30: =('!M317B2D.UST'!F83/60)/'!M317B2D.UST'!Q3 -> 2.616233766 | D30: ='!M317B2D.UST'!N20/'!M317B2D.UST'!Q3 -> 0.5064935065 | E30: =SUM('!M317B2D.UST'!L20:Q20)/'!M317B2D.UST'!Q3 -> 2.428571429 | F30: ='!M317B2D.UST'!Q16 -> 0.3378124006
A31: 29 | B31: ='!M318B0D.UST'!B2:C2 -> <date> | C31: =('!M318B0D.UST'!F79/60)/'!M318B0D.UST'!Q3 -> 2.500913242 | D31: ='!M318B0D.UST'!N20/'!M318B0D.UST'!Q3 -> 0.5342465753 | E31: =SUM('!M318B0D.UST'!L20:Q20)/'!M318B0D.UST'!Q3 -> 2.534246575 | F31: ='!M318B0D.UST'!Q16 -> 0.3372913552
A32: 30 | B32: ='!M319B0D.UST'!B2:C2 -> <date> | C32: =('!M319B0D.UST'!F83/60)/'!M319B0D.UST'!Q3 -> 5.17987013 | D32: ='!M319B0D.UST'!N20/'!M319B0D.UST'!Q3 -> 0.3246753247 | E32: =SUM('!M319B0D.UST'!L20:Q20)/'!M319B0D.UST'!Q3 -> 2.116883117 | F32: ='!M319B0D.UST'!Q16 -> 0.4334994316

Sheet Start
F1: Use Folder 51 | H1: Auto Clean Up | J1: Correct sequence
F2: FALSE | H2: TRUE | J2: 121
A4: Working with Folder | G4: Process All/Or Pick A number: ALL or an integer
A5: F:\Possum Chapter\Raw Data\Dusti\New Phase 3 LRL\ | G5: ALL
A6: Filenames:
A7: !M311B3D.UST | G7: Paint Cells
A8: !M312A3D.UST | G8: FALSE
A9: !M313A5D.UST
A10: !M314B4D.UST
A11: !M315A4D.UST
A12: !M316A5D.UST
A13: !M317B2D.UST
A14: !M318B0D.UST
A15: !M219B2D.UST
A16: !M220B1D.UST
A17: !M221A5D.UST
A18: !M222A1D.UST
A19: !M223A3D.UST
A20: !M224A2D.UST
A21: !M225A2D.UST
A22: !M226A5D.UST
A23: !M227A4D.UST
A24: !M228A4D.UST
A25: !M229B0D.UST
A26: !M301A4D.UST
A27: !M302A5D.UST
A28: !M303A3D.UST
A29: !M304B0D.UST
A30: !M305A3D.UST
A31: !M306B2D.UST
A32: !M307B0D.UST
A33: !M308A2D.UST
A34: !M309A3D.UST
A35: !M310A2D.UST
A36: !M319B0D.UST

Sheet !M219B2D.UST
A1: Report for:!M219B2D.UST
A2: Date: | B2: <date>
A3: Hen: | B3: <hen> | F3: Correct Sequence | G3: =Start!J2 -> 121 | P3: Total Sequences in Data | Q3: =4994-COUNTBLANK(L7:L5000) -> 180 | V3: Total Sequences in Block Data | W3: =COUNTA(L7:L36) -> 30 | AA3: Total Sequences in Block Data | AB3: =COUNTA(L37:L66) -> 30 | AF3: Total Sequences in Block Data | AG3: =COUNTA(L67:L96) -> 30 | AK3: Total Sequences in Block Data | AL3: =COUNTA(L97:L126) -> 30 | AP3: Total Sequences in Block Data | AQ3: =COUNTA(L127:L156) -> 30 | AU3: Total Sequences in Block Data | AV3: =COUNTA(L157:L186) -> 30
P4: Total Sequences in Summary | Q4: =SUM(O7:O14) -> 180 | V4: Total Sequences in Block Summary | W4: =SUM(U7:U14) -> 30 | AA4: Total Sequences in Block Summary | AB4: =SUM(Z7:Z14) -> 30 | AF4: Total Sequences in Block Summary | AG4: =SUM(AE7:AE14) -> 30 | AK4: Total Sequences in Block Summary | AL4: =SUM(AJ7:AJ14) -> 30 | AP4: Total Sequences in Block Summary | AQ4: =SUM(AO7:AO14) -> 30 | AU4: Total Sequences in Block Summary | AV4: =SUM(AT7:AT14) -> 30
T5: Block 1 | Y5: Block 2 | AD5: Block 3 | AI5: Block 4 | AN5: Block 5 | AS5: Block 6
A6: Sequence Component 1 | B6: Time 1 | C6: Sequence Component 2 | D6: Time 2 | E6: Sequence Component 3 | F6: Time 3 | G6: Sequence Component 4 | H6: Time 4 | I6: Sequence Component 5 | J6: Time 5 | K6: Correct? 0=No 1=Yes | L6: Sequence | N6: Frequency | P6: Relative Frequency | Q6: Variability | T6: Frequency | V6: Relative Frequency | W6: Variability | Y6: Frequency | AA6: Relative Frequency | AB6: Variability | AD6: Frequency | AF6: Relative Frequency | AG6: Variability | AI6: Frequency | AK6: Relative Frequency | AL6: Variability | AN6: Frequency | AP6: Relative Frequency | AQ6: Variability | AS6: Frequency | AU6: Relative Frequency | AV6: Variability
A7: 11 | B7: 21 | C7: 21 | D7: 28 | E7: 22 | F7: 36 | K7: 0 | L7: 122 | N7: 111 | O7: =COUNTIF($L$7:$L$500,N7) -> 14 | P7: =O7/$Q$4 -> 0.07777777778 | Q7: =IF(P7=0,0,(P7*((LOG(P7))/LOG(2)))) -> -0.2865720802 | T7: =N7 -> 111 | U7: =COUNTIF(L7:L36,T7) -> 0 | V7: =U7/(W4-U9) -> 0 | W7: =IF(V7=0,0,(V7*((LOG(V7))/LOG(2)))) -> 0 | Y7: =N7 -> 111 | Z7: =COUNTIF(L37:L66,Y7) -> 0 | AA7: =Z7/(AB4-Z9) -> 0 | AB7: =IF(AA7=0,0,(AA7*((LOG(AA7))/LOG(2)))) -> 0 | AD7: =N7 -> 111 | AE7: =COUNTIF(L67:L96,AD7) -> 2 | AF7: =AE7/(AG4-AE9) -> 0.06666666667 | AG7: =IF(AF7=0,0,(AF7*((LOG(AF7))/LOG(2)))) -> -0.260459373 | AI7: =N7 -> 111 | AJ7: =COUNTIF(L97:L126,AI7) -> 2 | AK7: =AJ7/(AL4-AJ9) -> 0.06896551724 | AL7: =IF(AK7=0,0,(AK7*((LOG(AK7))/LOG(2)))) -> -0.2660676548 | AN7: =N7 -> 111 | AO7: =COUNTIF(L127:L156,AN7) -> 4 | AP7: =AO7/(AQ4-AO9) -> 0.1333333333 | AQ7: =IF(AP7=0,0,(AP7*((LOG(AP7))/LOG(2)))) -> -0.3875854127 | AS7: =N7 -> 111 | AT7: =COUNTIF(L157:L186,AS7) -> 6 | AU7: =AT7/(AV4-AT9) -> 0.2 | AV7: =IF(AU7=0,0,(AU7*((LOG(AU7))/LOG(2)))) -> -0.464385619
A8: 22 | B8: 134 | C8: 23 | D8: 144 | E8: 13 | F8: 158 | K8: 0 | L8: 221 | N8: 112 | O8: =COUNTIF($L$7:$L$500,N8) -> 7 | P8: =O8/$Q$4 -> 0.03888888889 | Q8: =IF(P8=0,0,(P8*((LOG(P8))/LOG(2)))) -> -0.182174929 | T8: =N8 -> 112 | U8: =COUNTIF(L7:L36,T8) -> 0 | V8: =U8/(W4-U9) -> 0 | W8: =IF(V8=0,0,(V8*((LOG(V8))/LOG(2)))) -> 0 | Y8: =N8 -> 112 | Z8: =COUNTIF(L37:L66,Y8) -> 0 | AA8: =Z8/(AB4-Z9) -> 0 | AB8: =IF(AA8=0,0,(AA8*((LOG(AA8))/LOG(2)))) -> 0 | AD8: =N8 -> 112 | AE8: =COUNTIF(L67:L96,AD8) -> 2 | AF8: =AE8/(AG4-AE9) -> 0.06666666667 | AG8: =IF(AF8=0,0,(AF8*((LOG(AF8))/LOG(2)))) -> -0.260459373 | AI8: =N8 -> 112 | AJ8: =COUNTIF(L97:L126,AI8) -> 1 | AK8: =AJ8/(AL4-AJ9) -> 0.03448275862 | AL8: =IF(AK8=0,0,(AK8*((LOG(AK8))/LOG(2)))) -> -0.167516586 | AN8: =N8 -> 112 | AO8: =COUNTIF(L127:L156,AN8) -> 1 | AP8: =AO8/(AQ4-AO9) -> 0.03333333333 | AQ8: =IF(AP8=0,0,(AP8*((LOG(AP8))/LOG(2)))) -> -0.1635630199 | AS8: =N8 -> 112 | AT8: =COUNTIF(L157:L186,AS8) -> 3 | AU8: =AT8/(AV4-AT9) -> 0.1 | AV8: =IF(AU8=0,0,(AU8*((LOG(AU8))/LOG(2)))) -> -0.3321928095
A9: 22 | B9: 256 | C9: 23 | D9: 263 | E9: 13 | F9: 284 | K9: 0 | L9: 221 | N9: 121 | O9: =COUNTIF($L$7:$L$500,N9) -> 1 | P9: =O9/$Q$4 -> 0.005555555556 | Q9: =IF(P9=0,0,(P9*((LOG(P9))/LOG(2)))) -> -0.04162140609 | T9: =N9 -> 121 | U9: =COUNTIF(L7:L36,T9) -> 0 | Y9: =N9 -> 121 | Z9: =COUNTIF(L37:L66,Y9) -> 0 | AD9: =N9 -> 121 | AE9: =COUNTIF(L67:L96,AD9) -> 0 | AI9: =N9 -> 121 | AJ9: =COUNTIF(L97:L126,AI9) -> 1 | AN9: =N9 -> 121 | AO9: =COUNTIF(L127:L156,AN9) -> 0 | AS9: =N9 -> 121 | AT9: =COUNTIF(L157:L186,AS9) -> 0
A10: 22 | B10: 384 | C10: 23 | D10: 392 | E10: 24 | F10: 415 | K10: 0 | L10: 222 | N10: 122 | O10: =COUNTIF($L$7:$L$500,N10) -> 8 | P10: =O10/$Q$4 -> 0.04444444444 | Q10: =IF(P10=0,0,(P10*((LOG(P10))/LOG(2)))) -> -0.1996379154 | T10: =N10 -> 122 | U10: =COUNTIF(L7:L36,T10) -> 1 | V10: =U10/(W4-U9) -> 0.03333333333 | W10: =IF(V10=0,0,(V10*((LOG(V10))/LOG(2)))) -> -0.1635630199 | Y10: =N10 -> 122 | Z10: =COUNTIF(L37:L66,Y10) -> 0 | AA10: =Z10/(AB4-Z9) -> 0 | AB10: =IF(AA10=0,0,(AA10*((LOG(AA10))/LOG(2)))) -> 0 | AD10: =N10 -> 122 | AE10: =COUNTIF(L67:L96,AD10) -> 2 | AF10: =AE10/(AG4-AE9) -> 0.06666666667 | AG10: =IF(AF10=0,0,(AF10*((LOG(AF10))/LOG(2)))) -> -0.260459373 | AI10: =N10 -> 122 | AJ10: =COUNTIF(L97:L126,AI10) -> 2 | AK10: =AJ10/(AL4-AJ9) -> 0.06896551724 | AL10: =IF(AK10=0,0,(AK10*((LOG(AK10))/LOG(2)))) -> -0.2660676548 | AN10: =N10 -> 122 | AO10: =COUNTIF(L127:L156,AN10) -> 1 | AP10: =AO10/(AQ4-AO9) -> 0.03333333333 | AQ10: =IF(AP10=0,0,(AP10*((LOG(AP10))/LOG(2)))) -> -0.1635630199 | AS10: =N10 -> 122 | AT10: =COUNTIF(L157:L186,AS10) -> 2 | AU10: =AT10/(AV4-AT9) -> 0.06666666667 | AV10: =IF(AU10=0,0,(AU10*((LOG(AU10))/LOG(2)))) -> -0.260459373
A11: 22 | B11: 598 | C11: 23 | D11: 624 | E11: 24 | F11: 652 | K11: 0 | L11: 222 | N11: 211 | O11: =COUNTIF($L$7:$L$500,N11) -> 0 | P11: =O11/$Q$4 -> 0 | Q11: =IF(P11=0,0,(P11*((LOG(P11))/LOG(2)))) -> 0 | T11: =N11 -> 211 | U11: =COUNTIF(L7:L36,T11) -> 0 | V11: =U11/(W4-U9) -> 0 | W11: =IF(V11=0,0,(V11*((LOG(V11))/LOG(2)))) -> 0 | Y11: =N11 -> 211 | Z11: =COUNTIF(L37:L66,Y11) -> 0 | AA11: =Z11/(AB4-Z9) -> 0 | AB11: =IF(AA11=0,0,(AA11*((LOG(AA11))/LOG(2)))) -> 0 | AD11: =N11 -> 211 | AE11: =COUNTIF(L67:L96,AD11) -> 0 | AF11: =AE11/(AG4-AE9) -> 0 | AG11: =IF(AF11=0,0,(AF11*((LOG(AF11))/LOG(2)))) -> 0 | AI11: =N11 -> 211 | AJ11: =COUNTIF(L97:L126,AI11) -> 0 | AK11: =AJ11/(AL4-AJ9) -> 0 | AL11: =IF(AK11=0,0,(AK11*((LOG(AK11))/LOG(2)))) -> 0 | AN11: =N11 -> 211 | AO11: =COUNTIF(L127:L156,AN11) -> 0 | AP11: =AO11/(AQ4-AO9) -> 0 | AQ11: =IF(AP11=0,0,(AP11*((LOG(AP11))/LOG(2)))) -> 0 | AS11: =N11 -> 211 | AT11: =COUNTIF(L157:L186,AS11) -> 0 | AU11: =AT11/(AV4-AT9) -> 0 | AV11: =IF(AU11=0,0,(AU11*((LOG(AU11))/LOG(2)))) -> 0
A12: 22 | B12: 751 | C12: 23 | D12: 757 | E12: 13 | F12: 773 | K12: 0 | L12: 221 | N12: 212 | O12: =COUNTIF($L$7:$L$500,N12) -> 48 | P12: =O12/$Q$4 -> 0.2666666667 | Q12: =IF(P12=0,0,(P12*((LOG(P12))/LOG(2)))) -> -0.5085041588 | T12: =N12 -> 212 | U12: =COUNTIF(L7:L36,T12) -> 4 | V12: =U12/(W4-U9) -> 0.1333333333 | W12: =IF(V12=0,0,(V12*((LOG(V12))/LOG(2)))) -> -0.3875854127 | Y12: =N12 -> 212 | Z12: =COUNTIF(L37:L66,Y12) -> 10 | AA12: =Z12/(AB4-Z9) -> 0.3333333333 | AB12: =IF(AA12=0,0,(AA12*((LOG(AA12))/LOG(2)))) -> -0.5283208336 | AD12: =N12 -> 212 | AE12: =COUNTIF(L67:L96,AD12) -> 9 | AF12: =AE12/(AG4-AE9) -> 0.3 | AG12: =IF(AF12=0,0,(AF12*((LOG(AF12))/LOG(2)))) -> -0.5210896782 | AI12: =N12 -> 212 | AJ12: =COUNTIF(L97:L126,AI12) -> 11 | AK12: =AJ12/(AL4-AJ9) -> 0.3793103448 | AL12: =IF(AK12=0,0,(AK12*((LOG(AK12))/LOG(2)))) -> -0.5304842463 | AN12: =N12 -> 212 | AO12: =COUNTIF(L127:L156,AN12) -> 9 | AP12: =AO12/(AQ4-AO9) -> 0.3 | AQ12: =IF(AP12=0,0,(AP12*((LOG(AP12))/LOG(2)))) -> -0.5210896782 | AS12: =N12 -> 212 | AT12: =COUNTIF(L157:L186,AS12) -> 5 | AU12: =AT12/(AV4-AT9) -> 0.1666666667 | AV12: =IF(AU12=0,0,(AU12*((LOG(AU12))/LOG(2)))) -> -0.4308270835
A13: 22 | B13: 872 | C13: 23 | D13: 883 | E13: 13 | F13: 901 | K13: 0 | L13: 221 | N13: 221 | O13: =COUNTIF($L$7:$L$500,N13) -> 47 | P13: =O13/$Q$4 -> 0.2611111111 | Q13: =IF(P13=0,0,(P13*((LOG(P13))/LOG(2)))) -> -0.5058412194 | T13: =N13 -> 221 | U13: =COUNTIF(L7:L36,T13) -> 12 | V13: =U13/(W4-U9) -> 0.4 | W13: =IF(V13=0,0,(V13*((LOG(V13))/LOG(2)))) -> -0.528771238 | Y13: =N13 -> 221 | Z13: =COUNTIF(L37:L66,Y13) -> 5 | AA13: =Z13/(AB4-Z9) -> 0.1666666667 | AB13: =IF(AA13=0,0,(AA13*((LOG(AA13))/LOG(2)))) -> -0.4308270835 | AD13: =N13 -> 221 | AE13: =COUNTIF(L67:L96,AD13) -> 2 | AF13: =AE13/(AG4-AE9) -> 0.06666666667 | AG13: =IF(AF13=0,0,(AF13*((LOG(AF13))/LOG(2)))) -> -0.260459373 | AI13: =N13 -> 221 | AJ13: =COUNTIF(L97:L126,AI13) -> 8 | AK13: =AJ13/(AL4-AJ9) -> 0.275862069 | AL13: =IF(AK13=0,0,(AK13*((LOG(AK13))/LOG(2)))) -> -0.5125464814 | AN13: =N13 -> 221 | AO13: =COUNTIF(L127:L156,AN13) -> 10 | AP13: =AO13/(AQ4-AO9) -> 0.3333333333 | AQ13: =IF(AP13=0,0,(AP13*((LOG(AP13))/LOG(2)))) -> -0.5283208336 | AS13: =N13 -> 221 | AT13: =COUNTIF(L157:L186,AS13) -> 10 | AU13: =AT13/(AV4-AT9) -> 0.3333333333 | AV13: =IF(AU13=0,0,(AU13*((LOG(AU13))/LOG(2)))) -> -0.5283208336
A14: 22 | B14: 999 | C14: 23 | D14: 1001 | E14: 24 | F14: 1004 | K14: 0 | L14: 222 | N14: 222 | O14: =COUNTIF($L$7:$L$500,N14) -> 55 | P14: =O14/$Q$4 -> 0.3055555556 | Q14: =IF(P14=0,0,(P14*((LOG(P14))/LOG(2)))) -> -0.5226507559 | T14: =N14 -> 222 | U14: =COUNTIF(L7:L36,T14) -> 13 | V14: =U14/(W4-U9) -> 0.4333333333 | W14: =IF(V14=0,0,(V14*((LOG(V14))/LOG(2)))) -> -0.5227953802 | Y14: =N14 -> 222 | Z14: =COUNTIF(L37:L66,Y14) -> 15 | AA14: =Z14/(AB4-Z9) -> 0.5 | AB14: =IF(AA14=0,0,(AA14*((LOG(AA14))/LOG(2)))) -> -0.5 | AD14: =N14 -> 222 | AE14: =COUNTIF(L67:L96,AD14) -> 13 | AF14: =AE14/(AG4-AE9) -> 0.4333333333 | AG14: =IF(AF14=0,0,(AF14*((LOG(AF14))/LOG(2)))) -> -0.5227953802 | AI14: =N14 -> 222 | AJ14: =COUNTIF(L97:L126,AI14) -> 5 | AK14: =AJ14/(AL4-AJ9) -> 0.1724137931 | AL14: =IF(AK14=0,0,(AK14*((LOG(AK14))/LOG(2)))) -> -0.4372505 | AN14: =N14 -> 222 | AO14: =COUNTIF(L127:L156,AN14) -> 5 | AP14: =AO14/(AQ4-AO9) -> 0.1666666667 | AQ14: =IF(AP14=0,0,(AP14*((LOG(AP14))/LOG(2)))) -> -0.4308270835 | AS14: =N14 -> 222 | AT14: =COUNTIF(L157:L186,AS14) -> 4 | AU14: =AT14/(AV4-AT9) -> 0.1333333333 | AV14: =IF(AU14=0,0,(AU14*((LOG(AU14))/LOG(2)))) -> -0.3875854127
A15: 22 | B15: 1098 | C15: 23 | D15: 1106 | E15: 13 | F15: 1118 | K15: 0 | L15: 221 | P15: =SUM(P7:P14) -> 1 | Q15: =-SUM(Q7:Q14) -> 2.247002465 | V15: =SUM(V7:V14) -> 1 | W15: =-SUM(W7:W14) -> 1.602715051 | AA15: =SUM(AA7:AA14) -> 1 | AB15: =-SUM(AB7:AB14) -> 1.459147917 | AF15: =SUM(AF7:AF14) -> 1 | AG15: =-SUM(AG7:AG14) -> 2.085722551 | AK15: =SUM(AK7:AK14) -> 1 | AL15: =-SUM(AL7:AL14) -> 2.179933123 | AP15: =SUM(AP7:AP14) -> 1 | AQ15: =-SUM(AQ7:AQ14) -> 2.194949048 | AU15: =SUM(AU7:AU14) -> 1 | AV15: =-SUM(AV7:AV14) -> 2.403771131
A16: 22 | B16: 1214 | C16: 23 | D16: 1217 | E16: 24 | F16: 1219 | K16: 0 | L16: 222 | P16: U= | Q16: =Q15/(LOG(Q4)/LOG(2)) -> 0.2999261245 | V16: U1= | W16: =W15/(LOG(W4)/LOG(2)) -> 0.3266253892 | AA16: U2= | AB16: =AB15/(LOG(AB4)/LOG(2)) -> 0.2973671185 | AF16: U3= | AG16: =AG15/(LOG(AG4)/LOG(2)) -> 0.4250599254 | AK16: U4= | AL16: =AL15/(LOG(AL4)/LOG(2)) -> 0.4442595735 | AP16: U5= | AQ16: =AQ15/(LOG(AQ4)/LOG(2)) -> 0.4473197445 | AU16: U6= | AV16: =AV15/(LOG(AV4)/LOG(2)) -> 0.4898766509
A17: 22 | B17: 1316 | C17: 23 | D17: 1320 | E17: 24 | F17: 1343 | K17: 0 | L17: 222
A18: 22 | B18: 1481 | C18: 14 | D18: 1492 | E18: 24 | F18: 1499 | K18: 0 | L18: 212
A19: 22 | B19: 1609 | C19: 23 | D19: 1631 | E19: 24 | F19: 1649 | K19: 0 | L19: 222 | N19: Total Target Seq
A20: 22 | B20: 1752 | C20: 23 | D20: 1774 | E20: 24 | F20: 1782 | K20: 0 | L20: 222 | N20: =COUNTIF(L7:L186,G3) -> 1 | P20: 30 | Q20: 30 | R20: 30 | S20: 30 | T20: 30 | U20: 30
A21: 22 | B21: 1880 | C21: 14 | D21: 1907 | E21: 24 | F21: 1917 | K21: 0 | L21: 212 | P21: % of reinforcement given in 6 equal intervals based on number of trials
A22: 22 | B22: 2014 | C22: 23 | D22: 2023 | E22: 13 | F22: 2039 | K22: 0 | L22: 221 | P22: %_1 | Q22: %_2 | R22: %_3 | S22: %_4 | T22: %_5 | U22: %_6
A23: 22 | B23: 2135 | C23: 23 | D23: 2142 | E23: 13 | F23: 2159 | K23: 0 | L23: 221 | O23: target sequence | P23: =$G$3 -> 121 | Q23: =$G$3 -> 121 | R23: =$G$3 -> 121 | S23: =$G$3 -> 121 | T23: =$G$3 -> 121 | U23: =$G$3 -> 121
A24: 22 | B24: 2258 | C24: 23 | D24: 2266 | E24: 13 | F24: 2284 | K24: 0 | L24: 221 | O24: total reinforcement | P24: =U9 -> 0 | Q24: =Z9 -> 0 | R24: =AE9 -> 0 | S24: =AJ9 -> 1 | T24: =AO9 -> 0 | U24: =AT9 -> 0
A25: 22 | B25: 2387 | C25: 23 | D25: 2394 | E25: 13 | F25: 2410 | K25: 0 | L25: 221 | O25: % target
A26: 22 | B26: 2510 | C26: 14 | D26: 2527 | E26: 24 | F26: 2533 | K26: 0 | L26: 212 | O26: CCRF
A27: 22 | B27: 2631 | C27: 23 | D27: 2637 | E27: 24 | F27: 2659 | K27: 0 | L27: 222 | O27: % CCRf
A28: 22 | B28: 2760 | C28: 23 | D28: 2766 | E28: 13 | F28: 2788 | K28: 0 | L28: 221 | O28: average response rate | P28: =F36/P20 -> 126.6 | Q28: =(F66-F36)/Q20 -> 127.6666667 | R28: =(F96-F66)/R20 -> 134.4 | S28: =(F126-F96)/S20 -> 154.3 | T28: =(F156-F126)/T20 -> 126.9333333 | U28: =(F186-F156)/U20 -> 124.9666667
A29: 22 | B29: 2885 | C29: 23 | D29: 2892 | E29: 24 | F29: 2933 | K29: 0 | L29: 222
A30: 22 | B30: 3032 | C30: 23 | D30: 3038 | E30: 24 | F30: 3044 | K30: 0 | L30: 222
A31: 22 | B31: 3142 | C31: 14 | D31: 3157 | E31: 24 | F31: 3165 | K31: 0 | L31: 212
A32: 22 | B32: 3274 | C32: 23 | D32: 3281 | E32: 24 | F32: 3303 | K32: 0 | L32: 222
A33: 22 | B33: 3402 | C33: 23 | D33: 3411 | E33: 13 | F33: 3424 | K33: 0 | L33: 221
A34: 22 | B34: 3533 | C34: 23 | D34: 3542 | E34: 13 | F34: 3562 | K34: 0 | L34: 221
A35: 22 | B35: 3663 | C35: 23 | D35: 3670 | E35: 24 | F35: 3690 | K35: 0 | L35: 222
A36: 22 | B36: 3787 | C36: 23 | D36: 3792 | E36: 24 | F36: 3798 | K36: 0 | L36: 222
A37: 22 | B37: 3897 | C37: 23 | D37: 3901 | E37: 24 | F37: 3907 | K37: 0 | L37: 222
A38: 22 | B38: 4014 | C38: 14 | D38: 4030 | E38: 24 | F38: 4038 | K38: 0 | L38: 212
A39: 22 | B39: 4135 | C39: 23 | D39: 4142 | E39: 13 | F39: 4162 | K39: 0 | L39: 221
A40: 22 | B40: 4262 | C40: 23 | D40: 4269 | E40: 24 | F40: 4290 | K40: 0 | L40: 222
A41: 22 | B41: 4388 | C41: 14 | D41: 4403 | E41: 24 | F41: 4410 | K41: 0 | L41: 212
A42: 22 | B42: 4511 | C42: 23 | D42: 4519 | E42: 13 | F42: 4540 | K42: 0 | L42: 221
A43: 22 | B43: 4650 | C43: 23 | D43: 4660 | E43: 24 | F43: 4667 | K43: 0 | L43: 222
A44: 22 | B44: 4773 | C44: 23 | D44: 4778 | E44: 24 | F44: 4799 | K44: 0 | L44: 222
A45: 22 | B45: 4903 | C45: 23 | D45: 4908 | E45: 24 | F45: 4932 | K45: 0 | L45: 222
A46: 22 | B46: 5039 | C46: 23 | D46: 5060 | E46: 24 | F46: 5068 | K46: 0 | L46: 222
A47: 22 | B47: 5172 | C47: 14 | D47: 5186 | E47: 24 | F47: 5196 | K47: 0 | L47: 212
A48: 22 | B48: 5293 | C48: 23 | D48: 5298 | E48: 13 | F48: 5324 | K48: 0 | L48: 221
A49: 22 | B49: 5419 | C49: 14 | D49: 5433 | E49: 24 | F49: 5442 | K49: 0 | L49: 212
A50: 22 | B50: 5549 | C50: 14 | D50: 5562 | E50: 24 | F50: 5573 | K50: 0 | L50: 212
A51: 22 | B51: 5680 | C51: 23 | D51: 5686 | E51: 24 | F51: 5692 | K51: 0 | L51: 222
A52: 22 | B52: 5786 | C52: 23 | D52: 5799 | E52: 24 | F52: 5822 | K52: 0 | L52: 222
A53: 22 | B53: 5920 | C53: 23 | D53: 5930 | E53: 24 | F53: 5952 | K53: 0 | L53: 222
A54: 22 | B54: 6051 | C54: 23 | D54: 6055 | E54: 24 | F54: 6062 | K54: 0 | L54: 222
A55: 22 | B55: 6161 | C55: 23 | D55: 6170 | E55: 13 | F55: 6186 | K55: 0 | L55: 221
A56: 22 | B56: 6290 | C56: 14 | D56: 6307 | E56: 24 | F56: 6315 | K56: 0 | L56: 212
A57: 22 | B57: 6439 | C57: 14 | D57: 6455 | E57: 24 | F57: 6461 | K57: 0 | L57: 212
A58: 22 | B58: 6563 | C58: 23 | D58: 6575 | E58: 13 | F58: 6591 | K58: 0 | L58: 221
A59: 22 | B59: 6704 | C59: 23 | D59: 6708 | E59: 24 | F59: 6714 | K59: 0 | L59: 222
A60: 22 | B60: 6815 | C60: 14 | D60: 6832 | E60: 24 | F60: 6838 | K60: 0 | L60: 212
A61: 22 | B61: 6961 | C61: 23 | D61: 6968 | E61: 24 | F61: 6975 | K61: 0 | L61: 222
A62: 22 | B62: 7082 | C62: 23 | D62: 7106 | E62: 24 | F62: 7114 | K62: 0 | L62: 222
A63: 22 | B63: 7220 | C63: 14 | D63: 7231 | E63: 24 | F63: 7240 | K63: 0 | L63: 212
A64: 22 | B64: 7335 | C64: 23 | D64: 7343 | E64: 24 | F64: 7348 | K64: 0 | L64: 222
A65: 22 | B65: 7468 | C65: 23 | D65: 7474 | E65: 24 | F65: 7502 | K65: 0 | L65: 222
A66: 22 | B66: 7605 | C66: 14 | D66: 7620 | E66: 24 | F66: 7628 | K66: 0 | L66: 212
A67: 22 | B67: 7732 | C67: 23 | D67: 7738 | E67: 24 | F67: 7746 | K67: 0 | L67: 222
A68: 22 | B68: 7850 | C68: 14 | D68: 7869 | E68: 24 | F68: 7881 | K68: 0 | L68: 212
A69: 11 | B69: 7980 | C69: 12 | D69: 7986 | E69: 24 | F69: 7997 | K69: 0 | L69: 112
A70: 11 | B70: 8367 | C70: 12 | D70: 8372 | E70: 13 | F70: 8379 | K70: 0 | L70: 111
A71: 22 | B71: 8481 | C71: 14 | D71: 8498 | E71: 24 | F71: 8509 | K71: 0 | L71: 212
A72: 22 | B72: 8610 | C72: 23 | D72: 8616 | E72: 24 | F72: 8622 | K72: 0 | L72: 222
A73: 22 | B73: 8722 | C73: 23 | D73: 8731 | E73: 24 | F73: 8753 | K73: 0 | L73: 222
A74: 22 | B74: 8855 | C74: 23 | D74: 8874 | E74: 24 | F74: 8881 | K74: 0 | L74: 222
A75: 22 | B75: 8976 | C75: 14 | D75: 8992 | E75: 24 | F75: 9000 | K75: 0 | L75: 212
A76: 22 | B76: 9111 | C76: 23 | D76: 9124 | E76: 13 | F76: 9142 | K76: 0 | L76: 221
A77: 22 | B77: 9240 | C77: 23 | D77: 9249 | E77: 24 | F77: 9278 | K77: 0 | L77: 222
A78: 22 | B78: 9378 | C78: 14 | D78: 9397 | E78: 24 | F78: 9404 | K78: 0 | L78: 212
A79: 11 | B79: 9513 | C79: 21 | D79: 9519 | E79: 22 | F79: 9528 | K79: 0 | L79: 122
A80: 22 | B80: 9623 | C80: 14 | D80: 9637 | E80: 24 | F80: 9646 | K80: 0 | L80: 212
A81: 22 | B81: 9747 | C81: 23 | D81: 9751 | E81: 24 | F81: 9757 | K81: 0 | L81: 222
A82: 22 | B82: 9864 | C82: 14 | D82: 9876 | E82: 24 | F82: 9883 | K82: 0 | L82: 212
A83: 22 | B83: 9985 | C83: 14 | D83: 10003 | E83: 24 | F83: 10010 | K83: 0 | L83: 212
A84: 22 | B84: 10106 | C84: 23 | D84: 10112 | E84: 24 | F84: 10135 | K84: 0 | L84: 222
A85: 22 | B85: 10242 | C85: 23 | D85: 10252 | E85: 13 | F85: 10268 | K85: 0 | L85: 221
A86: 22 | B86: 10368 | C86: 14 | D86: 10383 | E86: 24 | F86: 10392 | K86: 0 | L86: 212
A87: 22 | B87: 10493 | C87: 23 | D87: 10498 | E87: 24 | F87: 10503 | K87: 0 | L87: 222
A88: 22 | B88: 10598 | C88: 23 | D88: 10606 | E88: 24 | F88: 10625 | K88: 0 | L88: 222
A89: 22 | B89: 10733 | C89: 14 | D89: 10750 | E89: 24 | F89: 10757 | K89: 0 | L89: 212
A90: 22 | B90: 10854 | C90: 23 | D90: 10862 | E90: 24 | F90: 10867 | K90: 0 | L90: 222
A91: 22 | B91: 10963 | C91: 23 | D91: 10973 | E91: 24 | F91: 10994 | K91: 0 | L91: 222
A92: 22 | B92: 11104 | C92: 23 | D92: 11126 | E92: 24 | F92: 11147 | K92: 0 | L92: 222
A93: 11 | B93: 11257 | C93: 12 | D93: 11262 | E93: 24 | F93: 11271 | K93: 0 | L93: 112
A94: 22 | B94: 11371 | C94: 23 | D94: 11380 | E94: 24 | F94: 11403 | K94: 0 | L94: 222
A95: 11 | B95: 11502 | C95: 21 | D95: 11510 | E95: 22 | F95: 11539 | K95: 0 | L95: 122
A96: 11 | B96: 11642 | C96: 12 | D96: 11654 | E96: 13 | F96: 11660 | K96: 0 | L96: 111
A97: 22 | B97: 11759 | C97: 14 | D97: 11770 | E97: 24 | F97: 11783 | K97: 0 | L97: 212
A98: 22 | B98: 11881 | C98: 23 | D98: 11888 | E98: 24 | F98: 11911 | K98: 0 | L98: 222
A99: 22 | B99: 12014 | C99: 23 | D99: 12026 | E99: 13 | F99: 12041 | K99: 0 | L99: 221
A100: 22 | B100: 12150 | C100: 23 | D100: 12159 | E100: 13 | F100: 12176 | K100: 0 | L100: 221
A101: 22 | B101: 12284 | C101: 23 | D101: 12292 | E101: 13 | F101: 12316 | K101: 0 | L101: 221
A102: 22 | B102: 12441 | C102: 14 | D102: 12463 | E102: 24 | F102: 12470 | K102: 0 | L102: 212
A103: 22 | B103: 12571 | C103: 14 | D103: 12584 | E103: 24 | F103: 12592 | K103: 0 | L103: 212
A104: 22 | B104: 12695 | C104: 23 | D104: 12699 | E104: 13 | F104: 12719 | K104: 0 | L104: 221
A105: 11 | B105: 12819 | C105: 21 | D105: 12827 | E105: 22 | F105: 12838 | K105: 0 | L105: 122
A106: 22 | B106: 13063 | C106: 23 | D106: 13070 | E106: 13 | F106: 13088 | K106: 0 | L106: 221
A107: 22 | B107: 13213 | C107: 14 | D107: 13228 | E107: 24 | F107: 13236 | K107: 0 | L107: 212
A108: 11 | B108: 13352 | C108: 21 | D108: 13360 | E108: 11 | F108: 13378 | K108: 0 | L108: 121
A109: 22 | B109: 13655 | C109: 14 | D109: 13671 | E109: 24 | F109: 13678 | K109: 0 | L109: 212
A110: 22 | B110: 13785 | C110: 23 | D110: 13791 | E110: 24 | F110: 13811 | K110: 0 | L110: 222
A111: 22 | B111: 13907 | C111: 14 | D111: 13923 | E111: 24 | F111: 13930 | K111: 0 | L111: 212
A112: 22 | B112: 14039 | C112: 14 | D112: 14053 | E112: 24 | F112: 14062 | K112: 0 | L112: 212
A113: 22 | B113: 14165 | C113: 23 | D113: 14172 | E113: 13 | F113: 14188 | K113: 0 | L113: 221
A114: 22 | B114: 14401 | C114: 23 | D114: 14410 | E114: 13 | F114: 14431 | K114: 0 | L114: 221
A115: 11 | B115: 14539 | C115: 12 | D115: 14546 | E115: 24 | F115: 14555 | K115: 0 | L115: 112
A116: 22 | B116: 14798 | C116: 14 | D116: 14810 | E116: 24 | F116: 14816 | K116: 0 | L116: 212
A117: 22 | B117: 14917 | C117: 23 | D117: 14939 | E117: 24 | F117: 14958 | K117: 0 | L117: 222
A118: 22 | B118: 15065 | C118: 14 | D118: 15079 | E118: 24 | F118: 15086 | K118: 0 | L118: 212
A119: 22 | B119: 15180 | C119: 23 | D119: 15195 | E119: 24 | F119: 15217 | K119: 0 | L119: 222
A120: 22 | B120: 15320 | C120: 14 | D120: 15334 | E120: 24 | F120: 15349 | K120: 0 | L120: 212
A121: 22 | B121: 15448 | C121: 23 | D121: 15456 | E121: 13 | F121: 15474 | K121: 0 | L121: 221
A122: 11 | B122: 15586 | C122: 21 | D122: 15595 | E122: 22 | F122: 15600 | K122: 0 | L122: 122
A123: 22 | B123: 15702 | C123: 14 | D123: 15716 | E123: 24 | F123: 15725 | K123: 0 | L123: 212
A124: 11 | B124: 15822 | C124: 12 | D124: 15828 | E124: 13 | F124: 15834 | K124: 0 | L124: 111
A125: 11 | B125: 16106 | C125: 12 | D125: 16111 | E125: 13 | F125: 16165 | K125: 0 | L125: 111
A126: 22 | B126: 16258 | C126: 23 | D126: 16267 | E126: 24 | F126: 16289 | K126: 0 | L126: 222
A127: 22 | B127: 16388 | C127: 23 | D127: 16399 | E127: 13 | F127: 16419 | K127: 0 | L127: 221
A128: 22 | B128: 16533 | C128: 14 | D128: 16544 | E128: 24 | F128: 16552 | K128: 0 | L128: 212
A129: 11 | B129: 16660 | C129: 21 | D129: 16667 | E129: 22 | F129: 16674 | K129: 0 | L129: 122
A130: 22 | B130: 16786 | C130: 23 | D130: 16790 | E130: 13 | F130: 16802 | K130: 0 | L130: 221
A131: 22 | B131: 16908 | C131: 23 | D131: 16920 | E131: 13 | F131: 16944 | K131: 0 | L131: 221
A132: 22 | B132: 17042 | C132: 23 | D132: 17049 | E132: 13 | F132: 17072 | K132: 0 | L132: 221
A133: 22 | B133: 17169 | C133: 14 | D133: 17183 | E133: 24 | F133: 17192 | K133: 0 | L133: 212
A134: 22 | B134: 17289 | C134: 14 | D134: 17307 | E134: 24 | F134: 17314 | K134: 0 | L134: 212
A135: 22 | B135: 17422 | C135: 23 | D135: 17426 | E135: 13 | F135: 17450 | K135: 0 | L135: 221
A136: 22 | B136: 17551 | C136: 14 | D136: 17570 | E136: 24 | F136: 17601 | K136: 0 | L136: 212
A137: 22 | B137: 17696 | C137: 14 | D137: 17713 | E137: 24 | F137: 17721 | K137: 0 | L137: 212
A138: 11 | B138: 17820 | C138: 12 | D138: 17826 | E138: 13 | F138: 17842 | K138: 0 | L138: 111
A139: 22 | B139: 17943 | C139: 23 | D139: 17971 | E139: 24 | F139: 17981 | K139: 0 | L139: 222
A140: 22 | B140: 18081 | C140: 23 | D140: 18087 | E140: 13 | F140: 18107 | K140: 0 | L140: 221
A141: 22 | B141: 18199 | C141: 23 | D141: 18217 | E141: 24 | F141: 18225 | K141: 0 | L141: 222
A142: 22 | B142: 18332 | C142: 14 | D142: 18352 | E142: 24 | F142: 18362 | K142: 0 | L142: 212
A143: 22 | B143: 18461 | C143: 23 | D143: 18469 | E143: 24 | F143: 18493 | K143: 0 | L143: 222
A144: 11 | B144: 18601 | C144: 12 | D144: 18608 | E144: 24 | F144: 18618 | K144: 0 | L144: 112
A145: 22 | B145: 18714 | C145: 14 | D145: 18739 | E145: 24 | F145: 18747 | K145: 0 | L145: 212
A146: 22 | B146: 18848 | C146: 14 | D146: 18871 | E146: 24 | F146: 18881 | K146: 0 | L146: 212
A147: 22 | B147: 18986 | C147: 14 | D147: 19004 | E147: 24 | F147: 19012 | K147: 0 | L147: 212
A148: 22 | B148: 19104 | C148: 23 | D148: 19114 | E148: 24 | F148: 19137 | K148: 0 | L148: 222
A149: 11 | B149: 19234 | C149: 12 | D149: 19239 | E149: 13 | F149: 19247 | K149: 0 | L149: 111
A150: 22 | B150: 19340 | C150: 23 | D150: 19346 | E150: 24 | F150: 19354 | K150: 0 | L150: 222
A151: 22 | B151: 19454 | C151: 23 | D151: 19461 | E151: 13 | F151: 19477 | K151: 0 | L151: 221
A152: 11 | B152: 19580 | C152: 12 | D152: 19586 | E152: 13 | F152: 19592 | K152: 0 | L152: 111
A153: 22 | B153: 19688 | C153: 23 | D153: 19694 | E153: 13 | F153: 19709 | K153: 0 | L153: 221
A154: 22 | B154: 19803 | C154: 23 | D154: 19808 | E154: 13 | F154: 19829 | K154: 0 | L154: 221
A155: 22 | B155: 19932 | C155: 23 | D155: 19939 | E155: 13 | F155: 19960 | K155: 0 | L155: 221
A156: 11 | B156: 20074 | C156: 12 | D156: 20079 | E156: 13 | F156: 20097 | K156: 0 | L156: 111
A157: 22 | B157: 20203 | C157: 14 | D157: 20223 | E157: 24 | F157: 20231 | K157: 0 | L157: 212
A158: 22 | B158: 20332 | C158: 23 | D158: 20351 | E158: 24 | F158: 20357 | K158: 0 | L158: 222
A159: 22 | B159: 20455 | C159: 23 | D159: 20464 | E159: 13 | F159: 20486 | K159: 0 | L159: 221
A160: 22 | B160: 20580 | C160: 23 | D160: 20585 | E160: 13 | F160: 20603 | K160: 0 | L160: 221
A161: 22 | B161: 20705 | C161: 14 | D161: 20730 | E161: 24 | F161: 20739 | K161: 0 | L161: 212
A162: 11 | B162: 20842 | C162: 12 | D162: 20854 | E162: 13 | F162: 20867 | K162: 0 | L162: 111
A163: 11 | B163: 20965 | C163: 12 | D163: 20972 | E163: 24 | F163: 20987 | K163: 0 | L163: 112
A164: 11 | B164: 21085 | C164: 21 | D164: 21097 | E164: 22 | F164: 21106 | K164: 0 | L164: 122
A165: 22 | B165: 21203 | C165: 23 | D165: 21208 | E165: 13 | F165: 21220 | K165: 0 | L165: 221
A166: 11 | B166: 21317 | C166: 12 | D166: 21322 | E166: 13 | F166: 21328 | K166: 0 | L166: 111
A167: 22 | B167: 21428 | C167: 23 | D167: 21439 | E167: 13 | F167: 21454 | K167: 0 | L167: 221
A168: 22 | B168: 21550 | C168: 23 | D168: 21553 | E168: 24 | F168: 21562 | K168: 0 | L168: 222
A169: 22 | B169: 21655 | C169: 23 | D169: 21661 | E169: 24 | F169: 21670 | K169: 0 | L169: 222
A170: 22 | B170: 21773 | C170: 23 | D170: 21780 | E170: 13 | F170: 21802 | K170: 0 | L170: 221
A171: 11 | B171: 21903 | C171: 21 | D171: 21912 | E171: 22 | F171: 21930 | K171: 0 | L171: 122
A172: 22 | B172: 22032 | C172: 14 | D172: 22054 | E172: 24 | F172: 22065 | K172: 0 | L172: 212
A173: 22 | B173: 22165 | C173: 23 | D173: 22172 | E173: 13 | F173: 22188 | K173: 0 | L173: 221
A174: 22 | B174: 22293 | C174: 23 | D174: 22296 | E174: 13 | F174: 22311 | K174: 0 | L174: 221
A175: 11 | B175: 22421 | C175: 12 | D175: 22433 | E175: 24 | F175: 22443 | K175: 0 | L175: 112
A176: 22 | B176: 22545 | C176: 23 | D176: 22553 | E176: 13 | F176: 22574 | K176: 0 | L176: 221
A177: 11 | B177: 22671 | C177: 12 | D177: 22677 | E177: 13 | F177: 22684 | K177: 0 | L177: 111
A178: 11 | B178: 22783 | C178: 12 | D178: 22792 | E178: 13 | F178: 22806 | K178: 0 | L178: 111
A179: 11 | B179: 22920 | C179: 12 | D179: 22927 | E179: 13 | F179: 22934 | K179: 0 | L179: 111
A180: 22 | B180: 23032 | C180: 23 | D180: 23056 | E180: 13 | F180: 23076 | K180: 0 | L180: 221
A181: 22 | B181: 23174 | C181: 14 | D181: 23198 | E181: 24 | F181: 23210 | K181: 0 | L181: 212
A182: 22 | B182: 23310 | C182: 23 | D182: 23318 | E182: 13 | F182: 23342 | K182: 0 | L182: 221
A183: 11 | B183: 23449 | C183: 12 | D183: 23457 | E183: 13 | F183: 23464 | K183: 0 | L183: 111
A184: 22 | B184: 23580 | C184: 23 | D184: 23589 | E184: 24 | F184: 23603 | K184: 0 | L184: 222
A185: 22 | B185: 23700 | C185: 14 | D185: 23713 | E185: 24 | F185: 23721 | K185: 0 | L185: 212
A186: 11 | B186: 23824 | C186: 12 | D186: 23830 | E186: 24 | F186: 23846 | K186: 0 | L186: 112

Sheet !M220B1D.UST
A1: Report for:!M220B1D.UST
A2: Date: | B2: <date>
A3: Hen: | B3: <hen> | F3: Correct Sequence | G3: =Start!J2 -> 121 | P3: Total Sequences in Data | Q3: =4994-COUNTBLANK(L7:L5000) -> 173 | V3: Total Sequences in Block Data | W3: =COUNTA(L7:L35) -> 29 | AA3: Total Sequences in Block Data | AB3: =COUNTA(L36:L64) -> 29 | AF3: Total Sequences in Block Data | AG3: =COUNTA(L65:L92) -> 28 | AK3: Total Sequences in Block Data | AL3: =COUNTA(L93:L121) -> 29 | AP3: Total Sequences in Block Data | AQ3: =COUNTA(L122:L150) -> 29 | AU3: Total Sequences in Block Data | AV3: =COUNTA(L151:L179) -> 29
P4: Total Sequences in Summary | Q4: =SUM(O7:O14) -> 173 | V4: Total Sequences in Block Summary | W4: =SUM(U7:U14) -> 29 | AA4: Total Sequences in Block Summary | AB4: =SUM(Z7:Z14) -> 29 | AF4: Total Sequences in Block Summary | AG4: =SUM(AE7:AE14) -> 28 | AK4: Total Sequences in Block Summary | AL4: =SUM(AJ7:AJ14) -> 29 | AP4: Total Sequences in Block Summary | AQ4: =SUM(AO7:AO14) -> 29 | AU4: Total Sequences in Block Summary | AV4: =SUM(AT7:AT14) -> 29
T5: Block 1 | Y5: Block 2 | AD5: Block 3 | AI5: Block 4 | AN5: Block 5 | AS5: Block 6
A6: Sequence Component 1 | B6: Time 1 | C6: Sequence Component 2 | D6: Time 2 | E6: Sequence Component 3 | F6: Time 3 | G6: Sequence Component 4 | H6: Time 4 | I6: Sequence Component 5 | J6: Time 5 | K6: Correct? 0=No 1=Yes | L6: Sequence | N6: Frequency | P6: Relative Frequency | Q6: Variability | T6: Frequency | V6: Relative Frequency | W6: Variability | Y6: Frequency | AA6: Relative Frequency | AB6: Variability | AD6: Frequency | AF6: Relative Frequency | AG6: Variability | AI6: Frequency | AK6: Relative Frequency | AL6: Variability | AN6: Frequency | AP6: Relative Frequency | AQ6: Variability | AS6: Frequency | AU6: Relative Frequency | AV6: Variability
A7: 22 | B7: 21 | C7: 14 | D7: 38 | E7: 24 | F7: 45 | K7: 0 | L7: 212 | N7: 111 | O7: =COUNTIF($L$7:$L$500,N7) -> 47 | P7: =O7/$Q$4 -> 0.2716763006 | Q7: =IF(P7=0,0,(P7*((LOG(P7))/LOG(2)))) -> -0.5107621426 | T7: =N7 -> 111 | U7: =COUNTIF(L7:L35,T7) -> 3 | V7: =U7/(W4-U9) -> 0.1071428571 | W7: =IF(V7=0,0,(V7*((LOG(V7))/LOG(2)))) -> -0.3452563309 | Y7: =N7 -> 111 | Z7: =COUNTIF(L36:L64,Y7) -> 5 | AA7: =Z7/(AB4-Z9) -> 0.1724137931 | AB7: =IF(AA7=0,0,(AA7*((LOG(AA7))/LOG(2)))) -> -0.4372505 | AD7: =N7 -> 111 | AE7: =COUNTIF(L65:L92,AD7) -> 8 | AF7: =AE7/(AG4-AE9) -> 0.2857142857 | AG7: =IF(AF7=0,0,(AF7*((LOG(AF7))/LOG(2)))) -> -0.5163871206 | AI7: =N7 -> 111 | AJ7: =COUNTIF(L93:L121,AI7) -> 8 | AK7: =AJ7/(AL4-AJ9) -> 0.2857142857 | AL7: =IF(AK7=0,0,(AK7*((LOG(AK7))/LOG(2)))) -> -0.5163871206 | AN7: =N7 -> 111 | AO7: =COUNTIF(L122:L150,AN7) -> 8 | AP7: =AO7/(AQ4-AO9) -> 0.275862069 | AQ7: =IF(AP7=0,0,(AP7*((LOG(AP7))/LOG(2)))) -> -0.5125464814 | AS7: =N7 -> 111 | AT7: =COUNTIF(L151:L179,AS7) -> 15 | AU7: =AT7/(AV4-AT9) -> 0.5172413793 | AV7: =IF(AU7=0,0,(AU7*((LOG(AU7))/LOG(2)))) -> -0.4919433101
A8: 22 | B8: 146 | C8: 23 | D8: 154 | E8: 13 | F8: 168 | K8: 0 | L8: 221 | N8: 112 | O8: =COUNTIF($L$7:$L$500,N8) -> 0 | P8: =O8/$Q$4 -> 0 | Q8: =IF(P8=0,0,(P8*((LOG(P8))/LOG(2)))) -> 0 | T8: =N8 -> 112 | U8: =COUNTIF(L7:L35,T8) -> 0 | V8: =U8/(W4-U9) -> 0 | W8: =IF(V8=0,0,(V8*((LOG(V8))/LOG(2)))) -> 0 | Y8: =N8 -> 112 | Z8: =COUNTIF(L36:L64,Y8) -> 0 | AA8: =Z8/(AB4-Z9) -> 0 | AB8: =IF(AA8=0,0,(AA8*((LOG(AA8))/LOG(2)))) -> 0 | AD8: =N8 -> 112 | AE8: =COUNTIF(L65:L92,AD8) -> 0 | AF8: =AE8/(AG4-AE9) -> 0 | AG8: =IF(AF8=0,0,(AF8*((LOG(AF8))/LOG(2)))) -> 0 | AI8: =N8 -> 112 | AJ8: =COUNTIF(L93:L121,AI8) -> 0 | AK8: =AJ8/(AL4-AJ9) -> 0 | AL8: =IF(AK8=0,0,(AK8*((LOG(AK8))/LOG(2)))) -> 0 | AN8: =N8 -> 112 | AO8: =COUNTIF(L122:L150,AN8) -> 0 | AP8: =AO8/(AQ4-AO9) -> 0 | AQ8: =IF(AP8=0,0,(AP8*((LOG(AP8))/LOG(2)))) -> 0 | AS8: =N8 -> 112 | AT8: =COUNTIF(L151:L179,AS8) -> 0 | AU8: =AT8/(AV4-AT9) -> 0 | AV8: =IF(AU8=0,0,(AU8*((LOG(AU8))/LOG(2)))) -> 0
A9: 22 | B9: 267 | C9: 23 | D9: 273 | E9: 24 | F9: 278 | K9: 0 | L9: 222 | N9: 121 | O9: =COUNTIF($L$7:$L$500,N9) -> 2 | P9: =O9/$Q$4 -> 0.01156069364 | Q9: =IF(P9=0,0,(P9*((LOG(P9))/LOG(2)))) -> -0.07438876564 | T9: =N9 -> 121 | U9: =COUNTIF(L7:L35,T9) -> 1 | Y9: =N9 -> 121 | Z9: =COUNTIF(L36:L64,Y9) -> 0 | AD9: =N9 -> 121 | AE9: =COUNTIF(L65:L92,AD9) -> 0 | AI9: =N9 -> 121 | AJ9: =COUNTIF(L93:L121,AI9) -> 1 | AN9: =N9 -> 121 | AO9: =COUNTIF(L122:L150,AN9) -> 0 | AS9: =N9 -> 121 | AT9: =COUNTIF(L151:L179,AS9) -> 0
A10: 22 | B10: 377 | C10: 23 | D10: 382 | E10: 24 | F10: 388 | K10: 0 | L10: 222 | N10: 122 | O10: =COUNTIF($L$7:$L$500,N10) -> 8 | P10: =O10/$Q$4 -> 0.04624277457 | Q10: =IF(P10=0,0,(P10*((LOG(P10))/LOG(2)))) -> -0.2050695134 | T10: =N10 -> 122 | U10: =COUNTIF(L7:L35,T10) -> 2 | V10: =U10/(W4-U9) -> 0.07142857143 | W10: =IF(V10=0,0,(V10*((LOG(V10))/LOG(2)))) -> -0.271953923 | Y10: =N10 -> 122 | Z10: =COUNTIF(L36:L64,Y10) -> 2 | AA10: =Z10/(AB4-Z9) -> 0.06896551724 | AB10: =IF(AA10=0,0,(AA10*((LOG(AA10))/LOG(2)))) -> -0.2660676548 | AD10: =N10 -> 122 | AE10: =COUNTIF(L65:L92,AD10) -> 2 | AF10: =AE10/(AG4-AE9) -> 0.07142857143 | AG10: =IF(AF10=0,0,(AF10*((LOG(AF10))/LOG(2)))) -> -0.271953923 | AI10: =N10 -> 122 | AJ10: =COUNTIF(L93:L121,AI10) -> 0 | AK10: =AJ10/(AL4-AJ9) -> 0 | AL10: =IF(AK10=0,0,(AK10*((LOG(AK10))/LOG(2)))) -> 0 | AN10: =N10 -> 122 | AO10: =COUNTIF(L122:L150,AN10) -> 0 | AP10: =AO10/(AQ4-AO9) -> 0 | AQ10: =IF(AP10=0,0,(AP10*((LOG(AP10))/LOG(2)))) -> 0 | AS10: =N10 -> 122 | AT10: =COUNTIF(L151:L179,AS10) -> 2 | AU10: =AT10/(AV4-AT9) -> 0.06896551724 | AV10: =IF(AU10=0,0,(AU10*((LOG(AU10))/LOG(2)))) -> -0.2660676548
A11: 22 | B11: 484 | C11: 14 | D11: 499 | E11: 24 | F11: 507 | K11: 0 | L11: 212 | N11: 211 | O11: =COUNTIF($L$7:$L$500,N11) -> 38 | P11: =O11/$Q$4 -> 0.2196531792 | Q11: =IF(P11=0,0,(P11*((LOG(P11))/LOG(2)))) -> -0.4803157638 | T11: =N11 -> 211 | U11: =COUNTIF(L7:L35,T11) -> 2 | V11: =U11/(W4-U9) -> 0.07142857143 | W11: =IF(V11=0,0,(V11*((LOG(V11))/LOG(2)))) -> -0.271953923 | Y11: =N11 -> 211 | Z11: =COUNTIF(L36:L64,Y11) -> 4 | AA11: =Z11/(AB4-Z9) -> 0.1379310345 | AB11: =IF(AA11=0,0,(AA11*((LOG(AA11))/LOG(2)))) -> -0.3942042752 | AD11: =N11 -> 211 | AE11: =COUNTIF(L65:L92,AD11) -> 6 | AF11: =AE11/(AG4-AE9) -> 0.2142857143 | AG11: =IF(AF11=0,0,(AF11*((LOG(AF11))/LOG(2)))) -> -0.4762269474 | AI11: =N11 -> 211 | AJ11: =COUNTIF(L93:L121,AI11) -> 9 | AK11: =AJ11/(AL4-AJ9) -> 0.3214285714 | AL11: =IF(AK11=0,0,(AK11*((LOG(AK11))/LOG(2)))) -> -0.5263167602 | AN11: =N11 -> 211 | AO11: =COUNTIF(L122:L150,AN11) -> 11 | AP11: =AO11/(AQ4-AO9) -> 0.3793103448 | AQ11: =IF(AP11=0,0,(AP11*((LOG(AP11))/LOG(2)))) -> -0.5304842463 | AS11: =N11 -> 211 | AT11: =COUNTIF(L151:L179,AS11) -> 6 | AU11: =AT11/(AV4-AT9) -> 0.2068965517 | AV11: =IF(AU11=0,0,(AU11*((LOG(AU11))/LOG(2)))) -> -0.4702796885
A12: 11 | B12: 608 | C12: 21 | D12: 617 | E12: 11 | F12: 636 | K12: 0 | L12: 121 | N12: 212 | O12: =COUNTIF($L$7:$L$500,N12) -> 20 | P12: =O12/$Q$4 -> 0.1156069364 | Q12: =IF(P12=0,0,(P12*((LOG(P12))/LOG(2)))) -> -0.3598497263 | T12: =N12 -> 212 | U12: =COUNTIF(L7:L35,T12) -> 5 | V12: =U12/(W4-U9) -> 0.1785714286 | W12: =IF(V12=0,0,(V12*((LOG(V12))/LOG(2)))) -> -0.4438262191 | Y12: =N12 -> 212 | Z12: =COUNTIF(L36:L64,Y12) -> 3 | AA12: =Z12/(AB4-Z9) -> 0.1034482759 | AB12: =IF(AA12=0,0,(AA12*((LOG(AA12))/LOG(2)))) -> -0.3385881201 | AD12: =N12 -> 212 | AE12: =COUNTIF(L65:L92,AD12) -> 4 | AF12: =AE12/(AG4-AE9) -> 0.1428571429 | AG12: =IF(AF12=0,0,(AF12*((LOG(AF12))/LOG(2)))) -> -0.4010507032 | AI12: =N12 -> 212 | AJ12: =COUNTIF(L93:L121,AI12) -> 5 | AK12: =AJ12/(AL4-AJ9) -> 0.1785714286 | AL12: =IF(AK12=0,0,(AK12*((LOG(AK12))/LOG(2)))) -> -0.4438262191 | AN12: =N12 -> 212 | AO12: =COUNTIF(L122:L150,AN12) -> 3 | AP12: =AO12/(AQ4-AO9) -> 0.1034482759 | AQ12: =IF(AP12=0,0,(AP12*((LOG(AP12))/LOG(2)))) -> -0.3385881201 | AS12: =N12 -> 212 | AT12: =COUNTIF(L151:L179,AS12) -> 0 | AU12: =AT12/(AV4-AT9) -> 0 | AV12: =IF(AU12=0,0,(AU12*((LOG(AU12))/LOG(2)))) -> 0
A13: 22 | B13: 864 | C13: 14 | D13: 875 | E13: 24 | F13: 885 | K13: 0 | L13: 212 | N13: 221 | O13: =COUNTIF($L$7:$L$500,N13) -> 43 | P13: =O13/$Q$4 -> 0.2485549133 | Q13: =IF(P13=0,0,(P13*((LOG(P13))/LOG(2)))) -> -0.4991886089 | T13: =N13 -> 221 | U13: =COUNTIF(L7:L35,T13) -> 13 | V13: =U13/(W4-U9) -> 0.4642857143 | W13: =IF(V13=0,0,(V13*((LOG(V13))/LOG(2)))) -> -0.5139249161 | Y13: =N13 -> 221 | Z13: =COUNTIF(L36:L64,Y13) -> 9 | AA13: =Z13/(AB4-Z9) -> 0.3103448276 | AB13: =IF(AA13=0,0,(AA13*((LOG(AA13))/LOG(2)))) -> -0.5238794463 | AD13: =N13 -> 221 | AE13: =COUNTIF(L65:L92,AD13) -> 8 | AF13: =AE13/(AG4-AE9) -> 0.2857142857 | AG13: =IF(AF13=0,0,(AF13*((LOG(AF13))/LOG(2)))) -> -0.5163871206 | AI13: =N13 -> 221 | AJ13: =COUNTIF(L93:L121,AI13) -> 3 | AK13: =AJ13/(AL4-AJ9) -> 0.1071428571 | AL13: =IF(AK13=0,0,(AK13*((LOG(AK13))/LOG(2)))) -> -0.3452563309 | AN13: =N13 -> 221 | AO13: =COUNTIF(L122:L150,AN13) -> 6 | AP13: =AO13/(AQ4-AO9) -> 0.2068965517 | AQ13: =IF(AP13=0,0,(AP13*((LOG(AP13))/LOG(2)))) -> -0.4702796885 | AS13: =N13 -> 221 | AT13: =COUNTIF(L151:L179,AS13) -> 4 | AU13: =AT13/(AV4-AT9) -> 0.1379310345 | AV13: =IF(AU13=0,0,(AU13*((LOG(AU13))/LOG(2)))) -> -0.3942042752
A14: 22 | B14: 985 | C14: 14 | D14: 998 | E14: 24 | F14: 1007 | K14: 0 | L14: 212 | N14: 222 | O14: =COUNTIF($L$7:$L$500,N14) -> 15 | P14: =O14/$Q$4 -> 0.08670520231 | Q14: =IF(P14=0,0,(P14*((LOG(P14))/LOG(2)))) -> -0.3058732051 | T14: =N14 -> 222 | U14: =COUNTIF(L7:L35,T14) -> 3 | V14: =U14/(W4-U9) -> 0.1071428571 | W14: =IF(V14=0,0,(V14*((LOG(V14))/LOG(2)))) -> -0.3452563309 | Y14: =N14 -> 222 | Z14: =COUNTIF(L36:L64,Y14) -> 6 | AA14: =Z14/(AB4-Z9) -> 0.2068965517 | AB14: =IF(AA14=0,0,(AA14*((LOG(AA14))/LOG(2)))) -> -0.4702796885 | AD14: =N14 -> 222 | AE14: =COUNTIF(L65:L92,AD14) -> 0 | AF14: =AE14/(AG4-AE9) -> 0 | AG14: =IF(AF14=0,0,(AF14*((LOG(AF14))/LOG(2)))) -> 0 | AI14: =N14 -> 222 | AJ14: =COUNTIF(L93:L121,AI14) -> 3 | AK14: =AJ14/(AL4-AJ9) -> 0.1071428571 | AL14: =IF(AK14=0,0,(AK14*((LOG(AK14))/LOG(2)))) -> -0.3452563309 | AN14: =N14 -> 222 | AO14: =COUNTIF(L122:L150,AN14) -> 1 | AP14: =AO14/(AQ4-AO9) -> 0.03448275862 | AQ14: =IF(AP14=0,0,(AP14*((LOG(AP14))/LOG(2)))) -> -0.167516586 | AS14: =N14 -> 222 | AT14: =COUNTIF(L151:L179,AS14) -> 2 | AU14: =AT14/(AV4-AT9) -> 0.06896551724 | AV14: =IF(AU14=0,0,(AU14*((LOG(AU14))/LOG(2)))) -> -0.2660676548
A15: 22 | B15: 1121 | C15: 14 | D15: 1132 | E15: 13 | F15: 1138 | K15: 0 | L15: 211 | P15: =SUM(P7:P14) -> 1 | Q15: =-SUM(Q7:Q14) -> 2.435447726 | V15: =SUM(V7:V14) -> 1 | W15: =-SUM(W7:W14) -> 2.192171643 | AA15: =SUM(AA7:AA14) -> 1 | AB15: =-SUM(AB7:AB14) -> 2.430269685 | AF15: =SUM(AF7:AF14) -> 1 | AG15: =-SUM(AG7:AG14) -> 2.182005815 | AK15: =SUM(AK7:AK14) -> 1 | AL15: =-SUM(AL7:AL14) -> 2.177042762 | AP15: =SUM(AP7:AP14) -> 1 | AQ15: =-SUM(AQ7:AQ14) -> 2.019415122 | AU15: =SUM(AU7:AU14) -> 1 | AV15: =-SUM(AV7:AV14) -> 1.888562583
A16: 22 | B16: 1238 | C16: 23 | D16: 1246 | E16: 13 | F16: 1259 | K16: 0 | L16: 221 | P16: U= | Q16: =Q15/(LOG(Q4)/LOG(2)) -> 0.3275816424 | V16: U1= | W16: =W15/(LOG(W4)/LOG(2)) -> 0.4512515889 | AA16: U2= | AB16: =AB15/(LOG(AB4)/LOG(2)) -> 0.5002633167 | AF16: U3= | AG16: =AG15/(LOG(AG4)/LOG(2)) -> 0.4538890617 | AK16: U4= | AL16: =AL15/(LOG(AL4)/LOG(2)) -> 0.4481373566 | AP16: U5= | AQ16: =AQ15/(LOG(AQ4)/LOG(2)) -> 0.4156902064 | AU16: U6= | AV16: =AV15/(LOG(AV4)/LOG(2)) -> 0.3887546257
A17: 22 | B17: 1354 | C17: 23 | D17: 1363 | E17: 24 | F17: 1369 | K17: 0 | L17: 222
A18: 22 | B18: 1463 | C18: 23 | D18: 1473 | E18: 13 | F18: 1494 | K18: 0 | L18: 221
A19: 11 | B19: 1605 | C19: 12 | D19: 1611 | E19: 13 | F19: 1619 | K19: 0 | L19: 111 | N19: Total Target Seq
A20: 11 | B20: 1808 | C20: 12 | D20: 1811 | E20: 13 | F20: 1818 | K20: 0 | L20: 111 | N20: =COUNTIF(L7:L179,G3) -> 2 | P20: 29 | Q20: 29 | R20: 28 | S20: 29 | T20: 29 | U20: 29
A21: 11 | B21: 1940 | C21: 21 | D21: 1950 | E21: 22 | F21: 1957 | K21: 0 | L21: 122 | P21: % of reinforcement given in 6 equal intervals based on number of trials
A22: 22 | B22: 2054 | C22: 14 | D22: 2066 | E22: 24 | F22: 2076 | K22: 0 | L22: 212 | P22: %_1 | Q22: %_2 | R22: %_3 | S22: %_4 | T22: %_5 | U22: %_6
A23: 22 | B23: 2170 | C23: 23 | D23: 2177 | E23: 13 | F23: 2192 | K23: 0 | L23: 221 | O23: target sequence | P23: =$G$3 -> 121 | Q23: =$G$3 -> 121 | R23: =$G$3 -> 121 | S23: =$G$3 -> 121 | T23: =$G$3 -> 121 | U23: =$G$3 -> 121
A24: 11 | B24: 2305 | C24: 21 | D24: 2312 | E24: 22 | F24: 2320 | K24: 0 | L24: 122 | O24: total reinforcement | P24: =U9 -> 1 | Q24: =Z9 -> 0 | R24: =AE9 -> 0 | S24: =AJ9 -> 1 | T24: =AO9 -> 0 | U24: =AT9 -> 0
A25: 22 | B25: 2416 | C25: 23 | D25: 2427 | E25: 13 | F25: 2443 | K25: 0 | L25: 221 | O25: % target
A26: 22 | B26: 2551 | C26: 23 | D26: 2559 | E26: 13 | F26: 2578 | K26: 0 | L26: 221 | O26: CCRF
A27: 22 | B27: 2677 | C27: 23 | D27: 2682 | E27: 13 | F27: 2697 | K27: 0 | L27: 221 | O27: % CCRf
A28: 22 | B28: 2797 | C28: 23 | D28: 2805 | E28: 13 | F28: 2822 | K28: 0 | L28: 221 | O28: average response rate | P28: =F35/P20 -> 127.6896552 | Q28: =(F64-F35)/Q20 -> 125.5862069 | R28: =(F92-F64)/R20 -> 126 | S28: =(F121-F92)/S20 -> 133.4827586 | T28: =(F150-F121)/T20 -> 143.4482759 | U28: =(F179-F150)/U20 -> 167.8275862
A29: 22 | B29: 2915 | C29: 23 | D29: 2925 | E29: 13 | F29: 2943 | K29: 0 | L29: 221
A30: 22 | B30: 3054 | C30: 23 | D30: 3061 | E30: 13 | F30: 3080 | K30: 0 | L30: 221
A31: 22 | B31: 3178 | C31: 23 | D31: 3186 | E31: 13 | F31: 3199 | K31: 0 | L31: 221
A32: 22 | B32: 3301 | C32: 14 | D32: 3340 | E32: 13 | F32: 3355 | K32: 0 | L32: 211
A33: 11 | B33: 3452 | C33: 12 | D33: 3459 | E33: 13 | F33: 3468 | K33: 0 | L33: 111
A34: 22 | B34: 3567 | C34: 23 | D34: 3572 | E34: 13 | F34: 3586 | K34: 0 | L34: 221
A35: 22 | B35: 3682 | C35: 23 | D35: 3686 | E35: 13 | F35: 3703 | K35: 0 | L35: 221
A36: 22 | B36: 3805 | C36: 14 | D36: 3822 | E36: 13 | F36: 3831 | K36: 0 | L36: 211
A37: 22 | B37: 3932 | C37: 23 | D37: 3940 | E37: 13 | F37: 3961 | K37: 0 | L37: 221
A38: 22 | B38: 4062 | C38: 14 | D38: 4075 | E38: 24 | F38: 4085 | K38: 0 | L38: 212
A39: 11 | B39: 4191 | C39: 21 | D39: 4209 | E39: 22 | F39: 4217 | K39: 0 | L39: 122
A40: 22 | B40: 4318 | C40: 14 | D40: 4329 | E40: 13 | F40: 4343 | K40: 0 | L40: 211
A41: 22 | B41: 4442 | C41: 14 | D41: 4453 | E41: 13 | F41: 4460 | K41: 0 | L41: 211
A42: 22 | B42: 4557 | C42: 23 | D42: 4562 | E42: 13 | F42: 4580 | K42: 0 | L42: 221
A43: 22 | B43: 4678 | C43: 23 | D43: 4688 | E43: 13 | F43: 4719 | K43: 0 | L43: 221
A44: 22 | B44: 4816 | C44: 23 | D44: 4830 | E44: 24 | F44: 4840 | K44: 0 | L44: 222
A45: 22 | B45: 4959 | C45: 23 | D45: 4965 | E45: 13 | F45: 4984 | K45: 0 | L45: 221
A46: 22 | B46: 5084 | C46: 14 | D46: 5104 | E46: 24 | F46: 5118 | K46: 0 | L46: 212
A47: 22 | B47: 5216 | C47: 23 | D47: 5228 | E47: 13 | F47: 5245 | K47: 0 | L47: 221
A48: 11 | B48: 5344 | C48: 12 | D48: 5351 | E48: 13 | F48: 5368 | K48: 0 | L48: 111
A49: 22 | B49: 5465 | C49: 23 | D49: 5477 | E49: 13 | F49: 5489 | K49: 0 | L49: 221
A50: 22 | B50: 5588 | C50: 23 | D50: 5604 | E50: 24 | F50: 5609 | K50: 0 | L50: 222
A51: 22 | B51: 5714 | C51: 14 | D51: 5730 | E51: 24 | F51: 5738 | K51: 0 | L51: 212
A52: 22 | B52: 5837 | C52: 23 | D52: 5846 | E52: 24 | F52: 5859 | K52: 0 | L52: 222
A53: 22 | B53: 5965 | C53: 23 | D53: 5969 | E53: 24 | F53: 5978 | K53: 0 | L53: 222
A54: 11 | B54: 6099 | C54: 21 | D54: 6107 | E54: 22 | F54: 6121 | K54: 0 | L54: 122
A55: 11 | B55: 6223 | C55: 12 | D55: 6232 | E55: 13 | F55: 6241 | K55: 0 | L55: 111
A56: 11 | B56: 6346 | C56: 12 | D56: 6352 | E56: 13 | F56: 6374 | K56: 0 | L56: 111
A57: 22 | B57: 6475 | C57: 23 | D57: 6479 | E57: 13 | F57: 6494 | K57: 0 | L57: 221
A58: 22 | B58: 6593 | C58: 23 | D58: 6604 | E58: 24 | F58: 6610 | K58: 0 | L58: 222
A59: 22 | B59: 6704 | C59: 23 | D59: 6730 | E59: 13 | F59: 6744 | K59: 0 | L59: 221
A60: 22 | B60: 6849 | C60: 14 | D60: 6862 | E60: 13 | F60: 6869 | K60: 0 | L60: 211
A61: 11 | B61: 6966 | C61: 12 | D61: 6970 | E61: 13 | F61: 6997 | K61: 0 | L61: 111
A62: 11 | B62: 7105 | C62: 12 | D62: 7114 | E62: 13 | F62: 7120 | K62: 0 | L62: 111
A63: 22 | B63: 7214 | C63: 23 | D63: 7217 | E63: 13 | F63: 7229 | K63: 0 | L63: 221
A64: 22 | B64: 7330 | C64: 23 | D64: 7336 | E64: 24 | F64: 7345 | K64: 0 | L64: 222
A65: 22 | B65: 7444 | C65: 23 | D65: 7452 | E65: 13 | F65: 7474 | K65: 0 | L65: 221
A66: 22 | B66: 7595 | C66: 23 | D66: 7601 | E66: 13 | F66: 7619 | K66: 0 | L66: 221
A67: 22 | B67: 7718 | C67: 14 | D67: 7739 | E67: 13 | F67: 7748 | K67: 0 | L67: 211
A68: 22 | B68: 7864 | C68: 14 | D68: 7885 | E68: 24 | F68: 7896 | K68: 0 | L68: 212
A69: 22 | B69: 8019 | C69: 14 | D69: 8032 | E69: 24 | F69: 8048 | K69: 0 | L69: 212
A70: 22 | B70: 8156 | C70: 23 | D70: 8163 | E70: 13 | F70: 8177 | K70: 0 | L70: 221
A71: 11 | B71: 8281 | C71: 12 | D71: 8290 | E71: 13 | F71: 8295 | K71: 0 | L71: 111
A72: 11 | B72: 8395 | C72: 12 | D72: 8402 | E72: 13 | F72: 8407 | K72: 0 | L72: 111
A73: 11 | B73: 8512 | C73: 12 | D73: 8524 | E73: 13 | F73: 8531 | K73: 0 | L73: 111
A74: 22 | B74: 8635 | C74: 14 | D74: 8647 | E74: 24 | F74: 8656 | K74: 0 | L74: 212
A75: 22 | B75: 8754 | C75: 23 | D75: 8760 | E75: 13 | F75: 8775 | K75: 0 | L75: 221
A76: 11 | B76: 8886 | C76: 12 | D76: 8902 | E76: 13 | F76: 8911 | K76: 0 | L76: 111
A77: 11 | B77: 9016 | C77: 12 | D77: 9026 | E77: 13 | F77: 9034 | K77: 0 | L77: 111
A78: 22 | B78: 9129 | C78: 23 | D78: 9135 | E78: 13 | F78: 9150 | K78: 0 | L78: 221
A79: 11 | B79: 9252 | C79: 12 | D79: 9259 | E79: 13 | F79: 9267 | K79: 0 | L79: 111
A80: 22 | B80: 9367 | C80: 14 | D80: 9379 | E80: 13 | F80: 9386 | K80: 0 | L80: 211
A81: 11 | B81: 9489 | C81: 21 | D81: 9499 | E81: 22 | F81: 9504 | K81: 0 | L81: 122
A82: 22 | B82: 9602 | C82: 23 | D82: 9609 | E82: 13 | F82: 9625 | K82: 0 | L82: 221
A83: 11 | B83: 9745 | C83: 12 | D83: 9749 | E83: 13 | F83: 9759 | K83: 0 | L83: 111
A84: 22 | B84: 9854 | C84: 14 | D84: 9874 | E84: 13 | F84: 9887 | K84: 0 | L84: 211
A85: 22 | B85: 9982 | C85: 14 | D85: 9996 | E85: 13 | F85: 10003 | K85: 0 | L85: 211
A86: 22 | B86: 10120 | C86: 14 | D86: 10137 | E86: 13 | F86: 10143 | K86: 0 | L86: 211
A87: 22 | B87: 10237 | C87: 23 | D87: 10243 | E87: 13 | F87: 10259 | K87: 0 | L87: 221
A88: 22 | B88: 10357 | C88: 14 | D88: 10370 | E88: 24 | F88: 10377 | K88: 0 | L88: 212
A89: 11 | B89: 10482 | C89: 12 | D89: 10489 | E89: 13 | F89: 10496 | K89: 0 | L89: 111
A90: 11 | B90: 10597 | C90: 21 | D90: 10605 | E90: 22 | F90: 10612 | K90: 0 | L90: 122
A91: 22 | B91: 10718 | C91: 23 | D91: 10726 | E91: 13 | F91: 10741 | K91: 0 | L91: 221
A92: 22 | B92: 10845 | C92: 14 | D92: 10865 | E92: 13 | F92: 10873 | K92: 0 | L92: 211
A93: 11 | B93: 10991 | C93: 12 | D93: 11000 | E93: 13 | F93: 11009 | K93: 0 | L93: 111
A94: 11 | B94: 11105 | C94: 12 | D94: 11109 | E94: 13 | F94: 11116 | K94: 0 | L94: 111
A95: 22 | B95: 11219 | C95: 14 | D95: 11235 | E95: 13 | F95: 11241 | K95: 0 | L95: 211
A96: 22 | B96: 11353 | C96: 14 | D96: 11367 | E96: 13 | F96: 11375 | K96: 0 | L96: 211
A97: 11 | B97: 11473 | C97: 21 | D97: 11481 | E97: 11 | F97: 11501 | K97: 0 | L97: 121
A98: 22 | B98: 11835 | C98: 14 | D98: 11850 | E98: 24 | F98: 11858 | K98: 0 | L98: 212
A99: 11 | B99: 11981 | C99: 12 | D99: 11990 | E99: 13 | F99: 11999 | K99: 0 | L99: 111
A100: 22 | B100: 12107 | C100: 14 | D100: 12123 | E100: 24 | F100: 12142 | K100: 0 | L100: 212
A101: 22 | B101: 12249 | C101: 14 | D101: 12262 | E101: 13 | F101: 12270 | K101: 0 | L101: 211
A102: 22 | B102: 12375 | C102: 23 | D102: 12380 | E102: 13 | F102: 12395 | K102: 0 | L102: 221
A103: 11 | B103: 12492 | C103: 12 | D103: 12501 | E103: 13 | F103: 12507 | K103: 0 | L103: 111
A104: 22 | B104: 12622 | C104: 14 | D104: 12636 | E104: 13 | F104: 12643 | K104: 0 | L104: 211
A105: 22 | B105: 12740 | C105: 23 | D105: 12748 | E105: 24 | F105: 12752 | K105: 0 | L105: 222
A106: 22 | B106: 12852 | C106: 14 | D106: 12869 | E106: 24 | F106: 12878 | K106: 0 | L106: 212
A107: 22 | B107: 12979 | C107: 14 | D107: 12995 | E107: 13 | F107: 13001 | K107: 0 | L107: 211
A108: 22 | B108: 13113 | C108: 14 | D108: 13123 | E108: 13 | F108: 13138 | K108: 0 | L108: 211
A109: 22 | B109: 13229 | C109: 23 | D109: 13233 | E109: 24 | F109: 13240 | K109: 0 | L109: 222
A110: 22 | B110: 13341 | C110: 23 | D110: 13349 | E110: 13 | F110: 13366 | K110: 0 | L110: 221
A111: 11 | B111: 13468 | C111: 12 | D111: 13477 | E111: 13 | F111: 13484 | K111: 0 | L111: 111
A112: 22 | B112: 13584 | C112: 14 | D112: 13597 | E112: 13 | F112: 13604 | K112: 0 | L112: 211
A113: 11 | B113: 13709 | C113: 12 | D113: 13716 | E113: 13 | F113: 13726 | K113: 0 | L113: 111
A114: 11 | B114: 13850 | C114: 12 | D114: 13855 | E114: 13 | F114: 13862 | K114: 0 | L114: 111
A115: 22 | B115: 13977 | C115: 14 | D115: 13994 | E115: 24 | F115: 14004 | K115: 0 | L115: 212
A116: 22 | B116: 14105 | C116: 23 | D116: 14116 | E116: 13 | F116: 14132 | K116: 0 | L116: 221
A117: 22 | B117: 14231 | C117: 14 | D117: 14248 | E117: 13 | F117: 14262 | K117: 0 | L117: 211
A118: 22 | B118: 14357 | C118: 14 | D118: 14368 | E118: 13 | F118: 14374 | K118: 0 | L118: 211
A119: 11 | B119: 14476 | C119: 12 | D119: 14483 | E119: 13 | F119: 14490 | K119: 0 | L119: 111
A120: 22 | B120: 14596 | C120: 14 | D120: 14619 | E120: 24 | F120: 14630 | K120: 0 | L120: 212
A121: 22 | B121: 14734 | C121: 23 | D121: 14740 | E121: 24 | F121: 14744 | K121: 0 | L121: 222
A122: 11 | B122: 14850 | C122: 12 | D122: 14855 | E122: 13 | F122: 14863 | K122: 0 | L122: 111
A123: 22 | B123: 14959 | C123: 14 | D123: 14976 | E123: 13 | F123: 14983 | K123: 0 | L123: 211
A124: 11 | B124: 15133 | C124: 12 | D124: 15141 | E124: 13 | F124: 15150 | K124: 0 | L124: 111
A125: 22 | B125: 15256 | C125: 14 | D125: 15279 | E125: 13 | F125: 15294 | K125: 0 | L125: 211
A126: 22 | B126: 15396 | C126: 23 | D126: 15404 | E126: 13 | F126: 15420 | K126: 0 | L126: 221
A127: 22 | B127: 15525 | C127: 14 | D127: 15538 | E127: 13 | F127: 15545 | K127: 0 | L127: 211
A128: 11 | B128: 15645 | C128: 12 | D128: 15653 | E128: 13 | F128: 15661 | K128: 0 | L128: 111
A129: 11 | B129: 15779 | C129: 12 | D129: 15786 | E129: 13 | F129: 15793 | K129: 0 | L129: 111
A130: 22 | B130: 15914 | C130: 14 | D130: 15934 | E130: 24 | F130: 15951 | K130: 0 | L130: 212
A131: 22 | B131: 16114 | C131: 14 | D131: 16128 | E131: 13 | F131: 16142 | K131: 0 | L131: 211
A132: 22 | B132: 16241 | C132: 23 | D132: 16249 | E132: 24 | F132: 16252 | K132: 0 | L132: 222
A133: 22 | B133: 16365 | C133: 14 | D133: 16377 | E133: 13 | F133: 16384 | K133: 0 | L133: 211
A134: 22 | B134: 16529 | C134: 14 | D134: 16543 | E134: 13 | F134: 16550 | K134: 0 | L134: 211
A135: 22 | B135: 16653 | C135: 23 | D135: 16660 | E135: 13 | F135: 16681 | K135: 0 | L135: 221
A136: 22 | B136: 16801 | C136: 23 | D136: 16814 | E136: 13 | F136: 16826 | K136: 0 | L136: 221
A137: 22 | B137: 16941 | C137: 14 | D137: 16956 | E137: 13 | F137: 16964 | K137: 0 | L137: 211
A138: 22 | B138: 17057 | C138: 23 | D138: 17063 | E138: 13 | F138: 17080 | K138: 0 | L138: 221
A139: 11 | B139: 17294 | C139: 12 | D139: 17301 | E139: 13 | F139: 17308 | K139: 0 | L139: 111
A140: 22 | B140: 17428 | C140: 14 | D140: 17441 | E140: 13 | F140: 17448 | K140: 0 | L140: 211
A141: 22 | B141: 17549 | C141: 14 | D141: 17564 | E141: 24 | F141: 17573 | K141: 0 | L141: 212
A142: 22 | B142: 17709 | C142: 14 | D142: 17724 | E142: 24 | F142: 17734 | K142: 0 | L142: 212
A143: 11 | B143: 17828 | C143: 12 | D143: 17834 | E143: 13 | F143: 17841 | K143: 0 | L143: 111
A144: 22 | B144: 17982 | C144: 23 | D144: 17989 | E144: 13 | F144: 18006 | K144: 0 | L144: 221
A145: 22 | B145: 18155 | C145: 14 | D145: 18179 | E145: 13 | F145: 18186 | K145: 0 | L145: 211
A146: 11 | B146: 18300 | C146: 12 | D146: 18308 | E146: 13 | F146: 18322 | K146: 0 | L146: 111
A147: 11 | B147: 18436 | C147: 12 | D147: 18442 | E147: 13 | F147: 18450 | K147: 0 | L147: 111
A148: 22 | B148: 18562 | C148: 23 | D148: 18570 | E148: 13 | F148: 18584 | K148: 0 | L148: 221
A149: 22 | B149: 18768 | C149: 14 | D149: 18782 | E149: 13 | F149: 18789 | K149: 0 | L149: 211
A150: 22 | B150: 18883 | C150: 14 | D150: 18897 | E150: 13 | F150: 18904 | K150: 0 | L150: 211
A151: 22 | B151: 19006 | C151: 23 | D151: 19029 | E151: 13 | F151: 19046 | K151: 0 | L151: 221
A152: 22 | B152: 19155 | C152: 14 | D152: 19174 | E152: 13 | F152: 19189 | K152: 0 | L152: 211
A153: 11 | B153: 19297 | C153: 12 | D153: 19303 | E153: 13 | F153: 19311 | K153: 0 | L153: 111
A154: 11 | B154: 19408 | C154: 12 | D154: 19414 | E154: 13 | F154: 19423 | K154: 0 | L154: 111
A155: 11 | B155: 19517 | C155: 21 | D155: 19532 | E155: 22 | F155: 19538 | K155: 0 | L155: 122
A156: 11 | B156: 19639 | C156: 12 | D156: 19647 | E156: 13 | F156: 19654 | K156: 0 | L156: 111
A157: 11 | B157: 19759 | C157: 12 | D157: 19771 | E157: 13 | F157: 19791 | K157: 0 | L157: 111
A158: 22 | B158: 19918 | C158: 14 | D158: 19932 | E158: 13 | F158: 19939 | K158: 0 | L158: 211
A159: 11 | B159: 20049 | C159: 12 | D159: 20056 | E159: 13 | F159: 20063 | K159: 0 | L159: 111
A160: 11 | B160: 20170 | C160: 12 | D160: 20176 | E160: 13 | F160: 20184 | K160: 0 | L160: 111
A161: 11 | B161: 20294 | C161: 21 | D161: 20302 | E161: 22 | F161: 20309 | K161: 0 | L161: 122
A162: 22 | B162: 20457 | C162: 14 | D162: 20471 | E162: 13 | F162: 20478 | K162: 0 | L162: 211
A163: 22 | B163: 20585 | C163: 23 | D163: 20589 | E163: 13 | F163: 20611 | K163: 0 | L163: 221
A164: 11 | B164: 20743 | C164: 12 | D164: 20749 | E164: 13 | F164: 20756 | K164: 0 | L164: 111
A165: 11 | B165: 20882 | C165: 12 | D165: 20889 | E165: 13 | F165: 20897 | K165: 0 | L165: 111
A166: 22 | B166: 20998 | C166: 14 | D166: 21014 | E166: 13 | F166: 21020 | K166: 0 | L166: 211
A167: 22 | B167: 21145 | C167: 23 | D167: 21151 | E167: 24 | F167: 21172 | K167: 0 | L167: 222
A168: 22 | B168: 21274 | C168: 14 | D168: 21292 | E168: 13 | F168: 21299 | K168: 0 | L168: 211
A169: 22 | B169: 21400 | C169: 14 | D169: 21420 | E169: 13 | F169: 21429 | K169: 0 | L169: 211
A170: 22 | B170: 21526 | C170: 23 | D170: 21536 | E170: 13 | F170: 21547 | K170: 0 | L170: 221
A171: 22 | B171: 21650 | C171: 23 | D171: 21655 | E171: 13 | F171: 21665 | K171: 0 | L171: 221
A172: 11 | B172: 21779 | C172: 12 | D172: 21784 | E172: 13 | F172: 21790 | K172: 0 | L172: 111
A173: 11 | B173: 21966 | C173: 12 | D173: 21969 | E173: 13 | F173: 21978 | K173: 0 | L173: 111
A174: 11 | B174: 22126 | C174: 12 | D174: 22135 | E174: 13 | F174: 22141 | K174: 0 | L174: 111
A175: 11 | B175: 22538 | C175: 12 | D175: 22545 | E175: 13 | F175: 22548 | K175: 0 | L175: 111
A176: 11 | B176: 22825 | C176: 12 | D176: 22831 | E176: 13 | F176: 22838 | K176: 0 | L176: 111
A177: 11 | B177: 23355 | C177: 12 | D177: 23361 | E177: 13 | F177: 23370 | K177: 0 | L177: 111
A178: 11 | B178: 23642 | C178: 12 | D178: 23651 | E178: 13 | F178: 23657 | K178: 0 | L178: 111
A179: 22 | B179: 23759 | C179: 23 | D179: 23766 | E179: 24 | F179: 23771 | K179: 0 | L179: 222

Sheet !M221A5D.UST
A1: Report for:!M221A5D.UST
A2: Date: | B2: <date>
A3: Hen: | B3: <hen> | F3: Correct Sequence | G3: =Start!J2 -> 121 | P3: Total Sequences in Data | Q3: =4994-COUNTBLANK(L7:L5000) -> 179 | V3: Total Sequences in Block Data | W3: =COUNTA(L7:L36) -> 30 | AA3: Total Sequences in Block Data | AB3: =COUNTA(L37:L66) -> 30 | AF3: Total Sequences in Block Data | AG3: =COUNTA(L67:L95) -> 29 | AK3: Total Sequences in Block Data | AL3: =COUNTA(L96:L125) -> 30 | AP3: Total Sequences in Block Data | AQ3: =COUNTA(L126:L155) -> 30 | AU3: Total Sequences in Block Data | AV3: =COUNTA(L156:L185) -> 30
P4: Total Sequences in Summary | Q4: =SUM(O7:O14) -> 179 | V4: Total Sequences in Block Summary | W4: =SUM(U7:U14) -> 30 | AA4: Total Sequences in Block Summary | AB4: =SUM(Z7:Z14) -> 30 | AF4: Total Sequences in Block Summary | AG4: =SUM(AE7:AE14) -> 29 | AK4: Total Sequences in Block Summary | AL4: =SUM(AJ7:AJ14) -> 30 | AP4: Total Sequences in Block Summary | AQ4: =SUM(AO7:AO14) -> 30 | AU4: Total Sequences in Block Summary | AV4: =SUM(AT7:AT14) -> 30
T5: Block 1 | Y5: Block 2 | AD5: Block 3 | AI5: Block 4 | AN5: Block 5 | AS5: Block 6
A6: Sequence Component 1 | B6: Time 1 | C6: Sequence Component 2 | D6: Time 2 | E6: Sequence Component 3 | F6: Time 3 | G6: Sequence Component 4 | H6: Time 4 | I6: Sequence Component 5 | J6: Time 5 | K6: Correct? 0=No 1=Yes | L6: Sequence | N6: Frequency | P6: Relative Frequency | Q6: Variability | T6: Frequency | V6: Relative Frequency | W6: Variability | Y6: Frequency | AA6: Relative Frequency | AB6: Variability | AD6: Frequency | AF6: Relative Frequency | AG6: Variability | AI6: Frequency | AK6: Relative Frequency | AL6: Variability | AN6: Frequency | AP6: Relative Frequency | AQ6: Variability | AS6: Frequency | AU6: Relative Frequency | AV6: Variability
A7: 22 | B7: 18 | C7: 14 | D7: 30 | E7: 24 | F7: 38 | K7: 0 | L7: 212 | N7: 111 | O7: =COUNTIF($L$7:$L$500,N7) -> 41 | P7: =O7/$Q$4 -> 0.2290502793 | Q7: =IF(P7=0,0,(P7*((LOG(P7))/LOG(2)))) -> -0.4870213111 | T7: =N7 -> 111 | U7: =COUNTIF(L7:L36,T7) -> 7 | V7: =U7/(W4-U9) -> 0.2333333333 | W7: =IF(V7=0,0,(V7*((LOG(V7))/LOG(2)))) -> -0.4898916572 | Y7: =N7 -> 111 | Z7: =COUNTIF(L37:L66,Y7) -> 5 | AA7: =Z7/(AB4-Z9) -> 0.1666666667 | AB7: =IF(AA7=0,0,(AA7*((LOG(AA7))/LOG(2)))) -> -0.4308270835 | AD7: =N7 -> 111 | AE7: =COUNTIF(L67:L95,AD7) -> 11 | AF7: =AE7/(AG4-AE9) -> 0.3793103448 | AG7: =IF(AF7=0,0,(AF7*((LOG(AF7))/LOG(2)))) -> -0.5304842463 | AI7: =N7 -> 111 | AJ7: =COUNTIF(L96:L125,AI7) -> 10 | AK7: =AJ7/(AL4-AJ9) -> 0.3448275862 | AL7: =IF(AK7=0,0,(AK7*((LOG(AK7))/LOG(2)))) -> -0.5296734139 | AN7: =N7 -> 111 | AO7: =COUNTIF(L126:L155,AN7) -> 2 | AP7: =AO7/(AQ4-AO9) -> 0.07142857143 | AQ7: =IF(AP7=0,0,(AP7*((LOG(AP7))/LOG(2)))) -> -0.271953923 | AS7: =N7 -> 111 | AT7: =COUNTIF(L156:L185,AS7) -> 6 | AU7: =AT7/(AV4-AT9) -> 0.2 | AV7: =IF(AU7=0,0,(AU7*((LOG(AU7))/LOG(2)))) -> -0.464385619
A8: 22 | B8: 197 | C8: 23 | D8: 200 | E8: 13 | F8: 212 | K8: 0 | L8: 221 | N8: 112 | O8: =COUNTIF($L$7:$L$500,N8) -> 4 | P8: =O8/$Q$4 -> 0.02234636872 | Q8: =IF(P8=0,0,(P8*((LOG(P8))/LOG(2)))) -> -0.1225433693 | T8: =N8 -> 112 | U8: =COUNTIF(L7:L36,T8) -> 0 | V8: =U8/(W4-U9) -> 0 | W8: =IF(V8=0,0,(V8*((LOG(V8))/LOG(2)))) -> 0 | Y8: =N8 -> 112 | Z8: =COUNTIF(L37:L66,Y8) -> 1 | AA8: =Z8/(AB4-Z9) -> 0.03333333333 | AB8: =IF(AA8=0,0,(AA8*((LOG(AA8))/LOG(2)))) -> -0.1635630199 | AD8: =N8 -> 112 | AE8: =COUNTIF(L67:L95,AD8) -> 0 | AF8: =AE8/(AG4-AE9) -> 0 | AG8: =IF(AF8=0,0,(AF8*((LOG(AF8))/LOG(2)))) -> 0 | AI8: =N8 -> 112 | AJ8: =COUNTIF(L96:L125,AI8) -> 1 | AK8: =AJ8/(AL4-AJ9) -> 0.03448275862 | AL8: =IF(AK8=0,0,(AK8*((LOG(AK8))/LOG(2)))) -> -0.167516586 | AN8: =N8 -> 112 | AO8: =COUNTIF(L126:L155,AN8) -> 0 | AP8: =AO8/(AQ4-AO9) -> 0 | AQ8: =IF(AP8=0,0,(AP8*((LOG(AP8))/LOG(2)))) -> 0 | AS8: =N8 -> 112 | AT8: =COUNTIF(L156:L185,AS8) -> 2 | AU8: =AT8/(AV4-AT9) -> 0.06666666667 | AV8: =IF(AU8=0,0,(AU8*((LOG(AU8))/LOG(2)))) -> -0.260459373
A9: 22 | B9: 312 | C9: 23 | D9: 321 | E9: 13 | F9: 332 | K9: 0 | L9: 221 | N9: 121 | O9: =COUNTIF($L$7:$L$500,N9) -> 3 | P9: =O9/$Q$4 -> 0.01675977654 | Q9: =IF(P9=0,0,(P9*((LOG(P9))/LOG(2)))) -> -0.09886346274 | T9: =N9 -> 121 | U9: =COUNTIF(L7:L36,T9) -> 0 | Y9: =N9 -> 121 | Z9: =COUNTIF(L37:L66,Y9) -> 0 | AD9: =N9 -> 121 | AE9: =COUNTIF(L67:L95,AD9) -> 0 | AI9: =N9 -> 121 | AJ9: =COUNTIF(L96:L125,AI9) -> 1 | AN9: =N9 -> 121 | AO9: =COUNTIF(L126:L155,AN9) -> 2 | AS9: =N9 -> 121 | AT9: =COUNTIF(L156:L185,AS9) -> 0
A10: 22 | B10: 430 | C10: 23 | D10: 442 | E10: 13 | F10: 458 | K10: 0 | L10: 221 | N10: 122 | O10: =COUNTIF($L$7:$L$500,N10) -> 18 | P10: =O10/$Q$4 -> 0.1005586592 | Q10: =IF(P10=0,0,(P10*((LOG(P10))/LOG(2)))) -> -0.3332404132 | T10: =N10 -> 122 | U10: =COUNTIF(L7:L36,T10) -> 2 | V10: =U10/(W4-U9) -> 0.06666666667 | W10: =IF(V10=0,0,(V10*((LOG(V10))/LOG(2)))) -> -0.260459373 | Y10: =N10 -> 122 | Z10: =COUNTIF(L37:L66,Y10) -> 1 | AA10: =Z10/(AB4-Z9) -> 0.03333333333 | AB10: =IF(AA10=0,0,(AA10*((LOG(AA10))/LOG(2)))) -> -0.1635630199 | AD10: =N10 -> 122 | AE10: =COUNTIF(L67:L95,AD10) -> 1 | AF10: =AE10/(AG4-AE9) -> 0.03448275862 | AG10: =IF(AF10=0,0,(AF10*((LOG(AF10))/LOG(2)))) -> -0.167516586 | AI10: =N10 -> 122 | AJ10: =COUNTIF(L96:L125,AI10) -> 5 | AK10: =AJ10/(AL4-AJ9) -> 0.1724137931 | AL10: =IF(AK10=0,0,(AK10*((LOG(AK10))/LOG(2)))) -> -0.4372505 | AN10: =N10 -> 122 | AO10: =COUNTIF(L126:L155,AN10) -> 4 | AP10: =AO10/(AQ4-AO9) -> 0.1428571429 | AQ10: =IF(AP10=0,0,(AP10*((LOG(AP10))/LOG(2)))) -> -0.4010507032 | AS10: =N10 -> 122 | AT10: =COUNTIF(L156:L185,AS10) -> 5 | AU10: =AT10/(AV4-AT9) -> 0.1666666667 | AV10: =IF(AU10=0,0,(AU10*((LOG(AU10))/LOG(2)))) -> -0.4308270835
A11: 22 | B11: 560 | C11: 23 | D11: 564 | E11: 13 | F11: 574 | K11: 0 | L11: 221 | N11: 211 | O11: =COUNTIF($L$7:$L$500,N11) -> 31 | P11: =O11/$Q$4 -> 0.1731843575 | Q11: =IF(P11=0,0,(P11*((LOG(P11))/LOG(2)))) -> -0.4380905222 | T11: =N11 -> 211 | U11: =COUNTIF(L7:L36,T11) -> 3 | V11: =U11/(W4-U9) -> 0.1 | W11: =IF(V11=0,0,(V11*((LOG(V11))/LOG(2)))) -> -0.3321928095 | Y11: =N11 -> 211 | Z11: =COUNTIF(L37:L66,Y11) -> 8 | AA11: =Z11/(AB4-Z9) -> 0.2666666667 | AB11: =IF(AA11=0,0,(AA11*((LOG(AA11))/LOG(2)))) -> -0.5085041588 | AD11: =N11 -> 211 | AE11: =COUNTIF(L67:L95,AD11) -> 3 | AF11: =AE11/(AG4-AE9) -> 0.1034482759 | AG11: =IF(AF11=0,0,(AF11*((LOG(AF11))/LOG(2)))) -> -0.3385881201 | AI11: =N11 -> 211 | AJ11: =COUNTIF(L96:L125,AI11) -> 7 | AK11: =AJ11/(AL4-AJ9) -> 0.2413793103 | AL11: =IF(AK11=0,0,(AK11*((LOG(AK11))/LOG(2)))) -> -0.4949787073 | AN11: =N11 -> 211 | AO11: =COUNTIF(L126:L155,AN11) -> 5 | AP11: =AO11/(AQ4-AO9) -> 0.1785714286 | AQ11: =IF(AP11=0,0,(AP11*((LOG(AP11))/LOG(2)))) -> -0.4438262191 | AS11: =N11 -> 211 | AT11: =COUNTIF(L156:L185,AS11) -> 5 | AU11: =AT11/(AV4-AT9) -> 0.1666666667 | AV11: =IF(AU11=0,0,(AU11*((LOG(AU11))/LOG(2)))) -> -0.4308270835
A12: 22 | B12: 673 | C12: 23 | D12: 679 | E12: 13 | F12: 694 | K12: 0 | L12: 221 | N12: 212 | O12: =COUNTIF($L$7:$L$500,N12) -> 15 | P12: =O12/$Q$4 -> 0.08379888268 | Q12: =IF(P12=0,0,(P12*((LOG(P12))/LOG(2)))) -> -0.2997423337 | T12: =N12 -> 212 | U12: =COUNTIF(L7:L36,T12) -> 2 | V12: =U12/(W4-U9) -> 0.06666666667 | W12: =IF(V12=0,0,(V12*((LOG(V12))/LOG(2)))) -> -0.260459373 | Y12: =N12 -> 212 | Z12: =COUNTIF(L37:L66,Y12) -> 2 | AA12: =Z12/(AB4-Z9) -> 0.06666666667 | AB12: =IF(AA12=0,0,(AA12*((LOG(AA12))/LOG(2)))) -> -0.260459373 | AD12: =N12 -> 212 | AE12: =COUNTIF(L67:L95,AD12) -> 1 | AF12: =AE12/(AG4-AE9) -> 0.03448275862 | AG12: =IF(AF12=0,0,(AF12*((LOG(AF12))/LOG(2)))) -> -0.167516586 | AI12: =N12 -> 212 | AJ12: =COUNTIF(L96:L125,AI12) -> 2 | AK12: =AJ12/(AL4-AJ9) -> 0.06896551724 | AL12: =IF(AK12=0,0,(AK12*((LOG(AK12))/LOG(2)))) -> -0.2660676548 | AN12: =N12 -> 212 | AO12: =COUNTIF(L126:L155,AN12) -> 5 | AP12: =AO12/(AQ4-AO9) -> 0.1785714286 | AQ12: =IF(AP12=0,0,(AP12*((LOG(AP12))/LOG(2)))) -> -0.4438262191 | AS12: =N12 -> 212 | AT12: =COUNTIF(L156:L185,AS12) -> 3 | AU12: =AT12/(AV4-AT9) -> 0.1 | AV12: =IF(AU12=0,0,(AU12*((LOG(AU12))/LOG(2)))) -> -0.3321928095
A13: 22 | B13: 789 | C13: 23 | D13: 796 | E13: 13 | F13: 809 | K13: 0 | L13: 221 | N13: 221 | O13: =COUNTIF($L$7:$L$500,N13) -> 34 | P13: =O13/$Q$4 -> 0.1899441341 | Q13: =IF(P13=0,0,(P13*((LOG(P13))/LOG(2)))) -> -0.4551731834 | T13: =N13 -> 221 | U13: =COUNTIF(L7:L36,T13) -> 15 | V13: =U13/(W4-U9) -> 0.5 | W13: =IF(V13=0,0,(V13*((LOG(V13))/LOG(2)))) -> -0.5 | Y13: =N13 -> 221 | Z13: =COUNTIF(L37:L66,Y13) -> 5 | AA13: =Z13/(AB4-Z9) -> 0.1666666667 | AB13: =IF(AA13=0,0,(AA13*((LOG(AA13))/LOG(2)))) -> -0.4308270835 | AD13: =N13 -> 221 | AE13: =COUNTIF(L67:L95,AD13) -> 4 | AF13: =AE13/(AG4-AE9) -> 0.1379310345 | AG13: =IF(AF13=0,0,(AF13*((LOG(AF13))/LOG(2)))) -> -0.3942042752 | AI13: =N13 -> 221 | AJ13: =COUNTIF(L96:L125,AI13) -> 1 | AK13: =AJ13/(AL4-AJ9) -> 0.03448275862 | AL13: =IF(AK13=0,0,(AK13*((LOG(AK13))/LOG(2)))) -> -0.167516586 | AN13: =N13 -> 221 | AO13: =COUNTIF(L126:L155,AN13) -> 4 | AP13: =AO13/(AQ4-AO9) -> 0.1428571429 | AQ13: =IF(AP13=0,0,(AP13*((LOG(AP13))/LOG(2)))) -> -0.4010507032 | AS13: =N13 -> 221 | AT13: =COUNTIF(L156:L185,AS13) -> 5 | AU13: =AT13/(AV4-AT9) -> 0.1666666667 | AV13: =IF(AU13=0,0,(AU13*((LOG(AU13))/LOG(2)))) -> -0.4308270835
A14: 22 | B14: 906 | C14: 23 | D14: 911 | E14: 13 | F14: 922 | K14: 0 | L14: 221 | N14: 222 | O14: =COUNTIF($L$7:$L$500,N14) -> 33 | P14: =O14/$Q$4 -> 0.1843575419 | Q14: =IF(P14=0,0,(P14*((LOG(P14))/LOG(2)))) -> -0.4497257805 | T14: =N14 -> 222 | U14: =COUNTIF(L7:L36,T14) -> 1 | V14: =U14/(W4-U9) -> 0.03333333333 | W14: =IF(V14=0,0,(V14*((LOG(V14))/LOG(2)))) -> -0.1635630199 | Y14: =N14 -> 222 | Z14: =COUNTIF(L37:L66,Y14) -> 8 | AA14: =Z14/(AB4-Z9) -> 0.2666666667 | AB14: =IF(AA14=0,0,(AA14*((LOG(AA14))/LOG(2)))) -> -0.5085041588 | AD14: =N14 -> 222 | AE14: =COUNTIF(L67:L95,AD14) -> 9 | AF14: =AE14/(AG4-AE9) -> 0.3103448276 | AG14: =IF(AF14=0,0,(AF14*((LOG(AF14))/LOG(2)))) -> -0.5238794463 | AI14: =N14 -> 222 | AJ14: =COUNTIF(L96:L125,AI14) -> 3 | AK14: =AJ14/(AL4-AJ9) -> 0.1034482759 | AL14: =IF(AK14=0,0,(AK14*((LOG(AK14))/LOG(2)))) -> -0.3385881201 | AN14: =N14 -> 222 | AO14: =COUNTIF(L126:L155,AN14) -> 8 | AP14: =AO14/(AQ4-AO9) -> 0.2857142857 | AQ14: =IF(AP14=0,0,(AP14*((LOG(AP14))/LOG(2)))) -> -0.5163871206 | AS14: =N14 -> 222 | AT14: =COUNTIF(L156:L185,AS14) -> 4 | AU14: =AT14/(AV4-AT9) -> 0.1333333333 | AV14: =IF(AU14=0,0,(AU14*((LOG(AU14))/LOG(2)))) -> -0.3875854127
A15: 22 | B15: 1021 | C15: 23 | D15: 1029 | E15: 13 | F15: 1039 | K15: 0 | L15: 221 | P15: =SUM(P7:P14) -> 1 | Q15: =-SUM(Q7:Q14) -> 2.684400376 | V15: =SUM(V7:V14) -> 1 | W15: =-SUM(W7:W14) -> 2.006566233 | AA15: =SUM(AA7:AA14) -> 1 | AB15: =-SUM(AB7:AB14) -> 2.466247897 | AF15: =SUM(AF7:AF14) -> 1 | AG15: =-SUM(AG7:AG14) -> 2.12218926 | AK15: =SUM(AK7:AK14) -> 1 | AL15: =-SUM(AL7:AL14) -> 2.401591568 | AP15: =SUM(AP7:AP14) -> 1 | AQ15: =-SUM(AQ7:AQ14) -> 2.478094888 | AU15: =SUM(AU7:AU14) -> 1 | AV15: =-SUM(AV7:AV14) -> 2.737104465
A16: 11 | B16: 1171 | C16: 12 | D16: 1176 | E16: 13 | F16: 1183 | K16: 0 | L16: 111 | P16: U= | Q16: =Q15/(LOG(Q4)/LOG(2)) -> 0.3586940748 | V16: U1= | W16: =W15/(LOG(W4)/LOG(2)) -> 0.4089282599 | AA16: U2= | AB16: =AB15/(LOG(AB4)/LOG(2)) -> 0.5026091064 | AF16: U3= | AG16: =AG15/(LOG(AG4)/LOG(2)) -> 0.436845937 | AK16: U4= | AL16: =AL15/(LOG(AL4)/LOG(2)) -> 0.4894324667 | AP16: U5= | AQ16: =AQ15/(LOG(AQ4)/LOG(2)) -> 0.5050234644 | AU16: U6= | AV16: =AV15/(LOG(AV4)/LOG(2)) -> 0.5578083333
A17: 11 | B17: 1531 | C17: 21 | D17: 1539 | E17: 22 | F17: 1545 | K17: 0 | L17: 122
A18: 22 | B18: 1646 | C18: 23 | D18: 1654 | E18: 13 | F18: 1667 | K18: 0 | L18: 221
A19: 11 | B19: 1778 | C19: 12 | D19: 1790 | E19: 13 | F19: 1804 | K19: 0 | L19: 111 | N19: Total Target Seq
A20: 22 | B20: 1930 | C20: 14 | D20: 1949 | E20: 13 | F20: 1960 | K20: 0 | L20: 211 | N20: =COUNTIF(L7:L185,G3) -> 3 | P20: 30 | Q20: 30 | R20: 29 | S20: 30 | T20: 30 | U20: 30
A21: 11 | B21: 2063 | C21: 12 | D21: 2070 | E21: 13 | F21: 2076 | K21: 0 | L21: 111 | P21: % of reinforcement given in 6 equal intervals based on number of trials
A22: 22 | B22: 2173 | C22: 23 | D22: 2177 | E22: 13 | F22: 2191 | K22: 0 | L22: 221 | P22: %_1 | Q22: %_2 | R22: %_3 | S22: %_4 | T22: %_5 | U22: %_6
A23: 22 | B23: 2302 | C23: 23 | D23: 2307 | E23: 13 | F23: 2320 | K23: 0 | L23: 221 | O23: target sequence | P23: =$G$3 -> 121 | Q23: =$G$3 -> 121 | R23: =$G$3 -> 121 | S23: =$G$3 -> 121 | T23: =$G$3 -> 121 | U23: =$G$3 -> 121
A24: 11 | B24: 2419 | C24: 12 | D24: 2426 | E24: 13 | F24: 2434 | K24: 0 | L24: 111 | O24: total reinforcement | P24: =U9 -> 0 | Q24: =Z9 -> 0 | R24: =AE9 -> 0 | S24: =AJ9 -> 1 | T24: =AO9 -> 2 | U24: =AT9 -> 0
A25: 22 | B25: 2529 | C25: 23 | D25: 2537 | E25: 13 | F25: 2551 | K25: 0 | L25: 221 | O25: % target
A26: 11 | B26: 2653 | C26: 12 | D26: 2658 | E26: 13 | F26: 2665 | K26: 0 | L26: 111 | O26: CCRF
A27: 22 | B27: 2773 | C27: 23 | D27: 2782 | E27: 13 | F27: 2797 | K27: 0 | L27: 221 | O27: % CCRf
A28: 11 | B28: 2931 | C28: 12 | D28: 2936 | E28: 13 | F28: 2943 | K28: 0 | L28: 111 | O28: average response rate | P28: =F36/P20 -> 133.7666667 | Q28: =(F66-F36)/Q20 -> 131.1333333 | R28: =(F95-F66)/R20 -> 121.7931034 | S28: =(F125-F95)/S20 -> 139.0666667 | T28: =(F155-F125)/T20 -> 140.6333333 | U28: =(F185-F155)/U20 -> 136.4666667
A29: 22 | B29: 3050 | C29: 14 | D29: 3061 | E29: 13 | F29: 3067 | K29: 0 | L29: 211
A30: 22 | B30: 3166 | C30: 23 | D30: 3171 | E30: 13 | F30: 3183 | K30: 0 | L30: 221
A31: 22 | B31: 3279 | C31: 23 | D31: 3290 | E31: 24 | F31: 3298 | K31: 0 | L31: 222
A32: 22 | B32: 3491 | C32: 14 | D32: 3502 | E32: 13 | F32: 3508 | K32: 0 | L32: 211
A33: 22 | B33: 3617 | C33: 14 | D33: 3628 | E33: 24 | F33: 3638 | K33: 0 | L33: 212
A34: 11 | B34: 3762 | C34: 12 | D34: 3771 | E34: 13 | F34: 3777 | K34: 0 | L34: 111
A35: 11 | B35: 3877 | C35: 21 | D35: 3886 | E35: 22 | F35: 3892 | K35: 0 | L35: 122
A36: 22 | B36: 3992 | C36: 23 | D36: 3998 | E36: 13 | F36: 4013 | K36: 0 | L36: 221
A37: 11 | B37: 4115 | C37: 12 | D37: 4122 | E37: 13 | F37: 4128 | K37: 0 | L37: 111
A38: 22 | B38: 4230 | C38: 23 | D38: 4243 | E38: 24 | F38: 4249 | K38: 0 | L38: 222
A39: 11 | B39: 4359 | C39: 12 | D39: 4365 | E39: 13 | F39: 4373 | K39: 0 | L39: 111
A40: 22 | B40: 4491 | C40: 23 | D40: 4501 | E40: 24 | F40: 4507 | K40: 0 | L40: 222
A41: 22 | B41: 4612 | C41: 14 | D41: 4633 | E41: 13 | F41: 4646 | K41: 0 | L41: 211
A42: 22 | B42: 4751 | C42: 23 | D42: 4761 | E42: 24 | F42: 4766 | K42: 0 | L42: 222
A43: 22 | B43: 4863 | C43: 23 | D43: 4870 | E43: 13 | F43: 4888 | K43: 0 | L43: 221
A44: 22 | B44: 4992 | C44: 14 | D44: 5005 | E44: 13 | F44: 5013 | K44: 0 | L44: 211
A45: 11 | B45: 5113 | C45: 12 | D45: 5119 | E45: 13 | F45: 5126 | K45: 0 | L45: 111
A46: 22 | B46: 5226 | C46: 14 | D46: 5240 | E46: 13 | F46: 5246 | K46: 0 | L46: 211
A47: 22 | B47: 5339 | C47: 14 | D47: 5354 | E47: 24 | F47: 5362 | K47: 0 | L47: 212
A48: 11 | B48: 5471 | C48: 12 | D48: 5479 | E48: 13 | F48: 5487 | K48: 0 | L48: 111
A49: 22 | B49: 5588 | C49: 14 | D49: 5604 | E49: 13 | F49: 5611 | K49: 0 | L49: 211
A50: 22 | B50: 5713 | C50: 14 | D50: 5725 | E50: 13 | F50: 5731 | K50: 0 | L50: 211
A51: 22 | B51: 5868 | C51: 23 | D51: 5874 | E51: 24 | F51: 5883 | K51: 0 | L51: 222
A52: 22 | B52: 5990 | C52: 23 | D52: 5997 | E52: 13 | F52: 6012 | K52: 0 | L52: 221
A53: 22 | B53: 6108 | C53: 23 | D53: 6117 | E53: 13 | F53: 6133 | K53: 0 | L53: 221
A54: 22 | B54: 6227 | C54: 23 | D54: 6232 | E54: 24 | F54: 6239 | K54: 0 | L54: 222
A55: 22 | B55: 6360 | C55: 14 | D55: 6376 | E55: 13 | F55: 6382 | K55: 0 | L55: 211
A56: 22 | B56: 6486 | C56: 14 | D56: 6506 | E56: 24 | F56: 6515 | K56: 0 | L56: 212
A57: 11 | B57: 6619 | C57: 12 | D57: 6627 | E57: 13 | F57: 6635 | K57: 0 | L57: 111
A58: 11 | B58: 6757 | C58: 12 | D58: 6765 | E58: 24 | F58: 6785 | K58: 0 | L58: 112
A59: 11 | B59: 7067 | C59: 21 | D59: 7075 | E59: 22 | F59: 7082 | K59: 0 | L59: 122
A60: 22 | B60: 7180 | C60: 23 | D60: 7186 | E60: 13 | F60: 7202 | K60: 0 | L60: 221
A61: 22 | B61: 7325 | C61: 14 | D61: 7339 | E61: 13 | F61: 7348 | K61: 0 | L61: 211
A62: 22 | B62: 7443 | C62: 23 | D62: 7445 | E62: 24 | F62: 7453 | K62: 0 | L62: 222
A63: 22 | B63: 7557 | C63: 23 | D63: 7569 | E63: 13 | F63: 7584 | K63: 0 | L63: 221
A64: 22 | B64: 7690 | C64: 23 | D64: 7696 | E64: 24 | F64: 7703 | K64: 0 | L64: 222
A65: 22 | B65: 7807 | C65: 23 | D65: 7817 | E65: 24 | F65: 7823 | K65: 0 | L65: 222
A66: 22 | B66: 7925 | C66: 14 | D66: 7942 | E66: 13 | F66: 7947 | K66: 0 | L66: 211
A67: 22 | B67: 8045 | C67: 23 | D67: 8052 | E67: 24 | F67: 8058 | K67: 0 | L67: 222
A68: 22 | B68: 8156 | C68: 23 | D68: 8170 | E68: 24 | F68: 8176 | K68: 0 | L68: 222
A69: 11 | B69: 8277 | C69: 12 | D69: 8283 | E69: 13 | F69: 8292 | K69: 0 | L69: 111
A70: 11 | B70: 8401 | C70: 12 | D70: 8407 | E70: 13 | F70: 8414 | K70: 0 | L70: 111
A71: 22 | B71: 8509 | C71: 23 | D71: 8525 | E71: 13 | F71: 8542 | K71: 0 | L71: 221
A72: 22 | B72: 8635 | C72: 23 | D72: 8646 | E72: 24 | F72: 8653 | K72: 0 | L72: 222
A73: 11 | B73: 8764 | C73: 12 | D73: 8771 | E73: 13 | F73: 8778 | K73: 0 | L73: 111
A74: 11 | B74: 8878 | C74: 12 | D74: 8885 | E74: 13 | F74: 8892 | K74: 0 | L74: 111
A75: 22 | B75: 8990 | C75: 23 | D75: 9000 | E75: 13 | F75: 9016 | K75: 0 | L75: 221
A76: 22 | B76: 9120 | C76: 14 | D76: 9133 | E76: 13 | F76: 9140 | K76: 0 | L76: 211
A77: 11 | B77: 9258 | C77: 12 | D77: 9265 | E77: 13 | F77: 9273 | K77: 0 | L77: 111
A78: 22 | B78: 9375 | C78: 23 | D78: 9383 | E78: 24 | F78: 9391 | K78: 0 | L78: 222
A79: 22 | B79: 9504 | C79: 23 | D79: 9511 | E79: 24 | F79: 9519 | K79: 0 | L79: 222
A80: 22 | B80: 9620 | C80: 23 | D80: 9625 | E80: 24 | F80: 9632 | K80: 0 | L80: 222
A81: 22 | B81: 9736 | C81: 23 | D81: 9744 | E81: 24 | F81: 9754 | K81: 0 | L81: 222
A82: 11 | B82: 9858 | C82: 12 | D82: 9865 | E82: 13 | F82: 9867 | K82: 0 | L82: 111
A83: 11 | B83: 9964 | C83: 12 | D83: 9972 | E83: 13 | F83: 9979 | K83: 0 | L83: 111
A84: 22 | B84: 10085 | C84: 14 | D84: 10105 | E84: 13 | F84: 10117 | K84: 0 | L84: 211
A85: 11 | B85: 10220 | C85: 21 | D85: 10232 | E85: 22 | F85: 10239 | K85: 0 | L85: 122
A86: 11 | B86: 10344 | C86: 12 | D86: 10351 | E86: 13 | F86: 10360 | K86: 0 | L86: 111
A87: 22 | B87: 10458 | C87: 14 | D87: 10476 | E87: 13 | F87: 10482 | K87: 0 | L87: 211
A88: 11 | B88: 10581 | C88: 12 | D88: 10587 | E88: 13 | F88: 10593 | K88: 0 | L88: 111
A89: 22 | B89: 10705 | C89: 23 | D89: 10709 | E89: 24 | F89: 10716 | K89: 0 | L89: 222
A90: 11 | B90: 10819 | C90: 12 | D90: 10832 | E90: 13 | F90: 10842 | K90: 0 | L90: 111
A91: 11 | B91: 10970 | C91: 12 | D91: 10978 | E91: 13 | F91: 10987 | K91: 0 | L91: 111
A92: 22 | B92: 11097 | C92: 14 | D92: 11117 | E92: 24 | F92: 11128 | K92: 0 | L92: 212
A93: 22 | B93: 11229 | C93: 23 | D93: 11238 | E93: 13 | F93: 11255 | K93: 0 | L93: 221
A94: 22 | B94: 11358 | C94: 23 | D94: 11361 | E94: 13 | F94: 11372 | K94: 0 | L94: 221
A95: 22 | B95: 11467 | C95: 23 | D95: 11471 | E95: 24 | F95: 11479 | K95: 0 | L95: 222
A96: 11 | B96: 11576 | C96: 12 | D96: 11577 | E96: 24 | F96: 11592 | K96: 0 | L96: 112
A97: 22 | B97: 11693 | C97: 14 | D97: 11707 | E97: 13 | F97: 11713 | K97: 0 | L97: 211
A98: 11 | B98: 11817 | C98: 12 | D98: 11823 | E98: 13 | F98: 11832 | K98: 0 | L98: 111
A99: 11 | B99: 11945 | C99: 12 | D99: 11952 | E99: 13 | F99: 11960 | K99: 0 | L99: 111
A100: 11 | B100: 12062 | C100: 21 | D100: 12081 | E100: 22 | F100: 12087 | K100: 0 | L100: 122
A101: 22 | B101: 12185 | C101: 14 | D101: 12198 | E101: 13 | F101: 12205 | K101: 0 | L101: 211
A102: 11 | B102: 12303 | C102: 12 | D102: 12310 | E102: 13 | F102: 12317 | K102: 0 | L102: 111
A103: 22 | B103: 12453 | C103: 14 | D103: 12470 | E103: 24 | F103: 12482 | K103: 0 | L103: 212
A104: 22 | B104: 12579 | C104: 23 | D104: 12593 | E104: 24 | F104: 12605 | K104: 0 | L104: 222
A105: 11 | B105: 12725 | C105: 21 | D105: 12734 | E105: 22 | F105: 12740 | K105: 0 | L105: 122
A106: 11 | B106: 12853 | C106: 12 | D106: 12861 | E106: 13 | F106: 12867 | K106: 0 | L106: 111
A107: 11 | B107: 13033 | C107: 12 | D107: 13039 | E107: 13 | F107: 13045 | K107: 0 | L107: 111
A108: 22 | B108: 13144 | C108: 23 | D108: 13149 | E108: 24 | F108: 13155 | K108: 0 | L108: 222
A109: 11 | B109: 13297 | C109: 12 | D109: 13304 | E109: 13 | F109: 13310 | K109: 0 | L109: 111
A110: 22 | B110: 13457 | C110: 23 | D110: 13462 | E110: 24 | F110: 13467 | K110: 0 | L110: 222
A111: 11 | B111: 13570 | C111: 21 | D111: 13586 | E111: 11 | F111: 13602 | K111: 0 | L111: 121
A112: 22 | B112: 14032 | C112: 14 | D112: 14047 | E112: 24 | F112: 14055 | K112: 0 | L112: 212
A113: 11 | B113: 14163 | C113: 21 | D113: 14170 | E113: 22 | F113: 14178 | K113: 0 | L113: 122
A114: 11 | B114: 14283 | C114: 21 | D114: 14291 | E114: 22 | F114: 14297 | K114: 0 | L114: 122
A115: 11 | B115: 14395 | C115: 12 | D115: 14400 | E115: 13 | F115: 14407 | K115: 0 | L115: 111
A116: 22 | B116: 14500 | C116: 14 | D116: 14514 | E116: 13 | F116: 14521 | K116: 0 | L116: 211
A117: 22 | B117: 14630 | C117: 14 | D117: 14643 | E117: 13 | F117: 14649 | K117: 0 | L117: 211
A118: 11 | B118: 14749 | C118: 12 | D118: 14755 | E118: 13 | F118: 14762 | K118: 0 | L118: 111
A119: 22 | B119: 14867 | C119: 14 | D119: 14881 | E119: 13 | F119: 14888 | K119: 0 | L119: 211
A120: 22 | B120: 14997 | C120: 14 | D120: 15011 | E120: 13 | F120: 15017 | K120: 0 | L120: 211
A121: 11 | B121: 15123 | C121: 21 | D121: 15130 | E121: 22 | F121: 15134 | K121: 0 | L121: 122
A122: 11 | B122: 15265 | C122: 12 | D122: 15272 | E122: 13 | F122: 15286 | K122: 0 | L122: 111
A123: 22 | B123: 15390 | C123: 14 | D123: 15404 | E123: 13 | F123: 15412 | K123: 0 | L123: 211
A124: 22 | B124: 15520 | C124: 23 | D124: 15523 | E124: 13 | F124: 15540 | K124: 0 | L124: 221
A125: 11 | B125: 15636 | C125: 12 | D125: 15645 | E125: 13 | F125: 15651 | K125: 0 | L125: 111
A126: 11 | B126: 15743 | C126: 21 | D126: 15754 | E126: 22 | F126: 15761 | K126: 0 | L126: 122
A127: 22 | B127: 15937 | C127: 14 | D127: 15951 | E127: 13 | F127: 15956 | K127: 0 | L127: 211
A128: 11 | B128: 16064 | C128: 21 | D128: 16073 | E128: 22 | F128: 16082 | K128: 0 | L128: 122
A129: 22 | B129: 16215 | C129: 14 | D129: 16228 | E129: 24 | F129: 16237 | K129: 0 | L129: 212
A130: 22 | B130: 16340 | C130: 23 | D130: 16350 | E130: 24 | F130: 16356 | K130: 0 | L130: 222
A131: 22 | B131: 16459 | C131: 14 | D131: 16474 | E131: 24 | F131: 16481 | K131: 0 | L131: 212
A132: 11 | B132: 16584 | C132: 21 | D132: 16596 | E132: 11 | F132: 16615 | K132: 0 | L132: 121
A133: 11 | B133: 16866 | C133: 12 | D133: 16874 | E133: 13 | F133: 16883 | K133: 0 | L133: 111
A134: 22 | B134: 16991 | C134: 14 | D134: 17007 | E134: 24 | F134: 17017 | K134: 0 | L134: 212
A135: 22 | B135: 17113 | C135: 14 | D135: 17129 | E135: 13 | F135: 17135 | K135: 0 | L135: 211
A136: 11 | B136: 17236 | C136: 21 | D136: 17244 | E136: 11 | F136: 17254 | K136: 0 | L136: 121
A137: 22 | B137: 17429 | C137: 14 | D137: 17445 | E137: 13 | F137: 17456 | K137: 0 | L137: 211
A138: 22 | B138: 17577 | C138: 14 | D138: 17590 | E138: 24 | F138: 17600 | K138: 0 | L138: 212
A139: 22 | B139: 17700 | C139: 14 | D139: 17715 | E139: 24 | F139: 17725 | K139: 0 | L139: 212
A140: 22 | B140: 17821 | C140: 14 | D140: 17838 | E140: 13 | F140: 17850 | K140: 0 | L140: 211
A141: 22 | B141: 17969 | C141: 23 | D141: 17975 | E141: 13 | F141: 17991 | K141: 0 | L141: 221
A142: 22 | B142: 18097 | C142: 23 | D142: 18102 | E142: 13 | F142: 18120 | K142: 0 | L142: 221
A143: 11 | B143: 18214 | C143: 12 | D143: 18236 | E143: 13 | F143: 18242 | K143: 0 | L143: 111
A144: 11 | B144: 18341 | C144: 21 | D144: 18350 | E144: 22 | F144: 18355 | K144: 0 | L144: 122
A145: 22 | B145: 18587 | C145: 14 | D145: 18601 | E145: 13 | F145: 18608 | K145: 0 | L145: 211
A146: 22 | B146: 18767 | C146: 23 | D146: 18773 | E146: 24 | F146: 18780 | K146: 0 | L146: 222
A147: 11 | B147: 18874 | C147: 21 | D147: 18882 | E147: 22 | F147: 18887 | K147: 0 | L147: 122
A148: 22 | B148: 18987 | C148: 23 | D148: 18995 | E148: 24 | F148: 19002 | K148: 0 | L148: 222
A149: 22 | B149: 19096 | C149: 23 | D149: 19103 | E149: 24 | F149: 19109 | K149: 0 | L149: 222
A150: 22 | B150: 19211 | C150: 23 | D150: 19216 | E150: 13 | F150: 19229 | K150: 0 | L150: 221
A151: 22 | B151: 19331 | C151: 23 | D151: 19336 | E151: 24 | F151: 19342 | K151: 0 | L151: 222
A152: 22 | B152: 19442 | C152: 23 | D152: 19448 | E152: 24 | F152: 19468 | K152: 0 | L152: 222
A153: 22 | B153: 19563 | C153: 23 | D153: 19573 | E153: 24 | F153: 19578 | K153: 0 | L153: 222
A154: 22 | B154: 19679 | C154: 23 | D154: 19703 | E154: 24 | F154: 19710 | K154: 0 | L154: 222
A155: 22 | B155: 19834 | C155: 23 | D155: 19849 | E155: 13 | F155: 19870 | K155: 0 | L155: 221
A156: 22 | B156: 19982 | C156: 23 | D156: 20013 | E156: 24 | F156: 20019 | K156: 0 | L156: 222
A157: 22 | B157: 20140 | C157: 14 | D157: 20154 | E157: 24 | F157: 20161 | K157: 0 | L157: 212
A158: 11 | B158: 20269 | C158: 12 | D158: 20275 | E158: 24 | F158: 20284 | K158: 0 | L158: 112
A159: 22 | B159: 20552 | C159: 14 | D159: 20575 | E159: 13 | F159: 20587 | K159: 0 | L159: 211
A160: 11 | B160: 20695 | C160: 12 | D160: 20701 | E160: 13 | F160: 20707 | K160: 0 | L160: 111
A161: 22 | B161: 20815 | C161: 23 | D161: 20825 | E161: 13 | F161: 20844 | K161: 0 | L161: 221
A162: 11 | B162: 20972 | C162: 12 | D162: 20997 | E162: 24 | F162: 21005 | K162: 0 | L162: 112
A163: 22 | B163: 21279 | C163: 14 | D163: 21292 | E163: 24 | F163: 21298 | K163: 0 | L163: 212
A164: 22 | B164: 21399 | C164: 23 | D164: 21408 | E164: 13 | F164: 21420 | K164: 0 | L164: 221
A165: 22 | B165: 21515 | C165: 14 | D165: 21528 | E165: 24 | F165: 21537 | K165: 0 | L165: 212
A166: 22 | B166: 21639 | C166: 23 | D166: 21645 | E166: 24 | F166: 21650 | K166: 0 | L166: 222
A167: 11 | B167: 21748 | C167: 21 | D167: 21758 | E167: 22 | F167: 21766 | K167: 0 | L167: 122
A168: 11 | B168: 21874 | C168: 21 | D168: 21881 | E168: 22 | F168: 21887 | K168: 0 | L168: 122
A169: 22 | B169: 21995 | C169: 14 | D169: 22007 | E169: 13 | F169: 22019 | K169: 0 | L169: 211
A170: 22 | B170: 22132 | C170: 14 | D170: 22145 | E170: 13 | F170: 22151 | K170: 0 | L170: 211
A171: 22 | B171: 22257 | C171: 14 | D171: 22268 | E171: 13 | F171: 22275 | K171: 0 | L171: 211
A172: 22 | B172: 22367 | C172: 23 | D172: 22370 | E172: 13 | F172: 22382 | K172: 0 | L172: 221
A173: 11 | B173: 22488 | C173: 21 | D173: 22497 | E173: 22 | F173: 22504 | K173: 0 | L173: 122
A174: 11 | B174: 22611 | C174: 21 | D174: 22620 | E174: 22 | F174: 22627 | K174: 0 | L174: 122
A175: 22 | B175: 22733 | C175: 23 | D175: 22737 | E175: 13 | F175: 22753 | K175: 0 | L175: 221
A176: 11 | B176: 22854 | C176: 12 | D176: 22864 | E176: 13 | F176: 22872 | K176: 0 | L176: 111
A177: 22 | B177: 22978 | C177: 14 | D177: 22993 | E177: 13 | F177: 23005 | K177: 0 | L177: 211
A178: 11 | B178: 23111 | C178: 12 | D178: 23117 | E178: 13 | F178: 23122 | K178: 0 | L178: 111
A179: 11 | B179: 23228 | C179: 12 | D179: 23240 | E179: 13 | F179: 23247 | K179: 0 | L179: 111
A180: 11 | B180: 23356 | C180: 12 | D180: 23360 | E180: 13 | F180: 23367 | K180: 0 | L180: 111
A181: 22 | B181: 23471 | C181: 23 | D181: 23480 | E181: 24 | F181: 23487 | K181: 0 | L181: 222
A182: 11 | B182: 23585 | C182: 21 | D182: 23595 | E182: 22 | F182: 23601 | K182: 0 | L182: 122
A183: 22 | B183: 23701 | C183: 23 | D183: 23709 | E183: 13 | F183: 23725 | K183: 0 | L183: 221
A184: 22 | B184: 23832 | C184: 23 | D184: 23837 | E184: 24 | F184: 23843 | K184: 0 | L184: 222
A185: 11 | B185: 23945 | C185: 12 | D185: 23958 | E185: 13 | F185: 23964 | L185: 111

Sheet !M222A1D.UST
A1: Report for:!M222A1D.UST
A2: Date: | B2: <date>
A3: Hen: | B3: <hen> | F3: Correct Sequence | G3: =Start!J2 -> 121 | P3: Total Sequences in Data | Q3: =4994-COUNTBLANK(L7:L5000) -> 182 | V3: Total Sequences in Block Data | W3: =COUNTA(L7:L36) -> 30 | AA3: Total Sequences in Block Data | AB3: =COUNTA(L37:L67) -> 31 | AF3: Total Sequences in Block Data | AG3: =COUNTA(L68:L97) -> 30 | AK3: Total Sequences in Block Data | AL3: =COUNTA(L98:L127) -> 30 | AP3: Total Sequences in Block Data | AQ3: =COUNTA(L128:L158) -> 31 | AU3: Total Sequences in Block Data | AV3: =COUNTA(L159:L188) -> 30
P4: Total Sequences in Summary | Q4: =SUM(O7:O14) -> 182 | V4: Total Sequences in Block Summary | W4: =SUM(U7:U14) -> 30 | AA4: Total Sequences in Block Summary | AB4: =SUM(Z7:Z14) -> 31 | AF4: Total Sequences in Block Summary | AG4: =SUM(AE7:AE14) -> 30 | AK4: Total Sequences in Block Summary | AL4: =SUM(AJ7:AJ14) -> 30 | AP4: Total Sequences in Block Summary | AQ4: =SUM(AO7:AO14) -> 31 | AU4: Total Sequences in Block Summary | AV4: =SUM(AT7:AT14) -> 30
T5: Block 1 | Y5: Block 2 | AD5: Block 3 | AI5: Block 4 | AN5: Block 5 | AS5: Block 6
A6: Sequence Component 1 | B6: Time 1 | C6: Sequence Component 2 | D6: Time 2 | E6: Sequence Component 3 | F6: Time 3 | G6: Sequence Component 4 | H6: Time 4 | I6: Sequence Component 5 | J6: Time 5 | K6: Correct? 0=No 1=Yes | L6: Sequence | N6: Frequency | P6: Relative Frequency | Q6: Variability | T6: Frequency | V6: Relative Frequency | W6: Variability | Y6: Frequency | AA6: Relative Frequency | AB6: Variability | AD6: Frequency | AF6: Relative Frequency | AG6: Variability | AI6: Frequency | AK6: Relative Frequency | AL6: Variability | AN6: Frequency | AP6: Relative Frequency | AQ6: Variability | AS6: Frequency | AU6: Relative Frequency | AV6: Variability
A7: 22 | B7: 18 | C7: 14 | D7: 29 | E7: 24 | F7: 36 | K7: 0 | L7: 212 | N7: 111 | O7: =COUNTIF($L$7:$L$500,N7) -> 42 | P7: =O7/$Q$4 -> 0.2307692308 | Q7: =IF(P7=0,0,(P7*((LOG(P7))/LOG(2)))) -> -0.4881870502 | T7: =N7 -> 111 | U7: =COUNTIF(L7:L36,T7) -> 6 | V7: =U7/(W4-U9) -> 0.2 | W7: =IF(V7=0,0,(V7*((LOG(V7))/LOG(2)))) -> -0.464385619 | Y7: =N7 -> 111 | Z7: =COUNTIF(L37:L67,Y7) -> 7 | AA7: =Z7/(AB4-Z9) -> 0.2333333333 | AB7: =IF(AA7=0,0,(AA7*((LOG(AA7))/LOG(2)))) -> -0.4898916572 | AD7: =N7 -> 111 | AE7: =COUNTIF(L68:L97,AD7) -> 7 | AF7: =AE7/(AG4-AE9) -> 0.2333333333 | AG7: =IF(AF7=0,0,(AF7*((LOG(AF7))/LOG(2)))) -> -0.4898916572 | AI7: =N7 -> 111 | AJ7: =COUNTIF(L98:L127,AI7) -> 8 | AK7: =AJ7/(AL4-AJ9) -> 0.275862069 | AL7: =IF(AK7=0,0,(AK7*((LOG(AK7))/LOG(2)))) -> -0.5125464814 | AN7: =N7 -> 111 | AO7: =COUNTIF(L128:L158,AN7) -> 3 | AP7: =AO7/(AQ4-AO9) -> 0.1 | AQ7: =IF(AP7=0,0,(AP7*((LOG(AP7))/LOG(2)))) -> -0.3321928095 | AS7: =N7 -> 111 | AT7: =COUNTIF(L159:L188,AS7) -> 11 | AU7: =AT7/(AV4-AT9) -> 0.4074074074 | AV7: =IF(AU7=0,0,(AU7*((LOG(AU7))/LOG(2)))) -> -0.5277783229
A8: 22 | B8: 130 | C8: 14 | D8: 151 | E8: 13 | F8: 159 | K8: 0 | L8: 211 | N8: 112 | O8: =COUNTIF($L$7:$L$500,N8) -> 0 | P8: =O8/$Q$4 -> 0 | Q8: =IF(P8=0,0,(P8*((LOG(P8))/LOG(2)))) -> 0 | T8: =N8 -> 112 | U8: =COUNTIF(L7:L36,T8) -> 0 | V8: =U8/(W4-U9) -> 0 | W8: =IF(V8=0,0,(V8*((LOG(V8))/LOG(2)))) -> 0 | Y8: =N8 -> 112 | Z8: =COUNTIF(L37:L67,Y8) -> 0 | AA8: =Z8/(AB4-Z9) -> 0 | AB8: =IF(AA8=0,0,(AA8*((LOG(AA8))/LOG(2)))) -> 0 | AD8: =N8 -> 112 | AE8: =COUNTIF(L68:L97,AD8) -> 0 | AF8: =AE8/(AG4-AE9) -> 0 | AG8: =IF(AF8=0,0,(AF8*((LOG(AF8))/LOG(2)))) -> 0 | AI8: =N8 -> 112 | AJ8: =COUNTIF(L98:L127,AI8) -> 0 | AK8: =AJ8/(AL4-AJ9) -> 0 | AL8: =IF(AK8=0,0,(AK8*((LOG(AK8))/LOG(2)))) -> 0 | AN8: =N8 -> 112 | AO8: =COUNTIF(L128:L158,AN8) -> 0 | AP8: =AO8/(AQ4-AO9) -> 0 | AQ8: =IF(AP8=0,0,(AP8*((LOG(AP8))/LOG(2)))) -> 0 | AS8: =N8 -> 112 | AT8: =COUNTIF(L159:L188,AS8) -> 0 | AU8: =AT8/(AV4-AT9) -> 0 | AV8: =IF(AU8=0,0,(AU8*((LOG(AU8))/LOG(2)))) -> 0
A9: 22 | B9: 254 | C9: 14 | D9: 265 | E9: 13 | F9: 271 | K9: 0 | L9: 211 | N9: 121 | O9: =COUNTIF($L$7:$L$500,N9) -> 6 | P9: =O9/$Q$4 -> 0.03296703297 | Q9: =IF(P9=0,0,(P9*((LOG(P9))/LOG(2)))) -> -0.1622911694 | T9: =N9 -> 121 | U9: =COUNTIF(L7:L36,T9) -> 0 | Y9: =N9 -> 121 | Z9: =COUNTIF(L37:L67,Y9) -> 1 | AD9: =N9 -> 121 | AE9: =COUNTIF(L68:L97,AD9) -> 0 | AI9: =N9 -> 121 | AJ9: =COUNTIF(L98:L127,AI9) -> 1 | AN9: =N9 -> 121 | AO9: =COUNTIF(L128:L158,AN9) -> 1 | AS9: =N9 -> 121 | AT9: =COUNTIF(L159:L188,AS9) -> 3
A10: 22 | B10: 372 | C10: 23 | D10: 381 | E10: 24 | F10: 400 | K10: 0 | L10: 222 | N10: 122 | O10: =COUNTIF($L$7:$L$500,N10) -> 16 | P10: =O10/$Q$4 -> 0.08791208791 | Q10: =IF(P10=0,0,(P10*((LOG(P10))/LOG(2)))) -> -0.3083775508 | T10: =N10 -> 122 | U10: =COUNTIF(L7:L36,T10) -> 4 | V10: =U10/(W4-U9) -> 0.1333333333 | W10: =IF(V10=0,0,(V10*((LOG(V10))/LOG(2)))) -> -0.3875854127 | Y10: =N10 -> 122 | Z10: =COUNTIF(L37:L67,Y10) -> 3 | AA10: =Z10/(AB4-Z9) -> 0.1 | AB10: =IF(AA10=0,0,(AA10*((LOG(AA10))/LOG(2)))) -> -0.3321928095 | AD10: =N10 -> 122 | AE10: =COUNTIF(L68:L97,AD10) -> 2 | AF10: =AE10/(AG4-AE9) -> 0.06666666667 | AG10: =IF(AF10=0,0,(AF10*((LOG(AF10))/LOG(2)))) -> -0.260459373 | AI10: =N10 -> 122 | AJ10: =COUNTIF(L98:L127,AI10) -> 3 | AK10: =AJ10/(AL4-AJ9) -> 0.1034482759 | AL10: =IF(AK10=0,0,(AK10*((LOG(AK10))/LOG(2)))) -> -0.3385881201 | AN10: =N10 -> 122 | AO10: =COUNTIF(L128:L158,AN10) -> 2 | AP10: =AO10/(AQ4-AO9) -> 0.06666666667 | AQ10: =IF(AP10=0,0,(AP10*((LOG(AP10))/LOG(2)))) -> -0.260459373 | AS10: =N10 -> 122 | AT10: =COUNTIF(L159:L188,AS10) -> 2 | AU10: =AT10/(AV4-AT9) -> 0.07407407407 | AV10: =IF(AU10=0,0,(AU10*((LOG(AU10))/LOG(2)))) -> -0.278139815
A11: 22 | B11: 496 | C11: 23 | D11: 504 | E11: 13 | F11: 518 | K11: 0 | L11: 221 | N11: 211 | O11: =COUNTIF($L$7:$L$500,N11) -> 65 | P11: =O11/$Q$4 -> 0.3571428571 | Q11: =IF(P11=0,0,(P11*((LOG(P11))/LOG(2)))) -> -0.5305095811 | T11: =N11 -> 211 | U11: =COUNTIF(L7:L36,T11) -> 7 | V11: =U11/(W4-U9) -> 0.2333333333 | W11: =IF(V11=0,0,(V11*((LOG(V11))/LOG(2)))) -> -0.4898916572 | Y11: =N11 -> 211 | Z11: =COUNTIF(L37:L67,Y11) -> 13 | AA11: =Z11/(AB4-Z9) -> 0.4333333333 | AB11: =IF(AA11=0,0,(AA11*((LOG(AA11))/LOG(2)))) -> -0.5227953802 | AD11: =N11 -> 211 | AE11: =COUNTIF(L68:L97,AD11) -> 16 | AF11: =AE11/(AG4-AE9) -> 0.5333333333 | AG11: =IF(AF11=0,0,(AF11*((LOG(AF11))/LOG(2)))) -> -0.4836749843 | AI11: =N11 -> 211 | AJ11: =COUNTIF(L98:L127,AI11) -> 9 | AK11: =AJ11/(AL4-AJ9) -> 0.3103448276 | AL11: =IF(AK11=0,0,(AK11*((LOG(AK11))/LOG(2)))) -> -0.5238794463 | AN11: =N11 -> 211 | AO11: =COUNTIF(L128:L158,AN11) -> 11 | AP11: =AO11/(AQ4-AO9) -> 0.3666666667 | AQ11: =IF(AP11=0,0,(AP11*((LOG(AP11))/LOG(2)))) -> -0.5307349582 | AS11: =N11 -> 211 | AT11: =COUNTIF(L159:L188,AS11) -> 9 | AU11: =AT11/(AV4-AT9) -> 0.3333333333 | AV11: =IF(AU11=0,0,(AU11*((LOG(AU11))/LOG(2)))) -> -0.5283208336
A12: 11 | B12: 619 | C12: 21 | D12: 626 | E12: 22 | F12: 631 | K12: 0 | L12: 122 | N12: 212 | O12: =COUNTIF($L$7:$L$500,N12) -> 4 | P12: =O12/$Q$4 -> 0.02197802198 | Q12: =IF(P12=0,0,(P12*((LOG(P12))/LOG(2)))) -> -0.1210504317 | T12: =N12 -> 212 | U12: =COUNTIF(L7:L36,T12) -> 2 | V12: =U12/(W4-U9) -> 0.06666666667 | W12: =IF(V12=0,0,(V12*((LOG(V12))/LOG(2)))) -> -0.260459373 | Y12: =N12 -> 212 | Z12: =COUNTIF(L37:L67,Y12) -> 1 | AA12: =Z12/(AB4-Z9) -> 0.03333333333 | AB12: =IF(AA12=0,0,(AA12*((LOG(AA12))/LOG(2)))) -> -0.1635630199 | AD12: =N12 -> 212 | AE12: =COUNTIF(L68:L97,AD12) -> 0 | AF12: =AE12/(AG4-AE9) -> 0 | AG12: =IF(AF12=0,0,(AF12*((LOG(AF12))/LOG(2)))) -> 0 | AI12: =N12 -> 212 | AJ12: =COUNTIF(L98:L127,AI12) -> 1 | AK12: =AJ12/(AL4-AJ9) -> 0.03448275862 | AL12: =IF(AK12=0,0,(AK12*((LOG(AK12))/LOG(2)))) -> -0.167516586 | AN12: =N12 -> 212 | AO12: =COUNTIF(L128:L158,AN12) -> 0 | AP12: =AO12/(AQ4-AO9) -> 0 | AQ12: =IF(AP12=0,0,(AP12*((LOG(AP12))/LOG(2)))) -> 0 | AS12: =N12 -> 212 | AT12: =COUNTIF(L159:L188,AS12) -> 0 | AU12: =AT12/(AV4-AT9) -> 0 | AV12: =IF(AU12=0,0,(AU12*((LOG(AU12))/LOG(2)))) -> 0
A13: 11 | B13: 735 | C13: 12 | D13: 740 | E13: 13 | F13: 746 | K13: 0 | L13: 111 | N13: 221 | O13: =COUNTIF($L$7:$L$500,N13) -> 26 | P13: =O13/$Q$4 -> 0.1428571429 | Q13: =IF(P13=0,0,(P13*((LOG(P13))/LOG(2)))) -> -0.4010507032 | T13: =N13 -> 221 | U13: =COUNTIF(L7:L36,T13) -> 5 | V13: =U13/(W4-U9) -> 0.1666666667 | W13: =IF(V13=0,0,(V13*((LOG(V13))/LOG(2)))) -> -0.4308270835 | Y13: =N13 -> 221 | Z13: =COUNTIF(L37:L67,Y13) -> 3 | AA13: =Z13/(AB4-Z9) -> 0.1 | AB13: =IF(AA13=0,0,(AA13*((LOG(AA13))/LOG(2)))) -> -0.3321928095 | AD13: =N13 -> 221 | AE13: =COUNTIF(L68:L97,AD13) -> 2 | AF13: =AE13/(AG4-AE9) -> 0.06666666667 | AG13: =IF(AF13=0,0,(AF13*((LOG(AF13))/LOG(2)))) -> -0.260459373 | AI13: =N13 -> 221 | AJ13: =COUNTIF(L98:L127,AI13) -> 5 | AK13: =AJ13/(AL4-AJ9) -> 0.1724137931 | AL13: =IF(AK13=0,0,(AK13*((LOG(AK13))/LOG(2)))) -> -0.4372505 | AN13: =N13 -> 221 | AO13: =COUNTIF(L128:L158,AN13) -> 8 | AP13: =AO13/(AQ4-AO9) -> 0.2666666667 | AQ13: =IF(AP13=0,0,(AP13*((LOG(AP13))/LOG(2)))) -> -0.5085041588 | AS13: =N13 -> 221 | AT13: =COUNTIF(L159:L188,AS13) -> 3 | AU13: =AT13/(AV4-AT9) -> 0.1111111111 | AV13: =IF(AU13=0,0,(AU13*((LOG(AU13))/LOG(2)))) -> -0.352213889
A14: 22 | B14: 995 | C14: 14 | D14: 1011 | E14: 13 | F14: 1018 | K14: 0 | L14: 211 | N14: 222 | O14: =COUNTIF($L$7:$L$500,N14) -> 23 | P14: =O14/$Q$4 -> 0.1263736264 | Q14: =IF(P14=0,0,(P14*((LOG(P14))/LOG(2)))) -> -0.3771283062 | T14: =N14 -> 222 | U14: =COUNTIF(L7:L36,T14) -> 6 | V14: =U14/(W4-U9) -> 0.2 | W14: =IF(V14=0,0,(V14*((LOG(V14))/LOG(2)))) -> -0.464385619 | Y14: =N14 -> 222 | Z14: =COUNTIF(L37:L67,Y14) -> 3 | AA14: =Z14/(AB4-Z9) -> 0.1 | AB14: =IF(AA14=0,0,(AA14*((LOG(AA14))/LOG(2)))) -> -0.3321928095 | AD14: =N14 -> 222 | AE14: =COUNTIF(L68:L97,AD14) -> 3 | AF14: =AE14/(AG4-AE9) -> 0.1 | AG14: =IF(AF14=0,0,(AF14*((LOG(AF14))/LOG(2)))) -> -0.3321928095 | AI14: =N14 -> 222 | AJ14: =COUNTIF(L98:L127,AI14) -> 3 | AK14: =AJ14/(AL4-AJ9) -> 0.1034482759 | AL14: =IF(AK14=0,0,(AK14*((LOG(AK14))/LOG(2)))) -> -0.3385881201 | AN14: =N14 -> 222 | AO14: =COUNTIF(L128:L158,AN14) -> 6 | AP14: =AO14/(AQ4-AO9) -> 0.2 | AQ14: =IF(AP14=0,0,(AP14*((LOG(AP14))/LOG(2)))) -> -0.464385619 | AS14: =N14 -> 222 | AT14: =COUNTIF(L159:L188,AS14) -> 2 | AU14: =AT14/(AV4-AT9) -> 0.07407407407 | AV14: =IF(AU14=0,0,(AU14*((LOG(AU14))/LOG(2)))) -> -0.278139815
A15: 22 | B15: 1119 | C15: 23 | D15: 1125 | E15: 24 | F15: 1131 | K15: 0 | L15: 222 | P15: =SUM(P7:P14) -> 1 | Q15: =-SUM(Q7:Q14) -> 2.388594793 | V15: =SUM(V7:V14) -> 1 | W15: =-SUM(W7:W14) -> 2.497534764 | AA15: =SUM(AA7:AA14) -> 1 | AB15: =-SUM(AB7:AB14) -> 2.172828486 | AF15: =SUM(AF7:AF14) -> 1 | AG15: =-SUM(AG7:AG14) -> 1.826678197 | AK15: =SUM(AK7:AK14) -> 1 | AL15: =-SUM(AL7:AL14) -> 2.318369254 | AP15: =SUM(AP7:AP14) -> 1 | AQ15: =-SUM(AQ7:AQ14) -> 2.096276919 | AU15: =SUM(AU7:AU14) -> 1 | AV15: =-SUM(AV7:AV14) -> 1.964592675
A16: 11 | B16: 1237 | C16: 12 | D16: 1244 | E16: 13 | F16: 1252 | K16: 0 | L16: 111 | P16: U= | Q16: =Q15/(LOG(Q4)/LOG(2)) -> 0.3181486584 | V16: U1= | W16: =W15/(LOG(W4)/LOG(2)) -> 0.5089852149 | AA16: U2= | AB16: =AB15/(LOG(AB4)/LOG(2)) -> 0.4385834451 | AF16: U3= | AG16: =AG15/(LOG(AG4)/LOG(2)) -> 0.3722679692 | AK16: U4= | AL16: =AL15/(LOG(AL4)/LOG(2)) -> 0.4724721713 | AP16: U5= | AQ16: =AQ15/(LOG(AQ4)/LOG(2)) -> 0.4231315812 | AU16: U6= | AV16: =AV15/(LOG(AV4)/LOG(2)) -> 0.4003742568
A17: 11 | B17: 1351 | C17: 21 | D17: 1359 | E17: 22 | F17: 1367 | K17: 0 | L17: 122
A18: 11 | B18: 1468 | C18: 21 | D18: 1477 | E18: 22 | F18: 1483 | K18: 0 | L18: 122
A19: 22 | B19: 1631 | C19: 14 | D19: 1643 | E19: 24 | F19: 1652 | K19: 0 | L19: 212 | N19: Total Target Seq
A20: 22 | B20: 1748 | C20: 23 | D20: 1755 | E20: 13 | F20: 1771 | K20: 0 | L20: 221 | N20: =COUNTIF(L7:L188,G3) -> 6 | P20: 30 | Q20: 31 | R20: 30 | S20: 30 | T20: 31 | U20: 30
A21: 22 | B21: 1870 | C21: 23 | D21: 1877 | E21: 13 | F21: 1891 | K21: 0 | L21: 221 | P21: % of reinforcement given in 6 equal intervals based on number of trials
A22: 22 | B22: 1991 | C22: 23 | D22: 1997 | E22: 24 | F22: 2003 | K22: 0 | L22: 222 | P22: %_1 | Q22: %_2 | R22: %_3 | S22: %_4 | T22: %_5 | U22: %_6
A23: 22 | B23: 2102 | C23: 23 | D23: 2115 | E23: 24 | F23: 2121 | K23: 0 | L23: 222 | O23: target sequence | P23: =$G$3 -> 121 | Q23: =$G$3 -> 121 | R23: =$G$3 -> 121 | S23: =$G$3 -> 121 | T23: =$G$3 -> 121 | U23: =$G$3 -> 121
A24: 22 | B24: 2223 | C24: 14 | D24: 2237 | E24: 13 | F24: 2244 | K24: 0 | L24: 211 | O24: total reinforcement | P24: =U9 -> 0 | Q24: =Z9 -> 1 | R24: =AE9 -> 0 | S24: =AJ9 -> 1 | T24: =AO9 -> 1 | U24: =AT9 -> 3
A25: 22 | B25: 2340 | C25: 23 | D25: 2347 | E25: 13 | F25: 2360 | K25: 0 | L25: 221 | O25: % target
A26: 11 | B26: 2469 | C26: 21 | D26: 2477 | E26: 22 | F26: 2485 | K26: 0 | L26: 122 | O26: CCRF
A27: 22 | B27: 2582 | C27: 14 | D27: 2595 | E27: 13 | F27: 2599 | K27: 0 | L27: 211 | O27: % CCRf
A28: 11 | B28: 2699 | C28: 12 | D28: 2705 | E28: 13 | F28: 2713 | K28: 0 | L28: 111 | O28: average response rate | P28: =F36/P20 -> 122.5 | Q28: =(F67-F36)/Q20 -> 128.9354839 | R28: =(F97-F67)/R20 -> 130.4 | S28: =(F127-F97)/S20 -> 147.6666667 | T28: =(F158-F127)/T20 -> 126.3870968 | U28: =(F188-F158)/U20 -> 132.0333333
A29: 22 | B29: 2814 | C29: 14 | D29: 2830 | E29: 13 | F29: 2841 | K29: 0 | L29: 211
A30: 22 | B30: 2946 | C30: 23 | D30: 2954 | E30: 24 | F30: 2961 | K30: 0 | L30: 222
A31: 22 | B31: 3062 | C31: 14 | D31: 3075 | E31: 13 | F31: 3082 | K31: 0 | L31: 211
A32: 11 | B32: 3179 | C32: 12 | D32: 3184 | E32: 13 | F32: 3191 | K32: 0 | L32: 111
A33: 11 | B33: 3297 | C33: 12 | D33: 3302 | E33: 13 | F33: 3310 | K33: 0 | L33: 111
A34: 22 | B34: 3414 | C34: 23 | D34: 3422 | E34: 13 | F34: 3439 | K34: 0 | L34: 221
A35: 11 | B35: 3546 | C35: 12 | D35: 3551 | E35: 13 | F35: 3557 | K35: 0 | L35: 111
A36: 22 | B36: 3661 | C36: 23 | D36: 3668 | E36: 24 | F36: 3675 | K36: 0 | L36: 222
A37: 22 | B37: 3773 | C37: 23 | D37: 3779 | E37: 24 | F37: 3784 | K37: 0 | L37: 222
A38: 22 | B38: 3889 | C38: 14 | D38: 3902 | E38: 13 | F38: 3908 | K38: 0 | L38: 211
A39: 22 | B39: 4012 | C39: 23 | D39: 4017 | E39: 13 | F39: 4030 | K39: 0 | L39: 221
A40: 22 | B40: 4131 | C40: 14 | D40: 4143 | E40: 13 | F40: 4150 | K40: 0 | L40: 211
A41: 11 | B41: 4258 | C41: 12 | D41: 4264 | E41: 13 | F41: 4270 | K41: 0 | L41: 111
A42: 11 | B42: 4393 | C42: 12 | D42: 4399 | E42: 13 | F42: 4404 | K42: 0 | L42: 111
A43: 22 | B43: 4576 | C43: 14 | D43: 4588 | E43: 13 | F43: 4596 | K43: 0 | L43: 211
A44: 22 | B44: 4691 | C44: 23 | D44: 4696 | E44: 13 | F44: 4709 | K44: 0 | L44: 221
A45: 22 | B45: 4806 | C45: 23 | D45: 4808 | E45: 13 | F45: 4819 | K45: 0 | L45: 221
A46: 11 | B46: 4951 | C46: 12 | D46: 4957 | E46: 13 | F46: 4963 | K46: 0 | L46: 111
A47: 22 | B47: 5060 | C47: 14 | D47: 5071 | E47: 13 | F47: 5077 | K47: 0 | L47: 211
A48: 11 | B48: 5175 | C48: 21 | D48: 5191 | E48: 22 | F48: 5197 | K48: 0 | L48: 122
A49: 22 | B49: 5290 | C49: 14 | D49: 5295 | E49: 24 | F49: 5303 | K49: 0 | L49: 212
A50: 22 | B50: 5404 | C50: 23 | D50: 5409 | E50: 24 | F50: 5414 | K50: 0 | L50: 222
A51: 22 | B51: 5514 | C51: 14 | D51: 5530 | E51: 13 | F51: 5536 | K51: 0 | L51: 211
A52: 11 | B52: 5634 | C52: 21 | D52: 5643 | E52: 22 | F52: 5648 | K52: 0 | L52: 122
A53: 22 | B53: 5740 | C53: 14 | D53: 5748 | E53: 13 | F53: 5754 | K53: 0 | L53: 211
A54: 11 | B54: 5856 | C54: 12 | D54: 5861 | E54: 13 | F54: 5867 | K54: 0 | L54: 111
A55: 11 | B55: 5962 | C55: 21 | D55: 5971 | E55: 22 | F55: 5977 | K55: 0 | L55: 122
A56: 22 | B56: 6133 | C56: 14 | D56: 6144 | E56: 13 | F56: 6151 | K56: 0 | L56: 211
A57: 22 | B57: 6253 | C57: 14 | D57: 6265 | E57: 13 | F57: 6271 | K57: 0 | L57: 211
A58: 11 | B58: 6379 | C58: 12 | D58: 6385 | E58: 13 | F58: 6392 | K58: 0 | L58: 111
A59: 22 | B59: 6502 | C59: 23 | D59: 6509 | E59: 24 | F59: 6514 | K59: 0 | L59: 222
A60: 11 | B60: 6615 | C60: 12 | D60: 6621 | E60: 13 | F60: 6627 | K60: 0 | L60: 111
A61: 22 | B61: 6724 | C61: 14 | D61: 6737 | E61: 13 | F61: 6743 | K61: 0 | L61: 211
A62: 11 | B62: 6876 | C62: 12 | D62: 6882 | E62: 13 | F62: 6889 | K62: 0 | L62: 111
A63: 22 | B63: 6990 | C63: 14 | D63: 7002 | E63: 13 | F63: 7008 | K63: 0 | L63: 211
A64: 22 | B64: 7131 | C64: 14 | D64: 7142 | E64: 13 | F64: 7154 | K64: 0 | L64: 211
A65: 11 | B65: 7278 | C65: 21 | D65: 7285 | E65: 11 | F65: 7293 | K65: 0 | L65: 121
A66: 22 | B66: 7531 | C66: 14 | D66: 7542 | E66: 13 | F66: 7550 | K66: 0 | L66: 211
A67: 22 | B67: 7655 | C67: 14 | D67: 7666 | E67: 13 | F67: 7672 | K67: 0 | L67: 211
A68: 22 | B68: 7773 | C68: 14 | D68: 7788 | E68: 13 | F68: 7794 | K68: 0 | L68: 211
A69: 22 | B69: 7893 | C69: 14 | D69: 7909 | E69: 13 | F69: 7916 | K69: 0 | L69: 211
A70: 22 | B70: 8021 | C70: 14 | D70: 8033 | E70: 13 | F70: 8041 | K70: 0 | L70: 211
A71: 22 | B71: 8150 | C71: 14 | D71: 8165 | E71: 13 | F71: 8171 | K71: 0 | L71: 211
A72: 22 | B72: 8269 | C72: 14 | D72: 8284 | E72: 13 | F72: 8290 | K72: 0 | L72: 211
A73: 11 | B73: 8396 | C73: 21 | D73: 8403 | E73: 22 | F73: 8409 | K73: 0 | L73: 122
A74: 22 | B74: 8518 | C74: 14 | D74: 8533 | E74: 13 | F74: 8538 | K74: 0 | L74: 211
A75: 11 | B75: 8644 | C75: 21 | D75: 8652 | E75: 22 | F75: 8661 | K75: 0 | L75: 122
A76: 22 | B76: 8765 | C76: 23 | D76: 8769 | E76: 24 | F76: 8774 | K76: 0 | L76: 222
A77: 11 | B77: 8879 | C77: 12 | D77: 8885 | E77: 13 | F77: 8893 | K77: 0 | L77: 111
A78: 22 | B78: 8998 | C78: 14 | D78: 9016 | E78: 13 | F78: 9021 | K78: 0 | L78: 211
A79: 22 | B79: 9124 | C79: 14 | D79: 9142 | E79: 13 | F79: 9147 | K79: 0 | L79: 211
A80: 11 | B80: 9253 | C80: 12 | D80: 9264 | E80: 13 | F80: 9272 | K80: 0 | L80: 111
A81: 22 | B81: 9379 | C81: 14 | D81: 9395 | E81: 13 | F81: 9401 | K81: 0 | L81: 211
A82: 22 | B82: 9510 | C82: 14 | D82: 9523 | E82: 13 | F82: 9529 | K82: 0 | L82: 211
A83: 11 | B83: 9661 | C83: 12 | D83: 9668 | E83: 13 | F83: 9675 | K83: 0 | L83: 111
A84: 11 | B84: 9781 | C84: 12 | D84: 9787 | E84: 13 | F84: 9794 | K84: 0 | L84: 111
A85: 22 | B85: 9921 | C85: 14 | D85: 9933 | E85: 13 | F85: 9940 | K85: 0 | L85: 211
A86: 22 | B86: 10051 | C86: 14 | D86: 10065 | E86: 13 | F86: 10071 | K86: 0 | L86: 211
A87: 22 | B87: 10173 | C87: 14 | D87: 10181 | E87: 13 | F87: 10189 | K87: 0 | L87: 211
A88: 22 | B88: 10286 | C88: 23 | D88: 10290 | E88: 13 | F88: 10303 | K88: 0 | L88: 221
A89: 11 | B89: 10454 | C89: 12 | D89: 10460 | E89: 13 | F89: 10466 | K89: 0 | L89: 111
A90: 22 | B90: 10629 | C90: 23 | D90: 10635 | E90: 13 | F90: 10651 | K90: 0 | L90: 221
A91: 22 | B91: 10758 | C91: 14 | D91: 10772 | E91: 13 | F91: 10780 | K91: 0 | L91: 211
A92: 11 | B92: 10887 | C92: 12 | D92: 10893 | E92: 13 | F92: 10901 | K92: 0 | L92: 111
A93: 22 | B93: 11008 | C93: 23 | D93: 11013 | E93: 24 | F93: 11020 | K93: 0 | L93: 222
A94: 22 | B94: 11126 | C94: 23 | D94: 11136 | E94: 24 | F94: 11143 | K94: 0 | L94: 222
A95: 11 | B95: 11269 | C95: 12 | D95: 11290 | E95: 13 | F95: 11297 | K95: 0 | L95: 111
A96: 22 | B96: 11409 | C96: 14 | D96: 11421 | E96: 13 | F96: 11427 | K96: 0 | L96: 211
A97: 22 | B97: 11557 | C97: 14 | D97: 11577 | E97: 13 | F97: 11584 | K97: 0 | L97: 211
A98: 22 | B98: 11686 | C98: 23 | D98: 11689 | E98: 13 | F98: 11704 | K98: 0 | L98: 221
A99: 11 | B99: 11830 | C99: 12 | D99: 11833 | E99: 13 | F99: 11839 | K99: 0 | L99: 111
A100: 11 | B100: 11939 | C100: 12 | D100: 11943 | E100: 13 | F100: 11950 | K100: 0 | L100: 111
A101: 11 | B101: 12226 | C101: 12 | D101: 12233 | E101: 13 | F101: 12241 | K101: 0 | L101: 111
A102: 11 | B102: 12338 | C102: 21 | D102: 12352 | E102: 22 | F102: 12354 | K102: 0 | L102: 122
A103: 11 | B103: 12632 | C103: 12 | D103: 12642 | E103: 13 | F103: 12650 | K103: 0 | L103: 111
A104: 11 | B104: 12752 | C104: 21 | D104: 12759 | E104: 11 | F104: 12772 | K104: 0 | L104: 121
A105: 22 | B105: 12978 | C105: 14 | D105: 12990 | E105: 13 | F105: 12998 | K105: 0 | L105: 211
A106: 22 | B106: 13098 | C106: 23 | D106: 13105 | E106: 13 | F106: 13119 | K106: 0 | L106: 221
A107: 22 | B107: 13316 | C107: 14 | D107: 13328 | E107: 13 | F107: 13343 | K107: 0 | L107: 211
A108: 22 | B108: 13449 | C108: 23 | D108: 13455 | E108: 24 | F108: 13461 | K108: 0 | L108: 222
A109: 22 | B109: 13560 | C109: 23 | D109: 13567 | E109: 13 | F109: 13580 | K109: 0 | L109: 221
A110: 22 | B110: 13686 | C110: 23 | D110: 13691 | E110: 13 | F110: 13706 | K110: 0 | L110: 221
A111: 11 | B111: 13815 | C111: 21 | D111: 13827 | E111: 22 | F111: 13833 | K111: 0 | L111: 122
A112: 11 | B112: 13933 | C112: 12 | D112: 13941 | E112: 13 | F112: 13949 | K112: 0 | L112: 111
A113: 22 | B113: 14047 | C113: 14 | D113: 14061 | E113: 13 | F113: 14069 | K113: 0 | L113: 211
A114: 22 | B114: 14170 | C114: 23 | D114: 14176 | E114: 24 | F114: 14182 | K114: 0 | L114: 222
A115: 11 | B115: 14293 | C115: 12 | D115: 14298 | E115: 13 | F115: 14306 | K115: 0 | L115: 111
A116: 22 | B116: 14398 | C116: 23 | D116: 14411 | E116: 13 | F116: 14425 | K116: 0 | L116: 221
A117: 11 | B117: 14531 | C117: 12 | D117: 14539 | E117: 13 | F117: 14547 | K117: 0 | L117: 111
A118: 22 | B118: 14652 | C118: 14 | D118: 14667 | E118: 13 | F118: 14674 | K118: 0 | L118: 211
A119: 22 | B119: 14775 | C119: 23 | D119: 14781 | E119: 24 | F119: 14783 | K119: 0 | L119: 222
A120: 11 | B120: 14877 | C120: 12 | D120: 14883 | E120: 13 | F120: 14890 | K120: 0 | L120: 111
A121: 22 | B121: 15095 | C121: 14 | D121: 15120 | E121: 24 | F121: 15131 | K121: 0 | L121: 212
A122: 22 | B122: 15236 | C122: 14 | D122: 15250 | E122: 13 | F122: 15258 | K122: 0 | L122: 211
A123: 22 | B123: 15373 | C123: 14 | D123: 15388 | E123: 13 | F123: 15396 | K123: 0 | L123: 211
A124: 22 | B124: 15497 | C124: 14 | D124: 15509 | E124: 13 | F124: 15517 | K124: 0 | L124: 211
A125: 22 | B125: 15631 | C125: 14 | D125: 15645 | E125: 13 | F125: 15652 | K125: 0 | L125: 211
A126: 11 | B126: 15753 | C126: 21 | D126: 15762 | E126: 22 | F126: 15773 | K126: 0 | L126: 122
A127: 22 | B127: 15991 | C127: 14 | D127: 16003 | E127: 13 | F127: 16014 | K127: 0 | L127: 211
A128: 22 | B128: 16110 | C128: 23 | D128: 16116 | E128: 24 | F128: 16119 | K128: 0 | L128: 222
A129: 22 | B129: 16214 | C129: 23 | D129: 16222 | E129: 24 | F129: 16224 | K129: 0 | L129: 222
A130: 22 | B130: 16329 | C130: 23 | D130: 16335 | E130: 24 | F130: 16341 | K130: 0 | L130: 222
A131: 11 | B131: 16435 | C131: 21 | D131: 16443 | E131: 22 | F131: 16454 | K131: 0 | L131: 122
A132: 22 | B132: 16552 | C132: 23 | D132: 16559 | E132: 24 | F132: 16566 | K132: 0 | L132: 222
A133: 22 | B133: 16665 | C133: 23 | D133: 16676 | E133: 13 | F133: 16689 | K133: 0 | L133: 221
A134: 11 | B134: 16789 | C134: 12 | D134: 16795 | E134: 13 | F134: 16802 | K134: 0 | L134: 111
A135: 11 | B135: 16917 | C135: 12 | D135: 16923 | E135: 13 | F135: 16930 | K135: 0 | L135: 111
A136: 22 | B136: 17030 | C136: 14 | D136: 17045 | E136: 13 | F136: 17056 | K136: 0 | L136: 211
A137: 22 | B137: 17155 | C137: 23 | D137: 17164 | E137: 13 | F137: 17181 | K137: 0 | L137: 221
A138: 22 | B138: 17276 | C138: 14 | D138: 17291 | E138: 13 | F138: 17297 | K138: 0 | L138: 211
A139: 22 | B139: 17395 | C139: 23 | D139: 17407 | E139: 13 | F139: 17420 | K139: 0 | L139: 221
A140: 22 | B140: 17514 | C140: 23 | D140: 17528 | E140: 13 | F140: 17543 | K140: 0 | L140: 221
A141: 22 | B141: 17642 | C141: 23 | D141: 17648 | E141: 24 | F141: 17655 | K141: 0 | L141: 222
A142: 22 | B142: 17756 | C142: 14 | D142: 17766 | E142: 13 | F142: 17772 | K142: 0 | L142: 211
A143: 22 | B143: 17875 | C143: 23 | D143: 17880 | E143: 24 | F143: 17885 | K143: 0 | L143: 222
A144: 11 | B144: 17985 | C144: 21 | D144: 17994 | E144: 11 | F144: 18012 | K144: 0 | L144: 121
A145: 22 | B145: 18285 | C145: 14 | D145: 18297 | E145: 13 | F145: 18302 | K145: 0 | L145: 211
A146: 22 | B146: 18404 | C146: 14 | D146: 18418 | E146: 13 | F146: 18425 | K146: 0 | L146: 211
A147: 22 | B147: 18526 | C147: 14 | D147: 18539 | E147: 13 | F147: 18546 | K147: 0 | L147: 211
A148: 22 | B148: 18650 | C148: 14 | D148: 18667 | E148: 13 | F148: 18683 | K148: 0 | L148: 211
A149: 22 | B149: 18791 | C149: 14 | D149: 18803 | E149: 13 | F149: 18811 | K149: 0 | L149: 211
A150: 22 | B150: 18923 | C150: 23 | D150: 18927 | E150: 13 | F150: 18941 | K150: 0 | L150: 221
A151: 22 | B151: 19040 | C151: 14 | D151: 19059 | E151: 13 | F151: 19066 | K151: 0 | L151: 211
A152: 22 | B152: 19168 | C152: 23 | D152: 19175 | E152: 13 | F152: 19190 | K152: 0 | L152: 221
A153: 22 | B153: 19286 | C153: 23 | D153: 19300 | E153: 13 | F153: 19315 | K153: 0 | L153: 221
A154: 22 | B154: 19421 | C154: 14 | D154: 19433 | E154: 13 | F154: 19440 | K154: 0 | L154: 211
A155: 22 | B155: 19533 | C155: 14 | D155: 19546 | E155: 13 | F155: 19558 | K155: 0 | L155: 211
A156: 11 | B156: 19657 | C156: 21 | D156: 19664 | E156: 22 | F156: 19673 | K156: 0 | L156: 122
A157: 22 | B157: 19780 | C157: 23 | D157: 19785 | E157: 13 | F157: 19807 | K157: 0 | L157: 221
A158: 11 | B158: 19917 | C158: 12 | D158: 19924 | E158: 13 | F158: 19932 | K158: 0 | L158: 111
A159: 22 | B159: 20030 | C159: 23 | D159: 20037 | E159: 13 | F159: 20049 | K159: 0 | L159: 221
A160: 11 | B160: 20149 | C160: 12 | D160: 20157 | E160: 13 | F160: 20160 | K160: 0 | L160: 111
A161: 11 | B161: 20263 | C161: 12 | D161: 20269 | E161: 13 | F161: 20277 | K161: 0 | L161: 111
A162: 22 | B162: 20389 | C162: 14 | D162: 20401 | E162: 13 | F162: 20409 | K162: 0 | L162: 211
A163: 22 | B163: 20510 | C163: 23 | D163: 20515 | E163: 24 | F163: 20522 | K163: 0 | L163: 222
A164: 22 | B164: 20620 | C164: 14 | D164: 20636 | E164: 13 | F164: 20644 | K164: 0 | L164: 211
A165: 11 | B165: 20759 | C165: 12 | D165: 20779 | E165: 13 | F165: 20784 | K165: 0 | L165: 111
A166: 22 | B166: 20879 | C166: 14 | D166: 20889 | E166: 13 | F166: 20894 | K166: 0 | L166: 211
A167: 22 | B167: 20989 | C167: 23 | D167: 20999 | E167: 24 | F167: 21010 | K167: 0 | L167: 222
A168: 22 | B168: 21113 | C168: 14 | D168: 21130 | E168: 13 | F168: 21137 | K168: 0 | L168: 211
A169: 22 | B169: 21245 | C169: 14 | D169: 21262 | E169: 13 | F169: 21266 | K169: 0 | L169: 211
A170: 22 | B170: 21380 | C170: 14 | D170: 21392 | E170: 13 | F170: 21397 | K170: 0 | L170: 211
A171: 11 | B171: 21499 | C171: 21 | D171: 21506 | E171: 11 | F171: 21517 | K171: 0 | L171: 121
A172: 11 | B172: 21767 | C172: 12 | D172: 21773 | E172: 13 | F172: 21780 | K172: 0 | L172: 111
A173: 11 | B173: 21882 | C173: 21 | D173: 21890 | E173: 11 | F173: 21906 | K173: 0 | L173: 121
A174: 11 | B174: 22232 | C174: 21 | D174: 22242 | E174: 22 | F174: 22249 | K174: 0 | L174: 122
A175: 11 | B175: 22346 | C175: 12 | D175: 22354 | E175: 13 | F175: 22361 | K175: 0 | L175: 111
A176: 22 | B176: 22460 | C176: 14 | D176: 22475 | E176: 13 | F176: 22482 | K176: 0 | L176: 211
A177: 11 | B177: 22579 | C177: 21 | D177: 22587 | E177: 22 | F177: 22594 | K177: 0 | L177: 122
A178: 11 | B178: 22692 | C178: 12 | D178: 22697 | E178: 13 | F178: 22704 | K178: 0 | L178: 111
A179: 22 | B179: 22796 | C179: 14 | D179: 22808 | E179: 13 | F179: 22814 | K179: 0 | L179: 211
A180: 11 | B180: 22912 | C180: 12 | D180: 22922 | E180: 13 | F180: 22929 | K180: 0 | L180: 111
A181: 22 | B181: 23023 | C181: 14 | D181: 23033 | E181: 13 | F181: 23039 | K181: 0 | L181: 211
A182: 11 | B182: 23140 | C182: 12 | D182: 23149 | E182: 13 | F182: 23157 | K182: 0 | L182: 111
A183: 22 | B183: 23261 | C183: 23 | D183: 23270 | E183: 13 | F183: 23286 | K183: 0 | L183: 221
A184: 11 | B184: 23387 | C184: 12 | D184: 23394 | E184: 13 | F184: 23401 | K184: 0 | L184: 111
A185: 11 | B185: 23510 | C185: 12 | D185: 23529 | E185: 13 | F185: 23536 | K185: 0 | L185: 111
A186: 11 | B186: 23641 | C186: 12 | D186: 23648 | E186: 13 | F186: 23656 | K186: 0 | L186: 111
A187: 22 | B187: 23749 | C187: 23 | D187: 23752 | E187: 13 | F187: 23763 | K187: 0 | L187: 221
A188: 11 | B188: 23874 | C188: 21 | D188: 23881 | E188: 11 | F188: 23893 | K188: 0 | L188: 121

Sheet !M223A3D.UST
A1: Report for:!M223A3D.UST
A2: Date: | B2: <date>
A3: Hen: | B3: <hen> | F3: Correct Sequence | G3: =Start!J2 -> 121 | P3: Total Sequences in Data | Q3: =4994-COUNTBLANK(L7:L5000) -> 178 | V3: Total Sequences in Block Data | W3: =COUNTA(L7:L36) -> 30 | AA3: Total Sequences in Block Data | AB3: =COUNTA(L37:L65) -> 29 | AF3: Total Sequences in Block Data | AG3: =COUNTA(L66:L95) -> 30 | AK3: Total Sequences in Block Data | AL3: =COUNTA(L96:L125) -> 30 | AP3: Total Sequences in Block Data | AQ3: =COUNTA(L126:L154) -> 29 | AU3: Total Sequences in Block Data | AV3: =COUNTA(L155:L184) -> 30
P4: Total Sequences in Summary | Q4: =SUM(O7:O14) -> 177 | V4: Total Sequences in Block Summary | W4: =SUM(U7:U14) -> 30 | AA4: Total Sequences in Block Summary | AB4: =SUM(Z7:Z14) -> 29 | AF4: Total Sequences in Block Summary | AG4: =SUM(AE7:AE14) -> 30 | AK4: Total Sequences in Block Summary | AL4: =SUM(AJ7:AJ14) -> 30 | AP4: Total Sequences in Block Summary | AQ4: =SUM(AO7:AO14) -> 29 | AU4: Total Sequences in Block Summary | AV4: =SUM(AT7:AT14) -> 29
T5: Block 1 | Y5: Block 2 | AD5: Block 3 | AI5: Block 4 | AN5: Block 5 | AS5: Block 6
A6: Sequence Component 1 | B6: Time 1 | C6: Sequence Component 2 | D6: Time 2 | E6: Sequence Component 3 | F6: Time 3 | G6: Sequence Component 4 | H6: Time 4 | I6: Sequence Component 5 | J6: Time 5 | K6: Correct? 0=No 1=Yes | L6: Sequence | N6: Frequency | P6: Relative Frequency | Q6: Variability | T6: Frequency | V6: Relative Frequency | W6: Variability | Y6: Frequency | AA6: Relative Frequency | AB6: Variability | AD6: Frequency | AF6: Relative Frequency | AG6: Variability | AI6: Frequency | AK6: Relative Frequency | AL6: Variability | AN6: Frequency | AP6: Relative Frequency | AQ6: Variability | AS6: Frequency | AU6: Relative Frequency | AV6: Variability
A7: 11 | B7: 24 | C7: 12 | D7: 42 | E7: 13 | F7: 50 | K7: 0 | L7: 111 | N7: 111 | O7: =COUNTIF($L$7:$L$500,N7) -> 28 | P7: =O7/$Q$4 -> 0.1581920904 | Q7: =IF(P7=0,0,(P7*((LOG(P7))/LOG(2)))) -> -0.4208306078 | T7: =N7 -> 111 | U7: =COUNTIF(L7:L36,T7) -> 8 | V7: =U7/(W4-U9) -> 0.2666666667 | W7: =IF(V7=0,0,(V7*((LOG(V7))/LOG(2)))) -> -0.5085041588 | Y7: =N7 -> 111 | Z7: =COUNTIF(L37:L65,Y7) -> 3 | AA7: =Z7/(AB4-Z9) -> 0.1071428571 | AB7: =IF(AA7=0,0,(AA7*((LOG(AA7))/LOG(2)))) -> -0.3452563309 | AD7: =N7 -> 111 | AE7: =COUNTIF(L66:L95,AD7) -> 5 | AF7: =AE7/(AG4-AE9) -> 0.1666666667 | AG7: =IF(AF7=0,0,(AF7*((LOG(AF7))/LOG(2)))) -> -0.4308270835 | AI7: =N7 -> 111 | AJ7: =COUNTIF(L96:L125,AI7) -> 6 | AK7: =AJ7/(AL4-AJ9) -> 0.2068965517 | AL7: =IF(AK7=0,0,(AK7*((LOG(AK7))/LOG(2)))) -> -0.4702796885 | AN7: =N7 -> 111 | AO7: =COUNTIF(L126:L154,AN7) -> 5 | AP7: =AO7/(AQ4-AO9) -> 0.1785714286 | AQ7: =IF(AP7=0,0,(AP7*((LOG(AP7))/LOG(2)))) -> -0.4438262191 | AS7: =N7 -> 111 | AT7: =COUNTIF(L155:L184,AS7) -> 1 | AU7: =AT7/(AV4-AT9) -> 0.03571428571 | AV7: =IF(AU7=0,0,(AU7*((LOG(AU7))/LOG(2)))) -> -0.1716912472
A8: 22 | B8: 152 | C8: 23 | D8: 158 | E8: 13 | F8: 172 | K8: 0 | L8: 221 | N8: 112 | O8: =COUNTIF($L$7:$L$500,N8) -> 3 | P8: =O8/$Q$4 -> 0.01694915254 | Q8: =IF(P8=0,0,(P8*((LOG(P8))/LOG(2)))) -> -0.0997058144 | T8: =N8 -> 112 | U8: =COUNTIF(L7:L36,T8) -> 0 | V8: =U8/(W4-U9) -> 0 | W8: =IF(V8=0,0,(V8*((LOG(V8))/LOG(2)))) -> 0 | Y8: =N8 -> 112 | Z8: =COUNTIF(L37:L65,Y8) -> 0 | AA8: =Z8/(AB4-Z9) -> 0 | AB8: =IF(AA8=0,0,(AA8*((LOG(AA8))/LOG(2)))) -> 0 | AD8: =N8 -> 112 | AE8: =COUNTIF(L66:L95,AD8) -> 1 | AF8: =AE8/(AG4-AE9) -> 0.03333333333 | AG8: =IF(AF8=0,0,(AF8*((LOG(AF8))/LOG(2)))) -> -0.1635630199 | AI8: =N8 -> 112 | AJ8: =COUNTIF(L96:L125,AI8) -> 0 | AK8: =AJ8/(AL4-AJ9) -> 0 | AL8: =IF(AK8=0,0,(AK8*((LOG(AK8))/LOG(2)))) -> 0 | AN8: =N8 -> 112 | AO8: =COUNTIF(L126:L154,AN8) -> 1 | AP8: =AO8/(AQ4-AO9) -> 0.03571428571 | AQ8: =IF(AP8=0,0,(AP8*((LOG(AP8))/LOG(2)))) -> -0.1716912472 | AS8: =N8 -> 112 | AT8: =COUNTIF(L155:L184,AS8) -> 1 | AU8: =AT8/(AV4-AT9) -> 0.03571428571 | AV8: =IF(AU8=0,0,(AU8*((LOG(AU8))/LOG(2)))) -> -0.1716912472
A9: 22 | B9: 267 | C9: 14 | D9: 288 | E9: 13 | F9: 303 | K9: 0 | L9: 211 | N9: 121 | O9: =COUNTIF($L$7:$L$500,N9) -> 4 | P9: =O9/$Q$4 -> 0.02259887006 | Q9: =IF(P9=0,0,(P9*((LOG(P9))/LOG(2)))) -> -0.1235617073 | T9: =N9 -> 121 | U9: =COUNTIF(L7:L36,T9) -> 0 | Y9: =N9 -> 121 | Z9: =COUNTIF(L37:L65,Y9) -> 1 | AD9: =N9 -> 121 | AE9: =COUNTIF(L66:L95,AD9) -> 0 | AI9: =N9 -> 121 | AJ9: =COUNTIF(L96:L125,AI9) -> 1 | AN9: =N9 -> 121 | AO9: =COUNTIF(L126:L154,AN9) -> 1 | AS9: =N9 -> 121 | AT9: =COUNTIF(L155:L184,AS9) -> 1
A10: 22 | B10: 397 | C10: 23 | D10: 403 | E10: 24 | F10: 410 | K10: 0 | L10: 222 | N10: 122 | O10: =COUNTIF($L$7:$L$500,N10) -> 22 | P10: =O10/$Q$4 -> 0.1242937853 | Q10: =IF(P10=0,0,(P10*((LOG(P10))/LOG(2)))) -> -0.3738973248 | T10: =N10 -> 122 | U10: =COUNTIF(L7:L36,T10) -> 4 | V10: =U10/(W4-U9) -> 0.1333333333 | W10: =IF(V10=0,0,(V10*((LOG(V10))/LOG(2)))) -> -0.3875854127 | Y10: =N10 -> 122 | Z10: =COUNTIF(L37:L65,Y10) -> 3 | AA10: =Z10/(AB4-Z9) -> 0.1071428571 | AB10: =IF(AA10=0,0,(AA10*((LOG(AA10))/LOG(2)))) -> -0.3452563309 | AD10: =N10 -> 122 | AE10: =COUNTIF(L66:L95,AD10) -> 2 | AF10: =AE10/(AG4-AE9) -> 0.06666666667 | AG10: =IF(AF10=0,0,(AF10*((LOG(AF10))/LOG(2)))) -> -0.260459373 | AI10: =N10 -> 122 | AJ10: =COUNTIF(L96:L125,AI10) -> 5 | AK10: =AJ10/(AL4-AJ9) -> 0.1724137931 | AL10: =IF(AK10=0,0,(AK10*((LOG(AK10))/LOG(2)))) -> -0.4372505 | AN10: =N10 -> 122 | AO10: =COUNTIF(L126:L154,AN10) -> 3 | AP10: =AO10/(AQ4-AO9) -> 0.1071428571 | AQ10: =IF(AP10=0,0,(AP10*((LOG(AP10))/LOG(2)))) -> -0.3452563309 | AS10: =N10 -> 122 | AT10: =COUNTIF(L155:L184,AS10) -> 5 | AU10: =AT10/(AV4-AT9) -> 0.1785714286 | AV10: =IF(AU10=0,0,(AU10*((LOG(AU10))/LOG(2)))) -> -0.4438262191
A11: 11 | B11: 513 | C11: 21 | D11: 521 | E11: 22 | F11: 532 | K11: 0 | L11: 122 | N11: 211 | O11: =COUNTIF($L$7:$L$500,N11) -> 47 | P11: =O11/$Q$4 -> 0.2655367232 | Q11: =IF(P11=0,0,(P11*((LOG(P11))/LOG(2)))) -> -0.5079761855 | T11: =N11 -> 211 | U11: =COUNTIF(L7:L36,T11) -> 9 | V11: =U11/(W4-U9) -> 0.3 | W11: =IF(V11=0,0,(V11*((LOG(V11))/LOG(2)))) -> -0.5210896782 | Y11: =N11 -> 211 | Z11: =COUNTIF(L37:L65,Y11) -> 11 | AA11: =Z11/(AB4-Z9) -> 0.3928571429 | AB11: =IF(AA11=0,0,(AA11*((LOG(AA11))/LOG(2)))) -> -0.5295412978 | AD11: =N11 -> 211 | AE11: =COUNTIF(L66:L95,AD11) -> 8 | AF11: =AE11/(AG4-AE9) -> 0.2666666667 | AG11: =IF(AF11=0,0,(AF11*((LOG(AF11))/LOG(2)))) -> -0.5085041588 | AI11: =N11 -> 211 | AJ11: =COUNTIF(L96:L125,AI11) -> 5 | AK11: =AJ11/(AL4-AJ9) -> 0.1724137931 | AL11: =IF(AK11=0,0,(AK11*((LOG(AK11))/LOG(2)))) -> -0.4372505 | AN11: =N11 -> 211 | AO11: =COUNTIF(L126:L154,AN11) -> 9 | AP11: =AO11/(AQ4-AO9) -> 0.3214285714 | AQ11: =IF(AP11=0,0,(AP11*((LOG(AP11))/LOG(2)))) -> -0.5263167602 | AS11: =N11 -> 211 | AT11: =COUNTIF(L155:L184,AS11) -> 5 | AU11: =AT11/(AV4-AT9) -> 0.1785714286 | AV11: =IF(AU11=0,0,(AU11*((LOG(AU11))/LOG(2)))) -> -0.4438262191
A12: 22 | B12: 551 | C12: 23 | D12: 561 | E12: 24 | F12: 568 | K12: 0 | L12: 222 | N12: 212 | O12: =COUNTIF($L$7:$L$500,N12) -> 18 | P12: =O12/$Q$4 -> 0.1016949153 | Q12: =IF(P12=0,0,(P12*((LOG(P12))/LOG(2)))) -> -0.3353573439 | T12: =N12 -> 212 | U12: =COUNTIF(L7:L36,T12) -> 0 | V12: =U12/(W4-U9) -> 0 | W12: =IF(V12=0,0,(V12*((LOG(V12))/LOG(2)))) -> 0 | Y12: =N12 -> 212 | Z12: =COUNTIF(L37:L65,Y12) -> 3 | AA12: =Z12/(AB4-Z9) -> 0.1071428571 | AB12: =IF(AA12=0,0,(AA12*((LOG(AA12))/LOG(2)))) -> -0.3452563309 | AD12: =N12 -> 212 | AE12: =COUNTIF(L66:L95,AD12) -> 2 | AF12: =AE12/(AG4-AE9) -> 0.06666666667 | AG12: =IF(AF12=0,0,(AF12*((LOG(AF12))/LOG(2)))) -> -0.260459373 | AI12: =N12 -> 212 | AJ12: =COUNTIF(L96:L125,AI12) -> 2 | AK12: =AJ12/(AL4-AJ9) -> 0.06896551724 | AL12: =IF(AK12=0,0,(AK12*((LOG(AK12))/LOG(2)))) -> -0.2660676548 | AN12: =N12 -> 212 | AO12: =COUNTIF(L126:L154,AN12) -> 3 | AP12: =AO12/(AQ4-AO9) -> 0.1071428571 | AQ12: =IF(AP12=0,0,(AP12*((LOG(AP12))/LOG(2)))) -> -0.3452563309 | AS12: =N12 -> 212 | AT12: =COUNTIF(L155:L184,AS12) -> 8 | AU12: =AT12/(AV4-AT9) -> 0.2857142857 | AV12: =IF(AU12=0,0,(AU12*((LOG(AU12))/LOG(2)))) -> -0.5163871206
A13: 11 | B13: 664 | C13: 12 | D13: 671 | E13: 13 | F13: 679 | K13: 0 | L13: 111 | N13: 221 | O13: =COUNTIF($L$7:$L$500,N13) -> 28 | P13: =O13/$Q$4 -> 0.1581920904 | Q13: =IF(P13=0,0,(P13*((LOG(P13))/LOG(2)))) -> -0.4208306078 | T13: =N13 -> 221 | U13: =COUNTIF(L7:L36,T13) -> 4 | V13: =U13/(W4-U9) -> 0.1333333333 | W13: =IF(V13=0,0,(V13*((LOG(V13))/LOG(2)))) -> -0.3875854127 | Y13: =N13 -> 221 | Z13: =COUNTIF(L37:L65,Y13) -> 6 | AA13: =Z13/(AB4-Z9) -> 0.2142857143 | AB13: =IF(AA13=0,0,(AA13*((LOG(AA13))/LOG(2)))) -> -0.4762269474 | AD13: =N13 -> 221 | AE13: =COUNTIF(L66:L95,AD13) -> 7 | AF13: =AE13/(AG4-AE9) -> 0.2333333333 | AG13: =IF(AF13=0,0,(AF13*((LOG(AF13))/LOG(2)))) -> -0.4898916572 | AI13: =N13 -> 221 | AJ13: =COUNTIF(L96:L125,AI13) -> 4 | AK13: =AJ13/(AL4-AJ9) -> 0.1379310345 | AL13: =IF(AK13=0,0,(AK13*((LOG(AK13))/LOG(2)))) -> -0.3942042752 | AN13: =N13 -> 221 | AO13: =COUNTIF(L126:L154,AN13) -> 5 | AP13: =AO13/(AQ4-AO9) -> 0.1785714286 | AQ13: =IF(AP13=0,0,(AP13*((LOG(AP13))/LOG(2)))) -> -0.4438262191 | AS13: =N13 -> 221 | AT13: =COUNTIF(L155:L184,AS13) -> 2 | AU13: =AT13/(AV4-AT9) -> 0.07142857143 | AV13: =IF(AU13=0,0,(AU13*((LOG(AU13))/LOG(2)))) -> -0.271953923
A14: 11 | B14: 775 | C14: 12 | D14: 780 | E14: 13 | F14: 788 | K14: 0 | L14: 111 | N14: 222 | O14: =COUNTIF($L$7:$L$500,N14) -> 27 | P14: =O14/$Q$4 -> 0.1525423729 | Q14: =IF(P14=0,0,(P14*((LOG(P14))/LOG(2)))) -> -0.413804448 | T14: =N14 -> 222 | U14: =COUNTIF(L7:L36,T14) -> 5 | V14: =U14/(W4-U9) -> 0.1666666667 | W14: =IF(V14=0,0,(V14*((LOG(V14))/LOG(2)))) -> -0.4308270835 | Y14: =N14 -> 222 | Z14: =COUNTIF(L37:L65,Y14) -> 2 | AA14: =Z14/(AB4-Z9) -> 0.07142857143 | AB14: =IF(AA14=0,0,(AA14*((LOG(AA14))/LOG(2)))) -> -0.271953923 | AD14: =N14 -> 222 | AE14: =COUNTIF(L66:L95,AD14) -> 5 | AF14: =AE14/(AG4-AE9) -> 0.1666666667 | AG14: =IF(AF14=0,0,(AF14*((LOG(AF14))/LOG(2)))) -> -0.4308270835 | AI14: =N14 -> 222 | AJ14: =COUNTIF(L96:L125,AI14) -> 7 | AK14: =AJ14/(AL4-AJ9) -> 0.2413793103 | AL14: =IF(AK14=0,0,(AK14*((LOG(AK14))/LOG(2)))) -> -0.4949787073 | AN14: =N14 -> 222 | AO14: =COUNTIF(L126:L154,AN14) -> 2 | AP14: =AO14/(AQ4-AO9) -> 0.07142857143 | AQ14: =IF(AP14=0,0,(AP14*((LOG(AP14))/LOG(2)))) -> -0.271953923 | AS14: =N14 -> 222 | AT14: =COUNTIF(L155:L184,AS14) -> 6 | AU14: =AT14/(AV4-AT9) -> 0.2142857143 | AV14: =IF(AU14=0,0,(AU14*((LOG(AU14))/LOG(2)))) -> -0.4762269474
A15: 11 | B15: 891 | C15: 12 | D15: 898 | E15: 13 | F15: 909 | K15: 0 | L15: 111 | P15: =SUM(P7:P14) -> 1 | Q15: =-SUM(Q7:Q14) -> 2.69596404 | V15: =SUM(V7:V14) -> 1 | W15: =-SUM(W7:W14) -> 2.235591746 | AA15: =SUM(AA7:AA14) -> 1 | AB15: =-SUM(AB7:AB14) -> 2.313491161 | AF15: =SUM(AF7:AF14) -> 1 | AG15: =-SUM(AG7:AG14) -> 2.544531749 | AK15: =SUM(AK7:AK14) -> 1 | AL15: =-SUM(AL7:AL14) -> 2.500031326 | AP15: =SUM(AP7:AP14) -> 1 | AQ15: =-SUM(AQ7:AQ14) -> 2.54812703 | AU15: =SUM(AU7:AU14) -> 1 | AV15: =-SUM(AV7:AV14) -> 2.495602924
A16: 11 | B16: 1006 | C16: 21 | D16: 1012 | E16: 22 | F16: 1025 | K16: 0 | L16: 122 | P16: U= | Q16: =Q15/(LOG(Q4)/LOG(2)) -> 0.3610212164 | V16: U1= | W16: =W15/(LOG(W4)/LOG(2)) -> 0.4556025252 | AA16: U2= | AB16: =AB15/(LOG(AB4)/LOG(2)) -> 0.4762248274 | AF16: U3= | AG16: =AG15/(LOG(AG4)/LOG(2)) -> 0.5185629676 | AK16: U4= | AL16: =AL15/(LOG(AL4)/LOG(2)) -> 0.5094940018 | AP16: U5= | AQ16: =AQ15/(LOG(AQ4)/LOG(2)) -> 0.5245238779 | AU16: U6= | AV16: =AV15/(LOG(AV4)/LOG(2)) -> 0.5137119569
A17: 22 | B17: 1130 | C17: 23 | D17: 1137 | E17: 24 | F17: 1144 | K17: 0 | L17: 222
A18: 11 | B18: 1241 | C18: 21 | D18: 1248 | E18: 22 | F18: 1256 | K18: 0 | L18: 122
A19: 22 | B19: 1355 | C19: 23 | D19: 1360 | E19: 13 | F19: 1371 | K19: 0 | L19: 221 | N19: Total Target Seq
A20: 22 | B20: 1464 | C20: 23 | D20: 1469 | E20: 24 | F20: 1474 | K20: 0 | L20: 222 | N20: =COUNTIF(L7:L184,G3) -> 4 | P20: 30 | Q20: 29 | R20: 30 | S20: 30 | T20: 29 | U20: 30
A21: 22 | B21: 1577 | C21: 14 | D21: 1589 | E21: 13 | F21: 1596 | K21: 0 | L21: 211 | P21: % of reinforcement given in 6 equal intervals based on number of trials
A22: 11 | B22: 1704 | C22: 12 | D22: 1708 | E22: 13 | F22: 1722 | K22: 0 | L22: 111 | P22: %_1 | Q22: %_2 | R22: %_3 | S22: %_4 | T22: %_5 | U22: %_6
A23: 22 | B23: 1820 | C23: 14 | D23: 1832 | E23: 13 | F23: 1839 | K23: 0 | L23: 211 | O23: target sequence | P23: =$G$3 -> 121 | Q23: =$G$3 -> 121 | R23: =$G$3 -> 121 | S23: =$G$3 -> 121 | T23: =$G$3 -> 121 | U23: =$G$3 -> 121
A24: 22 | B24: 1937 | C24: 14 | D24: 1951 | E24: 13 | F24: 1958 | K24: 0 | L24: 211 | O24: total reinforcement | P24: =U9 -> 0 | Q24: =Z9 -> 1 | R24: =AE9 -> 0 | S24: =AJ9 -> 1 | T24: =AO9 -> 1 | U24: =AT9 -> 1
A25: 22 | B25: 2058 | C25: 14 | D25: 2077 | E25: 13 | F25: 2087 | K25: 0 | L25: 211 | O25: % target
A26: 11 | B26: 2194 | C26: 12 | D26: 2200 | E26: 13 | F26: 2207 | K26: 0 | L26: 111 | O26: CCRF
A27: 22 | B27: 2311 | C27: 23 | D27: 2317 | E27: 24 | F27: 2324 | K27: 0 | L27: 222 | O27: % CCRf
A28: 11 | B28: 2433 | C28: 12 | D28: 2439 | E28: 13 | F28: 2448 | K28: 0 | L28: 111 | O28: average response rate | P28: =F36/P20 -> 114.3333333 | Q28: =(F65-F36)/Q20 -> 129.9310345 | R28: =(F95-F65)/R20 -> 136.8 | S28: =(F125-F95)/S20 -> 135.9666667 | T28: =(F154-F125)/T20 -> 146.1034483 | U28: =(F184-F154)/U20 -> -653.9333333
A29: 22 | B29: 2541 | C29: 14 | D29: 2555 | E29: 13 | F29: 2561 | K29: 0 | L29: 211
A30: 22 | B30: 2673 | C30: 14 | D30: 2687 | E30: 13 | F30: 2694 | K30: 0 | L30: 211
A31: 22 | B31: 2791 | C31: 14 | D31: 2803 | E31: 13 | F31: 2811 | K31: 0 | L31: 211
A32: 22 | B32: 2911 | C32: 23 | D32: 2916 | E32: 13 | F32: 2933 | K32: 0 | L32: 221
A33: 22 | B33: 3039 | C33: 23 | D33: 3047 | E33: 13 | F33: 3062 | K33: 0 | L33: 221
A34: 11 | B34: 3172 | C34: 12 | D34: 3177 | E34: 13 | F34: 3184 | K34: 0 | L34: 111
A35: 22 | B35: 3279 | C35: 14 | D35: 3296 | E35: 13 | F35: 3304 | K35: 0 | L35: 211
A36: 11 | B36: 3416 | C36: 21 | D36: 3424 | E36: 22 | F36: 3430 | K36: 0 | L36: 122
A37: 22 | B37: 3527 | C37: 14 | D37: 3540 | E37: 24 | F37: 3549 | K37: 0 | L37: 212
A38: 22 | B38: 3657 | C38: 14 | D38: 3670 | E38: 13 | F38: 3680 | K38: 0 | L38: 211
A39: 11 | B39: 3785 | C39: 12 | D39: 3791 | E39: 13 | F39: 3798 | K39: 0 | L39: 111
A40: 22 | B40: 3900 | C40: 23 | D40: 3906 | E40: 13 | F40: 3927 | K40: 0 | L40: 221
A41: 22 | B41: 4030 | C41: 14 | D41: 4046 | E41: 13 | F41: 4053 | K41: 0 | L41: 211
A42: 11 | B42: 4157 | C42: 21 | D42: 4168 | E42: 22 | F42: 4175 | K42: 0 | L42: 122
A43: 22 | B43: 4270 | C43: 14 | D43: 4283 | E43: 13 | F43: 4295 | K43: 0 | L43: 211
A44: 22 | B44: 4399 | C44: 23 | D44: 4403 | E44: 24 | F44: 4410 | K44: 0 | L44: 222
A45: 11 | B45: 4508 | C45: 21 | D45: 4520 | E45: 22 | F45: 4526 | K45: 0 | L45: 122
A46: 22 | B46: 4627 | C46: 14 | D46: 4641 | E46: 24 | F46: 4652 | K46: 0 | L46: 212
A47: 22 | B47: 4750 | C47: 23 | D47: 4756 | E47: 13 | F47: 4769 | K47: 0 | L47: 221
A48: 11 | B48: 4871 | C48: 12 | D48: 4878 | E48: 13 | F48: 4885 | K48: 0 | L48: 111
A49: 22 | B49: 4984 | C49: 23 | D49: 4997 | E49: 24 | F49: 5003 | K49: 0 | L49: 222
A50: 22 | B50: 5100 | C50: 14 | D50: 5137 | E50: 13 | F50: 5162 | K50: 0 | L50: 211
A51: 22 | B51: 5264 | C51: 14 | D51: 5279 | E51: 13 | F51: 5286 | K51: 0 | L51: 211
A52: 22 | B52: 5385 | C52: 14 | D52: 5397 | E52: 13 | F52: 5403 | K52: 0 | L52: 211
A53: 22 | B53: 5516 | C53: 14 | D53: 5531 | E53: 13 | F53: 5538 | K53: 0 | L53: 211
A54: 22 | B54: 5670 | C54: 14 | D54: 5685 | E54: 13 | F54: 5707 | K54: 0 | L54: 211
A55: 22 | B55: 5813 | C55: 23 | D55: 5821 | E55: 13 | F55: 5839 | K55: 0 | L55: 221
A56: 22 | B56: 5957 | C56: 14 | D56: 5972 | E56: 24 | F56: 5981 | K56: 0 | L56: 212
A57: 22 | B57: 6075 | C57: 23 | D57: 6081 | E57: 13 | F57: 6096 | K57: 0 | L57: 221
A58: 22 | B58: 6262 | C58: 14 | D58: 6273 | E58: 13 | F58: 6280 | K58: 0 | L58: 211
A59: 22 | B59: 6409 | C59: 14 | D59: 6423 | E59: 13 | F59: 6428 | K59: 0 | L59: 211
A60: 22 | B60: 6525 | C60: 23 | D60: 6536 | E60: 13 | F60: 6552 | K60: 0 | L60: 221
A61: 11 | B61: 6675 | C61: 21 | D61: 6685 | E61: 11 | F61: 6697 | K61: 0 | L61: 121
A62: 11 | B62: 6817 | C62: 12 | D62: 6823 | E62: 13 | F62: 6833 | K62: 0 | L62: 111
A63: 11 | B63: 6936 | C63: 21 | D63: 6945 | E63: 22 | F63: 6951 | K63: 0 | L63: 122
A64: 22 | B64: 7052 | C64: 14 | D64: 7069 | E64: 13 | F64: 7077 | K64: 0 | L64: 211
A65: 22 | B65: 7174 | C65: 23 | D65: 7183 | E65: 13 | F65: 7198 | K65: 0 | L65: 221
A66: 11 | B66: 7452 | C66: 12 | D66: 7459 | E66: 13 | F66: 7466 | K66: 0 | L66: 111
A67: 11 | B67: 7593 | C67: 12 | D67: 7601 | E67: 24 | F67: 7621 | K67: 0 | L67: 112
A68: 22 | B68: 7720 | C68: 23 | D68: 7731 | E68: 13 | F68: 7747 | K68: 0 | L68: 221
A69: 11 | B69: 7860 | C69: 12 | D69: 7869 | E69: 13 | F69: 7884 | K69: 0 | L69: 111
A70: 22 | B70: 7977 | C70: 14 | D70: 7989 | E70: 13 | F70: 7994 | K70: 0 | L70: 211
A71: 22 | B71: 8092 | C71: 14 | D71: 8113 | E71: 13 | F71: 8120 | K71: 0 | L71: 211
A72: 22 | B72: 8220 | C72: 23 | D72: 8224 | E72: 13 | F72: 8242 | K72: 0 | L72: 221
A73: 22 | B73: 8346 | C73: 14 | D73: 8364 | E73: 13 | F73: 8373 | K73: 0 | L73: 211
A74: 22 | B74: 8482 | C74: 14 | D74: 8502 | E74: 13 | F74: 8516 | K74: 0 | L74: 211
A75: 11 | B75: 8624 | C75: 12 | D75: 8643 | E75: 13 | F75: 8650 | K75: 0 | L75: 111
A76: 11 | B76: 8749 | C76: 21 | D76: 8758 | E76: 22 | F76: 8763 | K76: 0 | L76: 122
A77: 22 | B77: 8869 | C77: 14 | D77: 8880 | E77: 13 | F77: 8885 | K77: 0 | L77: 211
A78: 22 | B78: 8995 | C78: 23 | D78: 9001 | E78: 24 | F78: 9008 | K78: 0 | L78: 222
A79: 11 | B79: 9274 | C79: 12 | D79: 9287 | E79: 13 | F79: 9304 | K79: 0 | L79: 111
A80: 11 | B80: 9421 | C80: 21 | D80: 9430 | E80: 22 | F80: 9437 | K80: 0 | L80: 122
A81: 22 | B81: 9537 | C81: 14 | D81: 9557 | E81: 24 | F81: 9579 | K81: 0 | L81: 212
A82: 22 | B82: 9687 | C82: 23 | D82: 9693 | E82: 24 | F82: 9699 | K82: 0 | L82: 222
A83: 22 | B83: 9808 | C83: 14 | D83: 9825 | E83: 13 | F83: 9832 | K83: 0 | L83: 211
A84: 22 | B84: 9936 | C84: 23 | D84: 9940 | E84: 13 | F84: 9953 | K84: 0 | L84: 221
A85: 22 | B85: 10055 | C85: 23 | D85: 10062 | E85: 13 | F85: 10081 | K85: 0 | L85: 221
A86: 22 | B86: 10178 | C86: 23 | D86: 10192 | E86: 24 | F86: 10201 | K86: 0 | L86: 222
A87: 22 | B87: 10298 | C87: 23 | D87: 10309 | E87: 13 | F87: 10325 | K87: 0 | L87: 221
A88: 22 | B88: 10419 | C88: 23 | D88: 10434 | E88: 24 | F88: 10443 | K88: 0 | L88: 222
A89: 22 | B89: 10545 | C89: 14 | D89: 10563 | E89: 13 | F89: 10571 | K89: 0 | L89: 211
A90: 22 | B90: 10673 | C90: 14 | D90: 10688 | E90: 24 | F90: 10699 | K90: 0 | L90: 212
A91: 11 | B91: 10803 | C91: 12 | D91: 10809 | E91: 13 | F91: 10817 | K91: 0 | L91: 111
A92: 22 | B92: 10914 | C92: 23 | D92: 10922 | E92: 13 | F92: 10941 | K92: 0 | L92: 221
A93: 22 | B93: 11050 | C93: 23 | D93: 11057 | E93: 13 | F93: 11072 | K93: 0 | L93: 221
A94: 22 | B94: 11165 | C94: 14 | D94: 11182 | E94: 13 | F94: 11187 | K94: 0 | L94: 211
A95: 22 | B95: 11289 | C95: 23 | D95: 11295 | E95: 24 | F95: 11302 | K95: 0 | L95: 222
A96: 22 | B96: 11405 | C96: 23 | D96: 11414 | E96: 24 | F96: 11421 | K96: 0 | L96: 222
A97: 22 | B97: 11524 | C97: 14 | D97: 11537 | E97: 13 | F97: 11544 | K97: 0 | L97: 211
A98: 22 | B98: 11652 | C98: 23 | D98: 11663 | E98: 24 | F98: 11670 | K98: 0 | L98: 222
A99: 11 | B99: 11779 | C99: 21 | D99: 11787 | E99: 22 | F99: 11802 | K99: 0 | L99: 122
A100: 22 | B100: 11899 | C100: 14 | D100: 11913 | E100: 24 | F100: 11923 | K100: 0 | L100: 212
A101: 22 | B101: 12017 | C101: 14 | D101: 12038 | E101: 13 | F101: 12046 | K101: 0 | L101: 211
A102: 22 | B102: 12147 | C102: 14 | D102: 12161 | E102: 24 | F102: 12173 | K102: 0 | L102: 212
A103: 11 | B103: 12278 | C103: 21 | D103: 12285 | E103: 22 | F103: 12291 | K103: 0 | L103: 122
A104: 22 | B104: 12394 | C104: 23 | D104: 12399 | E104: 24 | F104: 12406 | K104: 0 | L104: 222
A105: 11 | B105: 12510 | C105: 21 | D105: 12517 | E105: 22 | F105: 12523 | K105: 0 | L105: 122
A106: 11 | B106: 12632 | C106: 12 | D106: 12639 | E106: 13 | F106: 12645 | K106: 0 | L106: 111
A107: 11 | B107: 12750 | C107: 21 | D107: 12758 | E107: 22 | F107: 12764 | K107: 0 | L107: 122
A108: 22 | B108: 12868 | C108: 23 | D108: 12874 | E108: 24 | F108: 12879 | K108: 0 | L108: 222
A109: 11 | B109: 12981 | C109: 12 | D109: 12993 | E109: 13 | F109: 13001 | K109: 0 | L109: 111
A110: 22 | B110: 13101 | C110: 23 | D110: 13109 | E110: 13 | F110: 13126 | K110: 0 | L110: 221
A111: 22 | B111: 13220 | C111: 14 | D111: 13231 | E111: 13 | F111: 13239 | K111: 0 | L111: 211
A112: 11 | B112: 13343 | C112: 21 | D112: 13353 | E112: 22 | F112: 13358 | K112: 0 | L112: 122
A113: 11 | B113: 13474 | C113: 12 | D113: 13480 | E113: 13 | F113: 13489 | K113: 0 | L113: 111
A114: 22 | B114: 13584 | C114: 23 | D114: 13589 | E114: 24 | F114: 13597 | K114: 0 | L114: 222
A115: 22 | B115: 13707 | C115: 23 | D115: 13715 | E115: 13 | F115: 13728 | K115: 0 | L115: 221
A116: 22 | B116: 13846 | C116: 23 | D116: 13874 | E116: 24 | F116: 13880 | K116: 0 | L116: 222
A117: 11 | B117: 14058 | C117: 12 | D117: 14064 | E117: 13 | F117: 14073 | K117: 0 | L117: 111
A118: 22 | B118: 14167 | C118: 14 | D118: 14182 | E118: 13 | F118: 14194 | K118: 0 | L118: 211
A119: 22 | B119: 14305 | C119: 14 | D119: 14322 | E119: 13 | F119: 14329 | K119: 0 | L119: 211
A120: 22 | B120: 14423 | C120: 23 | D120: 14428 | E120: 13 | F120: 14446 | K120: 0 | L120: 221
A121: 11 | B121: 14547 | C121: 12 | D121: 14555 | E121: 13 | F121: 14562 | K121: 0 | L121: 111
A122: 11 | B122: 14851 | C122: 21 | D122: 14862 | E122: 11 | F122: 14879 | K122: 0 | L122: 121
A123: 11 | B123: 15133 | C123: 12 | D123: 15142 | E123: 13 | F123: 15151 | K123: 0 | L123: 111
A124: 22 | B124: 15248 | C124: 23 | D124: 15250 | E124: 13 | F124: 15266 | K124: 0 | L124: 221
A125: 22 | B125: 15369 | C125: 23 | D125: 15375 | E125: 24 | F125: 15381 | K125: 0 | L125: 222
A126: 11 | B126: 15489 | C126: 12 | D126: 15495 | E126: 13 | F126: 15503 | K126: 0 | L126: 111
A127: 11 | B127: 15603 | C127: 12 | D127: 15608 | E127: 13 | F127: 15615 | K127: 0 | L127: 111
A128: 11 | B128: 15728 | C128: 12 | D128: 15734 | E128: 13 | F128: 15742 | K128: 0 | L128: 111
A129: 11 | B129: 15840 | C129: 21 | D129: 15849 | E129: 22 | F129: 15856 | K129: 0 | L129: 122
A130: 11 | B130: 15957 | C130: 21 | D130: 15968 | E130: 11 | F130: 15983 | K130: 0 | L130: 121
A131: 11 | B131: 16260 | C131: 21 | D131: 16273 | E131: 22 | F131: 16279 | K131: 0 | L131: 122
A132: 22 | B132: 16375 | C132: 14 | D132: 16394 | E132: 13 | F132: 16401 | K132: 0 | L132: 211
A133: 22 | B133: 16514 | C133: 14 | D133: 16528 | E133: 13 | F133: 16534 | K133: 0 | L133: 211
A134: 22 | B134: 16650 | C134: 14 | D134: 16664 | E134: 13 | F134: 16671 | K134: 0 | L134: 211
A135: 22 | B135: 16774 | C135: 14 | D135: 16790 | E135: 24 | F135: 16808 | K135: 0 | L135: 212
A136: 22 | B136: 16909 | C136: 14 | D136: 16926 | E136: 13 | F136: 16935 | K136: 0 | L136: 211
A137: 22 | B137: 17039 | C137: 14 | D137: 17060 | E137: 24 | F137: 17078 | K137: 0 | L137: 212
A138: 22 | B138: 17179 | C138: 23 | D138: 17184 | E138: 13 | F138: 17205 | K138: 0 | L138: 221
A139: 22 | B139: 17310 | C139: 14 | D139: 17324 | E139: 13 | F139: 17330 | K139: 0 | L139: 211
A140: 11 | B140: 17446 | C140: 21 | D140: 17458 | E140: 22 | F140: 17464 | K140: 0 | L140: 122
A141: 22 | B141: 17564 | C141: 23 | D141: 17570 | E141: 13 | F141: 17587 | K141: 0 | L141: 221
A142: 22 | B142: 17697 | C142: 23 | D142: 17702 | E142: 13 | F142: 17722 | K142: 0 | L142: 221
A143: 22 | B143: 17827 | C143: 23 | D143: 17860 | E143: 24 | F143: 17866 | K143: 0 | L143: 222
A144: 22 | B144: 17973 | C144: 14 | D144: 17990 | E144: 24 | F144: 18001 | K144: 0 | L144: 212
A145: 11 | B145: 18094 | C145: 12 | D145: 18101 | E145: 24 | F145: 18163 | K145: 0 | L145: 112
A146: 11 | B146: 18414 | C146: 12 | D146: 18423 | E146: 13 | F146: 18430 | K146: 0 | L146: 111
A147: 11 | B147: 18730 | C147: 12 | D147: 18739 | E147: 13 | F147: 18761 | K147: 0 | L147: 111
A148: 22 | B148: 18855 | C148: 14 | D148: 18870 | E148: 13 | F148: 18876 | K148: 0 | L148: 211
A149: 22 | B149: 18969 | C149: 23 | D149: 18974 | E149: 24 | F149: 18981 | K149: 0 | L149: 222
A150: 22 | B150: 19075 | C150: 14 | D150: 19088 | E150: 13 | F150: 19096 | K150: 0 | L150: 211
A151: 22 | B151: 19191 | C151: 14 | D151: 19215 | E151: 13 | F151: 19230 | K151: 0 | L151: 211
A152: 22 | B152: 19326 | C152: 14 | D152: 19355 | E152: 13 | F152: 19363 | K152: 0 | L152: 211
A153: 22 | B153: 19464 | C153: 23 | D153: 19469 | E153: 13 | F153: 19487 | K153: 0 | L153: 221
A154: 22 | B154: 19591 | C154: 23 | D154: 19596 | E154: 13 | F154: 19618 | K154: 0 | L154: 221
A155: 22 | B155: 19720 | C155: 23 | D155: 19728 | E155: 13 | F155: 19749 | K155: 0 | L155: 221
A156: 22 | B156: 19850 | C156: 14 | D156: 19865 | E156: 13 | F156: 19872 | K156: 0 | L156: 211
A157: 11 | B157: 19985 | C157: 12 | D157: 19998 | E157: 13 | F157: 20007 | K157: 0 | L157: 111
A158: 22 | B158: 20118 | C158: 23 | D158: 20123 | E158: 24 | F158: 20130 | K158: 0 | L158: 222
A159: 11 | B159: 20242 | C159: 12 | D159: 20256 | E159: 24 | F159: 20276 | K159: 0 | L159: 112
A160: 11 | B160: 20489 | C160: 21 | D160: 20502 | E160: 22 | F160: 20509 | K160: 0 | L160: 122
A161: 22 | B161: 20617 | C161: 23 | D161: 20623 | E161: 24 | F161: 20643 | K161: 0 | L161: 222
A162: 22 | B162: 20750 | C162: 14 | D162: 20764 | E162: 13 | F162: 20771 | K162: 0 | L162: 211
A163: 22 | B163: 20863 | C163: 23 | D163: 20868 | E163: 24 | F163: 20902 | K163: 0 | L163: 222
A164: 11 | B164: 21032 | C164: 21 | D164: 21044 | E164: 22 | F164: 21054 | K164: 0 | L164: 122
A165: 22 | B165: 21153 | C165: 23 | D165: 21193 | E165: 24 | F165: 21202 | K165: 0 | L165: 222
A166: 11 | B166: 21310 | C166: 21 | D166: 21319 | E166: 22 | F166: 21325 | K166: 0 | L166: 122
A167: 22 | B167: 21427 | C167: 14 | D167: 21448 | E167: 24 | F167: 21457 | K167: 0 | L167: 212
A168: 11 | B168: 21568 | C168: 21 | D168: 21576 | E168: 22 | F168: 21582 | K168: 0 | L168: 122
A169: 22 | B169: 21742 | C169: 23 | D169: 21745 | E169: 24 | F169: 21751 | K169: 0 | L169: 222
A170: 22 | B170: 21847 | C170: 23 | D170: 21861 | E170: 13 | F170: 21874 | K170: 0 | L170: 221
A171: 22 | B171: 21972 | C171: 14 | D171: 21987 | E171: 24 | F171: 21998 | K171: 0 | L171: 212
A172: 22 | B172: 22110 | C172: 14 | D172: 22129 | E172: 24 | F172: 22138 | K172: 0 | L172: 212
A173: 22 | B173: 22237 | C173: 23 | D173: 22243 | E173: 24 | F173: 22249 | K173: 0 | L173: 222
A174: 22 | B174: 22357 | C174: 14 | D174: 22369 | E174: 24 | F174: 22392 | K174: 0 | L174: 212
A175: 22 | B175: 22484 | C175: 14 | D175: 22499 | E175: 13 | F175: 22505 | K175: 0 | L175: 211
A176: 22 | B176: 22613 | C176: 14 | D176: 22635 | E176: 13 | F176: 22643 | K176: 0 | L176: 211
A177: 22 | B177: 22739 | C177: 14 | D177: 22752 | E177: 24 | F177: 22763 | K177: 0 | L177: 212
A178: 11 | B178: 22954 | C178: 21 | D178: 22961 | E178: 11 | F178: 22978 | K178: 0 | L178: 121
A179: 22 | B179: 23176 | C179: 14 | D179: 23192 | E179: 24 | F179: 23201 | K179: 0 | L179: 212
A180: 22 | B180: 23439 | C180: 14 | D180: 23461 | E180: 24 | F180: 23469 | K180: 0 | L180: 212
A181: 22 | B181: 23564 | C181: 14 | D181: 23588 | E181: 24 | F181: 23598 | K181: 0 | L181: 212
A182: 11 | B182: 23705 | C182: 21 | D182: 23730 | E182: 22 | F182: 23737 | K182: 0 | L182: 122
A183: 22 | B183: 23840 | C183: 14 | D183: 23856 | E183: 13 | F183: 23874 | K183: 0 | L183: 211
A184: 22 | B184: 23983 | C184: 23 | D184: 23988 | L184: 22

Sheet !M224A2D.UST
A1: Report for:!M224A2D.UST
A2: Date: | B2: <date>
A3: Hen: | B3: <hen> | F3: Correct Sequence | G3: =Start!J2 -> 121 | P3: Total Sequences in Data | Q3: =4994-COUNTBLANK(L7:L5000) -> 176 | V3: Total Sequences in Block Data | W3: =COUNTA(L7:L35) -> 29 | AA3: Total Sequences in Block Data | AB3: =COUNTA(L36:L65) -> 30 | AF3: Total Sequences in Block Data | AG3: =COUNTA(L66:L94) -> 29 | AK3: Total Sequences in Block Data | AL3: =COUNTA(L95:L123) -> 29 | AP3: Total Sequences in Block Data | AQ3: =COUNTA(L124:L153) -> 30 | AU3: Total Sequences in Block Data | AV3: =COUNTA(L154:L182) -> 29
P4: Total Sequences in Summary | Q4: =SUM(O7:O14) -> 176 | V4: Total Sequences in Block Summary | W4: =SUM(U7:U14) -> 29 | AA4: Total Sequences in Block Summary | AB4: =SUM(Z7:Z14) -> 30 | AF4: Total Sequences in Block Summary | AG4: =SUM(AE7:AE14) -> 29 | AK4: Total Sequences in Block Summary | AL4: =SUM(AJ7:AJ14) -> 29 | AP4: Total Sequences in Block Summary | AQ4: =SUM(AO7:AO14) -> 30 | AU4: Total Sequences in Block Summary | AV4: =SUM(AT7:AT14) -> 29
T5: Block 1 | Y5: Block 2 | AD5: Block 3 | AI5: Block 4 | AN5: Block 5 | AS5: Block 6
A6: Sequence Component 1 | B6: Time 1 | C6: Sequence Component 2 | D6: Time 2 | E6: Sequence Component 3 | F6: Time 3 | G6: Sequence Component 4 | H6: Time 4 | I6: Sequence Component 5 | J6: Time 5 | K6: Correct? 0=No 1=Yes | L6: Sequence | N6: Frequency | P6: Relative Frequency | Q6: Variability | T6: Frequency | V6: Relative Frequency | W6: Variability | Y6: Frequency | AA6: Relative Frequency | AB6: Variability | AD6: Frequency | AF6: Relative Frequency | AG6: Variability | AI6: Frequency | AK6: Relative Frequency | AL6: Variability | AN6: Frequency | AP6: Relative Frequency | AQ6: Variability | AS6: Frequency | AU6: Relative Frequency | AV6: Variability
A7: 22 | B7: 2 | C7: 14 | D7: 15 | E7: 13 | F7: 23 | K7: 0 | L7: 211 | N7: 111 | O7: =COUNTIF($L$7:$L$500,N7) -> 26 | P7: =O7/$Q$4 -> 0.1477272727 | Q7: =IF(P7=0,0,(P7*((LOG(P7))/LOG(2)))) -> -0.4075783489 | T7: =N7 -> 111 | U7: =COUNTIF(L7:L35,T7) -> 4 | V7: =U7/(W4-U9) -> 0.1428571429 | W7: =IF(V7=0,0,(V7*((LOG(V7))/LOG(2)))) -> -0.4010507032 | Y7: =N7 -> 111 | Z7: =COUNTIF(L36:L65,Y7) -> 2 | AA7: =Z7/(AB4-Z9) -> 0.06666666667 | AB7: =IF(AA7=0,0,(AA7*((LOG(AA7))/LOG(2)))) -> -0.260459373 | AD7: =N7 -> 111 | AE7: =COUNTIF(L66:L94,AD7) -> 1 | AF7: =AE7/(AG4-AE9) -> 0.03571428571 | AG7: =IF(AF7=0,0,(AF7*((LOG(AF7))/LOG(2)))) -> -0.1716912472 | AI7: =N7 -> 111 | AJ7: =COUNTIF(L95:L123,AI7) -> 2 | AK7: =AJ7/(AL4-AJ9) -> 0.06896551724 | AL7: =IF(AK7=0,0,(AK7*((LOG(AK7))/LOG(2)))) -> -0.2660676548 | AN7: =N7 -> 111 | AO7: =COUNTIF(L124:L153,AN7) -> 8 | AP7: =AO7/(AQ4-AO9) -> 0.275862069 | AQ7: =IF(AP7=0,0,(AP7*((LOG(AP7))/LOG(2)))) -> -0.5125464814 | AS7: =N7 -> 111 | AT7: =COUNTIF(L154:L182,AS7) -> 9 | AU7: =AT7/(AV4-AT9) -> 0.3214285714 | AV7: =IF(AU7=0,0,(AU7*((LOG(AU7))/LOG(2)))) -> -0.5263167602
A8: 22 | B8: 125 | C8: 14 | D8: 135 | E8: 13 | F8: 142 | K8: 0 | L8: 211 | N8: 112 | O8: =COUNTIF($L$7:$L$500,N8) -> 2 | P8: =O8/$Q$4 -> 0.01136363636 | Q8: =IF(P8=0,0,(P8*((LOG(P8))/LOG(2)))) -> -0.07340263203 | T8: =N8 -> 112 | U8: =COUNTIF(L7:L35,T8) -> 0 | V8: =U8/(W4-U9) -> 0 | W8: =IF(V8=0,0,(V8*((LOG(V8))/LOG(2)))) -> 0 | Y8: =N8 -> 112 | Z8: =COUNTIF(L36:L65,Y8) -> 0 | AA8: =Z8/(AB4-Z9) -> 0 | AB8: =IF(AA8=0,0,(AA8*((LOG(AA8))/LOG(2)))) -> 0 | AD8: =N8 -> 112 | AE8: =COUNTIF(L66:L94,AD8) -> 1 | AF8: =AE8/(AG4-AE9) -> 0.03571428571 | AG8: =IF(AF8=0,0,(AF8*((LOG(AF8))/LOG(2)))) -> -0.1716912472 | AI8: =N8 -> 112 | AJ8: =COUNTIF(L95:L123,AI8) -> 0 | AK8: =AJ8/(AL4-AJ9) -> 0 | AL8: =IF(AK8=0,0,(AK8*((LOG(AK8))/LOG(2)))) -> 0 | AN8: =N8 -> 112 | AO8: =COUNTIF(L124:L153,AN8) -> 1 | AP8: =AO8/(AQ4-AO9) -> 0.03448275862 | AQ8: =IF(AP8=0,0,(AP8*((LOG(AP8))/LOG(2)))) -> -0.167516586 | AS8: =N8 -> 112 | AT8: =COUNTIF(L154:L182,AS8) -> 0 | AU8: =AT8/(AV4-AT9) -> 0 | AV8: =IF(AU8=0,0,(AU8*((LOG(AU8))/LOG(2)))) -> 0
A9: 11 | B9: 247 | C9: 12 | D9: 254 | E9: 13 | F9: 261 | K9: 0 | L9: 111 | N9: 121 | O9: =COUNTIF($L$7:$L$500,N9) -> 4 | P9: =O9/$Q$4 -> 0.02272727273 | Q9: =IF(P9=0,0,(P9*((LOG(P9))/LOG(2)))) -> -0.1240779913 | T9: =N9 -> 121 | U9: =COUNTIF(L7:L35,T9) -> 1 | Y9: =N9 -> 121 | Z9: =COUNTIF(L36:L65,Y9) -> 0 | AD9: =N9 -> 121 | AE9: =COUNTIF(L66:L94,AD9) -> 1 | AI9: =N9 -> 121 | AJ9: =COUNTIF(L95:L123,AI9) -> 0 | AN9: =N9 -> 121 | AO9: =COUNTIF(L124:L153,AN9) -> 1 | AS9: =N9 -> 121 | AT9: =COUNTIF(L154:L182,AS9) -> 1
A10: 22 | B10: 365 | C10: 14 | D10: 378 | E10: 13 | F10: 395 | K10: 0 | L10: 211 | N10: 122 | O10: =COUNTIF($L$7:$L$500,N10) -> 22 | P10: =O10/$Q$4 -> 0.125 | Q10: =IF(P10=0,0,(P10*((LOG(P10))/LOG(2)))) -> -0.375 | T10: =N10 -> 122 | U10: =COUNTIF(L7:L35,T10) -> 2 | V10: =U10/(W4-U9) -> 0.07142857143 | W10: =IF(V10=0,0,(V10*((LOG(V10))/LOG(2)))) -> -0.271953923 | Y10: =N10 -> 122 | Z10: =COUNTIF(L36:L65,Y10) -> 7 | AA10: =Z10/(AB4-Z9) -> 0.2333333333 | AB10: =IF(AA10=0,0,(AA10*((LOG(AA10))/LOG(2)))) -> -0.4898916572 | AD10: =N10 -> 122 | AE10: =COUNTIF(L66:L94,AD10) -> 3 | AF10: =AE10/(AG4-AE9) -> 0.1071428571 | AG10: =IF(AF10=0,0,(AF10*((LOG(AF10))/LOG(2)))) -> -0.3452563309 | AI10: =N10 -> 122 | AJ10: =COUNTIF(L95:L123,AI10) -> 4 | AK10: =AJ10/(AL4-AJ9) -> 0.1379310345 | AL10: =IF(AK10=0,0,(AK10*((LOG(AK10))/LOG(2)))) -> -0.3942042752 | AN10: =N10 -> 122 | AO10: =COUNTIF(L124:L153,AN10) -> 2 | AP10: =AO10/(AQ4-AO9) -> 0.06896551724 | AQ10: =IF(AP10=0,0,(AP10*((LOG(AP10))/LOG(2)))) -> -0.2660676548 | AS10: =N10 -> 122 | AT10: =COUNTIF(L154:L182,AS10) -> 4 | AU10: =AT10/(AV4-AT9) -> 0.1428571429 | AV10: =IF(AU10=0,0,(AU10*((LOG(AU10))/LOG(2)))) -> -0.4010507032
A11: 22 | B11: 503 | C11: 23 | D11: 512 | E11: 24 | F11: 519 | K11: 0 | L11: 222 | N11: 211 | O11: =COUNTIF($L$7:$L$500,N11) -> 55 | P11: =O11/$Q$4 -> 0.3125 | Q11: =IF(P11=0,0,(P11*((LOG(P11))/LOG(2)))) -> -0.5243974703 | T11: =N11 -> 211 | U11: =COUNTIF(L7:L35,T11) -> 12 | V11: =U11/(W4-U9) -> 0.4285714286 | W11: =IF(V11=0,0,(V11*((LOG(V11))/LOG(2)))) -> -0.5238824663 | Y11: =N11 -> 211 | Z11: =COUNTIF(L36:L65,Y11) -> 9 | AA11: =Z11/(AB4-Z9) -> 0.3 | AB11: =IF(AA11=0,0,(AA11*((LOG(AA11))/LOG(2)))) -> -0.5210896782 | AD11: =N11 -> 211 | AE11: =COUNTIF(L66:L94,AD11) -> 9 | AF11: =AE11/(AG4-AE9) -> 0.3214285714 | AG11: =IF(AF11=0,0,(AF11*((LOG(AF11))/LOG(2)))) -> -0.5263167602 | AI11: =N11 -> 211 | AJ11: =COUNTIF(L95:L123,AI11) -> 6 | AK11: =AJ11/(AL4-AJ9) -> 0.2068965517 | AL11: =IF(AK11=0,0,(AK11*((LOG(AK11))/LOG(2)))) -> -0.4702796885 | AN11: =N11 -> 211 | AO11: =COUNTIF(L124:L153,AN11) -> 12 | AP11: =AO11/(AQ4-AO9) -> 0.4137931034 | AQ11: =IF(AP11=0,0,(AP11*((LOG(AP11))/LOG(2)))) -> -0.5267662735 | AS11: =N11 -> 211 | AT11: =COUNTIF(L154:L182,AS11) -> 7 | AU11: =AT11/(AV4-AT9) -> 0.25 | AV11: =IF(AU11=0,0,(AU11*((LOG(AU11))/LOG(2)))) -> -0.5
A12: 22 | B12: 613 | C12: 14 | D12: 628 | E12: 13 | F12: 639 | K12: 0 | L12: 211 | N12: 212 | O12: =COUNTIF($L$7:$L$500,N12) -> 18 | P12: =O12/$Q$4 -> 0.1022727273 | Q12: =IF(P12=0,0,(P12*((LOG(P12))/LOG(2)))) -> -0.3364268131 | T12: =N12 -> 212 | U12: =COUNTIF(L7:L35,T12) -> 4 | V12: =U12/(W4-U9) -> 0.1428571429 | W12: =IF(V12=0,0,(V12*((LOG(V12))/LOG(2)))) -> -0.4010507032 | Y12: =N12 -> 212 | Z12: =COUNTIF(L36:L65,Y12) -> 2 | AA12: =Z12/(AB4-Z9) -> 0.06666666667 | AB12: =IF(AA12=0,0,(AA12*((LOG(AA12))/LOG(2)))) -> -0.260459373 | AD12: =N12 -> 212 | AE12: =COUNTIF(L66:L94,AD12) -> 2 | AF12: =AE12/(AG4-AE9) -> 0.07142857143 | AG12: =IF(AF12=0,0,(AF12*((LOG(AF12))/LOG(2)))) -> -0.271953923 | AI12: =N12 -> 212 | AJ12: =COUNTIF(L95:L123,AI12) -> 5 | AK12: =AJ12/(AL4-AJ9) -> 0.1724137931 | AL12: =IF(AK12=0,0,(AK12*((LOG(AK12))/LOG(2)))) -> -0.4372505 | AN12: =N12 -> 212 | AO12: =COUNTIF(L124:L153,AN12) -> 1 | AP12: =AO12/(AQ4-AO9) -> 0.03448275862 | AQ12: =IF(AP12=0,0,(AP12*((LOG(AP12))/LOG(2)))) -> -0.167516586 | AS12: =N12 -> 212 | AT12: =COUNTIF(L154:L182,AS12) -> 4 | AU12: =AT12/(AV4-AT9) -> 0.1428571429 | AV12: =IF(AU12=0,0,(AU12*((LOG(AU12))/LOG(2)))) -> -0.4010507032
A13: 11 | B13: 742 | C13: 12 | D13: 748 | E13: 13 | F13: 756 | K13: 0 | L13: 111 | N13: 221 | O13: =COUNTIF($L$7:$L$500,N13) -> 17 | P13: =O13/$Q$4 -> 0.09659090909 | Q13: =IF(P13=0,0,(P13*((LOG(P13))/LOG(2)))) -> -0.3257015296 | T13: =N13 -> 221 | U13: =COUNTIF(L7:L35,T13) -> 1 | V13: =U13/(W4-U9) -> 0.03571428571 | W13: =IF(V13=0,0,(V13*((LOG(V13))/LOG(2)))) -> -0.1716912472 | Y13: =N13 -> 221 | Z13: =COUNTIF(L36:L65,Y13) -> 4 | AA13: =Z13/(AB4-Z9) -> 0.1333333333 | AB13: =IF(AA13=0,0,(AA13*((LOG(AA13))/LOG(2)))) -> -0.3875854127 | AD13: =N13 -> 221 | AE13: =COUNTIF(L66:L94,AD13) -> 5 | AF13: =AE13/(AG4-AE9) -> 0.1785714286 | AG13: =IF(AF13=0,0,(AF13*((LOG(AF13))/LOG(2)))) -> -0.4438262191 | AI13: =N13 -> 221 | AJ13: =COUNTIF(L95:L123,AI13) -> 3 | AK13: =AJ13/(AL4-AJ9) -> 0.1034482759 | AL13: =IF(AK13=0,0,(AK13*((LOG(AK13))/LOG(2)))) -> -0.3385881201 | AN13: =N13 -> 221 | AO13: =COUNTIF(L124:L153,AN13) -> 3 | AP13: =AO13/(AQ4-AO9) -> 0.1034482759 | AQ13: =IF(AP13=0,0,(AP13*((LOG(AP13))/LOG(2)))) -> -0.3385881201 | AS13: =N13 -> 221 | AT13: =COUNTIF(L154:L182,AS13) -> 1 | AU13: =AT13/(AV4-AT9) -> 0.03571428571 | AV13: =IF(AU13=0,0,(AU13*((LOG(AU13))/LOG(2)))) -> -0.1716912472
A14: 22 | B14: 856 | C14: 14 | D14: 870 | E14: 24 | F14: 879 | K14: 0 | L14: 212 | N14: 222 | O14: =COUNTIF($L$7:$L$500,N14) -> 32 | P14: =O14/$Q$4 -> 0.1818181818 | Q14: =IF(P14=0,0,(P14*((LOG(P14))/LOG(2)))) -> -0.4471693852 | T14: =N14 -> 222 | U14: =COUNTIF(L7:L35,T14) -> 5 | V14: =U14/(W4-U9) -> 0.1785714286 | W14: =IF(V14=0,0,(V14*((LOG(V14))/LOG(2)))) -> -0.4438262191 | Y14: =N14 -> 222 | Z14: =COUNTIF(L36:L65,Y14) -> 6 | AA14: =Z14/(AB4-Z9) -> 0.2 | AB14: =IF(AA14=0,0,(AA14*((LOG(AA14))/LOG(2)))) -> -0.464385619 | AD14: =N14 -> 222 | AE14: =COUNTIF(L66:L94,AD14) -> 7 | AF14: =AE14/(AG4-AE9) -> 0.25 | AG14: =IF(AF14=0,0,(AF14*((LOG(AF14))/LOG(2)))) -> -0.5 | AI14: =N14 -> 222 | AJ14: =COUNTIF(L95:L123,AI14) -> 9 | AK14: =AJ14/(AL4-AJ9) -> 0.3103448276 | AL14: =IF(AK14=0,0,(AK14*((LOG(AK14))/LOG(2)))) -> -0.5238794463 | AN14: =N14 -> 222 | AO14: =COUNTIF(L124:L153,AN14) -> 2 | AP14: =AO14/(AQ4-AO9) -> 0.06896551724 | AQ14: =IF(AP14=0,0,(AP14*((LOG(AP14))/LOG(2)))) -> -0.2660676548 | AS14: =N14 -> 222 | AT14: =COUNTIF(L154:L182,AS14) -> 3 | AU14: =AT14/(AV4-AT9) -> 0.1071428571 | AV14: =IF(AU14=0,0,(AU14*((LOG(AU14))/LOG(2)))) -> -0.3452563309
A15: 22 | B15: 982 | C15: 14 | D15: 993 | E15: 13 | F15: 999 | K15: 0 | L15: 211 | P15: =SUM(P7:P14) -> 1 | Q15: =-SUM(Q7:Q14) -> 2.613754171 | V15: =SUM(V7:V14) -> 1 | W15: =-SUM(W7:W14) -> 2.213455262 | AA15: =SUM(AA7:AA14) -> 1 | AB15: =-SUM(AB7:AB14) -> 2.383871113 | AF15: =SUM(AF7:AF14) -> 1 | AG15: =-SUM(AG7:AG14) -> 2.430735728 | AK15: =SUM(AK7:AK14) -> 1 | AL15: =-SUM(AL7:AL14) -> 2.430269685 | AP15: =SUM(AP7:AP14) -> 1 | AQ15: =-SUM(AQ7:AQ14) -> 2.245069357 | AU15: =SUM(AU7:AU14) -> 1 | AV15: =-SUM(AV7:AV14) -> 2.345365745
A16: 22 | B16: 1114 | C16: 14 | D16: 1125 | E16: 13 | F16: 1131 | K16: 0 | L16: 211 | P16: U= | Q16: =Q15/(LOG(Q4)/LOG(2)) -> 0.3503958886 | V16: U1= | W16: =W15/(LOG(W4)/LOG(2)) -> 0.4556327545 | AA16: U2= | AB16: =AB15/(LOG(AB4)/LOG(2)) -> 0.4858211258 | AF16: U3= | AG16: =AG15/(LOG(AG4)/LOG(2)) -> 0.5003592501 | AK16: U4= | AL16: =AL15/(LOG(AL4)/LOG(2)) -> 0.5002633167 | AP16: U5= | AQ16: =AQ15/(LOG(AQ4)/LOG(2)) -> 0.4575340153 | AU16: U6= | AV16: =AV15/(LOG(AV4)/LOG(2)) -> 0.4827861095
A17: 11 | B17: 1234 | C17: 21 | D17: 1241 | E17: 11 | F17: 1256 | K17: 0 | L17: 121
A18: 22 | B18: 1525 | C18: 14 | D18: 1537 | E18: 13 | F18: 1546 | K18: 0 | L18: 211
A19: 22 | B19: 1674 | C19: 14 | D19: 1692 | E19: 13 | F19: 1700 | K19: 0 | L19: 211 | N19: Total Target Seq
A20: 22 | B20: 1805 | C20: 14 | D20: 1816 | E20: 13 | F20: 1824 | K20: 0 | L20: 211 | N20: =COUNTIF(L7:L182,G3) -> 4 | P20: 29 | Q20: 30 | R20: 29 | S20: 29 | T20: 30 | U20: 29
A21: 11 | B21: 1926 | C21: 12 | D21: 1939 | E21: 13 | F21: 1947 | K21: 0 | L21: 111 | P21: % of reinforcement given in 6 equal intervals based on number of trials
A22: 22 | B22: 2039 | C22: 23 | D22: 2040 | E22: 13 | F22: 2058 | K22: 0 | L22: 221 | P22: %_1 | Q22: %_2 | R22: %_3 | S22: %_4 | T22: %_5 | U22: %_6
A23: 22 | B23: 2280 | C23: 14 | D23: 2294 | E23: 13 | F23: 2300 | K23: 0 | L23: 211 | O23: target sequence | P23: =$G$3 -> 121 | Q23: =$G$3 -> 121 | R23: =$G$3 -> 121 | S23: =$G$3 -> 121 | T23: =$G$3 -> 121 | U23: =$G$3 -> 121
A24: 22 | B24: 2394 | C24: 14 | D24: 2407 | E24: 24 | F24: 2417 | K24: 0 | L24: 212 | O24: total reinforcement | P24: =U9 -> 1 | Q24: =Z9 -> 0 | R24: =AE9 -> 1 | S24: =AJ9 -> 0 | T24: =AO9 -> 1 | U24: =AT9 -> 1
A25: 22 | B25: 2520 | C25: 23 | D25: 2522 | E25: 24 | F25: 2524 | K25: 0 | L25: 222 | O25: % target
A26: 22 | B26: 2620 | C26: 14 | D26: 2633 | E26: 13 | F26: 2642 | K26: 0 | L26: 211 | O26: CCRF
A27: 11 | B27: 2741 | C27: 21 | D27: 2750 | E27: 22 | F27: 2755 | K27: 0 | L27: 122 | O27: % CCRf
A28: 22 | B28: 2953 | C28: 14 | D28: 2965 | E28: 24 | F28: 2975 | K28: 0 | L28: 212 | O28: average response rate | P28: =F35/P20 -> 137 | Q28: =(F65-F35)/Q20 -> 132.4666667 | R28: =(F94-F65)/R20 -> 132.137931 | S28: =(F123-F94)/S20 -> 137.3793103 | T28: =(F153-F123)/T20 -> 135.5 | U28: =(F182-F153)/U20 -> 137.8275862
A29: 22 | B29: 3079 | C29: 14 | D29: 3092 | E29: 13 | F29: 3105 | K29: 0 | L29: 211
A30: 22 | B30: 3212 | C30: 23 | D30: 3230 | E30: 24 | F30: 3236 | K30: 0 | L30: 222
A31: 22 | B31: 3479 | C31: 14 | D31: 3494 | E31: 24 | F31: 3504 | K31: 0 | L31: 212
A32: 22 | B32: 3600 | C32: 23 | D32: 3605 | E32: 24 | F32: 3611 | K32: 0 | L32: 222
A33: 11 | B33: 3713 | C33: 21 | D33: 3721 | E33: 22 | F33: 3727 | K33: 0 | L33: 122
A34: 11 | B34: 3837 | C34: 12 | D34: 3845 | E34: 13 | F34: 3854 | K34: 0 | L34: 111
A35: 22 | B35: 3954 | C35: 23 | D35: 3962 | E35: 24 | F35: 3973 | K35: 0 | L35: 222
A36: 11 | B36: 4089 | C36: 12 | D36: 4095 | E36: 13 | F36: 4103 | K36: 0 | L36: 111
A37: 11 | B37: 4200 | C37: 21 | D37: 4210 | E37: 22 | F37: 4216 | K37: 0 | L37: 122
A38: 22 | B38: 4315 | C38: 23 | D38: 4320 | E38: 24 | F38: 4327 | K38: 0 | L38: 222
A39: 22 | B39: 4423 | C39: 23 | D39: 4431 | E39: 24 | F39: 4438 | K39: 0 | L39: 222
A40: 22 | B40: 4539 | C40: 23 | D40: 4549 | E40: 24 | F40: 4556 | K40: 0 | L40: 222
A41: 22 | B41: 4664 | C41: 14 | D41: 4680 | E41: 24 | F41: 4690 | K41: 0 | L41: 212
A42: 22 | B42: 4794 | C42: 14 | D42: 4808 | E42: 24 | F42: 4817 | K42: 0 | L42: 212
A43: 22 | B43: 4916 | C43: 23 | D43: 4924 | E43: 13 | F43: 4941 | K43: 0 | L43: 221
A44: 11 | B44: 5222 | C44: 21 | D44: 5231 | E44: 22 | F44: 5237 | K44: 0 | L44: 122
A45: 22 | B45: 5342 | C45: 23 | D45: 5347 | E45: 24 | F45: 5352 | K45: 0 | L45: 222
A46: 22 | B46: 5452 | C46: 14 | D46: 5466 | E46: 13 | F46: 5479 | K46: 0 | L46: 211
A47: 22 | B47: 5649 | C47: 14 | D47: 5659 | E47: 13 | F47: 5667 | K47: 0 | L47: 211
A48: 11 | B48: 5765 | C48: 21 | D48: 5773 | E48: 22 | F48: 5779 | K48: 0 | L48: 122
A49: 11 | B49: 5883 | C49: 21 | D49: 5903 | E49: 22 | F49: 5914 | K49: 0 | L49: 122
A50: 11 | B50: 6019 | C50: 21 | D50: 6028 | E50: 22 | F50: 6034 | K50: 0 | L50: 122
A51: 22 | B51: 6137 | C51: 14 | D51: 6152 | E51: 13 | F51: 6162 | K51: 0 | L51: 211
A52: 22 | B52: 6264 | C52: 14 | D52: 6278 | E52: 13 | F52: 6292 | K52: 0 | L52: 211
A53: 22 | B53: 6415 | C53: 23 | D53: 6422 | E53: 24 | F53: 6428 | K53: 0 | L53: 222
A54: 22 | B54: 6527 | C54: 14 | D54: 6553 | E54: 13 | F54: 6563 | K54: 0 | L54: 211
A55: 11 | B55: 6664 | C55: 21 | D55: 6672 | E55: 22 | F55: 6677 | K55: 0 | L55: 122
A56: 22 | B56: 6785 | C56: 14 | D56: 6797 | E56: 13 | F56: 6805 | K56: 0 | L56: 211
A57: 11 | B57: 6910 | C57: 21 | D57: 6919 | E57: 22 | F57: 6925 | K57: 0 | L57: 122
A58: 22 | B58: 7026 | C58: 14 | D58: 7043 | E58: 13 | F58: 7047 | K58: 0 | L58: 211
A59: 22 | B59: 7157 | C59: 14 | D59: 7172 | E59: 13 | F59: 7181 | K59: 0 | L59: 211
A60: 22 | B60: 7281 | C60: 23 | D60: 7285 | E60: 13 | F60: 7307 | K60: 0 | L60: 221
A61: 11 | B61: 7443 | C61: 12 | D61: 7449 | E61: 13 | F61: 7457 | K61: 0 | L61: 111
A62: 22 | B62: 7569 | C62: 23 | D62: 7576 | E62: 24 | F62: 7583 | K62: 0 | L62: 222
A63: 22 | B63: 7681 | C63: 23 | D63: 7684 | E63: 13 | F63: 7705 | K63: 0 | L63: 221
A64: 22 | B64: 7800 | C64: 14 | D64: 7814 | E64: 13 | F64: 7820 | K64: 0 | L64: 211
A65: 22 | B65: 7918 | C65: 23 | D65: 7925 | E65: 13 | F65: 7947 | K65: 0 | L65: 221
A66: 22 | B66: 8051 | C66: 14 | D66: 8068 | E66: 13 | F66: 8076 | K66: 0 | L66: 211
A67: 11 | B67: 8189 | C67: 21 | D67: 8195 | E67: 11 | F67: 8212 | K67: 0 | L67: 121
A68: 22 | B68: 8483 | C68: 23 | D68: 8487 | E68: 24 | F68: 8493 | K68: 0 | L68: 222
A69: 22 | B69: 8586 | C69: 14 | D69: 8603 | E69: 13 | F69: 8610 | K69: 0 | L69: 211
A70: 22 | B70: 8709 | C70: 23 | D70: 8715 | E70: 24 | F70: 8721 | K70: 0 | L70: 222
A71: 22 | B71: 8820 | C71: 23 | D71: 8830 | E71: 13 | F71: 8847 | K71: 0 | L71: 221
A72: 11 | B72: 8950 | C72: 21 | D72: 8961 | E72: 22 | F72: 8968 | K72: 0 | L72: 122
A73: 22 | B73: 9060 | C73: 23 | D73: 9067 | E73: 13 | F73: 9082 | K73: 0 | L73: 221
A74: 22 | B74: 9189 | C74: 14 | D74: 9206 | E74: 13 | F74: 9212 | K74: 0 | L74: 211
A75: 22 | B75: 9312 | C75: 23 | D75: 9317 | E75: 24 | F75: 9324 | K75: 0 | L75: 222
A76: 11 | B76: 9429 | C76: 12 | D76: 9434 | E76: 13 | F76: 9440 | K76: 0 | L76: 111
A77: 11 | B77: 9535 | C77: 12 | D77: 9541 | E77: 24 | F77: 9553 | K77: 0 | L77: 112
A78: 22 | B78: 9705 | C78: 23 | D78: 9712 | E78: 24 | F78: 9745 | K78: 0 | L78: 222
A79: 11 | B79: 9843 | C79: 21 | D79: 9852 | E79: 22 | F79: 9860 | K79: 0 | L79: 122
A80: 11 | B80: 9957 | C80: 21 | D80: 9965 | E80: 22 | F80: 9970 | K80: 0 | L80: 122
A81: 22 | B81: 10064 | C81: 14 | D81: 10081 | E81: 13 | F81: 10089 | K81: 0 | L81: 211
A82: 22 | B82: 10200 | C82: 23 | D82: 10208 | E82: 24 | F82: 10214 | K82: 0 | L82: 222
A83: 22 | B83: 10310 | C83: 14 | D83: 10319 | E83: 13 | F83: 10324 | K83: 0 | L83: 211
A84: 22 | B84: 10423 | C84: 14 | D84: 10434 | E84: 13 | F84: 10439 | K84: 0 | L84: 211
A85: 22 | B85: 10538 | C85: 14 | D85: 10558 | E85: 24 | F85: 10569 | K85: 0 | L85: 212
A86: 22 | B86: 10668 | C86: 23 | D86: 10674 | E86: 24 | F86: 10698 | K86: 0 | L86: 222
A87: 22 | B87: 10794 | C87: 23 | D87: 10804 | E87: 13 | F87: 10819 | K87: 0 | L87: 221
A88: 22 | B88: 10988 | C88: 14 | D88: 11001 | E88: 24 | F88: 11009 | K88: 0 | L88: 212
A89: 22 | B89: 11109 | C89: 14 | D89: 11126 | E89: 13 | F89: 11135 | K89: 0 | L89: 211
A90: 22 | B90: 11245 | C90: 23 | D90: 11249 | E90: 13 | F90: 11261 | K90: 0 | L90: 221
A91: 22 | B91: 11366 | C91: 14 | D91: 11381 | E91: 13 | F91: 11389 | K91: 0 | L91: 211
A92: 22 | B92: 11493 | C92: 23 | D92: 11528 | E92: 24 | F92: 11531 | K92: 0 | L92: 222
A93: 22 | B93: 11626 | C93: 23 | D93: 11631 | E93: 13 | F93: 11645 | K93: 0 | L93: 221
A94: 22 | B94: 11754 | C94: 14 | D94: 11772 | E94: 13 | F94: 11779 | K94: 0 | L94: 211
A95: 22 | B95: 11881 | C95: 14 | D95: 11895 | E95: 13 | F95: 11902 | K95: 0 | L95: 211
A96: 22 | B96: 12011 | C96: 23 | D96: 12019 | E96: 13 | F96: 12040 | K96: 0 | L96: 221
A97: 11 | B97: 12150 | C97: 21 | D97: 12157 | E97: 22 | F97: 12162 | K97: 0 | L97: 122
A98: 22 | B98: 12267 | C98: 14 | D98: 12283 | E98: 13 | F98: 12296 | K98: 0 | L98: 211
A99: 22 | B99: 12410 | C99: 14 | D99: 12422 | E99: 13 | F99: 12436 | K99: 0 | L99: 211
A100: 22 | B100: 12551 | C100: 23 | D100: 12554 | E100: 24 | F100: 12563 | K100: 0 | L100: 222
A101: 22 | B101: 12664 | C101: 14 | D101: 12679 | E101: 13 | F101: 12687 | K101: 0 | L101: 211
A102: 22 | B102: 12810 | C102: 14 | D102: 12836 | E102: 24 | F102: 12859 | K102: 0 | L102: 212
A103: 22 | B103: 12979 | C103: 14 | D103: 12987 | E103: 13 | F103: 12993 | K103: 0 | L103: 211
A104: 22 | B104: 13088 | C104: 14 | D104: 13101 | E104: 24 | F104: 13111 | K104: 0 | L104: 212
A105: 22 | B105: 13214 | C105: 14 | D105: 13230 | E105: 24 | F105: 13240 | K105: 0 | L105: 212
A106: 22 | B106: 13343 | C106: 23 | D106: 13353 | E106: 24 | F106: 13359 | K106: 0 | L106: 222
A107: 22 | B107: 13465 | C107: 23 | D107: 13471 | E107: 24 | F107: 13478 | K107: 0 | L107: 222
A108: 22 | B108: 13603 | C108: 23 | D108: 13608 | E108: 24 | F108: 13615 | K108: 0 | L108: 222
A109: 22 | B109: 13714 | C109: 14 | D109: 13728 | E109: 13 | F109: 13735 | K109: 0 | L109: 211
A110: 22 | B110: 13839 | C110: 23 | D110: 13846 | E110: 24 | F110: 13852 | K110: 0 | L110: 222
A111: 22 | B111: 13958 | C111: 23 | D111: 13963 | E111: 24 | F111: 13969 | K111: 0 | L111: 222
A112: 22 | B112: 14069 | C112: 14 | D112: 14081 | E112: 24 | F112: 14093 | K112: 0 | L112: 212
A113: 22 | B113: 14195 | C113: 14 | D113: 14207 | E113: 24 | F113: 14218 | K113: 0 | L113: 212
A114: 11 | B114: 14397 | C114: 21 | D114: 14416 | E114: 22 | F114: 14424 | K114: 0 | L114: 122
A115: 22 | B115: 14545 | C115: 23 | D115: 14550 | E115: 13 | F115: 14563 | K115: 0 | L115: 221
A116: 22 | B116: 14655 | C116: 23 | D116: 14662 | E116: 13 | F116: 14675 | K116: 0 | L116: 221
A117: 22 | B117: 14778 | C117: 23 | D117: 14783 | E117: 24 | F117: 14790 | K117: 0 | L117: 222
A118: 22 | B118: 14897 | C118: 23 | D118: 14924 | E118: 24 | F118: 14932 | K118: 0 | L118: 222
A119: 11 | B119: 15029 | C119: 12 | D119: 15041 | E119: 13 | F119: 15049 | K119: 0 | L119: 111
A120: 11 | B120: 15368 | C120: 21 | D120: 15378 | E120: 22 | F120: 15389 | K120: 0 | L120: 122
A121: 11 | B121: 15493 | C121: 21 | D121: 15502 | E121: 22 | F121: 15508 | K121: 0 | L121: 122
A122: 11 | B122: 15608 | C122: 12 | D122: 15614 | E122: 13 | F122: 15623 | K122: 0 | L122: 111
A123: 22 | B123: 15731 | C123: 23 | D123: 15738 | E123: 24 | F123: 15763 | K123: 0 | L123: 222
A124: 22 | B124: 15858 | C124: 23 | D124: 15861 | E124: 13 | F124: 15876 | K124: 0 | L124: 221
A125: 11 | B125: 15999 | C125: 12 | D125: 16006 | E125: 13 | F125: 16023 | K125: 0 | L125: 111
A126: 22 | B126: 16119 | C126: 23 | D126: 16123 | E126: 24 | F126: 16145 | K126: 0 | L126: 222
A127: 22 | B127: 16244 | C127: 14 | D127: 16257 | E127: 13 | F127: 16264 | K127: 0 | L127: 211
A128: 22 | B128: 16370 | C128: 14 | D128: 16382 | E128: 13 | F128: 16398 | K128: 0 | L128: 211
A129: 22 | B129: 16490 | C129: 14 | D129: 16498 | E129: 13 | F129: 16507 | K129: 0 | L129: 211
A130: 22 | B130: 16606 | C130: 14 | D130: 16620 | E130: 13 | F130: 16627 | K130: 0 | L130: 211
A131: 22 | B131: 16749 | C131: 14 | D131: 16761 | E131: 13 | F131: 16767 | K131: 0 | L131: 211
A132: 22 | B132: 16868 | C132: 14 | D132: 16883 | E132: 13 | F132: 16891 | K132: 0 | L132: 211
A133: 11 | B133: 16997 | C133: 12 | D133: 17005 | E133: 13 | F133: 17012 | K133: 0 | L133: 111
A134: 11 | B134: 17117 | C134: 12 | D134: 17123 | E134: 13 | F134: 17131 | K134: 0 | L134: 111
A135: 11 | B135: 17236 | C135: 12 | D135: 17244 | E135: 13 | F135: 17251 | K135: 0 | L135: 111
A136: 22 | B136: 17362 | C136: 14 | D136: 17374 | E136: 13 | F136: 17383 | K136: 0 | L136: 211
A137: 22 | B137: 17498 | C137: 14 | D137: 17512 | E137: 13 | F137: 17523 | K137: 0 | L137: 211
A138: 22 | B138: 17625 | C138: 14 | D138: 17637 | E138: 13 | F138: 17645 | K138: 0 | L138: 211
A139: 11 | B139: 17752 | C139: 12 | D139: 17759 | E139: 13 | F139: 17766 | K139: 0 | L139: 111
A140: 22 | B140: 17878 | C140: 14 | D140: 17891 | E140: 24 | F140: 17917 | K140: 0 | L140: 212
A141: 11 | B141: 18025 | C141: 21 | D141: 18034 | E141: 22 | F141: 18042 | K141: 0 | L141: 122
A142: 22 | B142: 18145 | C142: 14 | D142: 18158 | E142: 13 | F142: 18166 | K142: 0 | L142: 211
A143: 22 | B143: 18263 | C143: 23 | D143: 18268 | E143: 13 | F143: 18286 | K143: 0 | L143: 221
A144: 22 | B144: 18440 | C144: 23 | D144: 18444 | E144: 24 | F144: 18451 | K144: 0 | L144: 222
A145: 22 | B145: 18554 | C145: 23 | D145: 18562 | E145: 13 | F145: 18582 | K145: 0 | L145: 221
A146: 11 | B146: 18688 | C146: 21 | D146: 18697 | E146: 11 | F146: 18715 | K146: 0 | L146: 121
A147: 11 | B147: 18937 | C147: 12 | D147: 18963 | E147: 24 | F147: 18975 | K147: 0 | L147: 112
A148: 22 | B148: 19077 | C148: 14 | D148: 19091 | E148: 13 | F148: 19099 | K148: 0 | L148: 211
A149: 11 | B149: 19201 | C149: 21 | D149: 19208 | E149: 22 | F149: 19230 | K149: 0 | L149: 122
A150: 22 | B150: 19335 | C150: 14 | D150: 19351 | E150: 13 | F150: 19358 | K150: 0 | L150: 211
A151: 11 | B151: 19469 | C151: 12 | D151: 19475 | E151: 13 | F151: 19483 | K151: 0 | L151: 111
A152: 11 | B152: 19684 | C152: 12 | D152: 19691 | E152: 13 | F152: 19698 | K152: 0 | L152: 111
A153: 11 | B153: 19811 | C153: 12 | D153: 19819 | E153: 13 | F153: 19828 | K153: 0 | L153: 111
A154: 22 | B154: 19929 | C154: 14 | D154: 19944 | E154: 13 | F154: 19950 | K154: 0 | L154: 211
A155: 22 | B155: 20060 | C155: 14 | D155: 20076 | E155: 13 | F155: 20090 | K155: 0 | L155: 211
A156: 11 | B156: 20191 | C156: 21 | D156: 20202 | E156: 11 | F156: 20222 | K156: 0 | L156: 121
A157: 22 | B157: 20474 | C157: 14 | D157: 20491 | E157: 13 | F157: 20505 | K157: 0 | L157: 211
A158: 22 | B158: 20603 | C158: 14 | D158: 20618 | E158: 24 | F158: 20629 | K158: 0 | L158: 212
A159: 22 | B159: 20731 | C159: 14 | D159: 20749 | E159: 13 | F159: 20762 | K159: 0 | L159: 211
A160: 22 | B160: 20876 | C160: 14 | D160: 20897 | E160: 24 | F160: 20912 | K160: 0 | L160: 212
A161: 11 | B161: 21027 | C161: 12 | D161: 21033 | E161: 13 | F161: 21042 | K161: 0 | L161: 111
A162: 11 | B162: 21148 | C162: 21 | D162: 21157 | E162: 22 | F162: 21164 | K162: 0 | L162: 122
A163: 11 | B163: 21271 | C163: 12 | D163: 21276 | E163: 13 | F163: 21281 | K163: 0 | L163: 111
A164: 11 | B164: 21386 | C164: 12 | D164: 21408 | E164: 13 | F164: 21415 | K164: 0 | L164: 111
A165: 11 | B165: 21519 | C165: 12 | D165: 21542 | E165: 13 | F165: 21552 | K165: 0 | L165: 111
A166: 22 | B166: 21646 | C166: 23 | D166: 21651 | E166: 24 | F166: 21662 | K166: 0 | L166: 222
A167: 11 | B167: 21914 | C167: 12 | D167: 21925 | E167: 13 | F167: 21934 | K167: 0 | L167: 111
A168: 11 | B168: 22035 | C168: 21 | D168: 22043 | E168: 22 | F168: 22049 | K168: 0 | L168: 122
A169: 22 | B169: 22154 | C169: 23 | D169: 22161 | E169: 24 | F169: 22167 | K169: 0 | L169: 222
A170: 11 | B170: 22275 | C170: 12 | D170: 22284 | E170: 13 | F170: 22291 | K170: 0 | L170: 111
A171: 11 | B171: 22403 | C171: 12 | D171: 22412 | E171: 13 | F171: 22421 | K171: 0 | L171: 111
A172: 11 | B172: 22534 | C172: 12 | D172: 22545 | E172: 13 | F172: 22551 | K172: 0 | L172: 111
A173: 22 | B173: 22659 | C173: 14 | D173: 22675 | E173: 24 | F173: 22686 | K173: 0 | L173: 212
A174: 11 | B174: 22794 | C174: 12 | D174: 22798 | E174: 13 | F174: 22806 | K174: 0 | L174: 111
A175: 22 | B175: 22906 | C175: 14 | D175: 22924 | E175: 24 | F175: 22937 | K175: 0 | L175: 212
A176: 11 | B176: 23040 | C176: 21 | D176: 23052 | E176: 22 | F176: 23059 | K176: 0 | L176: 122
A177: 22 | B177: 23154 | C177: 14 | D177: 23168 | E177: 13 | F177: 23174 | K177: 0 | L177: 211
A178: 22 | B178: 23281 | C178: 14 | D178: 23296 | E178: 13 | F178: 23306 | K178: 0 | L178: 211
A179: 22 | B179: 23399 | C179: 14 | D179: 23433 | E179: 13 | F179: 23447 | K179: 0 | L179: 211
A180: 22 | B180: 23553 | C180: 23 | D180: 23569 | E180: 24 | F180: 23576 | K180: 0 | L180: 222
A181: 11 | B181: 23676 | C181: 21 | D181: 23687 | E181: 22 | F181: 23694 | K181: 0 | L181: 122
A182: 22 | B182: 23805 | C182: 23 | D182: 23807 | E182: 13 | F182: 23825 | K182: 0 | L182: 221

Sheet !M225A2D.UST
A1: Report for:!M225A2D.UST
A2: Date: | B2: <date>
A3: Hen: | B3: <hen> | F3: Correct Sequence | G3: =Start!J2 -> 121 | P3: Total Sequences in Data | Q3: =4994-COUNTBLANK(L7:L5000) -> 171 | V3: Total Sequences in Block Data | W3: =COUNTA(L7:L35) -> 29 | AA3: Total Sequences in Block Data | AB3: =COUNTA(L36:L63) -> 28 | AF3: Total Sequences in Block Data | AG3: =COUNTA(L64:L92) -> 29 | AK3: Total Sequences in Block Data | AL3: =COUNTA(L93:L120) -> 28 | AP3: Total Sequences in Block Data | AQ3: =COUNTA(L121:L149) -> 29 | AU3: Total Sequences in Block Data | AV3: =COUNTA(L150:L177) -> 28
P4: Total Sequences in Summary | Q4: =SUM(O7:O14) -> 171 | V4: Total Sequences in Block Summary | W4: =SUM(U7:U14) -> 29 | AA4: Total Sequences in Block Summary | AB4: =SUM(Z7:Z14) -> 28 | AF4: Total Sequences in Block Summary | AG4: =SUM(AE7:AE14) -> 29 | AK4: Total Sequences in Block Summary | AL4: =SUM(AJ7:AJ14) -> 28 | AP4: Total Sequences in Block Summary | AQ4: =SUM(AO7:AO14) -> 29 | AU4: Total Sequences in Block Summary | AV4: =SUM(AT7:AT14) -> 28
T5: Block 1 | Y5: Block 2 | AD5: Block 3 | AI5: Block 4 | AN5: Block 5 | AS5: Block 6
A6: Sequence Component 1 | B6: Time 1 | C6: Sequence Component 2 | D6: Time 2 | E6: Sequence Component 3 | F6: Time 3 | G6: Sequence Component 4 | H6: Time 4 | I6: Sequence Component 5 | J6: Time 5 | K6: Correct? 0=No 1=Yes | L6: Sequence | N6: Frequency | P6: Relative Frequency | Q6: Variability | T6: Frequency | V6: Relative Frequency | W6: Variability | Y6: Frequency | AA6: Relative Frequency | AB6: Variability | AD6: Frequency | AF6: Relative Frequency | AG6: Variability | AI6: Frequency | AK6: Relative Frequency | AL6: Variability | AN6: Frequency | AP6: Relative Frequency | AQ6: Variability | AS6: Frequency | AU6: Relative Frequency | AV6: Variability
A7: 11 | B7: 32 | C7: 12 | D7: 39 | E7: 24 | F7: 48 | K7: 0 | L7: 112 | N7: 111 | O7: =COUNTIF($L$7:$L$500,N7) -> 22 | P7: =O7/$Q$4 -> 0.1286549708 | Q7: =IF(P7=0,0,(P7*((LOG(P7))/LOG(2)))) -> -0.3806155539 | T7: =N7 -> 111 | U7: =COUNTIF(L7:L35,T7) -> 3 | V7: =U7/(W4-U9) -> 0.1034482759 | W7: =IF(V7=0,0,(V7*((LOG(V7))/LOG(2)))) -> -0.3385881201 | Y7: =N7 -> 111 | Z7: =COUNTIF(L36:L63,Y7) -> 3 | AA7: =Z7/(AB4-Z9) -> 0.125 | AB7: =IF(AA7=0,0,(AA7*((LOG(AA7))/LOG(2)))) -> -0.375 | AD7: =N7 -> 111 | AE7: =COUNTIF(L64:L92,AD7) -> 8 | AF7: =AE7/(AG4-AE9) -> 0.3076923077 | AG7: =IF(AF7=0,0,(AF7*((LOG(AF7))/LOG(2)))) -> -0.523212221 | AI7: =N7 -> 111 | AJ7: =COUNTIF(L93:L120,AI7) -> 3 | AK7: =AJ7/(AL4-AJ9) -> 0.1153846154 | AL7: =IF(AK7=0,0,(AK7*((LOG(AK7))/LOG(2)))) -> -0.3594781405 | AN7: =N7 -> 111 | AO7: =COUNTIF(L121:L149,AN7) -> 1 | AP7: =AO7/(AQ4-AO9) -> 0.03703703704 | AQ7: =IF(AP7=0,0,(AP7*((LOG(AP7))/LOG(2)))) -> -0.1761069445 | AS7: =N7 -> 111 | AT7: =COUNTIF(L150:L177,AS7) -> 4 | AU7: =AT7/(AV4-AT9) -> 0.1481481481 | AV7: =IF(AU7=0,0,(AU7*((LOG(AU7))/LOG(2)))) -> -0.4081314818
A8: 11 | B8: 147 | C8: 21 | D8: 155 | E8: 22 | F8: 161 | K8: 0 | L8: 122 | N8: 112 | O8: =COUNTIF($L$7:$L$500,N8) -> 4 | P8: =O8/$Q$4 -> 0.02339181287 | Q8: =IF(P8=0,0,(P8*((LOG(P8))/LOG(2)))) -> -0.1267333922 | T8: =N8 -> 112 | U8: =COUNTIF(L7:L35,T8) -> 2 | V8: =U8/(W4-U9) -> 0.06896551724 | W8: =IF(V8=0,0,(V8*((LOG(V8))/LOG(2)))) -> -0.2660676548 | Y8: =N8 -> 112 | Z8: =COUNTIF(L36:L63,Y8) -> 0 | AA8: =Z8/(AB4-Z9) -> 0 | AB8: =IF(AA8=0,0,(AA8*((LOG(AA8))/LOG(2)))) -> 0 | AD8: =N8 -> 112 | AE8: =COUNTIF(L64:L92,AD8) -> 0 | AF8: =AE8/(AG4-AE9) -> 0 | AG8: =IF(AF8=0,0,(AF8*((LOG(AF8))/LOG(2)))) -> 0 | AI8: =N8 -> 112 | AJ8: =COUNTIF(L93:L120,AI8) -> 0 | AK8: =AJ8/(AL4-AJ9) -> 0 | AL8: =IF(AK8=0,0,(AK8*((LOG(AK8))/LOG(2)))) -> 0 | AN8: =N8 -> 112 | AO8: =COUNTIF(L121:L149,AN8) -> 1 | AP8: =AO8/(AQ4-AO9) -> 0.03703703704 | AQ8: =IF(AP8=0,0,(AP8*((LOG(AP8))/LOG(2)))) -> -0.1761069445 | AS8: =N8 -> 112 | AT8: =COUNTIF(L150:L177,AS8) -> 1 | AU8: =AT8/(AV4-AT9) -> 0.03703703704 | AV8: =IF(AU8=0,0,(AU8*((LOG(AU8))/LOG(2)))) -> -0.1761069445
A9: 11 | B9: 260 | C9: 12 | D9: 266 | E9: 13 | F9: 273 | K9: 0 | L9: 111 | N9: 121 | O9: =COUNTIF($L$7:$L$500,N9) -> 12 | P9: =O9/$Q$4 -> 0.0701754386 | Q9: =IF(P9=0,0,(P9*((LOG(P9))/LOG(2)))) -> -0.2689747378 | T9: =N9 -> 121 | U9: =COUNTIF(L7:L35,T9) -> 0 | Y9: =N9 -> 121 | Z9: =COUNTIF(L36:L63,Y9) -> 4 | AD9: =N9 -> 121 | AE9: =COUNTIF(L64:L92,AD9) -> 3 | AI9: =N9 -> 121 | AJ9: =COUNTIF(L93:L120,AI9) -> 2 | AN9: =N9 -> 121 | AO9: =COUNTIF(L121:L149,AN9) -> 2 | AS9: =N9 -> 121 | AT9: =COUNTIF(L150:L177,AS9) -> 1
A10: 22 | B10: 375 | C10: 23 | D10: 381 | E10: 24 | F10: 387 | K10: 0 | L10: 222 | N10: 122 | O10: =COUNTIF($L$7:$L$500,N10) -> 22 | P10: =O10/$Q$4 -> 0.1286549708 | Q10: =IF(P10=0,0,(P10*((LOG(P10))/LOG(2)))) -> -0.3806155539 | T10: =N10 -> 122 | U10: =COUNTIF(L7:L35,T10) -> 5 | V10: =U10/(W4-U9) -> 0.1724137931 | W10: =IF(V10=0,0,(V10*((LOG(V10))/LOG(2)))) -> -0.4372505 | Y10: =N10 -> 122 | Z10: =COUNTIF(L36:L63,Y10) -> 5 | AA10: =Z10/(AB4-Z9) -> 0.2083333333 | AB10: =IF(AA10=0,0,(AA10*((LOG(AA10))/LOG(2)))) -> -0.4714655012 | AD10: =N10 -> 122 | AE10: =COUNTIF(L64:L92,AD10) -> 2 | AF10: =AE10/(AG4-AE9) -> 0.07692307692 | AG10: =IF(AF10=0,0,(AF10*((LOG(AF10))/LOG(2)))) -> -0.2846492091 | AI10: =N10 -> 122 | AJ10: =COUNTIF(L93:L120,AI10) -> 2 | AK10: =AJ10/(AL4-AJ9) -> 0.07692307692 | AL10: =IF(AK10=0,0,(AK10*((LOG(AK10))/LOG(2)))) -> -0.2846492091 | AN10: =N10 -> 122 | AO10: =COUNTIF(L121:L149,AN10) -> 2 | AP10: =AO10/(AQ4-AO9) -> 0.07407407407 | AQ10: =IF(AP10=0,0,(AP10*((LOG(AP10))/LOG(2)))) -> -0.278139815 | AS10: =N10 -> 122 | AT10: =COUNTIF(L150:L177,AS10) -> 6 | AU10: =AT10/(AV4-AT9) -> 0.2222222222 | AV10: =IF(AU10=0,0,(AU10*((LOG(AU10))/LOG(2)))) -> -0.4822055559
A11: 11 | B11: 487 | C11: 21 | D11: 495 | E11: 22 | F11: 506 | K11: 0 | L11: 122 | N11: 211 | O11: =COUNTIF($L$7:$L$500,N11) -> 69 | P11: =O11/$Q$4 -> 0.4035087719 | Q11: =IF(P11=0,0,(P11*((LOG(P11))/LOG(2)))) -> -0.5283253568 | T11: =N11 -> 211 | U11: =COUNTIF(L7:L35,T11) -> 12 | V11: =U11/(W4-U9) -> 0.4137931034 | W11: =IF(V11=0,0,(V11*((LOG(V11))/LOG(2)))) -> -0.5267662735 | Y11: =N11 -> 211 | Z11: =COUNTIF(L36:L63,Y11) -> 10 | AA11: =Z11/(AB4-Z9) -> 0.4166666667 | AB11: =IF(AA11=0,0,(AA11*((LOG(AA11))/LOG(2)))) -> -0.5262643358 | AD11: =N11 -> 211 | AE11: =COUNTIF(L64:L92,AD11) -> 10 | AF11: =AE11/(AG4-AE9) -> 0.3846153846 | AG11: =IF(AF11=0,0,(AF11*((LOG(AF11))/LOG(2)))) -> -0.5301967782 | AI11: =N11 -> 211 | AJ11: =COUNTIF(L93:L120,AI11) -> 16 | AK11: =AJ11/(AL4-AJ9) -> 0.6153846154 | AL11: =IF(AK11=0,0,(AK11*((LOG(AK11))/LOG(2)))) -> -0.4310398265 | AN11: =N11 -> 211 | AO11: =COUNTIF(L121:L149,AN11) -> 15 | AP11: =AO11/(AQ4-AO9) -> 0.5555555556 | AQ11: =IF(AP11=0,0,(AP11*((LOG(AP11))/LOG(2)))) -> -0.4711093925 | AS11: =N11 -> 211 | AT11: =COUNTIF(L150:L177,AS11) -> 6 | AU11: =AT11/(AV4-AT9) -> 0.2222222222 | AV11: =IF(AU11=0,0,(AU11*((LOG(AU11))/LOG(2)))) -> -0.4822055559
A12: 22 | B12: 600 | C12: 14 | D12: 617 | E12: 13 | F12: 624 | K12: 0 | L12: 211 | N12: 212 | O12: =COUNTIF($L$7:$L$500,N12) -> 14 | P12: =O12/$Q$4 -> 0.08187134503 | Q12: =IF(P12=0,0,(P12*((LOG(P12))/LOG(2)))) -> -0.2955962941 | T12: =N12 -> 212 | U12: =COUNTIF(L7:L35,T12) -> 2 | V12: =U12/(W4-U9) -> 0.06896551724 | W12: =IF(V12=0,0,(V12*((LOG(V12))/LOG(2)))) -> -0.2660676548 | Y12: =N12 -> 212 | Z12: =COUNTIF(L36:L63,Y12) -> 1 | AA12: =Z12/(AB4-Z9) -> 0.04166666667 | AB12: =IF(AA12=0,0,(AA12*((LOG(AA12))/LOG(2)))) -> -0.1910401042 | AD12: =N12 -> 212 | AE12: =COUNTIF(L64:L92,AD12) -> 2 | AF12: =AE12/(AG4-AE9) -> 0.07692307692 | AG12: =IF(AF12=0,0,(AF12*((LOG(AF12))/LOG(2)))) -> -0.2846492091 | AI12: =N12 -> 212 | AJ12: =COUNTIF(L93:L120,AI12) -> 2 | AK12: =AJ12/(AL4-AJ9) -> 0.07692307692 | AL12: =IF(AK12=0,0,(AK12*((LOG(AK12))/LOG(2)))) -> -0.2846492091 | AN12: =N12 -> 212 | AO12: =COUNTIF(L121:L149,AN12) -> 3 | AP12: =AO12/(AQ4-AO9) -> 0.1111111111 | AQ12: =IF(AP12=0,0,(AP12*((LOG(AP12))/LOG(2)))) -> -0.352213889 | AS12: =N12 -> 212 | AT12: =COUNTIF(L150:L177,AS12) -> 4 | AU12: =AT12/(AV4-AT9) -> 0.1481481481 | AV12: =IF(AU12=0,0,(AU12*((LOG(AU12))/LOG(2)))) -> -0.4081314818
A13: 11 | B13: 731 | C13: 12 | D13: 737 | E13: 13 | F13: 743 | K13: 0 | L13: 111 | N13: 221 | O13: =COUNTIF($L$7:$L$500,N13) -> 16 | P13: =O13/$Q$4 -> 0.09356725146 | Q13: =IF(P13=0,0,(P13*((LOG(P13))/LOG(2)))) -> -0.3197990657 | T13: =N13 -> 221 | U13: =COUNTIF(L7:L35,T13) -> 2 | V13: =U13/(W4-U9) -> 0.06896551724 | W13: =IF(V13=0,0,(V13*((LOG(V13))/LOG(2)))) -> -0.2660676548 | Y13: =N13 -> 221 | Z13: =COUNTIF(L36:L63,Y13) -> 4 | AA13: =Z13/(AB4-Z9) -> 0.1666666667 | AB13: =IF(AA13=0,0,(AA13*((LOG(AA13))/LOG(2)))) -> -0.4308270835 | AD13: =N13 -> 221 | AE13: =COUNTIF(L64:L92,AD13) -> 4 | AF13: =AE13/(AG4-AE9) -> 0.1538461538 | AG13: =IF(AF13=0,0,(AF13*((LOG(AF13))/LOG(2)))) -> -0.4154522643 | AI13: =N13 -> 221 | AJ13: =COUNTIF(L93:L120,AI13) -> 2 | AK13: =AJ13/(AL4-AJ9) -> 0.07692307692 | AL13: =IF(AK13=0,0,(AK13*((LOG(AK13))/LOG(2)))) -> -0.2846492091 | AN13: =N13 -> 221 | AO13: =COUNTIF(L121:L149,AN13) -> 4 | AP13: =AO13/(AQ4-AO9) -> 0.1481481481 | AQ13: =IF(AP13=0,0,(AP13*((LOG(AP13))/LOG(2)))) -> -0.4081314818 | AS13: =N13 -> 221 | AT13: =COUNTIF(L150:L177,AS13) -> 0 | AU13: =AT13/(AV4-AT9) -> 0 | AV13: =IF(AU13=0,0,(AU13*((LOG(AU13))/LOG(2)))) -> 0
A14: 22 | B14: 844 | C14: 14 | D14: 858 | E14: 24 | F14: 867 | K14: 0 | L14: 212 | N14: 222 | O14: =COUNTIF($L$7:$L$500,N14) -> 12 | P14: =O14/$Q$4 -> 0.0701754386 | Q14: =IF(P14=0,0,(P14*((LOG(P14))/LOG(2)))) -> -0.2689747378 | T14: =N14 -> 222 | U14: =COUNTIF(L7:L35,T14) -> 3 | V14: =U14/(W4-U9) -> 0.1034482759 | W14: =IF(V14=0,0,(V14*((LOG(V14))/LOG(2)))) -> -0.3385881201 | Y14: =N14 -> 222 | Z14: =COUNTIF(L36:L63,Y14) -> 1 | AA14: =Z14/(AB4-Z9) -> 0.04166666667 | AB14: =IF(AA14=0,0,(AA14*((LOG(AA14))/LOG(2)))) -> -0.1910401042 | AD14: =N14 -> 222 | AE14: =COUNTIF(L64:L92,AD14) -> 0 | AF14: =AE14/(AG4-AE9) -> 0 | AG14: =IF(AF14=0,0,(AF14*((LOG(AF14))/LOG(2)))) -> 0 | AI14: =N14 -> 222 | AJ14: =COUNTIF(L93:L120,AI14) -> 1 | AK14: =AJ14/(AL4-AJ9) -> 0.03846153846 | AL14: =IF(AK14=0,0,(AK14*((LOG(AK14))/LOG(2)))) -> -0.180786143 | AN14: =N14 -> 222 | AO14: =COUNTIF(L121:L149,AN14) -> 1 | AP14: =AO14/(AQ4-AO9) -> 0.03703703704 | AQ14: =IF(AP14=0,0,(AP14*((LOG(AP14))/LOG(2)))) -> -0.1761069445 | AS14: =N14 -> 222 | AT14: =COUNTIF(L150:L177,AS14) -> 6 | AU14: =AT14/(AV4-AT9) -> 0.2222222222 | AV14: =IF(AU14=0,0,(AU14*((LOG(AU14))/LOG(2)))) -> -0.4822055559
A15: 11 | B15: 968 | C15: 21 | D15: 978 | E15: 22 | F15: 990 | K15: 0 | L15: 122 | P15: =SUM(P7:P14) -> 1 | Q15: =-SUM(Q7:Q14) -> 2.569634692 | V15: =SUM(V7:V14) -> 1 | W15: =-SUM(W7:W14) -> 2.439395978 | AA15: =SUM(AA7:AA14) -> 1 | AB15: =-SUM(AB7:AB14) -> 2.185637129 | AF15: =SUM(AF7:AF14) -> 1 | AG15: =-SUM(AG7:AG14) -> 2.038159682 | AK15: =SUM(AK7:AK14) -> 1 | AL15: =-SUM(AL7:AL14) -> 1.825251737 | AP15: =SUM(AP7:AP14) -> 1 | AQ15: =-SUM(AQ7:AQ14) -> 2.037915412 | AU15: =SUM(AU7:AU14) -> 1 | AV15: =-SUM(AV7:AV14) -> 2.438986576
A16: 22 | B16: 1099 | C16: 14 | D16: 1115 | E16: 13 | F16: 1121 | K16: 0 | L16: 211 | P16: U= | Q16: =Q15/(LOG(Q4)/LOG(2)) -> 0.3464122112 | V16: U1= | W16: =W15/(LOG(W4)/LOG(2)) -> 0.5021419353 | AA16: U2= | AB16: =AB15/(LOG(AB4)/LOG(2)) -> 0.454644428 | AF16: U3= | AG16: =AG15/(LOG(AG4)/LOG(2)) -> 0.4195487145 | AK16: U4= | AL16: =AL15/(LOG(AL4)/LOG(2)) -> 0.3796790058 | AP16: U5= | AQ16: =AQ15/(LOG(AQ4)/LOG(2)) -> 0.4194984324 | AU16: U6= | AV16: =AV15/(LOG(AV4)/LOG(2)) -> 0.5073448113
A17: 22 | B17: 1226 | C17: 14 | D17: 1240 | E17: 13 | F17: 1246 | K17: 0 | L17: 211
A18: 11 | B18: 1357 | C18: 12 | D18: 1368 | E18: 13 | F18: 1373 | K18: 0 | L18: 111
A19: 11 | B19: 1479 | C19: 21 | D19: 1488 | E19: 22 | F19: 1495 | K19: 0 | L19: 122 | N19: Total Target Seq
A20: 22 | B20: 1597 | C20: 14 | D20: 1614 | E20: 13 | F20: 1621 | K20: 0 | L20: 211 | N20: =COUNTIF(L7:L177,G3) -> 12 | P20: 29 | Q20: 28 | R20: 29 | S20: 28 | T20: 29 | U20: 28
A21: 22 | B21: 1716 | C21: 14 | D21: 1733 | E21: 13 | F21: 1736 | K21: 0 | L21: 211 | P21: % of reinforcement given in 6 equal intervals based on number of trials
A22: 11 | B22: 1841 | C22: 21 | D22: 1854 | E22: 22 | F22: 1861 | K22: 0 | L22: 122 | P22: %_1 | Q22: %_2 | R22: %_3 | S22: %_4 | T22: %_5 | U22: %_6
A23: 22 | B23: 1956 | C23: 14 | D23: 1971 | E23: 13 | F23: 1978 | K23: 0 | L23: 211 | O23: target sequence | P23: =$G$3 -> 121 | Q23: =$G$3 -> 121 | R23: =$G$3 -> 121 | S23: =$G$3 -> 121 | T23: =$G$3 -> 121 | U23: =$G$3 -> 121
A24: 22 | B24: 2083 | C24: 23 | D24: 2102 | E24: 24 | F24: 2108 | K24: 0 | L24: 222 | O24: total reinforcement | P24: =U9 -> 0 | Q24: =Z9 -> 4 | R24: =AE9 -> 3 | S24: =AJ9 -> 2 | T24: =AO9 -> 2 | U24: =AT9 -> 1
A25: 22 | B25: 2210 | C25: 23 | D25: 2216 | E25: 13 | F25: 2233 | K25: 0 | L25: 221 | O25: % target
A26: 22 | B26: 2475 | C26: 14 | D26: 2487 | E26: 24 | F26: 2497 | K26: 0 | L26: 212 | O26: CCRF
A27: 22 | B27: 2597 | C27: 23 | D27: 2605 | E27: 24 | F27: 2613 | K27: 0 | L27: 222 | O27: % CCRf
A28: 11 | B28: 2728 | C28: 12 | D28: 2736 | E28: 24 | F28: 2747 | K28: 0 | L28: 112 | O28: average response rate | P28: =F35/P20 -> 124.5517241 | Q28: =(F63-F35)/Q20 -> 138.75 | R28: =(F92-F63)/R20 -> 146.0344828 | S28: =(F120-F92)/S20 -> 140.6785714 | T28: =(F149-F120)/T20 -> 151.4482759 | U28: =(F177-F149)/U20 -> 135.7857143
A29: 22 | B29: 2841 | C29: 14 | D29: 2858 | E29: 13 | F29: 2867 | K29: 0 | L29: 211
A30: 22 | B30: 2959 | C30: 14 | D30: 2971 | E30: 13 | F30: 2977 | K30: 0 | L30: 211
A31: 22 | B31: 3094 | C31: 14 | D31: 3106 | E31: 13 | F31: 3114 | K31: 0 | L31: 211
A32: 22 | B32: 3218 | C32: 23 | D32: 3223 | E32: 13 | F32: 3239 | K32: 0 | L32: 221
A33: 22 | B33: 3344 | C33: 14 | D33: 3354 | E33: 13 | F33: 3360 | K33: 0 | L33: 211
A34: 22 | B34: 3467 | C34: 14 | D34: 3483 | E34: 13 | F34: 3490 | K34: 0 | L34: 211
A35: 22 | B35: 3585 | C35: 14 | D35: 3604 | E35: 13 | F35: 3612 | K35: 0 | L35: 211
A36: 22 | B36: 3714 | C36: 23 | D36: 3726 | E36: 13 | F36: 3742 | K36: 0 | L36: 221
A37: 11 | B37: 3848 | C37: 21 | D37: 3857 | E37: 11 | F37: 3872 | K37: 0 | L37: 121
A38: 22 | B38: 4131 | C38: 14 | D38: 4143 | E38: 24 | F38: 4153 | K38: 0 | L38: 212
A39: 11 | B39: 4264 | C39: 21 | D39: 4272 | E39: 22 | F39: 4278 | K39: 0 | L39: 122
A40: 22 | B40: 4384 | C40: 14 | D40: 4400 | E40: 13 | F40: 4410 | K40: 0 | L40: 211
A41: 11 | B41: 4518 | C41: 12 | D41: 4527 | E41: 13 | F41: 4535 | K41: 0 | L41: 111
A42: 22 | B42: 4639 | C42: 14 | D42: 4650 | E42: 13 | F42: 4657 | K42: 0 | L42: 211
A43: 22 | B43: 4756 | C43: 14 | D43: 4767 | E43: 13 | F43: 4774 | K43: 0 | L43: 211
A44: 22 | B44: 4882 | C44: 14 | D44: 4896 | E44: 13 | F44: 4904 | K44: 0 | L44: 211
A45: 22 | B45: 5006 | C45: 23 | D45: 5014 | E45: 13 | F45: 5026 | K45: 0 | L45: 221
A46: 11 | B46: 5127 | C46: 21 | D46: 5134 | E46: 22 | F46: 5142 | K46: 0 | L46: 122
A47: 11 | B47: 5245 | C47: 21 | D47: 5256 | E47: 11 | F47: 5276 | K47: 0 | L47: 121
A48: 22 | B48: 5530 | C48: 14 | D48: 5543 | E48: 13 | F48: 5550 | K48: 0 | L48: 211
A49: 22 | B49: 5649 | C49: 23 | D49: 5657 | E49: 13 | F49: 5669 | K49: 0 | L49: 221
A50: 11 | B50: 5770 | C50: 21 | D50: 5794 | E50: 22 | F50: 5799 | K50: 0 | L50: 122
A51: 22 | B51: 5894 | C51: 23 | D51: 5904 | E51: 24 | F51: 5911 | K51: 0 | L51: 222
A52: 22 | B52: 6008 | C52: 14 | D52: 6019 | E52: 13 | F52: 6026 | K52: 0 | L52: 211
A53: 22 | B53: 6125 | C53: 14 | D53: 6137 | E53: 13 | F53: 6144 | K53: 0 | L53: 211
A54: 22 | B54: 6244 | C54: 14 | D54: 6258 | E54: 13 | F54: 6264 | K54: 0 | L54: 211
A55: 22 | B55: 6361 | C55: 14 | D55: 6373 | E55: 13 | F55: 6378 | K55: 0 | L55: 211
A56: 11 | B56: 6479 | C56: 12 | D56: 6502 | E56: 13 | F56: 6510 | K56: 0 | L56: 111
A57: 11 | B57: 6610 | C57: 21 | D57: 6617 | E57: 11 | F57: 6633 | K57: 0 | L57: 121
A58: 11 | B58: 6865 | C58: 21 | D58: 6875 | E58: 22 | F58: 6880 | K58: 0 | L58: 122
A59: 11 | B59: 6986 | C59: 21 | D59: 6995 | E59: 22 | F59: 6999 | K59: 0 | L59: 122
A60: 22 | B60: 7105 | C60: 14 | D60: 7115 | E60: 13 | F60: 7123 | K60: 0 | L60: 211
A61: 22 | B61: 7219 | C61: 23 | D61: 7226 | E61: 13 | F61: 7243 | K61: 0 | L61: 221
A62: 11 | B62: 7358 | C62: 12 | D62: 7364 | E62: 13 | F62: 7372 | K62: 0 | L62: 111
A63: 11 | B63: 7477 | C63: 21 | D63: 7483 | E63: 11 | F63: 7497 | K63: 0 | L63: 121
A64: 22 | B64: 7751 | C64: 14 | D64: 7763 | E64: 13 | F64: 7772 | K64: 0 | L64: 211
A65: 22 | B65: 7871 | C65: 14 | D65: 7885 | E65: 13 | F65: 7893 | K65: 0 | L65: 211
A66: 22 | B66: 7998 | C66: 14 | D66: 8012 | E66: 13 | F66: 8021 | K66: 0 | L66: 211
A67: 11 | B67: 8127 | C67: 12 | D67: 8134 | E67: 13 | F67: 8143 | K67: 0 | L67: 111
A68: 11 | B68: 8257 | C68: 12 | D68: 8263 | E68: 13 | F68: 8272 | K68: 0 | L68: 111
A69: 11 | B69: 8373 | C69: 12 | D69: 8379 | E69: 13 | F69: 8388 | K69: 0 | L69: 111
A70: 22 | B70: 8486 | C70: 14 | D70: 8498 | E70: 13 | F70: 8504 | K70: 0 | L70: 211
A71: 22 | B71: 8603 | C71: 23 | D71: 8609 | E71: 13 | F71: 8628 | K71: 0 | L71: 221
A72: 11 | B72: 8732 | C72: 12 | D72: 8740 | E72: 13 | F72: 8749 | K72: 0 | L72: 111
A73: 22 | B73: 8861 | C73: 23 | D73: 8865 | E73: 13 | F73: 8882 | K73: 0 | L73: 221
A74: 11 | B74: 9013 | C74: 12 | D74: 9021 | E74: 13 | F74: 9031 | K74: 0 | L74: 111
A75: 22 | B75: 9146 | C75: 14 | D75: 9161 | E75: 13 | F75: 9169 | K75: 0 | L75: 211
A76: 11 | B76: 9270 | C76: 21 | D76: 9280 | E76: 11 | F76: 9293 | K76: 0 | L76: 121
A77: 11 | B77: 9553 | C77: 12 | D77: 9576 | E77: 13 | F77: 9590 | K77: 0 | L77: 111
A78: 11 | B78: 9695 | C78: 21 | D78: 9710 | E78: 22 | F78: 9716 | K78: 0 | L78: 122
A79: 11 | B79: 9820 | C79: 12 | D79: 9829 | E79: 13 | F79: 9838 | K79: 0 | L79: 111
A80: 22 | B80: 9936 | C80: 23 | D80: 9941 | E80: 13 | F80: 9955 | K80: 0 | L80: 221
A81: 22 | B81: 10055 | C81: 14 | D81: 10074 | E81: 13 | F81: 10089 | K81: 0 | L81: 211
A82: 11 | B82: 10196 | C82: 21 | D82: 10203 | E82: 11 | F82: 10220 | K82: 0 | L82: 121
A83: 22 | B83: 10428 | C83: 14 | D83: 10442 | E83: 13 | F83: 10449 | K83: 0 | L83: 211
A84: 22 | B84: 10552 | C84: 23 | D84: 10561 | E84: 13 | F84: 10575 | K84: 0 | L84: 221
A85: 11 | B85: 10689 | C85: 21 | D85: 10698 | E85: 22 | F85: 10701 | K85: 0 | L85: 122
A86: 22 | B86: 10805 | C86: 14 | D86: 10818 | E86: 13 | F86: 10828 | K86: 0 | L86: 211
A87: 22 | B87: 10926 | C87: 14 | D87: 10937 | E87: 13 | F87: 10945 | K87: 0 | L87: 211
A88: 22 | B88: 11044 | C88: 14 | D88: 11059 | E88: 13 | F88: 11069 | K88: 0 | L88: 211
A89: 11 | B89: 11176 | C89: 21 | D89: 11189 | E89: 11 | F89: 11204 | K89: 0 | L89: 121
A90: 11 | B90: 11468 | C90: 12 | D90: 11474 | E90: 13 | F90: 11481 | K90: 0 | L90: 111
A91: 22 | B91: 11577 | C91: 14 | D91: 11592 | E91: 24 | F91: 11602 | K91: 0 | L91: 212
A92: 22 | B92: 11709 | C92: 14 | D92: 11723 | E92: 24 | F92: 11732 | K92: 0 | L92: 212
A93: 22 | B93: 11838 | C93: 14 | D93: 11856 | E93: 13 | F93: 11865 | K93: 0 | L93: 211
A94: 22 | B94: 11971 | C94: 14 | D94: 11983 | E94: 13 | F94: 11992 | K94: 0 | L94: 211
A95: 11 | B95: 12099 | C95: 12 | D95: 12106 | E95: 13 | F95: 12114 | K95: 0 | L95: 111
A96: 22 | B96: 12215 | C96: 23 | D96: 12236 | E96: 24 | F96: 12253 | K96: 0 | L96: 222
A97: 11 | B97: 12368 | C97: 21 | D97: 12375 | E97: 22 | F97: 12396 | K97: 0 | L97: 122
A98: 22 | B98: 12497 | C98: 14 | D98: 12514 | E98: 13 | F98: 12522 | K98: 0 | L98: 211
A99: 22 | B99: 12620 | C99: 14 | D99: 12632 | E99: 13 | F99: 12640 | K99: 0 | L99: 211
A100: 22 | B100: 12740 | C100: 14 | D100: 12757 | E100: 13 | F100: 12767 | K100: 0 | L100: 211
A101: 22 | B101: 12884 | C101: 14 | D101: 12897 | E101: 13 | F101: 12905 | K101: 0 | L101: 211
A102: 22 | B102: 13014 | C102: 14 | D102: 13029 | E102: 13 | F102: 13037 | K102: 0 | L102: 211
A103: 22 | B103: 13139 | C103: 14 | D103: 13153 | E103: 13 | F103: 13160 | K103: 0 | L103: 211
A104: 11 | B104: 13255 | C104: 21 | D104: 13262 | E104: 22 | F104: 13268 | K104: 0 | L104: 122
A105: 22 | B105: 13380 | C105: 14 | D105: 13391 | E105: 13 | F105: 13399 | K105: 0 | L105: 211
A106: 22 | B106: 13507 | C106: 14 | D106: 13532 | E106: 13 | F106: 13541 | K106: 0 | L106: 211
A107: 22 | B107: 13641 | C107: 23 | D107: 13645 | E107: 13 | F107: 13660 | K107: 0 | L107: 221
A108: 22 | B108: 13770 | C108: 14 | D108: 13786 | E108: 13 | F108: 13795 | K108: 0 | L108: 211
A109: 22 | B109: 13891 | C109: 23 | D109: 13898 | E109: 13 | F109: 13914 | K109: 0 | L109: 221
A110: 11 | B110: 14019 | C110: 21 | D110: 14028 | E110: 11 | F110: 14051 | K110: 0 | L110: 121
A111: 11 | B111: 14359 | C111: 12 | D111: 14368 | E111: 13 | F111: 14377 | K111: 0 | L111: 111
A112: 22 | B112: 14473 | C112: 14 | D112: 14490 | E112: 13 | F112: 14501 | K112: 0 | L112: 211
A113: 22 | B113: 14609 | C113: 14 | D113: 14622 | E113: 13 | F113: 14631 | K113: 0 | L113: 211
A114: 22 | B114: 14731 | C114: 14 | D114: 14752 | E114: 13 | F114: 14761 | K114: 0 | L114: 211
A115: 11 | B115: 14886 | C115: 12 | D115: 14894 | E115: 13 | F115: 14904 | K115: 0 | L115: 111
A116: 22 | B116: 15021 | C116: 14 | D116: 15035 | E116: 13 | F116: 15043 | K116: 0 | L116: 211
A117: 22 | B117: 15137 | C117: 14 | D117: 15154 | E117: 13 | F117: 15162 | K117: 0 | L117: 211
A118: 22 | B118: 15258 | C118: 14 | D118: 15276 | E118: 24 | F118: 15289 | K118: 0 | L118: 212
A119: 11 | B119: 15390 | C119: 21 | D119: 15400 | E119: 11 | F119: 15414 | K119: 0 | L119: 121
A120: 22 | B120: 15646 | C120: 14 | D120: 15661 | E120: 24 | F120: 15671 | K120: 0 | L120: 212
A121: 22 | B121: 15769 | C121: 14 | D121: 15783 | E121: 13 | F121: 15792 | K121: 0 | L121: 211
A122: 22 | B122: 15889 | C122: 14 | D122: 15907 | E122: 13 | F122: 15921 | K122: 0 | L122: 211
A123: 22 | B123: 16020 | C123: 14 | D123: 16032 | E123: 13 | F123: 16042 | K123: 0 | L123: 211
A124: 22 | B124: 16137 | C124: 14 | D124: 16150 | E124: 13 | F124: 16158 | K124: 0 | L124: 211
A125: 22 | B125: 16260 | C125: 14 | D125: 16279 | E125: 13 | F125: 16287 | K125: 0 | L125: 211
A126: 22 | B126: 16384 | C126: 14 | D126: 16399 | E126: 24 | F126: 16411 | K126: 0 | L126: 212
A127: 22 | B127: 16528 | C127: 14 | D127: 16539 | E127: 13 | F127: 16552 | K127: 0 | L127: 211
A128: 11 | B128: 16654 | C128: 21 | D128: 16662 | E128: 11 | F128: 16676 | K128: 0 | L128: 121
A129: 11 | B129: 16918 | C129: 12 | D129: 16925 | E129: 13 | F129: 16934 | K129: 0 | L129: 111
A130: 22 | B130: 17071 | C130: 14 | D130: 17088 | E130: 13 | F130: 17097 | K130: 0 | L130: 211
A131: 22 | B131: 17193 | C131: 14 | D131: 17209 | E131: 24 | F131: 17217 | K131: 0 | L131: 212
A132: 22 | B132: 17332 | C132: 14 | D132: 17346 | E132: 13 | F132: 17355 | K132: 0 | L132: 211
A133: 22 | B133: 17469 | C133: 14 | D133: 17478 | E133: 13 | F133: 17486 | K133: 0 | L133: 211
A134: 22 | B134: 17591 | C134: 14 | D134: 17601 | E134: 13 | F134: 17611 | K134: 0 | L134: 211
A135: 22 | B135: 17714 | C135: 14 | D135: 17733 | E135: 13 | F135: 17740 | K135: 0 | L135: 211
A136: 22 | B136: 17861 | C136: 14 | D136: 17874 | E136: 13 | F136: 17884 | K136: 0 | L136: 211
A137: 22 | B137: 17979 | C137: 14 | D137: 17997 | E137: 13 | F137: 18006 | K137: 0 | L137: 211
A138: 11 | B138: 18142 | C138: 12 | D138: 18151 | E138: 24 | F138: 18162 | K138: 0 | L138: 112
A139: 22 | B139: 18442 | C139: 23 | D139: 18448 | E139: 13 | F139: 18465 | K139: 0 | L139: 221
A140: 22 | B140: 18557 | C140: 14 | D140: 18574 | E140: 24 | F140: 18583 | K140: 0 | L140: 212
A141: 11 | B141: 18685 | C141: 21 | D141: 18693 | E141: 11 | F141: 18706 | K141: 0 | L141: 121
A142: 22 | B142: 18887 | C142: 14 | D142: 18907 | E142: 13 | F142: 18917 | K142: 0 | L142: 211
A143: 22 | B143: 19016 | C143: 23 | D143: 19024 | E143: 13 | F143: 19045 | K143: 0 | L143: 221
A144: 22 | B144: 19145 | C144: 23 | D144: 19150 | E144: 13 | F144: 19162 | K144: 0 | L144: 221
A145: 22 | B145: 19261 | C145: 23 | D145: 19269 | E145: 24 | F145: 19294 | K145: 0 | L145: 222
A146: 22 | B146: 19535 | C146: 14 | D146: 19549 | E146: 13 | F146: 19556 | K146: 0 | L146: 211
A147: 11 | B147: 19663 | C147: 21 | D147: 19671 | E147: 22 | F147: 19677 | K147: 0 | L147: 122
A148: 11 | B148: 19917 | C148: 21 | D148: 19926 | E148: 22 | F148: 19932 | K148: 0 | L148: 122
A149: 22 | B149: 20036 | C149: 23 | D149: 20044 | E149: 13 | F149: 20063 | K149: 0 | L149: 221
A150: 11 | B150: 20168 | C150: 21 | D150: 20177 | E150: 22 | F150: 20184 | K150: 0 | L150: 122
A151: 22 | B151: 20291 | C151: 23 | D151: 20296 | E151: 24 | F151: 20304 | K151: 0 | L151: 222
A152: 22 | B152: 20401 | C152: 14 | D152: 20417 | E152: 24 | F152: 20426 | K152: 0 | L152: 212
A153: 22 | B153: 20523 | C153: 14 | D153: 20535 | E153: 24 | F153: 20547 | K153: 0 | L153: 212
A154: 22 | B154: 20646 | C154: 14 | D154: 20663 | E154: 13 | F154: 20672 | K154: 0 | L154: 211
A155: 11 | B155: 20794 | C155: 12 | D155: 20809 | E155: 13 | F155: 20818 | K155: 0 | L155: 111
A156: 11 | B156: 21022 | C156: 21 | D156: 21032 | E156: 22 | F156: 21037 | K156: 0 | L156: 122
A157: 11 | B157: 21141 | C157: 21 | D157: 21150 | E157: 22 | F157: 21157 | K157: 0 | L157: 122
A158: 22 | B158: 21271 | C158: 23 | D158: 21278 | E158: 24 | F158: 21285 | K158: 0 | L158: 222
A159: 11 | B159: 21390 | C159: 21 | D159: 21399 | E159: 22 | F159: 21406 | K159: 0 | L159: 122
A160: 22 | B160: 21502 | C160: 14 | D160: 21521 | E160: 13 | F160: 21527 | K160: 0 | L160: 211
A161: 22 | B161: 21625 | C161: 14 | D161: 21637 | E161: 24 | F161: 21646 | K161: 0 | L161: 212
A162: 22 | B162: 21747 | C162: 14 | D162: 21761 | E162: 13 | F162: 21771 | K162: 0 | L162: 211
A163: 22 | B163: 21891 | C163: 23 | D163: 21896 | E163: 24 | F163: 21903 | K163: 0 | L163: 222
A164: 11 | B164: 22001 | C164: 12 | D164: 22015 | E164: 13 | F164: 22021 | K164: 0 | L164: 111
A165: 11 | B165: 22125 | C165: 21 | D165: 22134 | E165: 11 | F165: 22149 | K165: 0 | L165: 121
A166: 22 | B166: 22387 | C166: 14 | D166: 22402 | E166: 24 | F166: 22412 | K166: 0 | L166: 212
A167: 22 | B167: 22526 | C167: 23 | D167: 22532 | E167: 24 | F167: 22537 | K167: 0 | L167: 222
A168: 11 | B168: 22666 | C168: 12 | D168: 22675 | E168: 13 | F168: 22685 | K168: 0 | L168: 111
A169: 22 | B169: 22794 | C169: 14 | D169: 22809 | E169: 13 | F169: 22814 | K169: 0 | L169: 211
A170: 22 | B170: 22919 | C170: 23 | D170: 22935 | E170: 24 | F170: 22941 | K170: 0 | L170: 222
A171: 11 | B171: 23044 | C171: 21 | D171: 23051 | E171: 22 | F171: 23056 | K171: 0 | L171: 122
A172: 22 | B172: 23162 | C172: 23 | D172: 23168 | E172: 24 | F172: 23174 | K172: 0 | L172: 222
A173: 11 | B173: 23276 | C173: 21 | D173: 23288 | E173: 22 | F173: 23294 | K173: 0 | L173: 122
A174: 22 | B174: 23424 | C174: 14 | D174: 23443 | E174: 13 | F174: 23451 | K174: 0 | L174: 211
A175: 22 | B175: 23554 | C175: 14 | D175: 23572 | E175: 13 | F175: 23578 | K175: 0 | L175: 211
A176: 11 | B176: 23683 | C176: 12 | D176: 23702 | E176: 13 | F176: 23717 | K176: 0 | L176: 111
A177: 11 | B177: 23843 | C177: 12 | D177: 23852 | E177: 24 | F177: 23865 | K177: 0 | L177: 112

Sheet !M226A5D.UST
A1: Report for:!M226A5D.UST
A2: Date: | B2: <date>
A3: Hen: | B3: <hen> | F3: Correct Sequence | G3: =Start!J2 -> 121 | P3: Total Sequences in Data | Q3: =4994-COUNTBLANK(L7:L5000) -> 161 | V3: Total Sequences in Block Data | W3: =COUNTA(L7:L33) -> 27 | AA3: Total Sequences in Block Data | AB3: =COUNTA(L34:L60) -> 27 | AF3: Total Sequences in Block Data | AG3: =COUNTA(L61:L86) -> 26 | AK3: Total Sequences in Block Data | AL3: =COUNTA(L87:L113) -> 27 | AP3: Total Sequences in Block Data | AQ3: =COUNTA(L114:L140) -> 27 | AU3: Total Sequences in Block Data | AV3: =COUNTA(L141:L167) -> 27
P4: Total Sequences in Summary | Q4: =SUM(O7:O14) -> 161 | V4: Total Sequences in Block Summary | W4: =SUM(U7:U14) -> 27 | AA4: Total Sequences in Block Summary | AB4: =SUM(Z7:Z14) -> 27 | AF4: Total Sequences in Block Summary | AG4: =SUM(AE7:AE14) -> 26 | AK4: Total Sequences in Block Summary | AL4: =SUM(AJ7:AJ14) -> 27 | AP4: Total Sequences in Block Summary | AQ4: =SUM(AO7:AO14) -> 27 | AU4: Total Sequences in Block Summary | AV4: =SUM(AT7:AT14) -> 27
T5: Block 1 | Y5: Block 2 | AD5: Block 3 | AI5: Block 4 | AN5: Block 5 | AS5: Block 6
A6: Sequence Component 1 | B6: Time 1 | C6: Sequence Component 2 | D6: Time 2 | E6: Sequence Component 3 | F6: Time 3 | G6: Sequence Component 4 | H6: Time 4 | I6: Sequence Component 5 | J6: Time 5 | K6: Correct? 0=No 1=Yes | L6: Sequence | N6: Frequency | P6: Relative Frequency | Q6: Variability | T6: Frequency | V6: Relative Frequency | W6: Variability | Y6: Frequency | AA6: Relative Frequency | AB6: Variability | AD6: Frequency | AF6: Relative Frequency | AG6: Variability | AI6: Frequency | AK6: Relative Frequency | AL6: Variability | AN6: Frequency | AP6: Relative Frequency | AQ6: Variability | AS6: Frequency | AU6: Relative Frequency | AV6: Variability
A7: 11 | B7: 31 | C7: 12 | D7: 36 | E7: 24 | F7: 46 | K7: 0 | L7: 112 | N7: 111 | O7: =COUNTIF($L$7:$L$500,N7) -> 32 | P7: =O7/$Q$4 -> 0.198757764 | Q7: =IF(P7=0,0,(P7*((LOG(P7))/LOG(2)))) -> -0.4632878267 | T7: =N7 -> 111 | U7: =COUNTIF(L7:L33,T7) -> 5 | V7: =U7/(W4-U9) -> 0.1923076923 | W7: =IF(V7=0,0,(V7*((LOG(V7))/LOG(2)))) -> -0.4574060814 | Y7: =N7 -> 111 | Z7: =COUNTIF(L34:L60,Y7) -> 6 | AA7: =Z7/(AB4-Z9) -> 0.25 | AB7: =IF(AA7=0,0,(AA7*((LOG(AA7))/LOG(2)))) -> -0.5 | AD7: =N7 -> 111 | AE7: =COUNTIF(L61:L86,AD7) -> 5 | AF7: =AE7/(AG4-AE9) -> 0.1923076923 | AG7: =IF(AF7=0,0,(AF7*((LOG(AF7))/LOG(2)))) -> -0.4574060814 | AI7: =N7 -> 111 | AJ7: =COUNTIF(L87:L113,AI7) -> 7 | AK7: =AJ7/(AL4-AJ9) -> 0.3333333333 | AL7: =IF(AK7=0,0,(AK7*((LOG(AK7))/LOG(2)))) -> -0.5283208336 | AN7: =N7 -> 111 | AO7: =COUNTIF(L114:L140,AN7) -> 8 | AP7: =AO7/(AQ4-AO9) -> 0.32 | AQ7: =IF(AP7=0,0,(AP7*((LOG(AP7))/LOG(2)))) -> -0.5260339807 | AS7: =N7 -> 111 | AT7: =COUNTIF(L141:L167,AS7) -> 1 | AU7: =AT7/(AV4-AT9) -> 0.03846153846 | AV7: =IF(AU7=0,0,(AU7*((LOG(AU7))/LOG(2)))) -> -0.180786143
A8: 11 | B8: 145 | C8: 21 | D8: 153 | E8: 11 | F8: 168 | K8: 0 | L8: 121 | N8: 112 | O8: =COUNTIF($L$7:$L$500,N8) -> 6 | P8: =O8/$Q$4 -> 0.03726708075 | Q8: =IF(P8=0,0,(P8*((LOG(P8))/LOG(2)))) -> -0.176867865 | T8: =N8 -> 112 | U8: =COUNTIF(L7:L33,T8) -> 2 | V8: =U8/(W4-U9) -> 0.07692307692 | W8: =IF(V8=0,0,(V8*((LOG(V8))/LOG(2)))) -> -0.2846492091 | Y8: =N8 -> 112 | Z8: =COUNTIF(L34:L60,Y8) -> 1 | AA8: =Z8/(AB4-Z9) -> 0.04166666667 | AB8: =IF(AA8=0,0,(AA8*((LOG(AA8))/LOG(2)))) -> -0.1910401042 | AD8: =N8 -> 112 | AE8: =COUNTIF(L61:L86,AD8) -> 0 | AF8: =AE8/(AG4-AE9) -> 0 | AG8: =IF(AF8=0,0,(AF8*((LOG(AF8))/LOG(2)))) -> 0 | AI8: =N8 -> 112 | AJ8: =COUNTIF(L87:L113,AI8) -> 0 | AK8: =AJ8/(AL4-AJ9) -> 0 | AL8: =IF(AK8=0,0,(AK8*((LOG(AK8))/LOG(2)))) -> 0 | AN8: =N8 -> 112 | AO8: =COUNTIF(L114:L140,AN8) -> 1 | AP8: =AO8/(AQ4-AO9) -> 0.04 | AQ8: =IF(AP8=0,0,(AP8*((LOG(AP8))/LOG(2)))) -> -0.1857542476 | AS8: =N8 -> 112 | AT8: =COUNTIF(L141:L167,AS8) -> 2 | AU8: =AT8/(AV4-AT9) -> 0.07692307692 | AV8: =IF(AU8=0,0,(AU8*((LOG(AU8))/LOG(2)))) -> -0.2846492091
A9: 22 | B9: 357 | C9: 23 | D9: 365 | E9: 13 | F9: 382 | K9: 0 | L9: 221 | N9: 121 | O9: =COUNTIF($L$7:$L$500,N9) -> 13 | P9: =O9/$Q$4 -> 0.08074534161 | Q9: =IF(P9=0,0,(P9*((LOG(P9))/LOG(2)))) -> -0.2931441185 | T9: =N9 -> 121 | U9: =COUNTIF(L7:L33,T9) -> 1 | Y9: =N9 -> 121 | Z9: =COUNTIF(L34:L60,Y9) -> 3 | AD9: =N9 -> 121 | AE9: =COUNTIF(L61:L86,AD9) -> 0 | AI9: =N9 -> 121 | AJ9: =COUNTIF(L87:L113,AI9) -> 6 | AN9: =N9 -> 121 | AO9: =COUNTIF(L114:L140,AN9) -> 2 | AS9: =N9 -> 121 | AT9: =COUNTIF(L141:L167,AS9) -> 1
A10: 11 | B10: 484 | C10: 21 | D10: 492 | E10: 22 | F10: 498 | K10: 0 | L10: 122 | N10: 122 | O10: =COUNTIF($L$7:$L$500,N10) -> 26 | P10: =O10/$Q$4 -> 0.1614906832 | Q10: =IF(P10=0,0,(P10*((LOG(P10))/LOG(2)))) -> -0.4247975538 | T10: =N10 -> 122 | U10: =COUNTIF(L7:L33,T10) -> 5 | V10: =U10/(W4-U9) -> 0.1923076923 | W10: =IF(V10=0,0,(V10*((LOG(V10))/LOG(2)))) -> -0.4574060814 | Y10: =N10 -> 122 | Z10: =COUNTIF(L34:L60,Y10) -> 6 | AA10: =Z10/(AB4-Z9) -> 0.25 | AB10: =IF(AA10=0,0,(AA10*((LOG(AA10))/LOG(2)))) -> -0.5 | AD10: =N10 -> 122 | AE10: =COUNTIF(L61:L86,AD10) -> 7 | AF10: =AE10/(AG4-AE9) -> 0.2692307692 | AG10: =IF(AF10=0,0,(AF10*((LOG(AF10))/LOG(2)))) -> -0.5096766759 | AI10: =N10 -> 122 | AJ10: =COUNTIF(L87:L113,AI10) -> 2 | AK10: =AJ10/(AL4-AJ9) -> 0.09523809524 | AL10: =IF(AK10=0,0,(AK10*((LOG(AK10))/LOG(2)))) -> -0.3230778498 | AN10: =N10 -> 122 | AO10: =COUNTIF(L114:L140,AN10) -> 2 | AP10: =AO10/(AQ4-AO9) -> 0.08 | AQ10: =IF(AP10=0,0,(AP10*((LOG(AP10))/LOG(2)))) -> -0.2915084952 | AS10: =N10 -> 122 | AT10: =COUNTIF(L141:L167,AS10) -> 4 | AU10: =AT10/(AV4-AT9) -> 0.1538461538 | AV10: =IF(AU10=0,0,(AU10*((LOG(AU10))/LOG(2)))) -> -0.4154522643
A11: 22 | B11: 595 | C11: 14 | D11: 611 | E11: 13 | F11: 617 | K11: 0 | L11: 211 | N11: 211 | O11: =COUNTIF($L$7:$L$500,N11) -> 43 | P11: =O11/$Q$4 -> 0.2670807453 | Q11: =IF(P11=0,0,(P11*((LOG(P11))/LOG(2)))) -> -0.5086959087 | T11: =N11 -> 211 | U11: =COUNTIF(L7:L33,T11) -> 6 | V11: =U11/(W4-U9) -> 0.2307692308 | W11: =IF(V11=0,0,(V11*((LOG(V11))/LOG(2)))) -> -0.4881870502 | Y11: =N11 -> 211 | Z11: =COUNTIF(L34:L60,Y11) -> 4 | AA11: =Z11/(AB4-Z9) -> 0.1666666667 | AB11: =IF(AA11=0,0,(AA11*((LOG(AA11))/LOG(2)))) -> -0.4308270835 | AD11: =N11 -> 211 | AE11: =COUNTIF(L61:L86,AD11) -> 9 | AF11: =AE11/(AG4-AE9) -> 0.3461538462 | AG11: =IF(AF11=0,0,(AF11*((LOG(AF11))/LOG(2)))) -> -0.5297935558 | AI11: =N11 -> 211 | AJ11: =COUNTIF(L87:L113,AI11) -> 6 | AK11: =AJ11/(AL4-AJ9) -> 0.2857142857 | AL11: =IF(AK11=0,0,(AK11*((LOG(AK11))/LOG(2)))) -> -0.5163871206 | AN11: =N11 -> 211 | AO11: =COUNTIF(L114:L140,AN11) -> 8 | AP11: =AO11/(AQ4-AO9) -> 0.32 | AQ11: =IF(AP11=0,0,(AP11*((LOG(AP11))/LOG(2)))) -> -0.5260339807 | AS11: =N11 -> 211 | AT11: =COUNTIF(L141:L167,AS11) -> 10 | AU11: =AT11/(AV4-AT9) -> 0.3846153846 | AV11: =IF(AU11=0,0,(AU11*((LOG(AU11))/LOG(2)))) -> -0.5301967782
A12: 11 | B12: 716 | C12: 21 | D12: 724 | E12: 22 | F12: 743 | K12: 0 | L12: 122 | N12: 212 | O12: =COUNTIF($L$7:$L$500,N12) -> 14 | P12: =O12/$Q$4 -> 0.08695652174 | Q12: =IF(P12=0,0,(P12*((LOG(P12))/LOG(2)))) -> -0.3063966918 | T12: =N12 -> 212 | U12: =COUNTIF(L7:L33,T12) -> 2 | V12: =U12/(W4-U9) -> 0.07692307692 | W12: =IF(V12=0,0,(V12*((LOG(V12))/LOG(2)))) -> -0.2846492091 | Y12: =N12 -> 212 | Z12: =COUNTIF(L34:L60,Y12) -> 3 | AA12: =Z12/(AB4-Z9) -> 0.125 | AB12: =IF(AA12=0,0,(AA12*((LOG(AA12))/LOG(2)))) -> -0.375 | AD12: =N12 -> 212 | AE12: =COUNTIF(L61:L86,AD12) -> 1 | AF12: =AE12/(AG4-AE9) -> 0.03846153846 | AG12: =IF(AF12=0,0,(AF12*((LOG(AF12))/LOG(2)))) -> -0.180786143 | AI12: =N12 -> 212 | AJ12: =COUNTIF(L87:L113,AI12) -> 2 | AK12: =AJ12/(AL4-AJ9) -> 0.09523809524 | AL12: =IF(AK12=0,0,(AK12*((LOG(AK12))/LOG(2)))) -> -0.3230778498 | AN12: =N12 -> 212 | AO12: =COUNTIF(L114:L140,AN12) -> 5 | AP12: =AO12/(AQ4-AO9) -> 0.2 | AQ12: =IF(AP12=0,0,(AP12*((LOG(AP12))/LOG(2)))) -> -0.464385619 | AS12: =N12 -> 212 | AT12: =COUNTIF(L141:L167,AS12) -> 1 | AU12: =AT12/(AV4-AT9) -> 0.03846153846 | AV12: =IF(AU12=0,0,(AU12*((LOG(AU12))/LOG(2)))) -> -0.180786143
A13: 11 | B13: 854 | C13: 12 | D13: 859 | E13: 13 | F13: 866 | K13: 0 | L13: 111 | N13: 221 | O13: =COUNTIF($L$7:$L$500,N13) -> 13 | P13: =O13/$Q$4 -> 0.08074534161 | Q13: =IF(P13=0,0,(P13*((LOG(P13))/LOG(2)))) -> -0.2931441185 | T13: =N13 -> 221 | U13: =COUNTIF(L7:L33,T13) -> 1 | V13: =U13/(W4-U9) -> 0.03846153846 | W13: =IF(V13=0,0,(V13*((LOG(V13))/LOG(2)))) -> -0.180786143 | Y13: =N13 -> 221 | Z13: =COUNTIF(L34:L60,Y13) -> 1 | AA13: =Z13/(AB4-Z9) -> 0.04166666667 | AB13: =IF(AA13=0,0,(AA13*((LOG(AA13))/LOG(2)))) -> -0.1910401042 | AD13: =N13 -> 221 | AE13: =COUNTIF(L61:L86,AD13) -> 4 | AF13: =AE13/(AG4-AE9) -> 0.1538461538 | AG13: =IF(AF13=0,0,(AF13*((LOG(AF13))/LOG(2)))) -> -0.4154522643 | AI13: =N13 -> 221 | AJ13: =COUNTIF(L87:L113,AI13) -> 2 | AK13: =AJ13/(AL4-AJ9) -> 0.09523809524 | AL13: =IF(AK13=0,0,(AK13*((LOG(AK13))/LOG(2)))) -> -0.3230778498 | AN13: =N13 -> 221 | AO13: =COUNTIF(L114:L140,AN13) -> 0 | AP13: =AO13/(AQ4-AO9) -> 0 | AQ13: =IF(AP13=0,0,(AP13*((LOG(AP13))/LOG(2)))) -> 0 | AS13: =N13 -> 221 | AT13: =COUNTIF(L141:L167,AS13) -> 5 | AU13: =AT13/(AV4-AT9) -> 0.1923076923 | AV13: =IF(AU13=0,0,(AU13*((LOG(AU13))/LOG(2)))) -> -0.4574060814
A14: 11 | B14: 1205 | C14: 12 | D14: 1213 | E14: 13 | F14: 1219 | K14: 0 | L14: 111 | N14: 222 | O14: =COUNTIF($L$7:$L$500,N14) -> 14 | P14: =O14/$Q$4 -> 0.08695652174 | Q14: =IF(P14=0,0,(P14*((LOG(P14))/LOG(2)))) -> -0.3063966918 | T14: =N14 -> 222 | U14: =COUNTIF(L7:L33,T14) -> 5 | V14: =U14/(W4-U9) -> 0.1923076923 | W14: =IF(V14=0,0,(V14*((LOG(V14))/LOG(2)))) -> -0.4574060814 | Y14: =N14 -> 222 | Z14: =COUNTIF(L34:L60,Y14) -> 3 | AA14: =Z14/(AB4-Z9) -> 0.125 | AB14: =IF(AA14=0,0,(AA14*((LOG(AA14))/LOG(2)))) -> -0.375 | AD14: =N14 -> 222 | AE14: =COUNTIF(L61:L86,AD14) -> 0 | AF14: =AE14/(AG4-AE9) -> 0 | AG14: =IF(AF14=0,0,(AF14*((LOG(AF14))/LOG(2)))) -> 0 | AI14: =N14 -> 222 | AJ14: =COUNTIF(L87:L113,AI14) -> 2 | AK14: =AJ14/(AL4-AJ9) -> 0.09523809524 | AL14: =IF(AK14=0,0,(AK14*((LOG(AK14))/LOG(2)))) -> -0.3230778498 | AN14: =N14 -> 222 | AO14: =COUNTIF(L114:L140,AN14) -> 1 | AP14: =AO14/(AQ4-AO9) -> 0.04 | AQ14: =IF(AP14=0,0,(AP14*((LOG(AP14))/LOG(2)))) -> -0.1857542476 | AS14: =N14 -> 222 | AT14: =COUNTIF(L141:L167,AS14) -> 3 | AU14: =AT14/(AV4-AT9) -> 0.1153846154 | AV14: =IF(AU14=0,0,(AU14*((LOG(AU14))/LOG(2)))) -> -0.3594781405
A15: 22 | B15: 1330 | C15: 14 | D15: 1347 | E15: 24 | F15: 1358 | K15: 0 | L15: 212 | P15: =SUM(P7:P14) -> 1 | Q15: =-SUM(Q7:Q14) -> 2.772730775 | V15: =SUM(V7:V14) -> 1 | W15: =-SUM(W7:W14) -> 2.610489856 | AA15: =SUM(AA7:AA14) -> 1 | AB15: =-SUM(AB7:AB14) -> 2.562907292 | AF15: =SUM(AF7:AF14) -> 1 | AG15: =-SUM(AG7:AG14) -> 2.09311472 | AK15: =SUM(AK7:AK14) -> 1 | AL15: =-SUM(AL7:AL14) -> 2.337019353 | AP15: =SUM(AP7:AP14) -> 1 | AQ15: =-SUM(AQ7:AQ14) -> 2.179470571 | AU15: =SUM(AU7:AU14) -> 1 | AV15: =-SUM(AV7:AV14) -> 2.408754759
A16: 11 | B16: 1460 | C16: 12 | D16: 1474 | E16: 13 | F16: 1481 | K16: 0 | L16: 111 | P16: U= | Q16: =Q15/(LOG(Q4)/LOG(2)) -> 0.3782242823 | V16: U1= | W16: =W15/(LOG(W4)/LOG(2)) -> 0.5490119071 | AA16: U2= | AB16: =AB15/(LOG(AB4)/LOG(2)) -> 0.539004822 | AF16: U3= | AG16: =AG15/(LOG(AG4)/LOG(2)) -> 0.4453018964 | AK16: U4= | AL16: =AL15/(LOG(AL4)/LOG(2)) -> 0.4914983482 | AP16: U5= | AQ16: =AQ15/(LOG(AQ4)/LOG(2)) -> 0.4583642767 | AU16: U6= | AV16: =AV15/(LOG(AV4)/LOG(2)) -> 0.5065850156
A17: 11 | B17: 1579 | C17: 12 | D17: 1602 | E17: 13 | F17: 1611 | K17: 0 | L17: 111
A18: 22 | B18: 1718 | C18: 14 | D18: 1741 | E18: 13 | F18: 1750 | K18: 0 | L18: 211
A19: 22 | B19: 1853 | C19: 14 | D19: 1870 | E19: 13 | F19: 1878 | K19: 0 | L19: 211 | N19: Total Target Seq
A20: 22 | B20: 1973 | C20: 23 | D20: 1982 | E20: 24 | F20: 1992 | K20: 0 | L20: 222 | N20: =COUNTIF(L7:L167,G3) -> 13 | P20: 27 | Q20: 27 | R20: 26 | S20: 27 | T20: 27 | U20: 27
A21: 22 | B21: 2228 | C21: 14 | D21: 2244 | E21: 24 | F21: 2254 | K21: 0 | L21: 212 | P21: % of reinforcement given in 6 equal intervals based on number of trials
A22: 11 | B22: 2356 | C22: 21 | D22: 2363 | E22: 22 | F22: 2368 | K22: 0 | L22: 122 | P22: %_1 | Q22: %_2 | R22: %_3 | S22: %_4 | T22: %_5 | U22: %_6
A23: 22 | B23: 2465 | C23: 23 | D23: 2471 | E23: 24 | F23: 2479 | K23: 0 | L23: 222 | O23: target sequence | P23: =$G$3 -> 121 | Q23: =$G$3 -> 121 | R23: =$G$3 -> 121 | S23: =$G$3 -> 121 | T23: =$G$3 -> 121 | U23: =$G$3 -> 121
A24: 11 | B24: 2579 | C24: 21 | D24: 2586 | E24: 22 | F24: 2599 | K24: 0 | L24: 122 | O24: total reinforcement | P24: =U9 -> 1 | Q24: =Z9 -> 3 | R24: =AE9 -> 0 | S24: =AJ9 -> 6 | T24: =AO9 -> 2 | U24: =AT9 -> 1
A25: 11 | B25: 2701 | C25: 21 | D25: 2709 | E25: 22 | F25: 2716 | K25: 0 | L25: 122 | O25: % target
A26: 22 | B26: 2810 | C26: 23 | D26: 2824 | E26: 24 | F26: 2830 | K26: 0 | L26: 222 | O26: CCRF
A27: 11 | B27: 2935 | C27: 12 | D27: 2943 | E27: 13 | F27: 2946 | K27: 0 | L27: 111 | O27: % CCRf
A28: 22 | B28: 3199 | C28: 14 | D28: 3219 | E28: 13 | F28: 3227 | K28: 0 | L28: 211 | O28: average response rate | P28: =F33/P20 -> 142.0740741 | Q28: =(F60-F33)/Q20 -> 146.7777778 | R28: =(F86-F60)/R20 -> 138.0769231 | S28: =(F113-F86)/S20 -> 162.5555556 | T28: =(F140-F113)/T20 -> 166.2222222 | U28: =(F167-F140)/U20 -> 138.3333333
A29: 22 | B29: 3330 | C29: 23 | D29: 3337 | E29: 24 | F29: 3346 | K29: 0 | L29: 222
A30: 22 | B30: 3443 | C30: 14 | D30: 3459 | E30: 13 | F30: 3467 | K30: 0 | L30: 211
A31: 22 | B31: 3565 | C31: 14 | D31: 3580 | E31: 13 | F31: 3589 | K31: 0 | L31: 211
A32: 22 | B32: 3691 | C32: 23 | D32: 3698 | E32: 24 | F32: 3708 | K32: 0 | L32: 222
A33: 11 | B33: 3814 | C33: 12 | D33: 3824 | E33: 24 | F33: 3836 | K33: 0 | L33: 112
A34: 22 | B34: 4035 | C34: 14 | D34: 4051 | E34: 24 | F34: 4060 | K34: 0 | L34: 212
A35: 22 | B35: 4154 | C35: 14 | D35: 4170 | E35: 24 | F35: 4180 | K35: 0 | L35: 212
A36: 22 | B36: 4279 | C36: 23 | D36: 4284 | E36: 24 | F36: 4290 | K36: 0 | L36: 222
A37: 11 | B37: 4398 | C37: 21 | D37: 4411 | E37: 22 | F37: 4418 | K37: 0 | L37: 122
A38: 22 | B38: 4510 | C38: 14 | D38: 4534 | E38: 13 | F38: 4543 | K38: 0 | L38: 211
A39: 11 | B39: 4650 | C39: 21 | D39: 4658 | E39: 22 | F39: 4665 | K39: 0 | L39: 122
A40: 11 | B40: 4766 | C40: 12 | D40: 4787 | E40: 13 | F40: 4796 | K40: 0 | L40: 111
A41: 11 | B41: 4904 | C41: 12 | D41: 4909 | E41: 13 | F41: 4917 | K41: 0 | L41: 111
A42: 22 | B42: 5013 | C42: 14 | D42: 5031 | E42: 13 | F42: 5037 | K42: 0 | L42: 211
A43: 11 | B43: 5141 | C43: 21 | D43: 5151 | E43: 22 | F43: 5163 | K43: 0 | L43: 122
A44: 11 | B44: 5302 | C44: 21 | D44: 5311 | E44: 22 | F44: 5315 | K44: 0 | L44: 122
A45: 11 | B45: 5426 | C45: 12 | D45: 5434 | E45: 13 | F45: 5442 | K45: 0 | L45: 111
A46: 11 | B46: 5541 | C46: 21 | D46: 5551 | E46: 11 | F46: 5563 | K46: 0 | L46: 121
A47: 22 | B47: 5793 | C47: 14 | D47: 5806 | E47: 13 | F47: 5813 | K47: 0 | L47: 211
A48: 22 | B48: 5917 | C48: 23 | D48: 5922 | E48: 24 | F48: 5939 | K48: 0 | L48: 222
A49: 22 | B49: 6036 | C49: 14 | D49: 6056 | E49: 13 | F49: 6068 | K49: 0 | L49: 211
A50: 11 | B50: 6169 | C50: 12 | D50: 6173 | E50: 13 | F50: 6185 | K50: 0 | L50: 111
A51: 11 | B51: 6307 | C51: 21 | D51: 6317 | E51: 22 | F51: 6326 | K51: 0 | L51: 122
A52: 11 | B52: 6423 | C52: 21 | D52: 6430 | E52: 11 | F52: 6442 | K52: 0 | L52: 121
A53: 11 | B53: 6700 | C53: 12 | D53: 6715 | E53: 24 | F53: 6725 | K53: 0 | L53: 112
A54: 11 | B54: 6831 | C54: 12 | D54: 6836 | E54: 13 | F54: 6843 | K54: 0 | L54: 111
A55: 11 | B55: 6977 | C55: 12 | D55: 6983 | E55: 13 | F55: 6992 | K55: 0 | L55: 111
A56: 22 | B56: 7091 | C56: 23 | D56: 7097 | E56: 24 | F56: 7105 | K56: 0 | L56: 222
A57: 22 | B57: 7201 | C57: 14 | D57: 7222 | E57: 24 | F57: 7234 | K57: 0 | L57: 212
A58: 11 | B58: 7340 | C58: 21 | D58: 7355 | E58: 22 | F58: 7379 | K58: 0 | L58: 122
A59: 22 | B59: 7479 | C59: 23 | D59: 7483 | E59: 13 | F59: 7494 | K59: 0 | L59: 221
A60: 11 | B60: 7772 | C60: 21 | D60: 7783 | E60: 11 | F60: 7799 | K60: 0 | L60: 121
A61: 11 | B61: 8088 | C61: 12 | D61: 8094 | E61: 13 | F61: 8102 | K61: 0 | L61: 111
A62: 11 | B62: 8205 | C62: 21 | D62: 8214 | E62: 22 | F62: 8221 | K62: 0 | L62: 122
A63: 22 | B63: 8315 | C63: 14 | D63: 8328 | E63: 13 | F63: 8335 | K63: 0 | L63: 211
A64: 11 | B64: 8439 | C64: 21 | D64: 8446 | E64: 22 | F64: 8473 | K64: 0 | L64: 122
A65: 22 | B65: 8567 | C65: 14 | D65: 8581 | E65: 13 | F65: 8591 | K65: 0 | L65: 211
A66: 22 | B66: 8693 | C66: 14 | D66: 8714 | E66: 13 | F66: 8726 | K66: 0 | L66: 211
A67: 11 | B67: 8829 | C67: 21 | D67: 8837 | E67: 22 | F67: 8850 | K67: 0 | L67: 122
A68: 22 | B68: 8955 | C68: 14 | D68: 8969 | E68: 13 | F68: 8984 | K68: 0 | L68: 211
A69: 22 | B69: 9101 | C69: 14 | D69: 9116 | E69: 13 | F69: 9125 | K69: 0 | L69: 211
A70: 22 | B70: 9226 | C70: 14 | D70: 9249 | E70: 13 | F70: 9257 | K70: 0 | L70: 211
A71: 22 | B71: 9357 | C71: 14 | D71: 9382 | E71: 13 | F71: 9390 | K71: 0 | L71: 211
A72: 11 | B72: 9502 | C72: 21 | D72: 9509 | E72: 22 | F72: 9513 | K72: 0 | L72: 122
A73: 22 | B73: 9624 | C73: 14 | D73: 9636 | E73: 24 | F73: 9648 | K73: 0 | L73: 212
A74: 11 | B74: 9751 | C74: 21 | D74: 9758 | E74: 22 | F74: 9764 | K74: 0 | L74: 122
A75: 22 | B75: 9866 | C75: 14 | D75: 9885 | E75: 13 | F75: 9899 | K75: 0 | L75: 211
A76: 22 | B76: 10005 | C76: 14 | D76: 10023 | E76: 13 | F76: 10033 | K76: 0 | L76: 211
A77: 11 | B77: 10137 | C77: 21 | D77: 10147 | E77: 22 | F77: 10153 | K77: 0 | L77: 122
A78: 11 | B78: 10261 | C78: 12 | D78: 10281 | E78: 13 | F78: 10297 | K78: 0 | L78: 111
A79: 11 | B79: 10402 | C79: 12 | D79: 10410 | E79: 13 | F79: 10416 | K79: 0 | L79: 111
A80: 22 | B80: 10513 | C80: 23 | D80: 10520 | E80: 13 | F80: 10532 | K80: 0 | L80: 221
A81: 11 | B81: 10729 | C81: 12 | D81: 10743 | E81: 13 | F81: 10750 | K81: 0 | L81: 111
A82: 11 | B82: 10856 | C82: 21 | D82: 10869 | E82: 22 | F82: 10875 | K82: 0 | L82: 122
A83: 22 | B83: 10991 | C83: 23 | D83: 10996 | E83: 13 | F83: 11006 | K83: 0 | L83: 221
A84: 22 | B84: 11106 | C84: 23 | D84: 11112 | E84: 13 | F84: 11125 | K84: 0 | L84: 221
A85: 22 | B85: 11220 | C85: 23 | D85: 11233 | E85: 13 | F85: 11252 | K85: 0 | L85: 221
A86: 11 | B86: 11373 | C86: 12 | D86: 11381 | E86: 13 | F86: 11389 | K86: 0 | L86: 111
A87: 11 | B87: 11485 | C87: 21 | D87: 11495 | E87: 11 | F87: 11513 | K87: 0 | L87: 121
A88: 11 | B88: 11786 | C88: 21 | D88: 11802 | E88: 11 | F88: 11845 | K88: 0 | L88: 121
A89: 11 | B89: 12102 | C89: 12 | D89: 12105 | E89: 13 | F89: 12111 | K89: 0 | L89: 111
A90: 11 | B90: 12211 | C90: 21 | D90: 12220 | E90: 11 | F90: 12232 | K90: 0 | L90: 121
A91: 11 | B91: 12419 | C91: 12 | D91: 12428 | E91: 13 | F91: 12436 | K91: 0 | L91: 111
A92: 11 | B92: 12539 | C92: 21 | D92: 12550 | E92: 22 | F92: 12577 | K92: 0 | L92: 122
A93: 22 | B93: 12682 | C93: 23 | D93: 12699 | E93: 24 | F93: 12705 | K93: 0 | L93: 222
A94: 22 | B94: 12813 | C94: 14 | D94: 12829 | E94: 13 | F94: 12839 | K94: 0 | L94: 211
A95: 22 | B95: 12938 | C95: 23 | D95: 12944 | E95: 13 | F95: 12962 | K95: 0 | L95: 221
A96: 22 | B96: 13066 | C96: 14 | D96: 13083 | E96: 24 | F96: 13114 | K96: 0 | L96: 212
A97: 22 | B97: 13208 | C97: 14 | D97: 13225 | E97: 13 | F97: 13232 | K97: 0 | L97: 211
A98: 11 | B98: 13341 | C98: 21 | D98: 13348 | E98: 11 | F98: 13365 | K98: 0 | L98: 121
A99: 22 | B99: 13565 | C99: 14 | D99: 13577 | E99: 13 | F99: 13593 | K99: 0 | L99: 211
A100: 11 | B100: 13703 | C100: 12 | D100: 13708 | E100: 13 | F100: 13715 | K100: 0 | L100: 111
A101: 11 | B101: 13989 | C101: 12 | D101: 13997 | E101: 13 | F101: 14007 | K101: 0 | L101: 111
A102: 22 | B102: 14109 | C102: 14 | D102: 14127 | E102: 13 | F102: 14135 | K102: 0 | L102: 211
A103: 22 | B103: 14245 | C103: 14 | D103: 14262 | E103: 13 | F103: 14271 | K103: 0 | L103: 211
A104: 11 | B104: 14382 | C104: 21 | D104: 14391 | E104: 22 | F104: 14415 | K104: 0 | L104: 122
A105: 11 | B105: 14674 | C105: 12 | D105: 14681 | E105: 13 | F105: 14688 | K105: 0 | L105: 111
A106: 11 | B106: 14800 | C106: 12 | D106: 14807 | E106: 13 | F106: 14815 | K106: 0 | L106: 111
A107: 11 | B107: 14922 | C107: 21 | D107: 14930 | E107: 11 | F107: 14953 | K107: 0 | L107: 121
A108: 22 | B108: 15120 | C108: 14 | D108: 15133 | E108: 24 | F108: 15159 | K108: 0 | L108: 212
A109: 11 | B109: 15268 | C109: 12 | D109: 15280 | E109: 13 | F109: 15284 | K109: 0 | L109: 111
A110: 22 | B110: 15396 | C110: 23 | D110: 15403 | E110: 24 | F110: 15410 | K110: 0 | L110: 222
A111: 22 | B111: 15513 | C111: 14 | D111: 15524 | E111: 13 | F111: 15533 | K111: 0 | L111: 211
A112: 22 | B112: 15631 | C112: 23 | D112: 15637 | E112: 13 | F112: 15652 | K112: 0 | L112: 221
A113: 11 | B113: 15750 | C113: 21 | D113: 15758 | E113: 11 | F113: 15778 | K113: 0 | L113: 121
A114: 11 | B114: 15944 | C114: 21 | D114: 15952 | E114: 11 | F114: 15967 | K114: 0 | L114: 121
A115: 22 | B115: 16247 | C115: 14 | D115: 16258 | E115: 13 | F115: 16266 | K115: 0 | L115: 211
A116: 22 | B116: 16363 | C116: 14 | D116: 16384 | E116: 24 | F116: 16408 | K116: 0 | L116: 212
A117: 11 | B117: 16508 | C117: 12 | D117: 16513 | E117: 13 | F117: 16518 | K117: 0 | L117: 111
A118: 11 | B118: 16619 | C118: 12 | D118: 16643 | E118: 13 | F118: 16652 | K118: 0 | L118: 111
A119: 11 | B119: 16864 | C119: 12 | D119: 16871 | E119: 13 | F119: 16878 | K119: 0 | L119: 111
A120: 22 | B120: 16999 | C120: 14 | D120: 17015 | E120: 24 | F120: 17025 | K120: 0 | L120: 212
A121: 22 | B121: 17134 | C121: 14 | D121: 17146 | E121: 24 | F121: 17159 | K121: 0 | L121: 212
A122: 22 | B122: 17254 | C122: 14 | D122: 17265 | E122: 13 | F122: 17271 | K122: 0 | L122: 211
A123: 11 | B123: 17374 | C123: 12 | D123: 17381 | E123: 13 | F123: 17388 | K123: 0 | L123: 111
A124: 11 | B124: 17487 | C124: 21 | D124: 17497 | E124: 11 | F124: 17514 | K124: 0 | L124: 121
A125: 11 | B125: 17790 | C125: 12 | D125: 17806 | E125: 13 | F125: 17813 | K125: 0 | L125: 111
A126: 22 | B126: 17906 | C126: 14 | D126: 17919 | E126: 13 | F126: 17926 | K126: 0 | L126: 211
A127: 11 | B127: 18029 | C127: 12 | D127: 18035 | E127: 13 | F127: 18043 | K127: 0 | L127: 111
A128: 22 | B128: 18150 | C128: 14 | D128: 18166 | E128: 13 | F128: 18177 | K128: 0 | L128: 211
A129: 22 | B129: 18286 | C129: 14 | D129: 18301 | E129: 13 | F129: 18310 | K129: 0 | L129: 211
A130: 11 | B130: 18412 | C130: 12 | D130: 18419 | E130: 24 | F130: 18433 | K130: 0 | L130: 112
A131: 22 | B131: 18670 | C131: 14 | D131: 18691 | E131: 13 | F131: 18700 | K131: 0 | L131: 211
A132: 11 | B132: 18801 | C132: 21 | D132: 18809 | E132: 22 | F132: 18815 | K132: 0 | L132: 122
A133: 22 | B133: 18923 | C133: 14 | D133: 18943 | E133: 24 | F133: 18952 | K133: 0 | L133: 212
A134: 22 | B134: 19053 | C134: 14 | D134: 19070 | E134: 13 | F134: 19083 | K134: 0 | L134: 211
A135: 22 | B135: 19179 | C135: 14 | D135: 19208 | E135: 24 | F135: 19217 | K135: 0 | L135: 212
A136: 11 | B136: 19326 | C136: 12 | D136: 19333 | E136: 13 | F136: 19340 | K136: 0 | L136: 111
A137: 22 | B137: 19433 | C137: 23 | D137: 19440 | E137: 24 | F137: 19474 | K137: 0 | L137: 222
A138: 11 | B138: 19693 | C138: 12 | D138: 19717 | E138: 13 | F138: 19726 | K138: 0 | L138: 111
A139: 11 | B139: 20105 | C139: 21 | D139: 20116 | E139: 22 | F139: 20120 | K139: 0 | L139: 122
A140: 22 | B140: 20233 | C140: 14 | D140: 20255 | E140: 13 | F140: 20266 | K140: 0 | L140: 211
A141: 22 | B141: 20364 | C141: 23 | D141: 20369 | E141: 13 | F141: 20387 | K141: 0 | L141: 221
A142: 22 | B142: 20563 | C142: 14 | D142: 20583 | E142: 13 | F142: 20593 | K142: 0 | L142: 211
A143: 11 | B143: 20708 | C143: 21 | D143: 20719 | E143: 22 | F143: 20727 | K143: 0 | L143: 122
A144: 22 | B144: 20835 | C144: 14 | D144: 20852 | E144: 24 | F144: 20878 | K144: 0 | L144: 212
A145: 22 | B145: 20976 | C145: 14 | D145: 20993 | E145: 13 | F145: 21002 | K145: 0 | L145: 211
A146: 11 | B146: 21108 | C146: 21 | D146: 21117 | E146: 22 | F146: 21131 | K146: 0 | L146: 122
A147: 22 | B147: 21250 | C147: 14 | D147: 21274 | E147: 13 | F147: 21282 | K147: 0 | L147: 211
A148: 22 | B148: 21386 | C148: 14 | D148: 21412 | E148: 13 | F148: 21421 | K148: 0 | L148: 211
A149: 22 | B149: 21513 | C149: 14 | D149: 21530 | E149: 13 | F149: 21539 | K149: 0 | L149: 211
A150: 22 | B150: 21636 | C150: 14 | D150: 21651 | E150: 13 | F150: 21660 | K150: 0 | L150: 211
A151: 11 | B151: 21772 | C151: 12 | D151: 21778 | E151: 13 | F151: 21786 | K151: 0 | L151: 111
A152: 22 | B152: 21891 | C152: 14 | D152: 21902 | E152: 13 | F152: 21908 | K152: 0 | L152: 211
A153: 22 | B153: 22012 | C153: 23 | D153: 22021 | E153: 13 | F153: 22040 | K153: 0 | L153: 221
A154: 11 | B154: 22153 | C154: 12 | D154: 22160 | E154: 24 | F154: 22182 | K154: 0 | L154: 112
A155: 22 | B155: 22394 | C155: 14 | D155: 22409 | E155: 13 | F155: 22416 | K155: 0 | L155: 211
A156: 22 | B156: 22519 | C156: 14 | D156: 22534 | E156: 13 | F156: 22547 | K156: 0 | L156: 211
A157: 11 | B157: 22664 | C157: 21 | D157: 22674 | E157: 22 | F157: 22682 | K157: 0 | L157: 122
A158: 22 | B158: 22778 | C158: 23 | D158: 22792 | E158: 13 | F158: 22805 | K158: 0 | L158: 221
A159: 22 | B159: 22912 | C159: 23 | D159: 22921 | E159: 24 | F159: 22940 | K159: 0 | L159: 222
A160: 22 | B160: 23040 | C160: 14 | D160: 23058 | E160: 13 | F160: 23073 | K160: 0 | L160: 211
A161: 11 | B161: 23179 | C161: 21 | D161: 23193 | E161: 11 | F161: 23216 | K161: 0 | L161: 121
A162: 11 | B162: 23396 | C162: 12 | D162: 23402 | E162: 24 | F162: 23414 | K162: 0 | L162: 112
A163: 11 | B163: 23512 | C163: 21 | D163: 23520 | E163: 22 | F163: 23525 | K163: 0 | L163: 122
A164: 22 | B164: 23619 | C164: 23 | D164: 23634 | E164: 13 | F164: 23649 | K164: 0 | L164: 221
A165: 22 | B165: 23741 | C165: 23 | D165: 23746 | E165: 24 | F165: 23763 | K165: 0 | L165: 222
A166: 22 | B166: 23858 | C166: 23 | D166: 23864 | E166: 24 | F166: 23868 | K166: 0 | L166: 222
A167: 22 | B167: 23970 | C167: 23 | D167: 23979 | E167: 13 | F167: 24001 | L167: 221

Sheet !M227A4D.UST
A1: Report for:!M227A4D.UST
A2: Date: | B2: <date>
A3: Hen: | B3: <hen> | F3: Correct Sequence | G3: =Start!J2 -> 121 | P3: Total Sequences in Data | Q3: =4994-COUNTBLANK(L7:L5000) -> 163 | V3: Total Sequences in Block Data | W3: =COUNTA(L7:L33) -> 27 | AA3: Total Sequences in Block Data | AB3: =COUNTA(L34:L60) -> 27 | AF3: Total Sequences in Block Data | AG3: =COUNTA(L61:L88) -> 28 | AK3: Total Sequences in Block Data | AL3: =COUNTA(L89:L115) -> 27 | AP3: Total Sequences in Block Data | AQ3: =COUNTA(L116:L142) -> 27 | AU3: Total Sequences in Block Data | AV3: =COUNTA(L143:L169) -> 27
P4: Total Sequences in Summary | Q4: =SUM(O7:O14) -> 162 | V4: Total Sequences in Block Summary | W4: =SUM(U7:U14) -> 27 | AA4: Total Sequences in Block Summary | AB4: =SUM(Z7:Z14) -> 27 | AF4: Total Sequences in Block Summary | AG4: =SUM(AE7:AE14) -> 28 | AK4: Total Sequences in Block Summary | AL4: =SUM(AJ7:AJ14) -> 27 | AP4: Total Sequences in Block Summary | AQ4: =SUM(AO7:AO14) -> 27 | AU4: Total Sequences in Block Summary | AV4: =SUM(AT7:AT14) -> 26
T5: Block 1 | Y5: Block 2 | AD5: Block 3 | AI5: Block 4 | AN5: Block 5 | AS5: Block 6
A6: Sequence Component 1 | B6: Time 1 | C6: Sequence Component 2 | D6: Time 2 | E6: Sequence Component 3 | F6: Time 3 | G6: Sequence Component 4 | H6: Time 4 | I6: Sequence Component 5 | J6: Time 5 | K6: Correct? 0=No 1=Yes | L6: Sequence | N6: Frequency | P6: Relative Frequency | Q6: Variability | T6: Frequency | V6: Relative Frequency | W6: Variability | Y6: Frequency | AA6: Relative Frequency | AB6: Variability | AD6: Frequency | AF6: Relative Frequency | AG6: Variability | AI6: Frequency | AK6: Relative Frequency | AL6: Variability | AN6: Frequency | AP6: Relative Frequency | AQ6: Variability | AS6: Frequency | AU6: Relative Frequency | AV6: Variability
A7: 22 | B7: 6 | C7: 14 | D7: 20 | E7: 24 | F7: 29 | K7: 0 | L7: 212 | N7: 111 | O7: =COUNTIF($L$7:$L$500,N7) -> 28 | P7: =O7/$Q$4 -> 0.1728395062 | Q7: =IF(P7=0,0,(P7*((LOG(P7))/LOG(2)))) -> -0.4377151992 | T7: =N7 -> 111 | U7: =COUNTIF(L7:L33,T7) -> 6 | V7: =U7/(W4-U9) -> 0.25 | W7: =IF(V7=0,0,(V7*((LOG(V7))/LOG(2)))) -> -0.5 | Y7: =N7 -> 111 | Z7: =COUNTIF(L34:L60,Y7) -> 2 | AA7: =Z7/(AB4-Z9) -> 0.07692307692 | AB7: =IF(AA7=0,0,(AA7*((LOG(AA7))/LOG(2)))) -> -0.2846492091 | AD7: =N7 -> 111 | AE7: =COUNTIF(L61:L88,AD7) -> 6 | AF7: =AE7/(AG4-AE9) -> 0.2222222222 | AG7: =IF(AF7=0,0,(AF7*((LOG(AF7))/LOG(2)))) -> -0.4822055559 | AI7: =N7 -> 111 | AJ7: =COUNTIF(L89:L115,AI7) -> 4 | AK7: =AJ7/(AL4-AJ9) -> 0.1538461538 | AL7: =IF(AK7=0,0,(AK7*((LOG(AK7))/LOG(2)))) -> -0.4154522643 | AN7: =N7 -> 111 | AO7: =COUNTIF(L116:L142,AN7) -> 3 | AP7: =AO7/(AQ4-AO9) -> 0.1304347826 | AQ7: =IF(AP7=0,0,(AP7*((LOG(AP7))/LOG(2)))) -> -0.3832955811 | AS7: =N7 -> 111 | AT7: =COUNTIF(L143:L169,AS7) -> 7 | AU7: =AT7/(AV4-AT9) -> 0.2692307692 | AV7: =IF(AU7=0,0,(AU7*((LOG(AU7))/LOG(2)))) -> -0.5096766759
A8: 22 | B8: 135 | C8: 14 | D8: 156 | E8: 13 | F8: 170 | K8: 0 | L8: 211 | N8: 112 | O8: =COUNTIF($L$7:$L$500,N8) -> 8 | P8: =O8/$Q$4 -> 0.04938271605 | Q8: =IF(P8=0,0,(P8*((LOG(P8))/LOG(2)))) -> -0.2143135804 | T8: =N8 -> 112 | U8: =COUNTIF(L7:L33,T8) -> 1 | V8: =U8/(W4-U9) -> 0.04166666667 | W8: =IF(V8=0,0,(V8*((LOG(V8))/LOG(2)))) -> -0.1910401042 | Y8: =N8 -> 112 | Z8: =COUNTIF(L34:L60,Y8) -> 3 | AA8: =Z8/(AB4-Z9) -> 0.1153846154 | AB8: =IF(AA8=0,0,(AA8*((LOG(AA8))/LOG(2)))) -> -0.3594781405 | AD8: =N8 -> 112 | AE8: =COUNTIF(L61:L88,AD8) -> 0 | AF8: =AE8/(AG4-AE9) -> 0 | AG8: =IF(AF8=0,0,(AF8*((LOG(AF8))/LOG(2)))) -> 0 | AI8: =N8 -> 112 | AJ8: =COUNTIF(L89:L115,AI8) -> 1 | AK8: =AJ8/(AL4-AJ9) -> 0.03846153846 | AL8: =IF(AK8=0,0,(AK8*((LOG(AK8))/LOG(2)))) -> -0.180786143 | AN8: =N8 -> 112 | AO8: =COUNTIF(L116:L142,AN8) -> 1 | AP8: =AO8/(AQ4-AO9) -> 0.04347826087 | AQ8: =IF(AP8=0,0,(AP8*((LOG(AP8))/LOG(2)))) -> -0.1966766068 | AS8: =N8 -> 112 | AT8: =COUNTIF(L143:L169,AS8) -> 2 | AU8: =AT8/(AV4-AT9) -> 0.07692307692 | AV8: =IF(AU8=0,0,(AU8*((LOG(AU8))/LOG(2)))) -> -0.2846492091
A9: 22 | B9: 262 | C9: 23 | D9: 265 | E9: 24 | F9: 276 | K9: 0 | L9: 222 | N9: 121 | O9: =COUNTIF($L$7:$L$500,N9) -> 10 | P9: =O9/$Q$4 -> 0.06172839506 | Q9: =IF(P9=0,0,(P9*((LOG(P9))/LOG(2)))) -> -0.2480198709 | T9: =N9 -> 121 | U9: =COUNTIF(L7:L33,T9) -> 3 | Y9: =N9 -> 121 | Z9: =COUNTIF(L34:L60,Y9) -> 1 | AD9: =N9 -> 121 | AE9: =COUNTIF(L61:L88,AD9) -> 1 | AI9: =N9 -> 121 | AJ9: =COUNTIF(L89:L115,AI9) -> 1 | AN9: =N9 -> 121 | AO9: =COUNTIF(L116:L142,AN9) -> 4 | AS9: =N9 -> 121 | AT9: =COUNTIF(L143:L169,AS9) -> 0
A10: 22 | B10: 376 | C10: 14 | D10: 389 | E10: 13 | F10: 395 | K10: 0 | L10: 211 | N10: 122 | O10: =COUNTIF($L$7:$L$500,N10) -> 19 | P10: =O10/$Q$4 -> 0.1172839506 | Q10: =IF(P10=0,0,(P10*((LOG(P10))/LOG(2)))) -> -0.3626328846 | T10: =N10 -> 122 | U10: =COUNTIF(L7:L33,T10) -> 4 | V10: =U10/(W4-U9) -> 0.1666666667 | W10: =IF(V10=0,0,(V10*((LOG(V10))/LOG(2)))) -> -0.4308270835 | Y10: =N10 -> 122 | Z10: =COUNTIF(L34:L60,Y10) -> 3 | AA10: =Z10/(AB4-Z9) -> 0.1153846154 | AB10: =IF(AA10=0,0,(AA10*((LOG(AA10))/LOG(2)))) -> -0.3594781405 | AD10: =N10 -> 122 | AE10: =COUNTIF(L61:L88,AD10) -> 2 | AF10: =AE10/(AG4-AE9) -> 0.07407407407 | AG10: =IF(AF10=0,0,(AF10*((LOG(AF10))/LOG(2)))) -> -0.278139815 | AI10: =N10 -> 122 | AJ10: =COUNTIF(L89:L115,AI10) -> 5 | AK10: =AJ10/(AL4-AJ9) -> 0.1923076923 | AL10: =IF(AK10=0,0,(AK10*((LOG(AK10))/LOG(2)))) -> -0.4574060814 | AN10: =N10 -> 122 | AO10: =COUNTIF(L116:L142,AN10) -> 4 | AP10: =AO10/(AQ4-AO9) -> 0.1739130435 | AQ10: =IF(AP10=0,0,(AP10*((LOG(AP10))/LOG(2)))) -> -0.4388803402 | AS10: =N10 -> 122 | AT10: =COUNTIF(L143:L169,AS10) -> 1 | AU10: =AT10/(AV4-AT9) -> 0.03846153846 | AV10: =IF(AU10=0,0,(AU10*((LOG(AU10))/LOG(2)))) -> -0.180786143
A11: 11 | B11: 495 | C11: 12 | D11: 500 | E11: 13 | F11: 507 | K11: 0 | L11: 111 | N11: 211 | O11: =COUNTIF($L$7:$L$500,N11) -> 43 | P11: =O11/$Q$4 -> 0.2654320988 | Q11: =IF(P11=0,0,(P11*((LOG(P11))/LOG(2)))) -> -0.5079269486 | T11: =N11 -> 211 | U11: =COUNTIF(L7:L33,T11) -> 8 | V11: =U11/(W4-U9) -> 0.3333333333 | W11: =IF(V11=0,0,(V11*((LOG(V11))/LOG(2)))) -> -0.5283208336 | Y11: =N11 -> 211 | Z11: =COUNTIF(L34:L60,Y11) -> 9 | AA11: =Z11/(AB4-Z9) -> 0.3461538462 | AB11: =IF(AA11=0,0,(AA11*((LOG(AA11))/LOG(2)))) -> -0.5297935558 | AD11: =N11 -> 211 | AE11: =COUNTIF(L61:L88,AD11) -> 5 | AF11: =AE11/(AG4-AE9) -> 0.1851851852 | AG11: =IF(AF11=0,0,(AF11*((LOG(AF11))/LOG(2)))) -> -0.4505480384 | AI11: =N11 -> 211 | AJ11: =COUNTIF(L89:L115,AI11) -> 6 | AK11: =AJ11/(AL4-AJ9) -> 0.2307692308 | AL11: =IF(AK11=0,0,(AK11*((LOG(AK11))/LOG(2)))) -> -0.4881870502 | AN11: =N11 -> 211 | AO11: =COUNTIF(L116:L142,AN11) -> 7 | AP11: =AO11/(AQ4-AO9) -> 0.3043478261 | AQ11: =IF(AP11=0,0,(AP11*((LOG(AP11))/LOG(2)))) -> -0.5223238799 | AS11: =N11 -> 211 | AT11: =COUNTIF(L143:L169,AS11) -> 8 | AU11: =AT11/(AV4-AT9) -> 0.3076923077 | AV11: =IF(AU11=0,0,(AU11*((LOG(AU11))/LOG(2)))) -> -0.523212221
A12: 11 | B12: 851 | C12: 12 | D12: 856 | E12: 13 | F12: 863 | K12: 0 | L12: 111 | N12: 212 | O12: =COUNTIF($L$7:$L$500,N12) -> 11 | P12: =O12/$Q$4 -> 0.06790123457 | Q12: =IF(P12=0,0,(P12*((LOG(P12))/LOG(2)))) -> -0.2634851989 | T12: =N12 -> 212 | U12: =COUNTIF(L7:L33,T12) -> 2 | V12: =U12/(W4-U9) -> 0.08333333333 | W12: =IF(V12=0,0,(V12*((LOG(V12))/LOG(2)))) -> -0.2987468751 | Y12: =N12 -> 212 | Z12: =COUNTIF(L34:L60,Y12) -> 1 | AA12: =Z12/(AB4-Z9) -> 0.03846153846 | AB12: =IF(AA12=0,0,(AA12*((LOG(AA12))/LOG(2)))) -> -0.180786143 | AD12: =N12 -> 212 | AE12: =COUNTIF(L61:L88,AD12) -> 3 | AF12: =AE12/(AG4-AE9) -> 0.1111111111 | AG12: =IF(AF12=0,0,(AF12*((LOG(AF12))/LOG(2)))) -> -0.352213889 | AI12: =N12 -> 212 | AJ12: =COUNTIF(L89:L115,AI12) -> 2 | AK12: =AJ12/(AL4-AJ9) -> 0.07692307692 | AL12: =IF(AK12=0,0,(AK12*((LOG(AK12))/LOG(2)))) -> -0.2846492091 | AN12: =N12 -> 212 | AO12: =COUNTIF(L116:L142,AN12) -> 2 | AP12: =AO12/(AQ4-AO9) -> 0.08695652174 | AQ12: =IF(AP12=0,0,(AP12*((LOG(AP12))/LOG(2)))) -> -0.3063966918 | AS12: =N12 -> 212 | AT12: =COUNTIF(L143:L169,AS12) -> 1 | AU12: =AT12/(AV4-AT9) -> 0.03846153846 | AV12: =IF(AU12=0,0,(AU12*((LOG(AU12))/LOG(2)))) -> -0.180786143
A13: 22 | B13: 957 | C13: 23 | D13: 963 | E13: 13 | F13: 985 | K13: 0 | L13: 221 | N13: 221 | O13: =COUNTIF($L$7:$L$500,N13) -> 27 | P13: =O13/$Q$4 -> 0.1666666667 | Q13: =IF(P13=0,0,(P13*((LOG(P13))/LOG(2)))) -> -0.4308270835 | T13: =N13 -> 221 | U13: =COUNTIF(L7:L33,T13) -> 2 | V13: =U13/(W4-U9) -> 0.08333333333 | W13: =IF(V13=0,0,(V13*((LOG(V13))/LOG(2)))) -> -0.2987468751 | Y13: =N13 -> 221 | Z13: =COUNTIF(L34:L60,Y13) -> 8 | AA13: =Z13/(AB4-Z9) -> 0.3076923077 | AB13: =IF(AA13=0,0,(AA13*((LOG(AA13))/LOG(2)))) -> -0.523212221 | AD13: =N13 -> 221 | AE13: =COUNTIF(L61:L88,AD13) -> 6 | AF13: =AE13/(AG4-AE9) -> 0.2222222222 | AG13: =IF(AF13=0,0,(AF13*((LOG(AF13))/LOG(2)))) -> -0.4822055559 | AI13: =N13 -> 221 | AJ13: =COUNTIF(L89:L115,AI13) -> 5 | AK13: =AJ13/(AL4-AJ9) -> 0.1923076923 | AL13: =IF(AK13=0,0,(AK13*((LOG(AK13))/LOG(2)))) -> -0.4574060814 | AN13: =N13 -> 221 | AO13: =COUNTIF(L116:L142,AN13) -> 2 | AP13: =AO13/(AQ4-AO9) -> 0.08695652174 | AQ13: =IF(AP13=0,0,(AP13*((LOG(AP13))/LOG(2)))) -> -0.3063966918 | AS13: =N13 -> 221 | AT13: =COUNTIF(L143:L169,AS13) -> 4 | AU13: =AT13/(AV4-AT9) -> 0.1538461538 | AV13: =IF(AU13=0,0,(AU13*((LOG(AU13))/LOG(2)))) -> -0.4154522643
A14: 22 | B14: 1086 | C14: 14 | D14: 1103 | E14: 13 | F14: 1110 | K14: 0 | L14: 211 | N14: 222 | O14: =COUNTIF($L$7:$L$500,N14) -> 16 | P14: =O14/$Q$4 -> 0.0987654321 | Q14: =IF(P14=0,0,(P14*((LOG(P14))/LOG(2)))) -> -0.3298617287 | T14: =N14 -> 222 | U14: =COUNTIF(L7:L33,T14) -> 1 | V14: =U14/(W4-U9) -> 0.04166666667 | W14: =IF(V14=0,0,(V14*((LOG(V14))/LOG(2)))) -> -0.1910401042 | Y14: =N14 -> 222 | Z14: =COUNTIF(L34:L60,Y14) -> 0 | AA14: =Z14/(AB4-Z9) -> 0 | AB14: =IF(AA14=0,0,(AA14*((LOG(AA14))/LOG(2)))) -> 0 | AD14: =N14 -> 222 | AE14: =COUNTIF(L61:L88,AD14) -> 5 | AF14: =AE14/(AG4-AE9) -> 0.1851851852 | AG14: =IF(AF14=0,0,(AF14*((LOG(AF14))/LOG(2)))) -> -0.4505480384 | AI14: =N14 -> 222 | AJ14: =COUNTIF(L89:L115,AI14) -> 3 | AK14: =AJ14/(AL4-AJ9) -> 0.1153846154 | AL14: =IF(AK14=0,0,(AK14*((LOG(AK14))/LOG(2)))) -> -0.3594781405 | AN14: =N14 -> 222 | AO14: =COUNTIF(L116:L142,AN14) -> 4 | AP14: =AO14/(AQ4-AO9) -> 0.1739130435 | AQ14: =IF(AP14=0,0,(AP14*((LOG(AP14))/LOG(2)))) -> -0.4388803402 | AS14: =N14 -> 222 | AT14: =COUNTIF(L143:L169,AS14) -> 3 | AU14: =AT14/(AV4-AT9) -> 0.1153846154 | AV14: =IF(AU14=0,0,(AU14*((LOG(AU14))/LOG(2)))) -> -0.3594781405
A15: 22 | B15: 1215 | C15: 23 | D15: 1219 | E15: 13 | F15: 1232 | K15: 0 | L15: 221 | P15: =SUM(P7:P14) -> 1 | Q15: =-SUM(Q7:Q14) -> 2.794782495 | V15: =SUM(V7:V14) -> 1 | W15: =-SUM(W7:W14) -> 2.438721876 | AA15: =SUM(AA7:AA14) -> 1 | AB15: =-SUM(AB7:AB14) -> 2.23739741 | AF15: =SUM(AF7:AF14) -> 1 | AG15: =-SUM(AG7:AG14) -> 2.495860893 | AK15: =SUM(AK7:AK14) -> 1 | AL15: =-SUM(AL7:AL14) -> 2.64336497 | AP15: =SUM(AP7:AP14) -> 1 | AQ15: =-SUM(AQ7:AQ14) -> 2.592850132 | AU15: =SUM(AU7:AU14) -> 1 | AV15: =-SUM(AV7:AV14) -> 2.454040797
A16: 11 | B16: 1333 | C16: 21 | D16: 1340 | E16: 22 | F16: 1351 | K16: 0 | L16: 122 | P16: U= | Q16: =Q15/(LOG(Q4)/LOG(2)) -> 0.3807683391 | V16: U1= | W16: =W15/(LOG(W4)/LOG(2)) -> 0.5128873973 | AA16: U2= | AB16: =AB15/(LOG(AB4)/LOG(2)) -> 0.4705468655 | AF16: U3= | AG16: =AG15/(LOG(AG4)/LOG(2)) -> 0.5191754994 | AK16: U4= | AL16: =AL15/(LOG(AL4)/LOG(2)) -> 0.5559258697 | AP16: U5= | AQ16: =AQ15/(LOG(AQ4)/LOG(2)) -> 0.5453020982 | AU16: U6= | AV16: =AV15/(LOG(AV4)/LOG(2)) -> 0.5220874948
A17: 11 | B17: 1367 | C17: 12 | D17: 1375 | E17: 24 | F17: 1387 | K17: 0 | L17: 112
A18: 11 | B18: 1493 | C18: 21 | D18: 1502 | E18: 22 | F18: 1511 | K18: 0 | L18: 122
A19: 22 | B19: 1606 | C19: 14 | D19: 1618 | E19: 13 | F19: 1629 | K19: 0 | L19: 211 | N19: Total Target Seq
A20: 22 | B20: 1741 | C20: 14 | D20: 1753 | E20: 13 | F20: 1765 | K20: 0 | L20: 211 | N20: =COUNTIF(L7:L169,G3) -> 10 | P20: 27 | Q20: 27 | R20: 28 | S20: 27 | T20: 27 | U20: 27
A21: 11 | B21: 1868 | C21: 12 | D21: 1874 | E21: 13 | F21: 1881 | K21: 0 | L21: 111 | P21: % of reinforcement given in 6 equal intervals based on number of trials
A22: 11 | B22: 1984 | C22: 21 | D22: 1991 | E22: 11 | F22: 2012 | K22: 0 | L22: 121 | P22: %_1 | Q22: %_2 | R22: %_3 | S22: %_4 | T22: %_5 | U22: %_6
A23: 11 | B23: 2184 | C23: 21 | D23: 2193 | E23: 11 | F23: 2203 | K23: 0 | L23: 121 | O23: target sequence | P23: =$G$3 -> 121 | Q23: =$G$3 -> 121 | R23: =$G$3 -> 121 | S23: =$G$3 -> 121 | T23: =$G$3 -> 121 | U23: =$G$3 -> 121
A24: 11 | B24: 2463 | C24: 12 | D24: 2471 | E24: 13 | F24: 2487 | K24: 0 | L24: 111 | O24: total reinforcement | P24: =U9 -> 3 | Q24: =Z9 -> 1 | R24: =AE9 -> 1 | S24: =AJ9 -> 1 | T24: =AO9 -> 4 | U24: =AT9 -> 0
A25: 11 | B25: 2598 | C25: 21 | D25: 2605 | E25: 22 | F25: 2611 | K25: 0 | L25: 122 | O25: % target
A26: 11 | B26: 2719 | C26: 12 | D26: 2728 | E26: 13 | F26: 2737 | K26: 0 | L26: 111 | O26: CCRF
A27: 22 | B27: 2842 | C27: 14 | D27: 2862 | E27: 24 | F27: 2892 | K27: 0 | L27: 212 | O27: % CCRf
A28: 22 | B28: 2988 | C28: 14 | D28: 3005 | E28: 13 | F28: 3011 | K28: 0 | L28: 211 | O28: average response rate | P28: =F33/P20 -> 140.3333333 | Q28: =(F60-F33)/Q20 -> 134.6296296 | R28: =(F88-F60)/R20 -> 135.5357143 | S28: =(F115-F88)/S20 -> 143.7037037 | T28: =(F142-F115)/T20 -> 171.4814815 | U28: =(F169-F142)/U20 -> -730.7037037
A29: 22 | B29: 3122 | C29: 14 | D29: 3140 | E29: 13 | F29: 3150 | K29: 0 | L29: 211
A30: 11 | B30: 3252 | C30: 21 | D30: 3259 | E30: 22 | F30: 3265 | K30: 0 | L30: 122
A31: 22 | B31: 3376 | C31: 14 | D31: 3393 | E31: 13 | F31: 3402 | K31: 0 | L31: 211
A32: 11 | B32: 3505 | C32: 21 | D32: 3512 | E32: 11 | F32: 3525 | K32: 0 | L32: 121
A33: 11 | B33: 3772 | C33: 12 | D33: 3781 | E33: 13 | F33: 3789 | K33: 0 | L33: 111
A34: 11 | B34: 3916 | C34: 12 | D34: 3918 | E34: 24 | F34: 3928 | K34: 0 | L34: 112
A35: 22 | B35: 4045 | C35: 14 | D35: 4065 | E35: 13 | F35: 4074 | K35: 0 | L35: 211
A36: 22 | B36: 4170 | C36: 23 | D36: 4180 | E36: 13 | F36: 4195 | K36: 0 | L36: 221
A37: 11 | B37: 4294 | C37: 21 | D37: 4302 | E37: 22 | F37: 4309 | K37: 0 | L37: 122
A38: 22 | B38: 4450 | C38: 23 | D38: 4457 | E38: 13 | F38: 4472 | K38: 0 | L38: 221
A39: 22 | B39: 4567 | C39: 14 | D39: 4583 | E39: 13 | F39: 4594 | K39: 0 | L39: 211
A40: 22 | B40: 4695 | C40: 14 | D40: 4709 | E40: 13 | F40: 4723 | K40: 0 | L40: 211
A41: 22 | B41: 4816 | C41: 14 | D41: 4834 | E41: 13 | F41: 4842 | K41: 0 | L41: 211
A42: 22 | B42: 4951 | C42: 14 | D42: 4967 | E42: 13 | F42: 4975 | K42: 0 | L42: 211
A43: 22 | B43: 5076 | C43: 14 | D43: 5087 | E43: 24 | F43: 5100 | K43: 0 | L43: 212
A44: 22 | B44: 5197 | C44: 14 | D44: 5209 | E44: 13 | F44: 5221 | K44: 0 | L44: 211
A45: 11 | B45: 5343 | C45: 12 | D45: 5360 | E45: 24 | F45: 5376 | K45: 0 | L45: 112
A46: 22 | B46: 5480 | C46: 14 | D46: 5499 | E46: 13 | F46: 5507 | K46: 0 | L46: 211
A47: 22 | B47: 5609 | C47: 14 | D47: 5622 | E47: 13 | F47: 5629 | K47: 0 | L47: 211
A48: 11 | B48: 5726 | C48: 12 | D48: 5733 | E48: 24 | F48: 5747 | K48: 0 | L48: 112
A49: 22 | B49: 5852 | C49: 23 | D49: 5857 | E49: 13 | F49: 5871 | K49: 0 | L49: 221
A50: 11 | B50: 5971 | C50: 21 | D50: 5981 | E50: 22 | F50: 5989 | K50: 0 | L50: 122
A51: 22 | B51: 6085 | C51: 23 | D51: 6094 | E51: 13 | F51: 6115 | K51: 0 | L51: 221
A52: 11 | B52: 6217 | C52: 21 | D52: 6225 | E52: 11 | F52: 6239 | K52: 0 | L52: 121
A53: 11 | B53: 6535 | C53: 12 | D53: 6549 | E53: 13 | F53: 6559 | K53: 0 | L53: 111
A54: 22 | B54: 6658 | C54: 23 | D54: 6669 | E54: 13 | F54: 6681 | K54: 0 | L54: 221
A55: 11 | B55: 6784 | C55: 21 | D55: 6792 | E55: 22 | F55: 6798 | K55: 0 | L55: 122
A56: 22 | B56: 6905 | C56: 14 | D56: 6937 | E56: 13 | F56: 6948 | K56: 0 | L56: 211
A57: 22 | B57: 7053 | C57: 23 | D57: 7060 | E57: 13 | F57: 7073 | K57: 0 | L57: 221
A58: 11 | B58: 7172 | C58: 12 | D58: 7183 | E58: 13 | F58: 7190 | K58: 0 | L58: 111
A59: 22 | B59: 7285 | C59: 23 | D59: 7293 | E59: 13 | F59: 7308 | K59: 0 | L59: 221
A60: 22 | B60: 7405 | C60: 23 | D60: 7411 | E60: 13 | F60: 7424 | K60: 0 | L60: 221
A61: 22 | B61: 7522 | C61: 14 | D61: 7543 | E61: 24 | F61: 7576 | K61: 0 | L61: 212
A62: 11 | B62: 7683 | C62: 21 | D62: 7693 | E62: 11 | F62: 7714 | K62: 0 | L62: 121
A63: 11 | B63: 7890 | C63: 12 | D63: 7897 | E63: 13 | F63: 7906 | K63: 0 | L63: 111
A64: 22 | B64: 8008 | C64: 23 | D64: 8014 | E64: 13 | F64: 8035 | K64: 0 | L64: 221
A65: 22 | B65: 8132 | C65: 23 | D65: 8139 | E65: 24 | F65: 8145 | K65: 0 | L65: 222
A66: 22 | B66: 8243 | C66: 14 | D66: 8263 | E66: 24 | F66: 8273 | K66: 0 | L66: 212
A67: 22 | B67: 8369 | C67: 23 | D67: 8380 | E67: 13 | F67: 8394 | K67: 0 | L67: 221
A68: 11 | B68: 8495 | C68: 12 | D68: 8528 | E68: 13 | F68: 8537 | K68: 0 | L68: 111
A69: 11 | B69: 8640 | C69: 12 | D69: 8660 | E69: 13 | F69: 8670 | K69: 0 | L69: 111
A70: 11 | B70: 8773 | C70: 12 | D70: 8783 | E70: 13 | F70: 8790 | K70: 0 | L70: 111
A71: 11 | B71: 8887 | C71: 12 | D71: 8893 | E71: 13 | F71: 8901 | K71: 0 | L71: 111
A72: 22 | B72: 8999 | C72: 14 | D72: 9015 | E72: 13 | F72: 9021 | K72: 0 | L72: 211
A73: 11 | B73: 9130 | C73: 12 | D73: 9138 | E73: 13 | F73: 9146 | K73: 0 | L73: 111
A74: 22 | B74: 9257 | C74: 14 | D74: 9268 | E74: 13 | F74: 9276 | K74: 0 | L74: 211
A75: 22 | B75: 9374 | C75: 14 | D75: 9390 | E75: 24 | F75: 9400 | K75: 0 | L75: 212
A76: 22 | B76: 9500 | C76: 23 | D76: 9504 | E76: 13 | F76: 9521 | K76: 0 | L76: 221
A77: 22 | B77: 9634 | C77: 14 | D77: 9645 | E77: 13 | F77: 9650 | K77: 0 | L77: 211
A78: 22 | B78: 9749 | C78: 23 | D78: 9759 | E78: 13 | F78: 9781 | K78: 0 | L78: 221
A79: 22 | B79: 9903 | C79: 14 | D79: 9914 | E79: 13 | F79: 9925 | K79: 0 | L79: 211
A80: 22 | B80: 10034 | C80: 23 | D80: 10040 | E80: 24 | F80: 10046 | K80: 0 | L80: 222
A81: 22 | B81: 10278 | C81: 23 | D81: 10281 | E81: 24 | F81: 10289 | K81: 0 | L81: 222
A82: 11 | B82: 10402 | C82: 21 | D82: 10415 | E82: 22 | F82: 10446 | K82: 0 | L82: 122
A83: 22 | B83: 10544 | C83: 14 | D83: 10568 | E83: 13 | F83: 10577 | K83: 0 | L83: 211
A84: 22 | B84: 10675 | C84: 23 | D84: 10680 | E84: 24 | F84: 10692 | K84: 0 | L84: 222
A85: 22 | B85: 10792 | C85: 23 | D85: 10808 | E85: 24 | F85: 10815 | K85: 0 | L85: 222
A86: 22 | B86: 10917 | C86: 23 | D86: 10927 | E86: 13 | F86: 10949 | K86: 0 | L86: 221
A87: 22 | B87: 11050 | C87: 23 | D87: 11060 | E87: 13 | F87: 11076 | K87: 0 | L87: 221
A88: 11 | B88: 11205 | C88: 21 | D88: 11214 | E88: 22 | F88: 11219 | K88: 0 | L88: 122
A89: 22 | B89: 11314 | C89: 23 | D89: 11323 | E89: 13 | F89: 11337 | K89: 0 | L89: 221
A90: 22 | B90: 11446 | C90: 14 | D90: 11458 | E90: 13 | F90: 11467 | K90: 0 | L90: 211
A91: 22 | B91: 11561 | C91: 14 | D91: 11575 | E91: 24 | F91: 11583 | K91: 0 | L91: 212
A92: 11 | B92: 11706 | C92: 12 | D92: 11739 | E92: 24 | F92: 11755 | K92: 0 | L92: 112
A93: 11 | B93: 11976 | C93: 12 | D93: 11982 | E93: 13 | F93: 11989 | K93: 0 | L93: 111
A94: 11 | B94: 12115 | C94: 21 | D94: 12123 | E94: 22 | F94: 12148 | K94: 0 | L94: 122
A95: 11 | B95: 12262 | C95: 12 | D95: 12270 | E95: 13 | F95: 12279 | K95: 0 | L95: 111
A96: 11 | B96: 12389 | C96: 12 | D96: 12395 | E96: 13 | F96: 12397 | K96: 0 | L96: 111
A97: 22 | B97: 12495 | C97: 14 | D97: 12513 | E97: 24 | F97: 12522 | K97: 0 | L97: 212
A98: 11 | B98: 12626 | C98: 21 | D98: 12635 | E98: 22 | F98: 12641 | K98: 0 | L98: 122
A99: 22 | B99: 12736 | C99: 23 | D99: 12746 | E99: 13 | F99: 12762 | K99: 0 | L99: 221
A100: 22 | B100: 12861 | C100: 23 | D100: 12867 | E100: 13 | F100: 12880 | K100: 0 | L100: 221
A101: 22 | B101: 12974 | C101: 23 | D101: 12983 | E101: 13 | F101: 13000 | K101: 0 | L101: 221
A102: 22 | B102: 13133 | C102: 14 | D102: 13152 | E102: 13 | F102: 13164 | K102: 0 | L102: 211
A103: 22 | B103: 13264 | C103: 23 | D103: 13269 | E103: 13 | F103: 13285 | K103: 0 | L103: 221
A104: 22 | B104: 13390 | C104: 14 | D104: 13404 | E104: 13 | F104: 13416 | K104: 0 | L104: 211
A105: 11 | B105: 13518 | C105: 21 | D105: 13527 | E105: 22 | F105: 13534 | K105: 0 | L105: 122
A106: 22 | B106: 13645 | C106: 23 | D106: 13672 | E106: 24 | F106: 13680 | K106: 0 | L106: 222
A107: 11 | B107: 13813 | C107: 21 | D107: 13823 | E107: 22 | F107: 13827 | K107: 0 | L107: 122
A108: 22 | B108: 13925 | C108: 23 | D108: 13932 | E108: 24 | F108: 13946 | K108: 0 | L108: 222
A109: 22 | B109: 14051 | C109: 14 | D109: 14066 | E109: 13 | F109: 14077 | K109: 0 | L109: 211
A110: 22 | B110: 14203 | C110: 23 | D110: 14210 | E110: 24 | F110: 14216 | K110: 0 | L110: 222
A111: 11 | B111: 14312 | C111: 21 | D111: 14325 | E111: 11 | F111: 14338 | K111: 0 | L111: 121
A112: 11 | B112: 14695 | C112: 12 | D112: 14702 | E112: 13 | F112: 14712 | K112: 0 | L112: 111
A113: 22 | B113: 14820 | C113: 14 | D113: 14832 | E113: 13 | F113: 14840 | K113: 0 | L113: 211
A114: 11 | B114: 14949 | C114: 21 | D114: 14957 | E114: 22 | F114: 14963 | K114: 0 | L114: 122
A115: 22 | B115: 15070 | C115: 14 | D115: 15084 | E115: 13 | F115: 15099 | K115: 0 | L115: 211
A116: 11 | B116: 15197 | C116: 21 | D116: 15207 | E116: 22 | F116: 15215 | K116: 0 | L116: 122
A117: 11 | B117: 15318 | C117: 12 | D117: 15324 | E117: 13 | F117: 15332 | K117: 0 | L117: 111
A118: 22 | B118: 15437 | C118: 14 | D118: 15454 | E118: 13 | F118: 15464 | K118: 0 | L118: 211
A119: 22 | B119: 15603 | C119: 23 | D119: 15612 | E119: 24 | F119: 15619 | K119: 0 | L119: 222
A120: 22 | B120: 16067 | C120: 23 | D120: 16099 | E120: 24 | F120: 16107 | K120: 0 | L120: 222
A121: 22 | B121: 16203 | C121: 23 | D121: 16209 | E121: 24 | F121: 16216 | K121: 0 | L121: 222
A122: 11 | B122: 16320 | C122: 21 | D122: 16329 | E122: 22 | F122: 16336 | K122: 0 | L122: 122
A123: 22 | B123: 16433 | C123: 14 | D123: 16457 | E123: 24 | F123: 16480 | K123: 0 | L123: 212
A124: 11 | B124: 16582 | C124: 21 | D124: 16590 | E124: 11 | F124: 16607 | K124: 0 | L124: 121
A125: 11 | B125: 16872 | C125: 12 | D125: 16880 | E125: 13 | F125: 16887 | K125: 0 | L125: 111
A126: 22 | B126: 16993 | C126: 14 | D126: 17008 | E126: 13 | F126: 17024 | K126: 0 | L126: 211
A127: 22 | B127: 17124 | C127: 14 | D127: 17145 | E127: 13 | F127: 17162 | K127: 0 | L127: 211
A128: 11 | B128: 17266 | C128: 12 | D128: 17277 | E128: 24 | F128: 17288 | K128: 0 | L128: 112
A129: 22 | B129: 17394 | C129: 14 | D129: 17409 | E129: 24 | F129: 17425 | K129: 0 | L129: 212
A130: 22 | B130: 17520 | C130: 14 | D130: 17537 | E130: 13 | F130: 17549 | K130: 0 | L130: 211
A131: 11 | B131: 17651 | C131: 21 | D131: 17658 | E131: 11 | F131: 17674 | K131: 0 | L131: 121
A132: 11 | B132: 17858 | C132: 21 | D132: 17866 | E132: 22 | F132: 17872 | K132: 0 | L132: 122
A133: 11 | B133: 17970 | C133: 21 | D133: 17981 | E133: 11 | F133: 18005 | K133: 0 | L133: 121
A134: 11 | B134: 18474 | C134: 12 | D134: 18482 | E134: 13 | F134: 18491 | K134: 0 | L134: 111
A135: 11 | B135: 18597 | C135: 21 | D135: 18647 | E135: 22 | F135: 18655 | K135: 0 | L135: 122
A136: 22 | B136: 18761 | C136: 14 | D136: 18782 | E136: 13 | F136: 18791 | K136: 0 | L136: 211
A137: 22 | B137: 18926 | C137: 23 | D137: 18933 | E137: 24 | F137: 18955 | K137: 0 | L137: 222
A138: 22 | B138: 19063 | C138: 23 | D138: 19072 | E138: 13 | F138: 19095 | K138: 0 | L138: 221
A139: 22 | B139: 19296 | C139: 14 | D139: 19317 | E139: 13 | F139: 19330 | K139: 0 | L139: 211
A140: 22 | B140: 19448 | C140: 14 | D140: 19464 | E140: 13 | F140: 19473 | K140: 0 | L140: 211
A141: 22 | B141: 19566 | C141: 23 | D141: 19570 | E141: 13 | F141: 19587 | K141: 0 | L141: 221
A142: 11 | B142: 19693 | C142: 21 | D142: 19702 | E142: 11 | F142: 19729 | K142: 0 | L142: 121
A143: 22 | B143: 20025 | C143: 14 | D143: 20040 | E143: 13 | F143: 20050 | K143: 0 | L143: 211
A144: 22 | B144: 20164 | C144: 23 | D144: 20170 | E144: 13 | F144: 20186 | K144: 0 | L144: 221
A145: 22 | B145: 20292 | C145: 23 | D145: 20301 | E145: 13 | F145: 20320 | K145: 0 | L145: 221
A146: 22 | B146: 20415 | C146: 23 | D146: 20419 | E146: 24 | F146: 20426 | K146: 0 | L146: 222
A147: 22 | B147: 20621 | C147: 14 | D147: 20636 | E147: 13 | F147: 20654 | K147: 0 | L147: 211
A148: 22 | B148: 20759 | C148: 14 | D148: 20779 | E148: 13 | F148: 20788 | K148: 0 | L148: 211
A149: 22 | B149: 20890 | C149: 14 | D149: 20906 | E149: 13 | F149: 20917 | K149: 0 | L149: 211
A150: 11 | B150: 21021 | C150: 12 | D150: 21038 | E150: 24 | F150: 21050 | K150: 0 | L150: 112
A151: 22 | B151: 21148 | C151: 23 | D151: 21154 | E151: 13 | F151: 21172 | K151: 0 | L151: 221
A152: 11 | B152: 21288 | C152: 12 | D152: 21295 | E152: 13 | F152: 21305 | K152: 0 | L152: 111
A153: 22 | B153: 21628 | C153: 23 | D153: 21632 | E153: 13 | F153: 21643 | K153: 0 | L153: 221
A154: 22 | B154: 21742 | C154: 14 | D154: 21761 | E154: 13 | F154: 21775 | K154: 0 | L154: 211
A155: 22 | B155: 21881 | C155: 14 | D155: 21895 | E155: 13 | F155: 21907 | K155: 0 | L155: 211
A156: 11 | B156: 22023 | C156: 21 | D156: 22037 | E156: 22 | F156: 22043 | K156: 0 | L156: 122
A157: 22 | B157: 22274 | C157: 14 | D157: 22290 | E157: 24 | F157: 22301 | K157: 0 | L157: 212
A158: 11 | B158: 22414 | C158: 12 | D158: 22422 | E158: 13 | F158: 22430 | K158: 0 | L158: 111
A159: 22 | B159: 22542 | C159: 14 | D159: 22563 | E159: 13 | F159: 22579 | K159: 0 | L159: 211
A160: 11 | B160: 22700 | C160: 12 | D160: 22703 | E160: 13 | F160: 22709 | K160: 0 | L160: 111
A161: 11 | B161: 22829 | C161: 12 | D161: 22838 | E161: 13 | F161: 22847 | K161: 0 | L161: 111
A162: 22 | B162: 22954 | C162: 14 | D162: 22970 | E162: 13 | F162: 22980 | K162: 0 | L162: 211
A163: 11 | B163: 23082 | C163: 12 | D163: 23093 | E163: 13 | F163: 23101 | K163: 0 | L163: 111
A164: 11 | B164: 23215 | C164: 12 | D164: 23222 | E164: 24 | F164: 23234 | K164: 0 | L164: 112
A165: 11 | B165: 23493 | C165: 12 | D165: 23505 | E165: 13 | F165: 23513 | K165: 0 | L165: 111
A166: 22 | B166: 23609 | C166: 23 | D166: 23625 | E166: 24 | F166: 23630 | K166: 0 | L166: 222
A167: 11 | B167: 23747 | C167: 12 | D167: 23753 | E167: 13 | F167: 23768 | K167: 0 | L167: 111
A168: 22 | B168: 23879 | C168: 23 | D168: 23885 | E168: 24 | F168: 23892 | K168: 0 | L168: 222
A169: 22 | B169: 23989 | C169: 23 | D169: 23995 | L169: 22

Sheet !M228A4D.UST
A1: Report for:!M228A4D.UST
A2: Date: | B2: <date>
A3: Hen: | B3: <hen> | F3: Correct Sequence | G3: =Start!J2 -> 121 | P3: Total Sequences in Data | Q3: =4994-COUNTBLANK(L7:L5000) -> 160 | V3: Total Sequences in Block Data | W3: =COUNTA(L7:L33) -> 27 | AA3: Total Sequences in Block Data | AB3: =COUNTA(L34:L59) -> 26 | AF3: Total Sequences in Block Data | AG3: =COUNTA(L60:L86) -> 27 | AK3: Total Sequences in Block Data | AL3: =COUNTA(L87:L113) -> 27 | AP3: Total Sequences in Block Data | AQ3: =COUNTA(L114:L139) -> 26 | AU3: Total Sequences in Block Data | AV3: =COUNTA(L140:L166) -> 27
P4: Total Sequences in Summary | Q4: =SUM(O7:O14) -> 160 | V4: Total Sequences in Block Summary | W4: =SUM(U7:U14) -> 27 | AA4: Total Sequences in Block Summary | AB4: =SUM(Z7:Z14) -> 26 | AF4: Total Sequences in Block Summary | AG4: =SUM(AE7:AE14) -> 27 | AK4: Total Sequences in Block Summary | AL4: =SUM(AJ7:AJ14) -> 27 | AP4: Total Sequences in Block Summary | AQ4: =SUM(AO7:AO14) -> 26 | AU4: Total Sequences in Block Summary | AV4: =SUM(AT7:AT14) -> 27
T5: Block 1 | Y5: Block 2 | AD5: Block 3 | AI5: Block 4 | AN5: Block 5 | AS5: Block 6
A6: Sequence Component 1 | B6: Time 1 | C6: Sequence Component 2 | D6: Time 2 | E6: Sequence Component 3 | F6: Time 3 | G6: Sequence Component 4 | H6: Time 4 | I6: Sequence Component 5 | J6: Time 5 | K6: Correct? 0=No 1=Yes | L6: Sequence | N6: Frequency | P6: Relative Frequency | Q6: Variability | T6: Frequency | V6: Relative Frequency | W6: Variability | Y6: Frequency | AA6: Relative Frequency | AB6: Variability | AD6: Frequency | AF6: Relative Frequency | AG6: Variability | AI6: Frequency | AK6: Relative Frequency | AL6: Variability | AN6: Frequency | AP6: Relative Frequency | AQ6: Variability | AS6: Frequency | AU6: Relative Frequency | AV6: Variability
A7: 11 | B7: 11 | C7: 21 | D7: 20 | E7: 22 | F7: 26 | K7: 0 | L7: 122 | N7: 111 | O7: =COUNTIF($L$7:$L$500,N7) -> 27 | P7: =O7/$Q$4 -> 0.16875 | Q7: =IF(P7=0,0,(P7*((LOG(P7))/LOG(2)))) -> -0.4331881 | T7: =N7 -> 111 | U7: =COUNTIF(L7:L33,T7) -> 4 | V7: =U7/(W4-U9) -> 0.1666666667 | W7: =IF(V7=0,0,(V7*((LOG(V7))/LOG(2)))) -> -0.4308270835 | Y7: =N7 -> 111 | Z7: =COUNTIF(L34:L59,Y7) -> 5 | AA7: =Z7/(AB4-Z9) -> 0.2083333333 | AB7: =IF(AA7=0,0,(AA7*((LOG(AA7))/LOG(2)))) -> -0.4714655012 | AD7: =N7 -> 111 | AE7: =COUNTIF(L60:L86,AD7) -> 2 | AF7: =AE7/(AG4-AE9) -> 0.08695652174 | AG7: =IF(AF7=0,0,(AF7*((LOG(AF7))/LOG(2)))) -> -0.3063966918 | AI7: =N7 -> 111 | AJ7: =COUNTIF(L87:L113,AI7) -> 7 | AK7: =AJ7/(AL4-AJ9) -> 0.3333333333 | AL7: =IF(AK7=0,0,(AK7*((LOG(AK7))/LOG(2)))) -> -0.5283208336 | AN7: =N7 -> 111 | AO7: =COUNTIF(L114:L139,AN7) -> 6 | AP7: =AO7/(AQ4-AO9) -> 0.25 | AQ7: =IF(AP7=0,0,(AP7*((LOG(AP7))/LOG(2)))) -> -0.5 | AS7: =N7 -> 111 | AT7: =COUNTIF(L140:L166,AS7) -> 3 | AU7: =AT7/(AV4-AT9) -> 0.1363636364 | AV7: =IF(AU7=0,0,(AU7*((LOG(AU7))/LOG(2)))) -> -0.3919730615
A8: 11 | B8: 133 | C8: 12 | D8: 140 | E8: 13 | F8: 147 | K8: 0 | L8: 111 | N8: 112 | O8: =COUNTIF($L$7:$L$500,N8) -> 5 | P8: =O8/$Q$4 -> 0.03125 | Q8: =IF(P8=0,0,(P8*((LOG(P8))/LOG(2)))) -> -0.15625 | T8: =N8 -> 112 | U8: =COUNTIF(L7:L33,T8) -> 2 | V8: =U8/(W4-U9) -> 0.08333333333 | W8: =IF(V8=0,0,(V8*((LOG(V8))/LOG(2)))) -> -0.2987468751 | Y8: =N8 -> 112 | Z8: =COUNTIF(L34:L59,Y8) -> 0 | AA8: =Z8/(AB4-Z9) -> 0 | AB8: =IF(AA8=0,0,(AA8*((LOG(AA8))/LOG(2)))) -> 0 | AD8: =N8 -> 112 | AE8: =COUNTIF(L60:L86,AD8) -> 0 | AF8: =AE8/(AG4-AE9) -> 0 | AG8: =IF(AF8=0,0,(AF8*((LOG(AF8))/LOG(2)))) -> 0 | AI8: =N8 -> 112 | AJ8: =COUNTIF(L87:L113,AI8) -> 0 | AK8: =AJ8/(AL4-AJ9) -> 0 | AL8: =IF(AK8=0,0,(AK8*((LOG(AK8))/LOG(2)))) -> 0 | AN8: =N8 -> 112 | AO8: =COUNTIF(L114:L139,AN8) -> 1 | AP8: =AO8/(AQ4-AO9) -> 0.04166666667 | AQ8: =IF(AP8=0,0,(AP8*((LOG(AP8))/LOG(2)))) -> -0.1910401042 | AS8: =N8 -> 112 | AT8: =COUNTIF(L140:L166,AS8) -> 2 | AU8: =AT8/(AV4-AT9) -> 0.09090909091 | AV8: =IF(AU8=0,0,(AU8*((LOG(AU8))/LOG(2)))) -> -0.3144937835
A9: 11 | B9: 245 | C9: 21 | D9: 253 | E9: 22 | F9: 260 | K9: 0 | L9: 122 | N9: 121 | O9: =COUNTIF($L$7:$L$500,N9) -> 22 | P9: =O9/$Q$4 -> 0.1375 | Q9: =IF(P9=0,0,(P9*((LOG(P9))/LOG(2)))) -> -0.3935932655 | T9: =N9 -> 121 | U9: =COUNTIF(L7:L33,T9) -> 3 | Y9: =N9 -> 121 | Z9: =COUNTIF(L34:L59,Y9) -> 2 | AD9: =N9 -> 121 | AE9: =COUNTIF(L60:L86,AD9) -> 4 | AI9: =N9 -> 121 | AJ9: =COUNTIF(L87:L113,AI9) -> 6 | AN9: =N9 -> 121 | AO9: =COUNTIF(L114:L139,AN9) -> 2 | AS9: =N9 -> 121 | AT9: =COUNTIF(L140:L166,AS9) -> 5
A10: 11 | B10: 360 | C10: 12 | D10: 365 | E10: 13 | F10: 373 | K10: 0 | L10: 111 | N10: 122 | O10: =COUNTIF($L$7:$L$500,N10) -> 22 | P10: =O10/$Q$4 -> 0.1375 | Q10: =IF(P10=0,0,(P10*((LOG(P10))/LOG(2)))) -> -0.3935932655 | T10: =N10 -> 122 | U10: =COUNTIF(L7:L33,T10) -> 8 | V10: =U10/(W4-U9) -> 0.3333333333 | W10: =IF(V10=0,0,(V10*((LOG(V10))/LOG(2)))) -> -0.5283208336 | Y10: =N10 -> 122 | Z10: =COUNTIF(L34:L59,Y10) -> 2 | AA10: =Z10/(AB4-Z9) -> 0.08333333333 | AB10: =IF(AA10=0,0,(AA10*((LOG(AA10))/LOG(2)))) -> -0.2987468751 | AD10: =N10 -> 122 | AE10: =COUNTIF(L60:L86,AD10) -> 4 | AF10: =AE10/(AG4-AE9) -> 0.1739130435 | AG10: =IF(AF10=0,0,(AF10*((LOG(AF10))/LOG(2)))) -> -0.4388803402 | AI10: =N10 -> 122 | AJ10: =COUNTIF(L87:L113,AI10) -> 3 | AK10: =AJ10/(AL4-AJ9) -> 0.1428571429 | AL10: =IF(AK10=0,0,(AK10*((LOG(AK10))/LOG(2)))) -> -0.4010507032 | AN10: =N10 -> 122 | AO10: =COUNTIF(L114:L139,AN10) -> 3 | AP10: =AO10/(AQ4-AO9) -> 0.125 | AQ10: =IF(AP10=0,0,(AP10*((LOG(AP10))/LOG(2)))) -> -0.375 | AS10: =N10 -> 122 | AT10: =COUNTIF(L140:L166,AS10) -> 2 | AU10: =AT10/(AV4-AT9) -> 0.09090909091 | AV10: =IF(AU10=0,0,(AU10*((LOG(AU10))/LOG(2)))) -> -0.3144937835
A11: 11 | B11: 474 | C11: 21 | D11: 482 | E11: 22 | F11: 488 | K11: 0 | L11: 122 | N11: 211 | O11: =COUNTIF($L$7:$L$500,N11) -> 23 | P11: =O11/$Q$4 -> 0.14375 | Q11: =IF(P11=0,0,(P11*((LOG(P11))/LOG(2)))) -> -0.4022651325 | T11: =N11 -> 211 | U11: =COUNTIF(L7:L33,T11) -> 2 | V11: =U11/(W4-U9) -> 0.08333333333 | W11: =IF(V11=0,0,(V11*((LOG(V11))/LOG(2)))) -> -0.2987468751 | Y11: =N11 -> 211 | Z11: =COUNTIF(L34:L59,Y11) -> 3 | AA11: =Z11/(AB4-Z9) -> 0.125 | AB11: =IF(AA11=0,0,(AA11*((LOG(AA11))/LOG(2)))) -> -0.375 | AD11: =N11 -> 211 | AE11: =COUNTIF(L60:L86,AD11) -> 5 | AF11: =AE11/(AG4-AE9) -> 0.2173913043 | AG11: =IF(AF11=0,0,(AF11*((LOG(AF11))/LOG(2)))) -> -0.4786160568 | AI11: =N11 -> 211 | AJ11: =COUNTIF(L87:L113,AI11) -> 5 | AK11: =AJ11/(AL4-AJ9) -> 0.2380952381 | AL11: =IF(AK11=0,0,(AK11*((LOG(AK11))/LOG(2)))) -> -0.49294984 | AN11: =N11 -> 211 | AO11: =COUNTIF(L114:L139,AN11) -> 5 | AP11: =AO11/(AQ4-AO9) -> 0.2083333333 | AQ11: =IF(AP11=0,0,(AP11*((LOG(AP11))/LOG(2)))) -> -0.4714655012 | AS11: =N11 -> 211 | AT11: =COUNTIF(L140:L166,AS11) -> 3 | AU11: =AT11/(AV4-AT9) -> 0.1363636364 | AV11: =IF(AU11=0,0,(AU11*((LOG(AU11))/LOG(2)))) -> -0.3919730615
A12: 22 | B12: 598 | C12: 23 | D12: 606 | E12: 24 | F12: 613 | K12: 0 | L12: 222 | N12: 212 | O12: =COUNTIF($L$7:$L$500,N12) -> 21 | P12: =O12/$Q$4 -> 0.13125 | Q12: =IF(P12=0,0,(P12*((LOG(P12))/LOG(2)))) -> -0.3845114007 | T12: =N12 -> 212 | U12: =COUNTIF(L7:L33,T12) -> 0 | V12: =U12/(W4-U9) -> 0 | W12: =IF(V12=0,0,(V12*((LOG(V12))/LOG(2)))) -> 0 | Y12: =N12 -> 212 | Z12: =COUNTIF(L34:L59,Y12) -> 1 | AA12: =Z12/(AB4-Z9) -> 0.04166666667 | AB12: =IF(AA12=0,0,(AA12*((LOG(AA12))/LOG(2)))) -> -0.1910401042 | AD12: =N12 -> 212 | AE12: =COUNTIF(L60:L86,AD12) -> 6 | AF12: =AE12/(AG4-AE9) -> 0.2608695652 | AG12: =IF(AF12=0,0,(AF12*((LOG(AF12))/LOG(2)))) -> -0.505721597 | AI12: =N12 -> 212 | AJ12: =COUNTIF(L87:L113,AI12) -> 5 | AK12: =AJ12/(AL4-AJ9) -> 0.2380952381 | AL12: =IF(AK12=0,0,(AK12*((LOG(AK12))/LOG(2)))) -> -0.49294984 | AN12: =N12 -> 212 | AO12: =COUNTIF(L114:L139,AN12) -> 2 | AP12: =AO12/(AQ4-AO9) -> 0.08333333333 | AQ12: =IF(AP12=0,0,(AP12*((LOG(AP12))/LOG(2)))) -> -0.2987468751 | AS12: =N12 -> 212 | AT12: =COUNTIF(L140:L166,AS12) -> 7 | AU12: =AT12/(AV4-AT9) -> 0.3181818182 | AV12: =IF(AU12=0,0,(AU12*((LOG(AU12))/LOG(2)))) -> -0.5256607671
A13: 22 | B13: 710 | C13: 23 | D13: 721 | E13: 24 | F13: 729 | K13: 0 | L13: 222 | N13: 221 | O13: =COUNTIF($L$7:$L$500,N13) -> 14 | P13: =O13/$Q$4 -> 0.0875 | Q13: =IF(P13=0,0,(P13*((LOG(P13))/LOG(2)))) -> -0.3075251526 | T13: =N13 -> 221 | U13: =COUNTIF(L7:L33,T13) -> 0 | V13: =U13/(W4-U9) -> 0 | W13: =IF(V13=0,0,(V13*((LOG(V13))/LOG(2)))) -> 0 | Y13: =N13 -> 221 | Z13: =COUNTIF(L34:L59,Y13) -> 5 | AA13: =Z13/(AB4-Z9) -> 0.2083333333 | AB13: =IF(AA13=0,0,(AA13*((LOG(AA13))/LOG(2)))) -> -0.4714655012 | AD13: =N13 -> 221 | AE13: =COUNTIF(L60:L86,AD13) -> 3 | AF13: =AE13/(AG4-AE9) -> 0.1304347826 | AG13: =IF(AF13=0,0,(AF13*((LOG(AF13))/LOG(2)))) -> -0.3832955811 | AI13: =N13 -> 221 | AJ13: =COUNTIF(L87:L113,AI13) -> 0 | AK13: =AJ13/(AL4-AJ9) -> 0 | AL13: =IF(AK13=0,0,(AK13*((LOG(AK13))/LOG(2)))) -> 0 | AN13: =N13 -> 221 | AO13: =COUNTIF(L114:L139,AN13) -> 4 | AP13: =AO13/(AQ4-AO9) -> 0.1666666667 | AQ13: =IF(AP13=0,0,(AP13*((LOG(AP13))/LOG(2)))) -> -0.4308270835 | AS13: =N13 -> 221 | AT13: =COUNTIF(L140:L166,AS13) -> 2 | AU13: =AT13/(AV4-AT9) -> 0.09090909091 | AV13: =IF(AU13=0,0,(AU13*((LOG(AU13))/LOG(2)))) -> -0.3144937835
A14: 11 | B14: 830 | C14: 12 | D14: 835 | E14: 13 | F14: 842 | K14: 0 | L14: 111 | N14: 222 | O14: =COUNTIF($L$7:$L$500,N14) -> 26 | P14: =O14/$Q$4 -> 0.1625 | Q14: =IF(P14=0,0,(P14*((LOG(P14))/LOG(2)))) -> -0.4259918612 | T14: =N14 -> 222 | U14: =COUNTIF(L7:L33,T14) -> 8 | V14: =U14/(W4-U9) -> 0.3333333333 | W14: =IF(V14=0,0,(V14*((LOG(V14))/LOG(2)))) -> -0.5283208336 | Y14: =N14 -> 222 | Z14: =COUNTIF(L34:L59,Y14) -> 8 | AA14: =Z14/(AB4-Z9) -> 0.3333333333 | AB14: =IF(AA14=0,0,(AA14*((LOG(AA14))/LOG(2)))) -> -0.5283208336 | AD14: =N14 -> 222 | AE14: =COUNTIF(L60:L86,AD14) -> 3 | AF14: =AE14/(AG4-AE9) -> 0.1304347826 | AG14: =IF(AF14=0,0,(AF14*((LOG(AF14))/LOG(2)))) -> -0.3832955811 | AI14: =N14 -> 222 | AJ14: =COUNTIF(L87:L113,AI14) -> 1 | AK14: =AJ14/(AL4-AJ9) -> 0.04761904762 | AL14: =IF(AK14=0,0,(AK14*((LOG(AK14))/LOG(2)))) -> -0.2091579725 | AN14: =N14 -> 222 | AO14: =COUNTIF(L114:L139,AN14) -> 3 | AP14: =AO14/(AQ4-AO9) -> 0.125 | AQ14: =IF(AP14=0,0,(AP14*((LOG(AP14))/LOG(2)))) -> -0.375 | AS14: =N14 -> 222 | AT14: =COUNTIF(L140:L166,AS14) -> 3 | AU14: =AT14/(AV4-AT9) -> 0.1363636364 | AV14: =IF(AU14=0,0,(AU14*((LOG(AU14))/LOG(2)))) -> -0.3919730615
A15: 11 | B15: 944 | C15: 21 | D15: 953 | E15: 22 | F15: 961 | K15: 0 | L15: 122 | P15: =SUM(P7:P14) -> 1 | Q15: =-SUM(Q7:Q14) -> 2.896918178 | V15: =SUM(V7:V14) -> 1 | W15: =-SUM(W7:W14) -> 2.084962501 | AA15: =SUM(AA7:AA14) -> 1 | AB15: =-SUM(AB7:AB14) -> 2.336038815 | AF15: =SUM(AF7:AF14) -> 1 | AG15: =-SUM(AG7:AG14) -> 2.496205848 | AK15: =SUM(AK7:AK14) -> 1 | AL15: =-SUM(AL7:AL14) -> 2.124429189 | AP15: =SUM(AP7:AP14) -> 1 | AQ15: =-SUM(AQ7:AQ14) -> 2.642079564 | AU15: =SUM(AU7:AU14) -> 1 | AV15: =-SUM(AV7:AV14) -> 2.645061302
A16: 22 | B16: 1063 | C16: 23 | D16: 1071 | E16: 24 | F16: 1077 | K16: 0 | L16: 222 | P16: U= | Q16: =Q15/(LOG(Q4)/LOG(2)) -> 0.395649635 | V16: U1= | W16: =W15/(LOG(W4)/LOG(2)) -> 0.4384882923 | AA16: U2= | AB16: =AB15/(LOG(AB4)/LOG(2)) -> 0.4969830389 | AF16: U3= | AG16: =AG15/(LOG(AG4)/LOG(2)) -> 0.5249768469 | AK16: U4= | AL16: =AL15/(LOG(AL4)/LOG(2)) -> 0.4467885283 | AP16: U5= | AQ16: =AQ15/(LOG(AQ4)/LOG(2)) -> 0.5620920004 | AU16: U6= | AV16: =AV15/(LOG(AV4)/LOG(2)) -> 0.5562826252
A17: 22 | B17: 1178 | C17: 23 | D17: 1183 | E17: 24 | F17: 1193 | K17: 0 | L17: 222
A18: 11 | B18: 1293 | C18: 12 | D18: 1300 | E18: 13 | F18: 1306 | K18: 0 | L18: 111
A19: 11 | B19: 1411 | C19: 21 | D19: 1424 | E19: 22 | F19: 1430 | K19: 0 | L19: 122 | N19: Total Target Seq
A20: 22 | B20: 1527 | C20: 23 | D20: 1534 | E20: 24 | F20: 1543 | K20: 0 | L20: 222 | N20: =COUNTIF(L7:L166,G3) -> 22 | P20: 27 | Q20: 26 | R20: 27 | S20: 27 | T20: 26 | U20: 27
A21: 22 | B21: 1638 | C21: 23 | D21: 1647 | E21: 24 | F21: 1654 | K21: 0 | L21: 222 | P21: % of reinforcement given in 6 equal intervals based on number of trials
A22: 11 | B22: 1760 | C22: 21 | D22: 1771 | E22: 11 | F22: 1791 | K22: 0 | L22: 121 | P22: %_1 | Q22: %_2 | R22: %_3 | S22: %_4 | T22: %_5 | U22: %_6
A23: 11 | B23: 2047 | C23: 21 | D23: 2057 | E23: 11 | F23: 2074 | K23: 0 | L23: 121 | O23: target sequence | P23: =$G$3 -> 121 | Q23: =$G$3 -> 121 | R23: =$G$3 -> 121 | S23: =$G$3 -> 121 | T23: =$G$3 -> 121 | U23: =$G$3 -> 121
A24: 11 | B24: 2316 | C24: 12 | D24: 2324 | E24: 24 | F24: 2332 | K24: 0 | L24: 112 | O24: total reinforcement | P24: =U9 -> 3 | Q24: =Z9 -> 2 | R24: =AE9 -> 4 | S24: =AJ9 -> 6 | T24: =AO9 -> 2 | U24: =AT9 -> 5
A25: 11 | B25: 2575 | C25: 21 | D25: 2587 | E25: 22 | F25: 2592 | K25: 0 | L25: 122 | O25: % target
A26: 11 | B26: 2695 | C26: 21 | D26: 2703 | E26: 22 | F26: 2710 | K26: 0 | L26: 122 | O26: CCRF
A27: 11 | B27: 2811 | C27: 21 | D27: 2820 | E27: 11 | F27: 2837 | K27: 0 | L27: 121 | O27: % CCRf
A28: 11 | B28: 3017 | C28: 12 | D28: 3035 | E28: 24 | F28: 3055 | K28: 0 | L28: 112 | O28: average response rate | P28: =F33/P20 -> 135.0740741 | Q28: =(F59-F33)/Q20 -> 136.7692308 | R28: =(F86-F59)/R20 -> 146.1111111 | S28: =(F113-F86)/S20 -> 157.962963 | T28: =(F139-F113)/T20 -> 147.0769231 | U28: =(F166-F139)/U20 -> 173.7407407
A29: 22 | B29: 3156 | C29: 14 | D29: 3166 | E29: 13 | F29: 3172 | K29: 0 | L29: 211
A30: 22 | B30: 3270 | C30: 23 | D30: 3277 | E30: 24 | F30: 3284 | K30: 0 | L30: 222
A31: 22 | B31: 3376 | C31: 23 | D31: 3383 | E31: 24 | F31: 3392 | K31: 0 | L31: 222
A32: 22 | B32: 3501 | C32: 14 | D32: 3514 | E32: 13 | F32: 3530 | K32: 0 | L32: 211
A33: 11 | B33: 3633 | C33: 21 | D33: 3640 | E33: 22 | F33: 3647 | K33: 0 | L33: 122
A34: 22 | B34: 3753 | C34: 23 | D34: 3760 | E34: 24 | F34: 3768 | K34: 0 | L34: 222
A35: 11 | B35: 3878 | C35: 21 | D35: 3886 | E35: 22 | F35: 3892 | K35: 0 | L35: 122
A36: 22 | B36: 3986 | C36: 23 | D36: 3994 | E36: 24 | F36: 4001 | K36: 0 | L36: 222
A37: 22 | B37: 4103 | C37: 23 | D37: 4110 | E37: 24 | F37: 4118 | K37: 0 | L37: 222
A38: 11 | B38: 4224 | C38: 21 | D38: 4232 | E38: 11 | F38: 4251 | K38: 0 | L38: 121
A39: 11 | B39: 4417 | C39: 12 | D39: 4424 | E39: 13 | F39: 4440 | K39: 0 | L39: 111
A40: 11 | B40: 4547 | C40: 12 | D40: 4553 | E40: 13 | F40: 4559 | K40: 0 | L40: 111
A41: 22 | B41: 4659 | C41: 23 | D41: 4662 | E41: 13 | F41: 4677 | K41: 0 | L41: 221
A42: 22 | B42: 4781 | C42: 23 | D42: 4792 | E42: 24 | F42: 4802 | K42: 0 | L42: 222
A43: 11 | B43: 4927 | C43: 12 | D43: 4933 | E43: 13 | F43: 4941 | K43: 0 | L43: 111
A44: 22 | B44: 5034 | C44: 23 | D44: 5039 | E44: 24 | F44: 5048 | K44: 0 | L44: 222
A45: 22 | B45: 5145 | C45: 23 | D45: 5148 | E45: 24 | F45: 5158 | K45: 0 | L45: 222
A46: 22 | B46: 5263 | C46: 14 | D46: 5277 | E46: 13 | F46: 5285 | K46: 0 | L46: 211
A47: 22 | B47: 5392 | C47: 23 | D47: 5395 | E47: 24 | F47: 5405 | K47: 0 | L47: 222
A48: 22 | B48: 5511 | C48: 23 | D48: 5515 | E48: 13 | F48: 5530 | K48: 0 | L48: 221
A49: 22 | B49: 5642 | C49: 14 | D49: 5661 | E49: 13 | F49: 5677 | K49: 0 | L49: 211
A50: 22 | B50: 5785 | C50: 14 | D50: 5797 | E50: 13 | F50: 5801 | K50: 0 | L50: 211
A51: 22 | B51: 5900 | C51: 23 | D51: 5904 | E51: 24 | F51: 5911 | K51: 0 | L51: 222
A52: 22 | B52: 6019 | C52: 14 | D52: 6032 | E52: 24 | F52: 6048 | K52: 0 | L52: 212
A53: 11 | B53: 6156 | C53: 21 | D53: 6166 | E53: 22 | F53: 6171 | K53: 0 | L53: 122
A54: 11 | B54: 6404 | C54: 21 | D54: 6420 | E54: 11 | F54: 6433 | K54: 0 | L54: 121
A55: 11 | B55: 6698 | C55: 12 | D55: 6705 | E55: 13 | F55: 6719 | K55: 0 | L55: 111
A56: 11 | B56: 6827 | C56: 12 | D56: 6836 | E56: 13 | F56: 6844 | K56: 0 | L56: 111
A57: 22 | B57: 6940 | C57: 23 | D57: 6947 | E57: 13 | F57: 6964 | K57: 0 | L57: 221
A58: 22 | B58: 7064 | C58: 23 | D58: 7070 | E58: 13 | F58: 7084 | K58: 0 | L58: 221
A59: 22 | B59: 7183 | C59: 23 | D59: 7188 | E59: 13 | F59: 7203 | K59: 0 | L59: 221
A60: 22 | B60: 7295 | C60: 23 | D60: 7301 | E60: 24 | F60: 7320 | K60: 0 | L60: 222
A61: 22 | B61: 7426 | C61: 23 | D61: 7432 | E61: 24 | F61: 7463 | K61: 0 | L61: 222
A62: 11 | B62: 7570 | C62: 21 | D62: 7580 | E62: 11 | F62: 7591 | K62: 0 | L62: 121
A63: 11 | B63: 7803 | C63: 12 | D63: 7812 | E63: 13 | F63: 7820 | K63: 0 | L63: 111
A64: 22 | B64: 7934 | C64: 14 | D64: 7948 | E64: 24 | F64: 7958 | K64: 0 | L64: 212
A65: 22 | B65: 8066 | C65: 23 | D65: 8074 | E65: 24 | F65: 8097 | K65: 0 | L65: 222
A66: 22 | B66: 8204 | C66: 14 | D66: 8227 | E66: 24 | F66: 8236 | K66: 0 | L66: 212
A67: 11 | B67: 8338 | C67: 21 | D67: 8347 | E67: 22 | F67: 8351 | K67: 0 | L67: 122
A68: 22 | B68: 8452 | C68: 23 | D68: 8460 | E68: 13 | F68: 8481 | K68: 0 | L68: 221
A69: 22 | B69: 8592 | C69: 14 | D69: 8603 | E69: 24 | F69: 8615 | K69: 0 | L69: 212
A70: 22 | B70: 8713 | C70: 23 | D70: 8720 | E70: 13 | F70: 8734 | K70: 0 | L70: 221
A71: 11 | B71: 8844 | C71: 21 | D71: 8851 | E71: 11 | F71: 8862 | K71: 0 | L71: 121
A72: 22 | B72: 9027 | C72: 14 | D72: 9040 | E72: 24 | F72: 9050 | K72: 0 | L72: 212
A73: 11 | B73: 9174 | C73: 21 | D73: 9184 | E73: 22 | F73: 9191 | K73: 0 | L73: 122
A74: 22 | B74: 9301 | C74: 14 | D74: 9313 | E74: 13 | F74: 9319 | K74: 0 | L74: 211
A75: 11 | B75: 9425 | C75: 12 | D75: 9433 | E75: 13 | F75: 9435 | K75: 0 | L75: 111
A76: 11 | B76: 9533 | C76: 21 | D76: 9541 | E76: 11 | F76: 9553 | K76: 0 | L76: 121
A77: 22 | B77: 9896 | C77: 14 | D77: 9905 | E77: 13 | F77: 9911 | K77: 0 | L77: 211
A78: 22 | B78: 10003 | C78: 23 | D78: 10007 | E78: 13 | F78: 10024 | K78: 0 | L78: 221
A79: 22 | B79: 10124 | C79: 14 | D79: 10138 | E79: 24 | F79: 10149 | K79: 0 | L79: 212
A80: 11 | B80: 10262 | C80: 21 | D80: 10270 | E80: 22 | F80: 10275 | K80: 0 | L80: 122
A81: 22 | B81: 10377 | C81: 14 | D81: 10396 | E81: 24 | F81: 10419 | K81: 0 | L81: 212
A82: 11 | B82: 10524 | C82: 21 | D82: 10536 | E82: 22 | F82: 10540 | K82: 0 | L82: 122
A83: 11 | B83: 10641 | C83: 21 | D83: 10648 | E83: 11 | F83: 10661 | K83: 0 | L83: 121
A84: 22 | B84: 10864 | C84: 14 | D84: 10879 | E84: 13 | F84: 10893 | K84: 0 | L84: 211
A85: 22 | B85: 10991 | C85: 14 | D85: 11014 | E85: 13 | F85: 11024 | K85: 0 | L85: 211
A86: 22 | B86: 11129 | C86: 14 | D86: 11141 | E86: 13 | F86: 11148 | K86: 0 | L86: 211
A87: 22 | B87: 11255 | C87: 14 | D87: 11274 | E87: 13 | F87: 11282 | K87: 0 | L87: 211
A88: 22 | B88: 11387 | C88: 14 | D88: 11400 | E88: 24 | F88: 11411 | K88: 0 | L88: 212
A89: 11 | B89: 11509 | C89: 21 | D89: 11516 | E89: 11 | F89: 11528 | K89: 0 | L89: 121
A90: 22 | B90: 11739 | C90: 14 | D90: 11758 | E90: 24 | F90: 11769 | K90: 0 | L90: 212
A91: 11 | B91: 11884 | C91: 21 | D91: 11892 | E91: 22 | F91: 11899 | K91: 0 | L91: 122
A92: 22 | B92: 11993 | C92: 14 | D92: 12008 | E92: 24 | F92: 12018 | K92: 0 | L92: 212
A93: 11 | B93: 12116 | C93: 21 | D93: 12123 | E93: 22 | F93: 12128 | K93: 0 | L93: 122
A94: 22 | B94: 12221 | C94: 14 | D94: 12239 | E94: 24 | F94: 12248 | K94: 0 | L94: 212
A95: 22 | B95: 12344 | C95: 14 | D95: 12360 | E95: 24 | F95: 12370 | K95: 0 | L95: 212
A96: 11 | B96: 12469 | C96: 12 | D96: 12490 | E96: 13 | F96: 12498 | K96: 0 | L96: 111
A97: 11 | B97: 12599 | C97: 21 | D97: 12605 | E97: 22 | F97: 12611 | K97: 0 | L97: 122
A98: 22 | B98: 12719 | C98: 14 | D98: 12738 | E98: 13 | F98: 12751 | K98: 0 | L98: 211
A99: 11 | B99: 12857 | C99: 12 | D99: 12864 | E99: 13 | F99: 12873 | K99: 0 | L99: 111
A100: 11 | B100: 12981 | C100: 21 | D100: 12991 | E100: 11 | F100: 13009 | K100: 0 | L100: 121
A101: 11 | B101: 13245 | C101: 12 | D101: 13252 | E101: 13 | F101: 13260 | K101: 0 | L101: 111
A102: 22 | B102: 13371 | C102: 23 | D102: 13374 | E102: 24 | F102: 13385 | K102: 0 | L102: 222
A103: 11 | B103: 13482 | C103: 21 | D103: 13489 | E103: 11 | F103: 13502 | K103: 0 | L103: 121
A104: 22 | B104: 13751 | C104: 14 | D104: 13765 | E104: 13 | F104: 13773 | K104: 0 | L104: 211
A105: 11 | B105: 13878 | C105: 12 | D105: 13897 | E105: 13 | F105: 13907 | K105: 0 | L105: 111
A106: 11 | B106: 14009 | C106: 21 | D106: 14018 | E106: 11 | F106: 14030 | K106: 0 | L106: 121
A107: 11 | B107: 14366 | C107: 12 | D107: 14372 | E107: 13 | F107: 14380 | K107: 0 | L107: 111
A108: 22 | B108: 14475 | C108: 14 | D108: 14493 | E108: 13 | F108: 14503 | K108: 0 | L108: 211
A109: 11 | B109: 14605 | C109: 21 | D109: 14613 | E109: 11 | F109: 14633 | K109: 0 | L109: 121
A110: 11 | B110: 14843 | C110: 12 | D110: 14851 | E110: 13 | F110: 14860 | K110: 0 | L110: 111
A111: 22 | B111: 14962 | C111: 14 | D111: 14975 | E111: 13 | F111: 14984 | K111: 0 | L111: 211
A112: 11 | B112: 15083 | C112: 21 | D112: 15091 | E112: 11 | F112: 15111 | K112: 0 | L112: 121
A113: 11 | B113: 15377 | C113: 12 | D113: 15397 | E113: 13 | F113: 15413 | K113: 0 | L113: 111
A114: 22 | B114: 15513 | C114: 23 | D114: 15522 | E114: 13 | F114: 15535 | K114: 0 | L114: 221
A115: 22 | B115: 15642 | C115: 14 | D115: 15654 | E115: 13 | F115: 15664 | K115: 0 | L115: 211
A116: 11 | B116: 15767 | C116: 21 | D116: 15774 | E116: 11 | F116: 15793 | K116: 0 | L116: 121
A117: 11 | B117: 16075 | C117: 12 | D117: 16081 | E117: 13 | F117: 16089 | K117: 0 | L117: 111
A118: 11 | B118: 16201 | C118: 12 | D118: 16208 | E118: 13 | F118: 16215 | K118: 0 | L118: 111
A119: 11 | B119: 16333 | C119: 12 | D119: 16340 | E119: 13 | F119: 16348 | K119: 0 | L119: 111
A120: 22 | B120: 16458 | C120: 14 | D120: 16469 | E120: 13 | F120: 16477 | K120: 0 | L120: 211
A121: 22 | B121: 16585 | C121: 14 | D121: 16601 | E121: 13 | F121: 16617 | K121: 0 | L121: 211
A122: 22 | B122: 16721 | C122: 14 | D122: 16735 | E122: 13 | F122: 16740 | K122: 0 | L122: 211
A123: 22 | B123: 16832 | C123: 23 | D123: 16839 | E123: 13 | F123: 16853 | K123: 0 | L123: 221
A124: 11 | B124: 17112 | C124: 21 | D124: 17121 | E124: 22 | F124: 17127 | K124: 0 | L124: 122
A125: 11 | B125: 17233 | C125: 21 | D125: 17240 | E125: 22 | F125: 17244 | K125: 0 | L125: 122
A126: 11 | B126: 17342 | C126: 12 | D126: 17362 | E126: 13 | F126: 17375 | K126: 0 | L126: 111
A127: 11 | B127: 17473 | C127: 21 | D127: 17481 | E127: 11 | F127: 17493 | K127: 0 | L127: 121
A128: 11 | B128: 17743 | C128: 21 | D128: 17753 | E128: 22 | F128: 17759 | K128: 0 | L128: 122
A129: 11 | B129: 17868 | C129: 12 | D129: 17912 | E129: 13 | F129: 17927 | K129: 0 | L129: 111
A130: 22 | B130: 18022 | C130: 14 | D130: 18043 | E130: 24 | F130: 18053 | K130: 0 | L130: 212
A131: 22 | B131: 18163 | C131: 14 | D131: 18175 | E131: 13 | F131: 18181 | K131: 0 | L131: 211
A132: 22 | B132: 18284 | C132: 23 | D132: 18290 | E132: 13 | F132: 18308 | K132: 0 | L132: 221
A133: 22 | B133: 18406 | C133: 23 | D133: 18412 | E133: 13 | F133: 18432 | K133: 0 | L133: 221
A134: 11 | B134: 18534 | C134: 12 | D134: 18539 | E134: 13 | F134: 18544 | K134: 0 | L134: 111
A135: 22 | B135: 18647 | C135: 14 | D135: 18663 | E135: 24 | F135: 18673 | K135: 0 | L135: 212
A136: 22 | B136: 18765 | C136: 23 | D136: 18779 | E136: 24 | F136: 18788 | K136: 0 | L136: 222
A137: 22 | B137: 18963 | C137: 23 | D137: 18969 | E137: 24 | F137: 18976 | K137: 0 | L137: 222
A138: 22 | B138: 19076 | C138: 23 | D138: 19081 | E138: 24 | F138: 19088 | K138: 0 | L138: 222
A139: 11 | B139: 19218 | C139: 12 | D139: 19227 | E139: 24 | F139: 19237 | K139: 0 | L139: 112
A140: 11 | B140: 19354 | C140: 21 | D140: 19361 | E140: 11 | F140: 19373 | K140: 0 | L140: 121
A141: 11 | B141: 19575 | C141: 21 | D141: 19585 | E141: 22 | F141: 19590 | K141: 0 | L141: 122
A142: 22 | B142: 19695 | C142: 14 | D142: 19711 | E142: 24 | F142: 19722 | K142: 0 | L142: 212
A143: 11 | B143: 19825 | C143: 21 | D143: 19832 | E143: 11 | F143: 19846 | K143: 0 | L143: 121
A144: 22 | B144: 20069 | C144: 14 | D144: 20088 | E144: 24 | F144: 20106 | K144: 0 | L144: 212
A145: 22 | B145: 20204 | C145: 23 | D145: 20213 | E145: 24 | F145: 20220 | K145: 0 | L145: 222
A146: 22 | B146: 20321 | C146: 14 | D146: 20336 | E146: 24 | F146: 20349 | K146: 0 | L146: 212
A147: 22 | B147: 20460 | C147: 23 | D147: 20464 | E147: 13 | F147: 20479 | K147: 0 | L147: 221
A148: 22 | B148: 20587 | C148: 14 | D148: 20606 | E148: 24 | F148: 20630 | K148: 0 | L148: 212
A149: 11 | B149: 20735 | C149: 12 | D149: 20739 | E149: 24 | F149: 20749 | K149: 0 | L149: 112
A150: 11 | B150: 20850 | C150: 12 | D150: 20870 | E150: 13 | F150: 20884 | K150: 0 | L150: 111
A151: 11 | B151: 21210 | C151: 12 | D151: 21221 | E151: 13 | F151: 21227 | K151: 0 | L151: 111
A152: 22 | B152: 21322 | C152: 23 | D152: 21338 | E152: 24 | F152: 21345 | K152: 0 | L152: 222
A153: 11 | B153: 21449 | C153: 21 | D153: 21458 | E153: 11 | F153: 21479 | K153: 0 | L153: 121
A154: 22 | B154: 21718 | C154: 14 | D154: 21730 | E154: 13 | F154: 21741 | K154: 0 | L154: 211
A155: 22 | B155: 21839 | C155: 23 | D155: 21844 | E155: 13 | F155: 21858 | K155: 0 | L155: 221
A156: 22 | B156: 22110 | C156: 14 | D156: 22126 | E156: 24 | F156: 22136 | K156: 0 | L156: 212
A157: 22 | B157: 22233 | C157: 23 | D157: 22240 | E157: 24 | F157: 22248 | K157: 0 | L157: 222
A158: 11 | B158: 22386 | C158: 21 | D158: 22396 | E158: 11 | F158: 22412 | K158: 0 | L158: 121
A159: 11 | B159: 22626 | C159: 21 | D159: 22636 | E159: 22 | F159: 22642 | K159: 0 | L159: 122
A160: 11 | B160: 22988 | C160: 12 | D160: 22995 | E160: 13 | F160: 23005 | K160: 0 | L160: 111
A161: 11 | B161: 23131 | C161: 12 | D161: 23148 | E161: 24 | F161: 23158 | K161: 0 | L161: 112
A162: 22 | B162: 23269 | C162: 14 | D162: 23286 | E162: 24 | F162: 23307 | K162: 0 | L162: 212
A163: 22 | B163: 23505 | C163: 14 | D163: 23519 | E163: 13 | F163: 23533 | K163: 0 | L163: 211
A164: 22 | B164: 23632 | C164: 14 | D164: 23653 | E164: 13 | F164: 23664 | K164: 0 | L164: 211
A165: 22 | B165: 23771 | C165: 14 | D165: 23785 | E165: 24 | F165: 23806 | K165: 0 | L165: 212
A166: 11 | B166: 23904 | C166: 21 | D166: 23911 | E166: 11 | F166: 23928 | K166: 1 | L166: 121

Sheet !M229B0D.UST
A1: Report for:!M229B0D.UST
A2: Date: | B2: <date>
A3: Hen: | B3: <hen> | F3: Correct Sequence | G3: =Start!J2 -> 121 | P3: Total Sequences in Data | Q3: =4994-COUNTBLANK(L7:L5000) -> 172 | V3: Total Sequences in Block Data | W3: =COUNTA(L7:L35) -> 29 | AA3: Total Sequences in Block Data | AB3: =COUNTA(L36:L63) -> 28 | AF3: Total Sequences in Block Data | AG3: =COUNTA(L64:L92) -> 29 | AK3: Total Sequences in Block Data | AL3: =COUNTA(L93:L121) -> 29 | AP3: Total Sequences in Block Data | AQ3: =COUNTA(L122:L149) -> 28 | AU3: Total Sequences in Block Data | AV3: =COUNTA(L150:L178) -> 29
P4: Total Sequences in Summary | Q4: =SUM(O7:O14) -> 172 | V4: Total Sequences in Block Summary | W4: =SUM(U7:U14) -> 29 | AA4: Total Sequences in Block Summary | AB4: =SUM(Z7:Z14) -> 28 | AF4: Total Sequences in Block Summary | AG4: =SUM(AE7:AE14) -> 29 | AK4: Total Sequences in Block Summary | AL4: =SUM(AJ7:AJ14) -> 29 | AP4: Total Sequences in Block Summary | AQ4: =SUM(AO7:AO14) -> 28 | AU4: Total Sequences in Block Summary | AV4: =SUM(AT7:AT14) -> 29
T5: Block 1 | Y5: Block 2 | AD5: Block 3 | AI5: Block 4 | AN5: Block 5 | AS5: Block 6
A6: Sequence Component 1 | B6: Time 1 | C6: Sequence Component 2 | D6: Time 2 | E6: Sequence Component 3 | F6: Time 3 | G6: Sequence Component 4 | H6: Time 4 | I6: Sequence Component 5 | J6: Time 5 | K6: Correct? 0=No 1=Yes | L6: Sequence | N6: Frequency | P6: Relative Frequency | Q6: Variability | T6: Frequency | V6: Relative Frequency | W6: Variability | Y6: Frequency | AA6: Relative Frequency | AB6: Variability | AD6: Frequency | AF6: Relative Frequency | AG6: Variability | AI6: Frequency | AK6: Relative Frequency | AL6: Variability | AN6: Frequency | AP6: Relative Frequency | AQ6: Variability | AS6: Frequency | AU6: Relative Frequency | AV6: Variability
A7: 11 | B7: 16 | C7: 21 | D7: 27 | E7: 22 | F7: 34 | K7: 0 | L7: 122 | N7: 111 | O7: =COUNTIF($L$7:$L$500,N7) -> 27 | P7: =O7/$Q$4 -> 0.1569767442 | Q7: =IF(P7=0,0,(P7*((LOG(P7))/LOG(2)))) -> -0.4193441036 | T7: =N7 -> 111 | U7: =COUNTIF(L7:L35,T7) -> 4 | V7: =U7/(W4-U9) -> 0.1666666667 | W7: =IF(V7=0,0,(V7*((LOG(V7))/LOG(2)))) -> -0.4308270835 | Y7: =N7 -> 111 | Z7: =COUNTIF(L36:L63,Y7) -> 8 | AA7: =Z7/(AB4-Z9) -> 0.3636363636 | AB7: =IF(AA7=0,0,(AA7*((LOG(AA7))/LOG(2)))) -> -0.5307024068 | AD7: =N7 -> 111 | AE7: =COUNTIF(L64:L92,AD7) -> 7 | AF7: =AE7/(AG4-AE9) -> 0.2916666667 | AG7: =IF(AF7=0,0,(AF7*((LOG(AF7))/LOG(2)))) -> -0.5184688771 | AI7: =N7 -> 111 | AJ7: =COUNTIF(L93:L121,AI7) -> 5 | AK7: =AJ7/(AL4-AJ9) -> 0.1724137931 | AL7: =IF(AK7=0,0,(AK7*((LOG(AK7))/LOG(2)))) -> -0.4372505 | AN7: =N7 -> 111 | AO7: =COUNTIF(L122:L149,AN7) -> 0 | AP7: =AO7/(AQ4-AO9) -> 0 | AQ7: =IF(AP7=0,0,(AP7*((LOG(AP7))/LOG(2)))) -> 0 | AS7: =N7 -> 111 | AT7: =COUNTIF(L150:L178,AS7) -> 3 | AU7: =AT7/(AV4-AT9) -> 0.1153846154 | AV7: =IF(AU7=0,0,(AU7*((LOG(AU7))/LOG(2)))) -> -0.3594781405
A8: 11 | B8: 136 | C8: 21 | D8: 142 | E8: 11 | F8: 152 | K8: 0 | L8: 121 | N8: 112 | O8: =COUNTIF($L$7:$L$500,N8) -> 13 | P8: =O8/$Q$4 -> 0.07558139535 | Q8: =IF(P8=0,0,(P8*((LOG(P8))/LOG(2)))) -> -0.2816030551 | T8: =N8 -> 112 | U8: =COUNTIF(L7:L35,T8) -> 3 | V8: =U8/(W4-U9) -> 0.125 | W8: =IF(V8=0,0,(V8*((LOG(V8))/LOG(2)))) -> -0.375 | Y8: =N8 -> 112 | Z8: =COUNTIF(L36:L63,Y8) -> 1 | AA8: =Z8/(AB4-Z9) -> 0.04545454545 | AB8: =IF(AA8=0,0,(AA8*((LOG(AA8))/LOG(2)))) -> -0.2027014372 | AD8: =N8 -> 112 | AE8: =COUNTIF(L64:L92,AD8) -> 2 | AF8: =AE8/(AG4-AE9) -> 0.08333333333 | AG8: =IF(AF8=0,0,(AF8*((LOG(AF8))/LOG(2)))) -> -0.2987468751 | AI8: =N8 -> 112 | AJ8: =COUNTIF(L93:L121,AI8) -> 2 | AK8: =AJ8/(AL4-AJ9) -> 0.06896551724 | AL8: =IF(AK8=0,0,(AK8*((LOG(AK8))/LOG(2)))) -> -0.2660676548 | AN8: =N8 -> 112 | AO8: =COUNTIF(L122:L149,AN8) -> 3 | AP8: =AO8/(AQ4-AO9) -> 0.1153846154 | AQ8: =IF(AP8=0,0,(AP8*((LOG(AP8))/LOG(2)))) -> -0.3594781405 | AS8: =N8 -> 112 | AT8: =COUNTIF(L150:L178,AS8) -> 2 | AU8: =AT8/(AV4-AT9) -> 0.07692307692 | AV8: =IF(AU8=0,0,(AU8*((LOG(AU8))/LOG(2)))) -> -0.2846492091
A9: 11 | B9: 340 | C9: 12 | D9: 358 | E9: 24 | F9: 367 | K9: 0 | L9: 112 | N9: 121 | O9: =COUNTIF($L$7:$L$500,N9) -> 21 | P9: =O9/$Q$4 -> 0.1220930233 | Q9: =IF(P9=0,0,(P9*((LOG(P9))/LOG(2)))) -> -0.3704238022 | T9: =N9 -> 121 | U9: =COUNTIF(L7:L35,T9) -> 5 | Y9: =N9 -> 121 | Z9: =COUNTIF(L36:L63,Y9) -> 6 | AD9: =N9 -> 121 | AE9: =COUNTIF(L64:L92,AD9) -> 5 | AI9: =N9 -> 121 | AJ9: =COUNTIF(L93:L121,AI9) -> 0 | AN9: =N9 -> 121 | AO9: =COUNTIF(L122:L149,AN9) -> 2 | AS9: =N9 -> 121 | AT9: =COUNTIF(L150:L178,AS9) -> 3
A10: 22 | B10: 470 | C10: 14 | D10: 481 | E10: 13 | F10: 493 | K10: 0 | L10: 211 | N10: 122 | O10: =COUNTIF($L$7:$L$500,N10) -> 25 | P10: =O10/$Q$4 -> 0.1453488372 | Q10: =IF(P10=0,0,(P10*((LOG(P10))/LOG(2)))) -> -0.4044198496 | T10: =N10 -> 122 | U10: =COUNTIF(L7:L35,T10) -> 9 | V10: =U10/(W4-U9) -> 0.375 | W10: =IF(V10=0,0,(V10*((LOG(V10))/LOG(2)))) -> -0.5306390622 | Y10: =N10 -> 122 | Z10: =COUNTIF(L36:L63,Y10) -> 3 | AA10: =Z10/(AB4-Z9) -> 0.1363636364 | AB10: =IF(AA10=0,0,(AA10*((LOG(AA10))/LOG(2)))) -> -0.3919730615 | AD10: =N10 -> 122 | AE10: =COUNTIF(L64:L92,AD10) -> 1 | AF10: =AE10/(AG4-AE9) -> 0.04166666667 | AG10: =IF(AF10=0,0,(AF10*((LOG(AF10))/LOG(2)))) -> -0.1910401042 | AI10: =N10 -> 122 | AJ10: =COUNTIF(L93:L121,AI10) -> 2 | AK10: =AJ10/(AL4-AJ9) -> 0.06896551724 | AL10: =IF(AK10=0,0,(AK10*((LOG(AK10))/LOG(2)))) -> -0.2660676548 | AN10: =N10 -> 122 | AO10: =COUNTIF(L122:L149,AN10) -> 4 | AP10: =AO10/(AQ4-AO9) -> 0.1538461538 | AQ10: =IF(AP10=0,0,(AP10*((LOG(AP10))/LOG(2)))) -> -0.4154522643 | AS10: =N10 -> 122 | AT10: =COUNTIF(L150:L178,AS10) -> 6 | AU10: =AT10/(AV4-AT9) -> 0.2307692308 | AV10: =IF(AU10=0,0,(AU10*((LOG(AU10))/LOG(2)))) -> -0.4881870502
A11: 22 | B11: 591 | C11: 23 | D11: 598 | E11: 24 | F11: 605 | K11: 0 | L11: 222 | N11: 211 | O11: =COUNTIF($L$7:$L$500,N11) -> 34 | P11: =O11/$Q$4 -> 0.1976744186 | Q11: =IF(P11=0,0,(P11*((LOG(P11))/LOG(2)))) -> -0.4623213085 | T11: =N11 -> 211 | U11: =COUNTIF(L7:L35,T11) -> 1 | V11: =U11/(W4-U9) -> 0.04166666667 | W11: =IF(V11=0,0,(V11*((LOG(V11))/LOG(2)))) -> -0.1910401042 | Y11: =N11 -> 211 | Z11: =COUNTIF(L36:L63,Y11) -> 6 | AA11: =Z11/(AB4-Z9) -> 0.2727272727 | AB11: =IF(AA11=0,0,(AA11*((LOG(AA11))/LOG(2)))) -> -0.5112188503 | AD11: =N11 -> 211 | AE11: =COUNTIF(L64:L92,AD11) -> 6 | AF11: =AE11/(AG4-AE9) -> 0.25 | AG11: =IF(AF11=0,0,(AF11*((LOG(AF11))/LOG(2)))) -> -0.5 | AI11: =N11 -> 211 | AJ11: =COUNTIF(L93:L121,AI11) -> 9 | AK11: =AJ11/(AL4-AJ9) -> 0.3103448276 | AL11: =IF(AK11=0,0,(AK11*((LOG(AK11))/LOG(2)))) -> -0.5238794463 | AN11: =N11 -> 211 | AO11: =COUNTIF(L122:L149,AN11) -> 5 | AP11: =AO11/(AQ4-AO9) -> 0.1923076923 | AQ11: =IF(AP11=0,0,(AP11*((LOG(AP11))/LOG(2)))) -> -0.4574060814 | AS11: =N11 -> 211 | AT11: =COUNTIF(L150:L178,AS11) -> 7 | AU11: =AT11/(AV4-AT9) -> 0.2692307692 | AV11: =IF(AU11=0,0,(AU11*((LOG(AU11))/LOG(2)))) -> -0.5096766759
A12: 11 | B12: 771 | C12: 21 | D12: 779 | E12: 22 | F12: 788 | K12: 0 | L12: 122 | N12: 212 | O12: =COUNTIF($L$7:$L$500,N12) -> 16 | P12: =O12/$Q$4 -> 0.09302325581 | Q12: =IF(P12=0,0,(P12*((LOG(P12))/LOG(2)))) -> -0.3187223028 | T12: =N12 -> 212 | U12: =COUNTIF(L7:L35,T12) -> 1 | V12: =U12/(W4-U9) -> 0.04166666667 | W12: =IF(V12=0,0,(V12*((LOG(V12))/LOG(2)))) -> -0.1910401042 | Y12: =N12 -> 212 | Z12: =COUNTIF(L36:L63,Y12) -> 1 | AA12: =Z12/(AB4-Z9) -> 0.04545454545 | AB12: =IF(AA12=0,0,(AA12*((LOG(AA12))/LOG(2)))) -> -0.2027014372 | AD12: =N12 -> 212 | AE12: =COUNTIF(L64:L92,AD12) -> 3 | AF12: =AE12/(AG4-AE9) -> 0.125 | AG12: =IF(AF12=0,0,(AF12*((LOG(AF12))/LOG(2)))) -> -0.375 | AI12: =N12 -> 212 | AJ12: =COUNTIF(L93:L121,AI12) -> 3 | AK12: =AJ12/(AL4-AJ9) -> 0.1034482759 | AL12: =IF(AK12=0,0,(AK12*((LOG(AK12))/LOG(2)))) -> -0.3385881201 | AN12: =N12 -> 212 | AO12: =COUNTIF(L122:L149,AN12) -> 5 | AP12: =AO12/(AQ4-AO9) -> 0.1923076923 | AQ12: =IF(AP12=0,0,(AP12*((LOG(AP12))/LOG(2)))) -> -0.4574060814 | AS12: =N12 -> 212 | AT12: =COUNTIF(L150:L178,AS12) -> 3 | AU12: =AT12/(AV4-AT9) -> 0.1153846154 | AV12: =IF(AU12=0,0,(AU12*((LOG(AU12))/LOG(2)))) -> -0.3594781405
A13: 11 | B13: 887 | C13: 21 | D13: 894 | E13: 22 | F13: 901 | K13: 0 | L13: 122 | N13: 221 | O13: =COUNTIF($L$7:$L$500,N13) -> 5 | P13: =O13/$Q$4 -> 0.02906976744 | Q13: =IF(P13=0,0,(P13*((LOG(P13))/LOG(2)))) -> -0.1483818796 | T13: =N13 -> 221 | U13: =COUNTIF(L7:L35,T13) -> 1 | V13: =U13/(W4-U9) -> 0.04166666667 | W13: =IF(V13=0,0,(V13*((LOG(V13))/LOG(2)))) -> -0.1910401042 | Y13: =N13 -> 221 | Z13: =COUNTIF(L36:L63,Y13) -> 1 | AA13: =Z13/(AB4-Z9) -> 0.04545454545 | AB13: =IF(AA13=0,0,(AA13*((LOG(AA13))/LOG(2)))) -> -0.2027014372 | AD13: =N13 -> 221 | AE13: =COUNTIF(L64:L92,AD13) -> 0 | AF13: =AE13/(AG4-AE9) -> 0 | AG13: =IF(AF13=0,0,(AF13*((LOG(AF13))/LOG(2)))) -> 0 | AI13: =N13 -> 221 | AJ13: =COUNTIF(L93:L121,AI13) -> 3 | AK13: =AJ13/(AL4-AJ9) -> 0.1034482759 | AL13: =IF(AK13=0,0,(AK13*((LOG(AK13))/LOG(2)))) -> -0.3385881201 | AN13: =N13 -> 221 | AO13: =COUNTIF(L122:L149,AN13) -> 0 | AP13: =AO13/(AQ4-AO9) -> 0 | AQ13: =IF(AP13=0,0,(AP13*((LOG(AP13))/LOG(2)))) -> 0 | AS13: =N13 -> 221 | AT13: =COUNTIF(L150:L178,AS13) -> 0 | AU13: =AT13/(AV4-AT9) -> 0 | AV13: =IF(AU13=0,0,(AU13*((LOG(AU13))/LOG(2)))) -> 0
A14: 11 | B14: 998 | C14: 21 | D14: 1008 | E14: 11 | F14: 1026 | K14: 0 | L14: 121 | N14: 222 | O14: =COUNTIF($L$7:$L$500,N14) -> 31 | P14: =O14/$Q$4 -> 0.1802325581 | Q14: =IF(P14=0,0,(P14*((LOG(P14))/LOG(2)))) -> -0.4455472196 | T14: =N14 -> 222 | U14: =COUNTIF(L7:L35,T14) -> 5 | V14: =U14/(W4-U9) -> 0.2083333333 | W14: =IF(V14=0,0,(V14*((LOG(V14))/LOG(2)))) -> -0.4714655012 | Y14: =N14 -> 222 | Z14: =COUNTIF(L36:L63,Y14) -> 2 | AA14: =Z14/(AB4-Z9) -> 0.09090909091 | AB14: =IF(AA14=0,0,(AA14*((LOG(AA14))/LOG(2)))) -> -0.3144937835 | AD14: =N14 -> 222 | AE14: =COUNTIF(L64:L92,AD14) -> 5 | AF14: =AE14/(AG4-AE9) -> 0.2083333333 | AG14: =IF(AF14=0,0,(AF14*((LOG(AF14))/LOG(2)))) -> -0.4714655012 | AI14: =N14 -> 222 | AJ14: =COUNTIF(L93:L121,AI14) -> 5 | AK14: =AJ14/(AL4-AJ9) -> 0.1724137931 | AL14: =IF(AK14=0,0,(AK14*((LOG(AK14))/LOG(2)))) -> -0.4372505 | AN14: =N14 -> 222 | AO14: =COUNTIF(L122:L149,AN14) -> 9 | AP14: =AO14/(AQ4-AO9) -> 0.3461538462 | AQ14: =IF(AP14=0,0,(AP14*((LOG(AP14))/LOG(2)))) -> -0.5297935558 | AS14: =N14 -> 222 | AT14: =COUNTIF(L150:L178,AS14) -> 5 | AU14: =AT14/(AV4-AT9) -> 0.1923076923 | AV14: =IF(AU14=0,0,(AU14*((LOG(AU14))/LOG(2)))) -> -0.4574060814
A15: 11 | B15: 1176 | C15: 12 | D15: 1189 | E15: 13 | F15: 1197 | K15: 0 | L15: 111 | P15: =SUM(P7:P14) -> 1 | Q15: =-SUM(Q7:Q14) -> 2.850763521 | V15: =SUM(V7:V14) -> 1 | W15: =-SUM(W7:W14) -> 2.381051959 | AA15: =SUM(AA7:AA14) -> 1 | AB15: =-SUM(AB7:AB14) -> 2.356492414 | AF15: =SUM(AF7:AF14) -> 1 | AG15: =-SUM(AG7:AG14) -> 2.354721358 | AK15: =SUM(AK7:AK14) -> 1 | AL15: =-SUM(AL7:AL14) -> 2.607691996 | AP15: =SUM(AP7:AP14) -> 1 | AQ15: =-SUM(AQ7:AQ14) -> 2.219536123 | AU15: =SUM(AU7:AU14) -> 1 | AV15: =-SUM(AV7:AV14) -> 2.458875297
A16: 11 | B16: 1296 | C16: 21 | D16: 1305 | E16: 22 | F16: 1311 | K16: 0 | L16: 122 | P16: U= | Q16: =Q15/(LOG(Q4)/LOG(2)) -> 0.3838758265 | V16: U1= | W16: =W15/(LOG(W4)/LOG(2)) -> 0.4901320038 | AA16: U2= | AB16: =AB15/(LOG(AB4)/LOG(2)) -> 0.4901848214 | AF16: U3= | AG16: =AG15/(LOG(AG4)/LOG(2)) -> 0.4847119328 | AK16: U4= | AL16: =AL15/(LOG(AL4)/LOG(2)) -> 0.5367851375 | AP16: U5= | AQ16: =AQ15/(LOG(AQ4)/LOG(2)) -> 0.4616959137 | AU16: U6= | AV16: =AV15/(LOG(AV4)/LOG(2)) -> 0.5061516914
A17: 11 | B17: 1412 | C17: 12 | D17: 1417 | E17: 13 | F17: 1424 | K17: 0 | L17: 111
A18: 11 | B18: 1521 | C18: 12 | D18: 1538 | E18: 13 | F18: 1545 | K18: 0 | L18: 111
A19: 22 | B19: 1647 | C19: 23 | D19: 1657 | E19: 24 | F19: 1663 | K19: 0 | L19: 222 | N19: Total Target Seq
A20: 11 | B20: 1765 | C20: 12 | D20: 1774 | E20: 24 | F20: 1783 | K20: 0 | L20: 112 | N20: =COUNTIF(L7:L178,G3) -> 21 | P20: 29 | Q20: 28 | R20: 29 | S20: 29 | T20: 28 | U20: 29
A21: 22 | B21: 1882 | C21: 23 | D21: 1892 | E21: 24 | F21: 1899 | K21: 0 | L21: 222 | P21: % of reinforcement given in 6 equal intervals based on number of trials
A22: 11 | B22: 2007 | C22: 21 | D22: 2016 | E22: 22 | F22: 2020 | K22: 0 | L22: 122 | P22: %_1 | Q22: %_2 | R22: %_3 | S22: %_4 | T22: %_5 | U22: %_6
A23: 22 | B23: 2119 | C23: 23 | D23: 2125 | E23: 24 | F23: 2132 | K23: 0 | L23: 222 | O23: target sequence | P23: =$G$3 -> 121 | Q23: =$G$3 -> 121 | R23: =$G$3 -> 121 | S23: =$G$3 -> 121 | T23: =$G$3 -> 121 | U23: =$G$3 -> 121
A24: 11 | B24: 2230 | C24: 21 | D24: 2239 | E24: 22 | F24: 2244 | K24: 0 | L24: 122 | O24: total reinforcement | P24: =U9 -> 5 | Q24: =Z9 -> 6 | R24: =AE9 -> 5 | S24: =AJ9 -> 0 | T24: =AO9 -> 2 | U24: =AT9 -> 3
A25: 11 | B25: 2347 | C25: 21 | D25: 2354 | E25: 11 | F25: 2368 | K25: 0 | L25: 121 | O25: % target
A26: 11 | B26: 2502 | C26: 21 | D26: 2511 | E26: 22 | F26: 2518 | K26: 0 | L26: 122 | O26: CCRF
A27: 11 | B27: 2618 | C27: 21 | D27: 2627 | E27: 22 | F27: 2633 | K27: 0 | L27: 122 | O27: % CCRf
A28: 11 | B28: 2734 | C28: 21 | D28: 2742 | E28: 22 | F28: 2748 | K28: 0 | L28: 122 | O28: average response rate | P28: =F35/P20 -> 128.8275862 | Q28: =(F63-F35)/Q20 -> 140.1071429 | R28: =(F92-F63)/R20 -> 149.9310345 | S28: =(F121-F92)/S20 -> 137.2068966 | T28: =(F149-F121)/T20 -> 135.25 | U28: =(F178-F149)/U20 -> 142.137931
A29: 22 | B29: 2850 | C29: 23 | D29: 2857 | E29: 24 | F29: 2863 | K29: 0 | L29: 222
A30: 11 | B30: 2959 | C30: 12 | D30: 2964 | E30: 24 | F30: 2971 | K30: 0 | L30: 112
A31: 11 | B31: 3074 | C31: 21 | D31: 3081 | E31: 11 | F31: 3107 | K31: 0 | L31: 121
A32: 11 | B32: 3282 | C32: 12 | D32: 3289 | E32: 13 | F32: 3296 | K32: 0 | L32: 111
A33: 11 | B33: 3394 | C33: 21 | D33: 3401 | E33: 11 | F33: 3412 | K33: 0 | L33: 121
A34: 22 | B34: 3582 | C34: 14 | D34: 3591 | E34: 24 | F34: 3609 | K34: 0 | L34: 212
A35: 22 | B35: 3708 | C35: 23 | D35: 3715 | E35: 13 | F35: 3736 | K35: 0 | L35: 221
A36: 11 | B36: 3950 | C36: 12 | D36: 3957 | E36: 13 | F36: 3964 | K36: 0 | L36: 111
A37: 22 | B37: 4059 | C37: 14 | D37: 4071 | E37: 13 | F37: 4078 | K37: 0 | L37: 211
A38: 11 | B38: 4190 | C38: 12 | D38: 4194 | E38: 13 | F38: 4202 | K38: 0 | L38: 111
A39: 11 | B39: 4303 | C39: 12 | D39: 4323 | E39: 13 | F39: 4331 | K39: 0 | L39: 111
A40: 22 | B40: 4430 | C40: 23 | D40: 4435 | E40: 13 | F40: 4447 | K40: 0 | L40: 221
A41: 11 | B41: 4549 | C41: 12 | D41: 4556 | E41: 13 | F41: 4563 | K41: 0 | L41: 111
A42: 11 | B42: 4665 | C42: 21 | D42: 4672 | E42: 11 | F42: 4699 | K42: 0 | L42: 121
A43: 11 | B43: 4890 | C43: 12 | D43: 4895 | E43: 13 | F43: 4907 | K43: 0 | L43: 111
A44: 11 | B44: 5009 | C44: 21 | D44: 5017 | E44: 22 | F44: 5022 | K44: 0 | L44: 122
A45: 22 | B45: 5130 | C45: 14 | D45: 5141 | E45: 24 | F45: 5161 | K45: 0 | L45: 212
A46: 11 | B46: 5258 | C46: 21 | D46: 5267 | E46: 11 | F46: 5278 | K46: 0 | L46: 121
A47: 11 | B47: 5463 | C47: 21 | D47: 5474 | E47: 22 | F47: 5480 | K47: 0 | L47: 122
A48: 22 | B48: 5575 | C48: 23 | D48: 5586 | E48: 24 | F48: 5593 | K48: 0 | L48: 222
A49: 22 | B49: 5685 | C49: 23 | D49: 5694 | E49: 24 | F49: 5701 | K49: 0 | L49: 222
A50: 22 | B50: 5804 | C50: 14 | D50: 5818 | E50: 13 | F50: 5833 | K50: 0 | L50: 211
A51: 22 | B51: 5940 | C51: 14 | D51: 5950 | E51: 13 | F51: 5959 | K51: 0 | L51: 211
A52: 22 | B52: 6070 | C52: 14 | D52: 6080 | E52: 13 | F52: 6089 | K52: 0 | L52: 211
A53: 11 | B53: 6184 | C53: 21 | D53: 6191 | E53: 22 | F53: 6197 | K53: 0 | L53: 122
A54: 11 | B54: 6297 | C54: 21 | D54: 6304 | E54: 11 | F54: 6317 | K54: 0 | L54: 121
A55: 11 | B55: 6474 | C55: 21 | D55: 6483 | E55: 11 | F55: 6496 | K55: 0 | L55: 121
A56: 11 | B56: 6665 | C56: 12 | D56: 6674 | E56: 13 | F56: 6692 | K56: 0 | L56: 111
A57: 22 | B57: 6787 | C57: 14 | D57: 6800 | E57: 13 | F57: 6812 | K57: 0 | L57: 211
A58: 11 | B58: 6914 | C58: 12 | D58: 6931 | E58: 24 | F58: 6952 | K58: 0 | L58: 112
A59: 22 | B59: 7051 | C59: 14 | D59: 7066 | E59: 13 | F59: 7079 | K59: 0 | L59: 211
A60: 11 | B60: 7177 | C60: 12 | D60: 7193 | E60: 13 | F60: 7203 | K60: 0 | L60: 111
A61: 11 | B61: 7302 | C61: 21 | D61: 7313 | E61: 11 | F61: 7325 | K61: 0 | L61: 121
A62: 11 | B62: 7501 | C62: 12 | D62: 7518 | E62: 13 | F62: 7531 | K62: 0 | L62: 111
A63: 11 | B63: 7633 | C63: 21 | D63: 7643 | E63: 11 | F63: 7659 | K63: 0 | L63: 121
A64: 11 | B64: 7880 | C64: 12 | D64: 7897 | E64: 24 | F64: 7906 | K64: 0 | L64: 112
A65: 11 | B65: 8003 | C65: 21 | D65: 8010 | E65: 11 | F65: 8026 | K65: 0 | L65: 121
A66: 11 | B66: 8246 | C66: 12 | D66: 8263 | E66: 13 | F66: 8271 | K66: 0 | L66: 111
A67: 11 | B67: 8374 | C67: 12 | D67: 8380 | E67: 13 | F67: 8387 | K67: 0 | L67: 111
A68: 22 | B68: 8495 | C68: 14 | D68: 8510 | E68: 13 | F68: 8523 | K68: 0 | L68: 211
A69: 22 | B69: 8628 | C69: 14 | D69: 8648 | E69: 13 | F69: 8657 | K69: 0 | L69: 211
A70: 11 | B70: 8762 | C70: 21 | D70: 8770 | E70: 11 | F70: 8780 | K70: 0 | L70: 121
A71: 11 | B71: 8940 | C71: 12 | D71: 8957 | E71: 24 | F71: 8966 | K71: 0 | L71: 112
A72: 11 | B72: 9061 | C72: 12 | D72: 9079 | E72: 13 | F72: 9087 | K72: 0 | L72: 111
A73: 11 | B73: 9186 | C73: 21 | D73: 9193 | E73: 11 | F73: 9205 | K73: 0 | L73: 121
A74: 11 | B74: 9355 | C74: 12 | D74: 9359 | E74: 13 | F74: 9365 | K74: 0 | L74: 111
A75: 22 | B75: 9475 | C75: 14 | D75: 9484 | E75: 13 | F75: 9492 | K75: 0 | L75: 211
A76: 22 | B76: 9602 | C76: 14 | D76: 9613 | E76: 24 | F76: 9638 | K76: 0 | L76: 212
A77: 11 | B77: 9739 | C77: 12 | D77: 9765 | E77: 13 | F77: 9775 | K77: 0 | L77: 111
A78: 11 | B78: 9871 | C78: 21 | D78: 9879 | E78: 22 | F78: 9885 | K78: 0 | L78: 122
A79: 11 | B79: 10066 | C79: 12 | D79: 10075 | E79: 13 | F79: 10082 | K79: 0 | L79: 111
A80: 22 | B80: 10176 | C80: 23 | D80: 10179 | E80: 24 | F80: 10186 | K80: 0 | L80: 222
A81: 22 | B81: 10363 | C81: 23 | D81: 10369 | E81: 24 | F81: 10378 | K81: 0 | L81: 222
A82: 22 | B82: 10475 | C82: 23 | D82: 10481 | E82: 24 | F82: 10487 | K82: 0 | L82: 222
A83: 11 | B83: 10602 | C83: 12 | D83: 10610 | E83: 13 | F83: 10618 | K83: 0 | L83: 111
A84: 22 | B84: 10725 | C84: 14 | D84: 10735 | E84: 13 | F84: 10744 | K84: 0 | L84: 211
A85: 11 | B85: 10850 | C85: 21 | D85: 10857 | E85: 11 | F85: 10870 | K85: 0 | L85: 121
A86: 22 | B86: 11092 | C86: 14 | D86: 11105 | E86: 13 | F86: 11119 | K86: 0 | L86: 211
A87: 11 | B87: 11217 | C87: 21 | D87: 11225 | E87: 11 | F87: 11255 | K87: 0 | L87: 121
A88: 22 | B88: 11488 | C88: 23 | D88: 11494 | E88: 24 | F88: 11500 | K88: 0 | L88: 222
A89: 22 | B89: 11595 | C89: 14 | D89: 11618 | E89: 24 | F89: 11640 | K89: 0 | L89: 212
A90: 22 | B90: 11739 | C90: 23 | D90: 11752 | E90: 24 | F90: 11759 | K90: 0 | L90: 222
A91: 22 | B91: 11865 | C91: 14 | D91: 11877 | E91: 24 | F91: 11886 | K91: 0 | L91: 212
A92: 22 | B92: 11989 | C92: 14 | D92: 12000 | E92: 13 | F92: 12007 | K92: 0 | L92: 211
A93: 11 | B93: 12109 | C93: 21 | D93: 12116 | E93: 22 | F93: 12136 | K93: 0 | L93: 122
A94: 22 | B94: 12232 | C94: 14 | D94: 12244 | E94: 24 | F94: 12254 | K94: 0 | L94: 212
A95: 22 | B95: 12349 | C95: 23 | D95: 12362 | E95: 24 | F95: 12369 | K95: 0 | L95: 222
A96: 22 | B96: 12479 | C96: 14 | D96: 12489 | E96: 13 | F96: 12497 | K96: 0 | L96: 211
A97: 22 | B97: 12610 | C97: 14 | D97: 12623 | E97: 13 | F97: 12632 | K97: 0 | L97: 211
A98: 22 | B98: 12737 | C98: 14 | D98: 12753 | E98: 24 | F98: 12773 | K98: 0 | L98: 212
A99: 22 | B99: 12885 | C99: 23 | D99: 12895 | E99: 24 | F99: 12902 | K99: 0 | L99: 222
A100: 22 | B100: 13022 | C100: 14 | D100: 13033 | E100: 13 | F100: 13040 | K100: 0 | L100: 211
A101: 22 | B101: 13139 | C101: 14 | D101: 13157 | E101: 13 | F101: 13165 | K101: 0 | L101: 211
A102: 11 | B102: 13268 | C102: 21 | D102: 13276 | E102: 22 | F102: 13280 | K102: 0 | L102: 122
A103: 22 | B103: 13377 | C103: 23 | D103: 13386 | E103: 13 | F103: 13406 | K103: 0 | L103: 221
A104: 11 | B104: 13632 | C104: 12 | D104: 13645 | E104: 13 | F104: 13651 | K104: 0 | L104: 111
A105: 22 | B105: 13761 | C105: 14 | D105: 13773 | E105: 13 | F105: 13785 | K105: 0 | L105: 211
A106: 11 | B106: 13903 | C106: 12 | D106: 13909 | E106: 13 | F106: 13916 | K106: 0 | L106: 111
A107: 22 | B107: 14028 | C107: 14 | D107: 14049 | E107: 13 | F107: 14071 | K107: 0 | L107: 211
A108: 22 | B108: 14164 | C108: 14 | D108: 14184 | E108: 24 | F108: 14194 | K108: 0 | L108: 212
A109: 22 | B109: 14288 | C109: 23 | D109: 14298 | E109: 13 | F109: 14316 | K109: 0 | L109: 221
A110: 11 | B110: 14514 | C110: 12 | D110: 14529 | E110: 13 | F110: 14542 | K110: 0 | L110: 111
A111: 22 | B111: 14660 | C111: 14 | D111: 14672 | E111: 13 | F111: 14679 | K111: 0 | L111: 211
A112: 22 | B112: 14788 | C112: 14 | D112: 14801 | E112: 13 | F112: 14815 | K112: 0 | L112: 211
A113: 22 | B113: 14907 | C113: 23 | D113: 14916 | E113: 24 | F113: 14922 | K113: 0 | L113: 222
A114: 11 | B114: 15111 | C114: 12 | D114: 15117 | E114: 24 | F114: 15128 | K114: 0 | L114: 112
